Workbook

Sheet Hauptmenü
E5: Beschreibung | R5: =TODAY() -> 2019-11-05
E6: Kontakt
D18: Dieses Programm ist für den Betrieb: | J18: Große Dankbar | N18: lizensiert !! | R18: ã Große Dankbar
A22: Programmerstellung: Ralf Große Dankbar,Version 03-2019

Sheet PSM
F2: Pflanzenschutz
B3: Schlag | C3: =Betriebsdaten!C11 -> Bester Feld | D3: =Betriebsdaten!D11 -> 0 | E3: =Betriebsdaten!E11 -> 0 | F3: =Betriebsdaten!F11 -> 0 | G3: =Betriebsdaten!G11 -> 0 | H3: =Betriebsdaten!H11 -> 0 | I3: =Betriebsdaten!I11 -> 0 | J3: =Betriebsdaten!J11 -> 0 | K3: =Betriebsdaten!K11 -> 0 | L3: =Betriebsdaten!L11 -> 0 | M3: =Betriebsdaten!M11 -> 0 | N3: =Betriebsdaten!N11 -> 0 | O3: =Betriebsdaten!O11 -> 0 | P3: =Betriebsdaten!P11 -> 0 | Q3: =Betriebsdaten!Q11 -> 0 | R3: =Betriebsdaten!R11 -> 0 | S3: =Betriebsdaten!S11 -> 0 | T3: =Betriebsdaten!T11 -> 0 | U3: =Betriebsdaten!U11 -> 0 | V3: =Betriebsdaten!V11 -> 0 | W3: =Betriebsdaten!W11 -> 0 | X3: =Betriebsdaten!X11 -> 0 | Y3: =Betriebsdaten!Y11 -> 0 | Z3: =Betriebsdaten!Z11 -> 0 | AA3: =Betriebsdaten!AA11 -> 25 | AB3: =Betriebsdaten!AB11 -> 26 | AC3: =Betriebsdaten!AC11 -> 27 | AD3: =Betriebsdaten!AD11 -> 28 | AE3: =Betriebsdaten!AE11 -> 29 | AF3: =Betriebsdaten!AF11 -> 30 | AG3: =Betriebsdaten!AG11 -> 31 | AH3: =Betriebsdaten!AH11 -> 32 | AI3: =Betriebsdaten!AI11 -> 33 | AJ3: =Betriebsdaten!AJ11 -> 34 | AK3: =Betriebsdaten!AK11 -> 35 | AL3: =Betriebsdaten!AL11 -> 36 | AM3: =Betriebsdaten!AM11 -> 37 | AN3: =Betriebsdaten!AN11 -> 38 | AO3: =Betriebsdaten!AO11 -> 39 | AP3: =Betriebsdaten!AP11 -> 40 | AQ3: =Betriebsdaten!AQ11 -> 41 | AR3: =Betriebsdaten!AR11 -> 42 | AS3: =Betriebsdaten!AS11 -> 43 | AT3: =Betriebsdaten!AT11 -> 44 | AU3: =Betriebsdaten!AU11 -> 45 | AV3: =Betriebsdaten!AV11 -> 46 | AW3: =Betriebsdaten!AW11 -> 47 | AX3: =Betriebsdaten!AX11 -> 48 | AY3: =Betriebsdaten!AY11 -> 49 | AZ3: =Betriebsdaten!AZ11 -> 50 | BA3: =Betriebsdaten!BA11 -> 51 | BB3: =Betriebsdaten!BB11 -> 52 | BC3: =Betriebsdaten!BC11 -> 53 | BD3: =Betriebsdaten!BD11 -> 54 | BE3: =Betriebsdaten!BE11 -> 55 | BF3: =Betriebsdaten!BF11 -> 56 | BG3: =Betriebsdaten!BG11 -> 57 | BH3: =Betriebsdaten!BH11 -> 58 | BI3: =Betriebsdaten!BI11 -> 59 | BJ3: =Betriebsdaten!BJ11 -> 60
B4: Frucht | C4: =Betriebsdaten!C15 -> Spargel | D4: =Betriebsdaten!D15 -> 0 | E4: =Betriebsdaten!E15 -> 0 | F4: =Betriebsdaten!F15 -> 0 | G4: =Betriebsdaten!G15 -> 0 | H4: =Betriebsdaten!H15 -> 0 | I4: =Betriebsdaten!I15 -> 0 | J4: =Betriebsdaten!J15 -> 0 | K4: =Betriebsdaten!K15 -> 0 | L4: =Betriebsdaten!L15 -> 0 | M4: =Betriebsdaten!M15 -> 0 | N4: =Betriebsdaten!N15 -> 0 | O4: =Betriebsdaten!O15 -> 0 | P4: =Betriebsdaten!P15 -> 0 | Q4: =Betriebsdaten!Q15 -> 0 | R4: =Betriebsdaten!R15 -> 0 | S4: =Betriebsdaten!S15 -> 0 | T4: =Betriebsdaten!T15 -> 0 | U4: =Betriebsdaten!U15 -> 0 | V4: =Betriebsdaten!V15 -> 0 | W4: =Betriebsdaten!W15 -> 0 | X4: =Betriebsdaten!X15 -> 0 | Y4: =Betriebsdaten!Y15 -> 0 | Z4: =Betriebsdaten!Z15 -> 0 | AA4: =Betriebsdaten!AA15 -> 0 | AB4: =Betriebsdaten!AB15 -> 0 | AC4: =Betriebsdaten!AC15 -> 0 | AD4: =Betriebsdaten!AD15 -> 0 | AE4: =Betriebsdaten!AE15 -> 0 | AF4: =Betriebsdaten!AF15 -> 0 | AG4: =Betriebsdaten!AG15 -> 0 | AH4: =Betriebsdaten!AH15 -> 0 | AI4: =Betriebsdaten!AI15 -> 0 | AJ4: =Betriebsdaten!AJ15 -> 0 | AK4: =Betriebsdaten!AK15 -> 0 | AL4: =Betriebsdaten!AL15 -> 0 | AM4: =Betriebsdaten!AM15 -> 0 | AN4: =Betriebsdaten!AN15 -> 0 | AO4: =Betriebsdaten!AO15 -> 0 | AP4: =Betriebsdaten!AP15 -> 0 | AQ4: =Betriebsdaten!AQ15 -> 0 | AR4: =Betriebsdaten!AR15 -> 0 | AS4: =Betriebsdaten!AS15 -> 0 | AT4: =Betriebsdaten!AT15 -> 0 | AU4: =Betriebsdaten!AU15 -> 0 | AV4: =Betriebsdaten!AV15 -> 0 | AW4: =Betriebsdaten!AW15 -> 0 | AX4: =Betriebsdaten!AX15 -> 0 | AY4: =Betriebsdaten!AY15 -> 0 | AZ4: =Betriebsdaten!AZ15 -> 0 | BA4: =Betriebsdaten!BA15 -> 0 | BB4: =Betriebsdaten!BB15 -> 0 | BC4: =Betriebsdaten!BC15 -> 0 | BD4: =Betriebsdaten!BD15 -> 0 | BE4: =Betriebsdaten!BE15 -> 0 | BF4: =Betriebsdaten!BF15 -> 0 | BG4: =Betriebsdaten!BG15 -> 0 | BH4: =Betriebsdaten!BH15 -> 0 | BI4: =Betriebsdaten!BI15 -> 0 | BJ4: =Betriebsdaten!BJ15 -> 0
B5: Sorte | C5: =Betriebsdaten!C16 -> Gijnlim | D5: =Betriebsdaten!D16 -> 0 | E5: =Betriebsdaten!E16 -> 0 | F5: =Betriebsdaten!F16 -> 0 | G5: =Betriebsdaten!G16 -> 0 | H5: =Betriebsdaten!H16 -> 0 | I5: =Betriebsdaten!I16 -> 0 | J5: =Betriebsdaten!J16 -> 0 | K5: =Betriebsdaten!K16 -> 0 | L5: =Betriebsdaten!L16 -> 0 | M5: =Betriebsdaten!M16 -> 0 | N5: =Betriebsdaten!N16 -> 0 | O5: =Betriebsdaten!O16 -> 0 | P5: =Betriebsdaten!P16 -> 0 | Q5: =Betriebsdaten!Q16 -> 0 | R5: =Betriebsdaten!R16 -> 0 | S5: =Betriebsdaten!S16 -> 0 | T5: =Betriebsdaten!T16 -> 0 | U5: =Betriebsdaten!U16 -> 0 | V5: =Betriebsdaten!V16 -> 0 | W5: =Betriebsdaten!W16 -> 0 | X5: =Betriebsdaten!X16 -> 0 | Y5: =Betriebsdaten!Y16 -> 0 | Z5: =Betriebsdaten!Z16 -> 0 | AA5: =Betriebsdaten!AA16 -> 0 | AB5: =Betriebsdaten!AB16 -> 0 | AC5: =Betriebsdaten!AC16 -> 0 | AD5: =Betriebsdaten!AD16 -> 0 | AE5: =Betriebsdaten!AE16 -> 0 | AF5: =Betriebsdaten!AF16 -> 0 | AG5: =Betriebsdaten!AG16 -> 0 | AH5: =Betriebsdaten!AH16 -> 0 | AI5: =Betriebsdaten!AI16 -> 0 | AJ5: =Betriebsdaten!AJ16 -> 0 | AK5: =Betriebsdaten!AK16 -> 0 | AL5: =Betriebsdaten!AL16 -> 0 | AM5: =Betriebsdaten!AM16 -> 0 | AN5: =Betriebsdaten!AN16 -> 0 | AO5: =Betriebsdaten!AO16 -> 0 | AP5: =Betriebsdaten!AP16 -> 0 | AQ5: =Betriebsdaten!AQ16 -> 0 | AR5: =Betriebsdaten!AR16 -> 0 | AS5: =Betriebsdaten!AS16 -> 0 | AT5: =Betriebsdaten!AT16 -> 0 | AU5: =Betriebsdaten!AU16 -> 0 | AV5: =Betriebsdaten!AV16 -> 0 | AW5: =Betriebsdaten!AW16 -> 0 | AX5: =Betriebsdaten!AX16 -> 0 | AY5: =Betriebsdaten!AY16 -> 0 | AZ5: =Betriebsdaten!AZ16 -> 0 | BA5: =Betriebsdaten!BA16 -> 0 | BB5: =Betriebsdaten!BB16 -> 0 | BC5: =Betriebsdaten!BC16 -> 0 | BD5: =Betriebsdaten!BD16 -> 0 | BE5: =Betriebsdaten!BE16 -> 0 | BF5: =Betriebsdaten!BF16 -> 0 | BG5: =Betriebsdaten!BG16 -> 0 | BH5: =Betriebsdaten!BH16 -> 0 | BI5: =Betriebsdaten!BI16 -> 0 | BJ5: =Betriebsdaten!BJ16 -> 0
B6: ha | C6: =Betriebsdaten!C17 -> 3.8 | D6: =Betriebsdaten!D17 -> 0 | E6: =Betriebsdaten!E17 -> 0 | F6: =Betriebsdaten!F17 -> 0 | G6: =Betriebsdaten!G17 -> 0 | H6: =Betriebsdaten!H17 -> 0 | I6: =Betriebsdaten!I17 -> 0 | J6: =Betriebsdaten!J17 -> 0 | K6: =Betriebsdaten!K17 -> 0 | L6: =Betriebsdaten!L17 -> 0 | M6: =Betriebsdaten!M17 -> 0 | N6: =Betriebsdaten!N17 -> 0 | O6: =Betriebsdaten!O17 -> 0 | P6: =Betriebsdaten!P17 -> 0 | Q6: =Betriebsdaten!Q17 -> 0 | R6: =Betriebsdaten!R17 -> 0 | S6: =Betriebsdaten!S17 -> 0 | T6: =Betriebsdaten!T17 -> 0 | U6: =Betriebsdaten!U17 -> 0 | V6: =Betriebsdaten!V17 -> 0 | W6: =Betriebsdaten!W17 -> 0 | X6: =Betriebsdaten!X17 -> 0 | Y6: =Betriebsdaten!Y17 -> 0 | Z6: =Betriebsdaten!Z17 -> 0 | AA6: =Betriebsdaten!AA17 -> 0 | AB6: =Betriebsdaten!AB17 -> 0 | AC6: =Betriebsdaten!AC17 -> 0 | AD6: =Betriebsdaten!AD17 -> 0 | AE6: =Betriebsdaten!AE17 -> 0 | AF6: =Betriebsdaten!AF17 -> 0 | AG6: =Betriebsdaten!AG17 -> 0 | AH6: =Betriebsdaten!AH17 -> 0 | AI6: =Betriebsdaten!AI17 -> 0 | AJ6: =Betriebsdaten!AJ17 -> 0 | AK6: =Betriebsdaten!AK17 -> 0 | AL6: =Betriebsdaten!AL17 -> 0 | AM6: =Betriebsdaten!AM17 -> 0 | AN6: =Betriebsdaten!AN17 -> 0 | AO6: =Betriebsdaten!AO17 -> 0 | AP6: =Betriebsdaten!AP17 -> 0 | AQ6: =Betriebsdaten!AQ17 -> 0 | AR6: =Betriebsdaten!AR17 -> 0 | AS6: =Betriebsdaten!AS17 -> 0 | AT6: =Betriebsdaten!AT17 -> 0 | AU6: =Betriebsdaten!AU17 -> 0 | AV6: =Betriebsdaten!AV17 -> 0 | AW6: =Betriebsdaten!AW17 -> 0 | AX6: =Betriebsdaten!AX17 -> 0 | AY6: =Betriebsdaten!AY17 -> 0 | AZ6: =Betriebsdaten!AZ17 -> 0 | BA6: =Betriebsdaten!BA17 -> 0 | BB6: =Betriebsdaten!BB17 -> 0 | BC6: =Betriebsdaten!BC17 -> 0 | BD6: =Betriebsdaten!BD17 -> 0 | BE6: =Betriebsdaten!BE17 -> 0 | BF6: =Betriebsdaten!BF17 -> 0 | BG6: =Betriebsdaten!BG17 -> 0 | BH6: =Betriebsdaten!BH17 -> 0 | BI6: =Betriebsdaten!BI17 -> 0 | BJ6: =Betriebsdaten!BJ17 -> 0
B7: Datum | C7: 2018-05-27
B8: Mittel 1 | C8: Stomp Aqua 3,5 + Sencor liquid 0,4
B9: Preis | C9: =IF(C8="",0,VLOOKUP(C8,PSMListe!Pflanzenschutz,2,FALSE)) -> 56.22 | D9: =IF(D8="",0,VLOOKUP(D8,PSMListe!Pflanzenschutz,2,FALSE)) -> 0 | E9: =IF(E8="",0,VLOOKUP(E8,PSMListe!Pflanzenschutz,2,FALSE)) -> 0 | F9: =IF(F8="",0,VLOOKUP(F8,PSMListe!Pflanzenschutz,2,FALSE)) -> 0 | G9: =IF(G8="",0,VLOOKUP(G8,PSMListe!Pflanzenschutz,2,FALSE)) -> 0 | H9: =IF(H8="",0,VLOOKUP(H8,PSMListe!Pflanzenschutz,2,FALSE)) -> 0 | I9: =IF(I8="",0,VLOOKUP(I8,PSMListe!Pflanzenschutz,2,FALSE)) -> 0 | J9: =IF(J8="",0,VLOOKUP(J8,PSMListe!Pflanzenschutz,2,FALSE)) -> 0 | K9: =IF(K8="",0,VLOOKUP(K8,PSMListe!Pflanzenschutz,2,FALSE)) -> 0 | L9: =IF(L8="",0,VLOOKUP(L8,PSMListe!Pflanzenschutz,2,FALSE)) -> 0 | M9: =IF(M8="",0,VLOOKUP(M8,PSMListe!Pflanzenschutz,2,FALSE)) -> 0 | N9: =IF(N8="",0,VLOOKUP(N8,PSMListe!Pflanzenschutz,2,FALSE)) -> 0 | O9: =IF(O8="",0,VLOOKUP(O8,PSMListe!Pflanzenschutz,2,FALSE)) -> 0 | P9: =IF(P8="",0,VLOOKUP(P8,PSMListe!Pflanzenschutz,2,FALSE)) -> 0 | Q9: =IF(Q8="",0,VLOOKUP(Q8,PSMListe!Pflanzenschutz,2,FALSE)) -> 0 | R9: =IF(R8="",0,VLOOKUP(R8,PSMListe!Pflanzenschutz,2,FALSE)) -> 0 | S9: =IF(S8="",0,VLOOKUP(S8,PSMListe!Pflanzenschutz,2,FALSE)) -> 0 | T9: =IF(T8="",0,VLOOKUP(T8,PSMListe!Pflanzenschutz,2,FALSE)) -> 0 | U9: =IF(U8="",0,VLOOKUP(U8,PSMListe!Pflanzenschutz,2,FALSE)) -> 0 | V9: =IF(V8="",0,VLOOKUP(V8,PSMListe!Pflanzenschutz,2,FALSE)) -> 0 | W9: =IF(W8="",0,VLOOKUP(W8,PSMListe!Pflanzenschutz,2,FALSE)) -> 0 | X9: =IF(X8="",0,VLOOKUP(X8,PSMListe!Pflanzenschutz,2,FALSE)) -> 0 | Y9: =IF(Y8="",0,VLOOKUP(Y8,PSMListe!Pflanzenschutz,2,FALSE)) -> 0 | Z9: =IF(Z8="",0,VLOOKUP(Z8,PSMListe!Pflanzenschutz,2,FALSE)) -> 0 | AA9: =IF(AA8="",0,VLOOKUP(AA8,PSMListe!Pflanzenschutz,2,FALSE)) -> 0 | AB9: =IF(AB8="",0,VLOOKUP(AB8,PSMListe!Pflanzenschutz,2,FALSE)) -> 0 | AC9: =IF(AC8="",0,VLOOKUP(AC8,PSMListe!Pflanzenschutz,2,FALSE)) -> 0 | AD9: =IF(AD8="",0,VLOOKUP(AD8,PSMListe!Pflanzenschutz,2,FALSE)) -> 0 | AE9: =IF(AE8="",0,VLOOKUP(AE8,PSMListe!Pflanzenschutz,2,FALSE)) -> 0 | AF9: =IF(AF8="",0,VLOOKUP(AF8,PSMListe!Pflanzenschutz,2,FALSE)) -> 0 | AG9: =IF(AG8="",0,VLOOKUP(AG8,PSMListe!Pflanzenschutz,2,FALSE)) -> 0 | AH9: =IF(AH8="",0,VLOOKUP(AH8,PSMListe!Pflanzenschutz,2,FALSE)) -> 0 | AI9: =IF(AI8="",0,VLOOKUP(AI8,PSMListe!Pflanzenschutz,2,FALSE)) -> 0 | AJ9: =IF(AJ8="",0,VLOOKUP(AJ8,PSMListe!Pflanzenschutz,2,FALSE)) -> 0 | AK9: =IF(AK8="",0,VLOOKUP(AK8,PSMListe!Pflanzenschutz,2,FALSE)) -> 0 | AL9: =IF(AL8="",0,VLOOKUP(AL8,PSMListe!Pflanzenschutz,2,FALSE)) -> 0 | AM9: =IF(AM8="",0,VLOOKUP(AM8,PSMListe!Pflanzenschutz,2,FALSE)) -> 0 | AN9: =IF(AN8="",0,VLOOKUP(AN8,PSMListe!Pflanzenschutz,2,FALSE)) -> 0 | AO9: =IF(AO8="",0,VLOOKUP(AO8,PSMListe!Pflanzenschutz,2,FALSE)) -> 0 | AP9: =IF(AP8="",0,VLOOKUP(AP8,PSMListe!Pflanzenschutz,2,FALSE)) -> 0 | AQ9: =IF(AQ8="",0,VLOOKUP(AQ8,PSMListe!Pflanzenschutz,2,FALSE)) -> 0 | AR9: =IF(AR8="",0,VLOOKUP(AR8,PSMListe!Pflanzenschutz,2,FALSE)) -> 0 | AS9: =IF(AS8="",0,VLOOKUP(AS8,PSMListe!Pflanzenschutz,2,FALSE)) -> 0 | AT9: =IF(AT8="",0,VLOOKUP(AT8,PSMListe!Pflanzenschutz,2,FALSE)) -> 0 | AU9: =IF(AU8="",0,VLOOKUP(AU8,PSMListe!Pflanzenschutz,2,FALSE)) -> 0 | AV9: =IF(AV8="",0,VLOOKUP(AV8,PSMListe!Pflanzenschutz,2,FALSE)) -> 0 | AW9: =IF(AW8="",0,VLOOKUP(AW8,PSMListe!Pflanzenschutz,2,FALSE)) -> 0 | AX9: =IF(AX8="",0,VLOOKUP(AX8,PSMListe!Pflanzenschutz,2,FALSE)) -> 0 | AY9: =IF(AY8="",0,VLOOKUP(AY8,PSMListe!Pflanzenschutz,2,FALSE)) -> 0 | AZ9: =IF(AZ8="",0,VLOOKUP(AZ8,PSMListe!Pflanzenschutz,2,FALSE)) -> 0 | BA9: =IF(BA8="",0,VLOOKUP(BA8,PSMListe!Pflanzenschutz,2,FALSE)) -> 0 | BB9: =IF(BB8="",0,VLOOKUP(BB8,PSMListe!Pflanzenschutz,2,FALSE)) -> 0 | BC9: =IF(BC8="",0,VLOOKUP(BC8,PSMListe!Pflanzenschutz,2,FALSE)) -> 0 | BD9: =IF(BD8="",0,VLOOKUP(BD8,PSMListe!Pflanzenschutz,2,FALSE)) -> 0 | BE9: =IF(BE8="",0,VLOOKUP(BE8,PSMListe!Pflanzenschutz,2,FALSE)) -> 0 | BF9: =IF(BF8="",0,VLOOKUP(BF8,PSMListe!Pflanzenschutz,2,FALSE)) -> 0 | BG9: =IF(BG8="",0,VLOOKUP(BG8,PSMListe!Pflanzenschutz,2,FALSE)) -> 0 | BH9: =IF(BH8="",0,VLOOKUP(BH8,PSMListe!Pflanzenschutz,2,FALSE)) -> 0 | BI9: =IF(BI8="",0,VLOOKUP(BI8,PSMListe!Pflanzenschutz,2,FALSE)) -> 0 | BJ9: =IF(BJ8="",0,VLOOKUP(BJ8,PSMListe!Pflanzenschutz,2,FALSE)) -> 0
B10: Menge | C10: 1
B11: Bemerkung | C11: Ralf, Unkraut
B12: Datum | C12: 2018-07-21
B13: Mittel 2 | C13: Amistar Opti
B14: Preis | C14: =IF(C13="",0,VLOOKUP(C13,PSMListe!Pflanzenschutz,2,FALSE)) -> 18.6 | D14: =IF(D13="",0,VLOOKUP(D13,PSMListe!Pflanzenschutz,2,FALSE)) -> 0 | E14: =IF(E13="",0,VLOOKUP(E13,PSMListe!Pflanzenschutz,2,FALSE)) -> 0 | F14: =IF(F13="",0,VLOOKUP(F13,PSMListe!Pflanzenschutz,2,FALSE)) -> 0 | G14: =IF(G13="",0,VLOOKUP(G13,PSMListe!Pflanzenschutz,2,FALSE)) -> 0 | H14: =IF(H13="",0,VLOOKUP(H13,PSMListe!Pflanzenschutz,2,FALSE)) -> 0 | I14: =IF(I13="",0,VLOOKUP(I13,PSMListe!Pflanzenschutz,2,FALSE)) -> 0 | J14: =IF(J13="",0,VLOOKUP(J13,PSMListe!Pflanzenschutz,2,FALSE)) -> 0 | K14: =IF(K13="",0,VLOOKUP(K13,PSMListe!Pflanzenschutz,2,FALSE)) -> 0 | L14: =IF(L13="",0,VLOOKUP(L13,PSMListe!Pflanzenschutz,2,FALSE)) -> 0 | M14: =IF(M13="",0,VLOOKUP(M13,PSMListe!Pflanzenschutz,2,FALSE)) -> 0 | N14: =IF(N13="",0,VLOOKUP(N13,PSMListe!Pflanzenschutz,2,FALSE)) -> 0 | O14: =IF(O13="",0,VLOOKUP(O13,PSMListe!Pflanzenschutz,2,FALSE)) -> 0 | P14: =IF(P13="",0,VLOOKUP(P13,PSMListe!Pflanzenschutz,2,FALSE)) -> 0 | Q14: =IF(Q13="",0,VLOOKUP(Q13,PSMListe!Pflanzenschutz,2,FALSE)) -> 0 | R14: =IF(R13="",0,VLOOKUP(R13,PSMListe!Pflanzenschutz,2,FALSE)) -> 0 | S14: =IF(S13="",0,VLOOKUP(S13,PSMListe!Pflanzenschutz,2,FALSE)) -> 0 | T14: =IF(T13="",0,VLOOKUP(T13,PSMListe!Pflanzenschutz,2,FALSE)) -> 0 | U14: =IF(U13="",0,VLOOKUP(U13,PSMListe!Pflanzenschutz,2,FALSE)) -> 0 | V14: =IF(V13="",0,VLOOKUP(V13,PSMListe!Pflanzenschutz,2,FALSE)) -> 0 | W14: =IF(W13="",0,VLOOKUP(W13,PSMListe!Pflanzenschutz,2,FALSE)) -> 0 | X14: =IF(X13="",0,VLOOKUP(X13,PSMListe!Pflanzenschutz,2,FALSE)) -> 0 | Y14: =IF(Y13="",0,VLOOKUP(Y13,PSMListe!Pflanzenschutz,2,FALSE)) -> 0 | Z14: =IF(Z13="",0,VLOOKUP(Z13,PSMListe!Pflanzenschutz,2,FALSE)) -> 0 | AA14: =IF(AA13="",0,VLOOKUP(AA13,PSMListe!Pflanzenschutz,2,FALSE)) -> 0 | AB14: =IF(AB13="",0,VLOOKUP(AB13,PSMListe!Pflanzenschutz,2,FALSE)) -> 0 | AC14: =IF(AC13="",0,VLOOKUP(AC13,PSMListe!Pflanzenschutz,2,FALSE)) -> 0 | AD14: =IF(AD13="",0,VLOOKUP(AD13,PSMListe!Pflanzenschutz,2,FALSE)) -> 0 | AE14: =IF(AE13="",0,VLOOKUP(AE13,PSMListe!Pflanzenschutz,2,FALSE)) -> 0 | AF14: =IF(AF13="",0,VLOOKUP(AF13,PSMListe!Pflanzenschutz,2,FALSE)) -> 0 | AG14: =IF(AG13="",0,VLOOKUP(AG13,PSMListe!Pflanzenschutz,2,FALSE)) -> 0 | AH14: =IF(AH13="",0,VLOOKUP(AH13,PSMListe!Pflanzenschutz,2,FALSE)) -> 0 | AI14: =IF(AI13="",0,VLOOKUP(AI13,PSMListe!Pflanzenschutz,2,FALSE)) -> 0 | AJ14: =IF(AJ13="",0,VLOOKUP(AJ13,PSMListe!Pflanzenschutz,2,FALSE)) -> 0 | AK14: =IF(AK13="",0,VLOOKUP(AK13,PSMListe!Pflanzenschutz,2,FALSE)) -> 0 | AL14: =IF(AL13="",0,VLOOKUP(AL13,PSMListe!Pflanzenschutz,2,FALSE)) -> 0 | AM14: =IF(AM13="",0,VLOOKUP(AM13,PSMListe!Pflanzenschutz,2,FALSE)) -> 0 | AN14: =IF(AN13="",0,VLOOKUP(AN13,PSMListe!Pflanzenschutz,2,FALSE)) -> 0 | AO14: =IF(AO13="",0,VLOOKUP(AO13,PSMListe!Pflanzenschutz,2,FALSE)) -> 0 | AP14: =IF(AP13="",0,VLOOKUP(AP13,PSMListe!Pflanzenschutz,2,FALSE)) -> 0 | AQ14: =IF(AQ13="",0,VLOOKUP(AQ13,PSMListe!Pflanzenschutz,2,FALSE)) -> 0 | AR14: =IF(AR13="",0,VLOOKUP(AR13,PSMListe!Pflanzenschutz,2,FALSE)) -> 0 | AS14: =IF(AS13="",0,VLOOKUP(AS13,PSMListe!Pflanzenschutz,2,FALSE)) -> 0 | AT14: =IF(AT13="",0,VLOOKUP(AT13,PSMListe!Pflanzenschutz,2,FALSE)) -> 0 | AU14: =IF(AU13="",0,VLOOKUP(AU13,PSMListe!Pflanzenschutz,2,FALSE)) -> 0 | AV14: =IF(AV13="",0,VLOOKUP(AV13,PSMListe!Pflanzenschutz,2,FALSE)) -> 0 | AW14: =IF(AW13="",0,VLOOKUP(AW13,PSMListe!Pflanzenschutz,2,FALSE)) -> 0 | AX14: =IF(AX13="",0,VLOOKUP(AX13,PSMListe!Pflanzenschutz,2,FALSE)) -> 0 | AY14: =IF(AY13="",0,VLOOKUP(AY13,PSMListe!Pflanzenschutz,2,FALSE)) -> 0 | AZ14: =IF(AZ13="",0,VLOOKUP(AZ13,PSMListe!Pflanzenschutz,2,FALSE)) -> 0 | BA14: =IF(BA13="",0,VLOOKUP(BA13,PSMListe!Pflanzenschutz,2,FALSE)) -> 0 | BB14: =IF(BB13="",0,VLOOKUP(BB13,PSMListe!Pflanzenschutz,2,FALSE)) -> 0 | BC14: =IF(BC13="",0,VLOOKUP(BC13,PSMListe!Pflanzenschutz,2,FALSE)) -> 0 | BD14: =IF(BD13="",0,VLOOKUP(BD13,PSMListe!Pflanzenschutz,2,FALSE)) -> 0 | BE14: =IF(BE13="",0,VLOOKUP(BE13,PSMListe!Pflanzenschutz,2,FALSE)) -> 0 | BF14: =IF(BF13="",0,VLOOKUP(BF13,PSMListe!Pflanzenschutz,2,FALSE)) -> 0 | BG14: =IF(BG13="",0,VLOOKUP(BG13,PSMListe!Pflanzenschutz,2,FALSE)) -> 0 | BH14: =IF(BH13="",0,VLOOKUP(BH13,PSMListe!Pflanzenschutz,2,FALSE)) -> 0 | BI14: =IF(BI13="",0,VLOOKUP(BI13,PSMListe!Pflanzenschutz,2,FALSE)) -> 0 | BJ14: =IF(BJ13="",0,VLOOKUP(BJ13,PSMListe!Pflanzenschutz,2,FALSE)) -> 0
B15: Menge | C15: 2.5
B16: Bemerkung | C16: Ralf, Pilzinfektion 42 05 er bewölkt 21°C | D16: Peter
B17: Datum | C17: 2018-08-07
B18: Mittel 3 | C18: Cuprozin progress
B19: Preis | C19: =IF(C18="",0,VLOOKUP(C18,PSMListe!Pflanzenschutz,2,FALSE)) -> 29.8 | D19: =IF(D18="",0,VLOOKUP(D18,PSMListe!Pflanzenschutz,2,FALSE)) -> 0 | E19: =IF(E18="",0,VLOOKUP(E18,PSMListe!Pflanzenschutz,2,FALSE)) -> 0 | F19: =IF(F18="",0,VLOOKUP(F18,PSMListe!Pflanzenschutz,2,FALSE)) -> 0 | G19: =IF(G18="",0,VLOOKUP(G18,PSMListe!Pflanzenschutz,2,FALSE)) -> 0 | H19: =IF(H18="",0,VLOOKUP(H18,PSMListe!Pflanzenschutz,2,FALSE)) -> 0 | I19: =IF(I18="",0,VLOOKUP(I18,PSMListe!Pflanzenschutz,2,FALSE)) -> 0 | J19: =IF(J18="",0,VLOOKUP(J18,PSMListe!Pflanzenschutz,2,FALSE)) -> 0 | K19: =IF(K18="",0,VLOOKUP(K18,PSMListe!Pflanzenschutz,2,FALSE)) -> 0 | L19: =IF(L18="",0,VLOOKUP(L18,PSMListe!Pflanzenschutz,2,FALSE)) -> 0 | M19: =IF(M18="",0,VLOOKUP(M18,PSMListe!Pflanzenschutz,2,FALSE)) -> 0 | N19: =IF(N18="",0,VLOOKUP(N18,PSMListe!Pflanzenschutz,2,FALSE)) -> 0 | O19: =IF(O18="",0,VLOOKUP(O18,PSMListe!Pflanzenschutz,2,FALSE)) -> 0 | P19: =IF(P18="",0,VLOOKUP(P18,PSMListe!Pflanzenschutz,2,FALSE)) -> 0 | Q19: =IF(Q18="",0,VLOOKUP(Q18,PSMListe!Pflanzenschutz,2,FALSE)) -> 0 | R19: =IF(R18="",0,VLOOKUP(R18,PSMListe!Pflanzenschutz,2,FALSE)) -> 0 | S19: =IF(S18="",0,VLOOKUP(S18,PSMListe!Pflanzenschutz,2,FALSE)) -> 0 | T19: =IF(T18="",0,VLOOKUP(T18,PSMListe!Pflanzenschutz,2,FALSE)) -> 0 | U19: =IF(U18="",0,VLOOKUP(U18,PSMListe!Pflanzenschutz,2,FALSE)) -> 0 | V19: =IF(V18="",0,VLOOKUP(V18,PSMListe!Pflanzenschutz,2,FALSE)) -> 0 | W19: =IF(W18="",0,VLOOKUP(W18,PSMListe!Pflanzenschutz,2,FALSE)) -> 0 | X19: =IF(X18="",0,VLOOKUP(X18,PSMListe!Pflanzenschutz,2,FALSE)) -> 0 | Y19: =IF(Y18="",0,VLOOKUP(Y18,PSMListe!Pflanzenschutz,2,FALSE)) -> 0 | Z19: =IF(Z18="",0,VLOOKUP(Z18,PSMListe!Pflanzenschutz,2,FALSE)) -> 0 | AA19: =IF(AA18="",0,VLOOKUP(AA18,PSMListe!Pflanzenschutz,2,FALSE)) -> 0 | AB19: =IF(AB18="",0,VLOOKUP(AB18,PSMListe!Pflanzenschutz,2,FALSE)) -> 0 | AC19: =IF(AC18="",0,VLOOKUP(AC18,PSMListe!Pflanzenschutz,2,FALSE)) -> 0 | AD19: =IF(AD18="",0,VLOOKUP(AD18,PSMListe!Pflanzenschutz,2,FALSE)) -> 0 | AE19: =IF(AE18="",0,VLOOKUP(AE18,PSMListe!Pflanzenschutz,2,FALSE)) -> 0 | AF19: =IF(AF18="",0,VLOOKUP(AF18,PSMListe!Pflanzenschutz,2,FALSE)) -> 0 | AG19: =IF(AG18="",0,VLOOKUP(AG18,PSMListe!Pflanzenschutz,2,FALSE)) -> 0 | AH19: =IF(AH18="",0,VLOOKUP(AH18,PSMListe!Pflanzenschutz,2,FALSE)) -> 0 | AI19: =IF(AI18="",0,VLOOKUP(AI18,PSMListe!Pflanzenschutz,2,FALSE)) -> 0 | AJ19: =IF(AJ18="",0,VLOOKUP(AJ18,PSMListe!Pflanzenschutz,2,FALSE)) -> 0 | AK19: =IF(AK18="",0,VLOOKUP(AK18,PSMListe!Pflanzenschutz,2,FALSE)) -> 0 | AL19: =IF(AL18="",0,VLOOKUP(AL18,PSMListe!Pflanzenschutz,2,FALSE)) -> 0 | AM19: =IF(AM18="",0,VLOOKUP(AM18,PSMListe!Pflanzenschutz,2,FALSE)) -> 0 | AN19: =IF(AN18="",0,VLOOKUP(AN18,PSMListe!Pflanzenschutz,2,FALSE)) -> 0 | AO19: =IF(AO18="",0,VLOOKUP(AO18,PSMListe!Pflanzenschutz,2,FALSE)) -> 0 | AP19: =IF(AP18="",0,VLOOKUP(AP18,PSMListe!Pflanzenschutz,2,FALSE)) -> 0 | AQ19: =IF(AQ18="",0,VLOOKUP(AQ18,PSMListe!Pflanzenschutz,2,FALSE)) -> 0 | AR19: =IF(AR18="",0,VLOOKUP(AR18,PSMListe!Pflanzenschutz,2,FALSE)) -> 0 | AS19: =IF(AS18="",0,VLOOKUP(AS18,PSMListe!Pflanzenschutz,2,FALSE)) -> 0 | AT19: =IF(AT18="",0,VLOOKUP(AT18,PSMListe!Pflanzenschutz,2,FALSE)) -> 0 | AU19: =IF(AU18="",0,VLOOKUP(AU18,PSMListe!Pflanzenschutz,2,FALSE)) -> 0 | AV19: =IF(AV18="",0,VLOOKUP(AV18,PSMListe!Pflanzenschutz,2,FALSE)) -> 0 | AW19: =IF(AW18="",0,VLOOKUP(AW18,PSMListe!Pflanzenschutz,2,FALSE)) -> 0 | AX19: =IF(AX18="",0,VLOOKUP(AX18,PSMListe!Pflanzenschutz,2,FALSE)) -> 0 | AY19: =IF(AY18="",0,VLOOKUP(AY18,PSMListe!Pflanzenschutz,2,FALSE)) -> 0 | AZ19: =IF(AZ18="",0,VLOOKUP(AZ18,PSMListe!Pflanzenschutz,2,FALSE)) -> 0 | BA19: =IF(BA18="",0,VLOOKUP(BA18,PSMListe!Pflanzenschutz,2,FALSE)) -> 0 | BB19: =IF(BB18="",0,VLOOKUP(BB18,PSMListe!Pflanzenschutz,2,FALSE)) -> 0 | BC19: =IF(BC18="",0,VLOOKUP(BC18,PSMListe!Pflanzenschutz,2,FALSE)) -> 0 | BD19: =IF(BD18="",0,VLOOKUP(BD18,PSMListe!Pflanzenschutz,2,FALSE)) -> 0 | BE19: =IF(BE18="",0,VLOOKUP(BE18,PSMListe!Pflanzenschutz,2,FALSE)) -> 0 | BF19: =IF(BF18="",0,VLOOKUP(BF18,PSMListe!Pflanzenschutz,2,FALSE)) -> 0 | BG19: =IF(BG18="",0,VLOOKUP(BG18,PSMListe!Pflanzenschutz,2,FALSE)) -> 0 | BH19: =IF(BH18="",0,VLOOKUP(BH18,PSMListe!Pflanzenschutz,2,FALSE)) -> 0 | BI19: =IF(BI18="",0,VLOOKUP(BI18,PSMListe!Pflanzenschutz,2,FALSE)) -> 0 | BJ19: =IF(BJ18="",0,VLOOKUP(BJ18,PSMListe!Pflanzenschutz,2,FALSE)) -> 0
B20: Menge | C20: 2
B21: Bemerkung | C21: Ralf, Stemphylium 55 6 er bewölkt 21°C
B22: Datum | C22: 2018-08-28
B23: Mittel 4 | C23: Amistar Opti
B24: Preis | C24: =IF(C23="",0,VLOOKUP(C23,PSMListe!Pflanzenschutz,2,FALSE)) -> 18.6 | D24: =IF(D23="",0,VLOOKUP(D23,PSMListe!Pflanzenschutz,2,FALSE)) -> 0 | E24: =IF(E23="",0,VLOOKUP(E23,PSMListe!Pflanzenschutz,2,FALSE)) -> 0 | F24: =IF(F23="",0,VLOOKUP(F23,PSMListe!Pflanzenschutz,2,FALSE)) -> 0 | G24: =IF(G23="",0,VLOOKUP(G23,PSMListe!Pflanzenschutz,2,FALSE)) -> 0 | H24: =IF(H23="",0,VLOOKUP(H23,PSMListe!Pflanzenschutz,2,FALSE)) -> 0 | I24: =IF(I23="",0,VLOOKUP(I23,PSMListe!Pflanzenschutz,2,FALSE)) -> 0 | J24: =IF(J23="",0,VLOOKUP(J23,PSMListe!Pflanzenschutz,2,FALSE)) -> 0 | K24: =IF(K23="",0,VLOOKUP(K23,PSMListe!Pflanzenschutz,2,FALSE)) -> 0 | L24: =IF(L23="",0,VLOOKUP(L23,PSMListe!Pflanzenschutz,2,FALSE)) -> 0 | M24: =IF(M23="",0,VLOOKUP(M23,PSMListe!Pflanzenschutz,2,FALSE)) -> 0 | N24: =IF(N23="",0,VLOOKUP(N23,PSMListe!Pflanzenschutz,2,FALSE)) -> 0 | O24: =IF(O23="",0,VLOOKUP(O23,PSMListe!Pflanzenschutz,2,FALSE)) -> 0 | P24: =IF(P23="",0,VLOOKUP(P23,PSMListe!Pflanzenschutz,2,FALSE)) -> 0 | Q24: =IF(Q23="",0,VLOOKUP(Q23,PSMListe!Pflanzenschutz,2,FALSE)) -> 0 | R24: =IF(R23="",0,VLOOKUP(R23,PSMListe!Pflanzenschutz,2,FALSE)) -> 0 | S24: =IF(S23="",0,VLOOKUP(S23,PSMListe!Pflanzenschutz,2,FALSE)) -> 0 | T24: =IF(T23="",0,VLOOKUP(T23,PSMListe!Pflanzenschutz,2,FALSE)) -> 0 | U24: =IF(U23="",0,VLOOKUP(U23,PSMListe!Pflanzenschutz,2,FALSE)) -> 0 | V24: =IF(V23="",0,VLOOKUP(V23,PSMListe!Pflanzenschutz,2,FALSE)) -> 0 | W24: =IF(W23="",0,VLOOKUP(W23,PSMListe!Pflanzenschutz,2,FALSE)) -> 0 | X24: =IF(X23="",0,VLOOKUP(X23,PSMListe!Pflanzenschutz,2,FALSE)) -> 0 | Y24: =IF(Y23="",0,VLOOKUP(Y23,PSMListe!Pflanzenschutz,2,FALSE)) -> 0 | Z24: =IF(Z23="",0,VLOOKUP(Z23,PSMListe!Pflanzenschutz,2,FALSE)) -> 0 | AA24: =IF(AA23="",0,VLOOKUP(AA23,PSMListe!Pflanzenschutz,2,FALSE)) -> 0 | AB24: =IF(AB23="",0,VLOOKUP(AB23,PSMListe!Pflanzenschutz,2,FALSE)) -> 0 | AC24: =IF(AC23="",0,VLOOKUP(AC23,PSMListe!Pflanzenschutz,2,FALSE)) -> 0 | AD24: =IF(AD23="",0,VLOOKUP(AD23,PSMListe!Pflanzenschutz,2,FALSE)) -> 0 | AE24: =IF(AE23="",0,VLOOKUP(AE23,PSMListe!Pflanzenschutz,2,FALSE)) -> 0 | AF24: =IF(AF23="",0,VLOOKUP(AF23,PSMListe!Pflanzenschutz,2,FALSE)) -> 0 | AG24: =IF(AG23="",0,VLOOKUP(AG23,PSMListe!Pflanzenschutz,2,FALSE)) -> 0 | AH24: =IF(AH23="",0,VLOOKUP(AH23,PSMListe!Pflanzenschutz,2,FALSE)) -> 0 | AI24: =IF(AI23="",0,VLOOKUP(AI23,PSMListe!Pflanzenschutz,2,FALSE)) -> 0 | AJ24: =IF(AJ23="",0,VLOOKUP(AJ23,PSMListe!Pflanzenschutz,2,FALSE)) -> 0 | AK24: =IF(AK23="",0,VLOOKUP(AK23,PSMListe!Pflanzenschutz,2,FALSE)) -> 0 | AL24: =IF(AL23="",0,VLOOKUP(AL23,PSMListe!Pflanzenschutz,2,FALSE)) -> 0 | AM24: =IF(AM23="",0,VLOOKUP(AM23,PSMListe!Pflanzenschutz,2,FALSE)) -> 0 | AN24: =IF(AN23="",0,VLOOKUP(AN23,PSMListe!Pflanzenschutz,2,FALSE)) -> 0 | AO24: =IF(AO23="",0,VLOOKUP(AO23,PSMListe!Pflanzenschutz,2,FALSE)) -> 0 | AP24: =IF(AP23="",0,VLOOKUP(AP23,PSMListe!Pflanzenschutz,2,FALSE)) -> 0 | AQ24: =IF(AQ23="",0,VLOOKUP(AQ23,PSMListe!Pflanzenschutz,2,FALSE)) -> 0 | AR24: =IF(AR23="",0,VLOOKUP(AR23,PSMListe!Pflanzenschutz,2,FALSE)) -> 0 | AS24: =IF(AS23="",0,VLOOKUP(AS23,PSMListe!Pflanzenschutz,2,FALSE)) -> 0 | AT24: =IF(AT23="",0,VLOOKUP(AT23,PSMListe!Pflanzenschutz,2,FALSE)) -> 0 | AU24: =IF(AU23="",0,VLOOKUP(AU23,PSMListe!Pflanzenschutz,2,FALSE)) -> 0 | AV24: =IF(AV23="",0,VLOOKUP(AV23,PSMListe!Pflanzenschutz,2,FALSE)) -> 0 | AW24: =IF(AW23="",0,VLOOKUP(AW23,PSMListe!Pflanzenschutz,2,FALSE)) -> 0 | AX24: =IF(AX23="",0,VLOOKUP(AX23,PSMListe!Pflanzenschutz,2,FALSE)) -> 0 | AY24: =IF(AY23="",0,VLOOKUP(AY23,PSMListe!Pflanzenschutz,2,FALSE)) -> 0 | AZ24: =IF(AZ23="",0,VLOOKUP(AZ23,PSMListe!Pflanzenschutz,2,FALSE)) -> 0 | BA24: =IF(BA23="",0,VLOOKUP(BA23,PSMListe!Pflanzenschutz,2,FALSE)) -> 0 | BB24: =IF(BB23="",0,VLOOKUP(BB23,PSMListe!Pflanzenschutz,2,FALSE)) -> 0 | BC24: =IF(BC23="",0,VLOOKUP(BC23,PSMListe!Pflanzenschutz,2,FALSE)) -> 0 | BD24: =IF(BD23="",0,VLOOKUP(BD23,PSMListe!Pflanzenschutz,2,FALSE)) -> 0 | BE24: =IF(BE23="",0,VLOOKUP(BE23,PSMListe!Pflanzenschutz,2,FALSE)) -> 0 | BF24: =IF(BF23="",0,VLOOKUP(BF23,PSMListe!Pflanzenschutz,2,FALSE)) -> 0 | BG24: =IF(BG23="",0,VLOOKUP(BG23,PSMListe!Pflanzenschutz,2,FALSE)) -> 0 | BH24: =IF(BH23="",0,VLOOKUP(BH23,PSMListe!Pflanzenschutz,2,FALSE)) -> 0 | BI24: =IF(BI23="",0,VLOOKUP(BI23,PSMListe!Pflanzenschutz,2,FALSE)) -> 0 | BJ24: =IF(BJ23="",0,VLOOKUP(BJ23,PSMListe!Pflanzenschutz,2,FALSE)) -> 0
B25: Menge | C25: 2.5
B26: Bemerkung | C26: Ralf, Stemphylium 42 05 er bewölkt 21°C
B27: Datum | C27: 2018-08-28
B28: Mittel 5 | C28: Buctril 0,5 + Sencor liquid 0,5
B29: Preis | C29: =IF(C28="",0,VLOOKUP(C28,PSMListe!Pflanzenschutz,2,FALSE)) -> 19.15 | D29: =IF(D28="",0,VLOOKUP(D28,PSMListe!Pflanzenschutz,2,FALSE)) -> 0 | E29: =IF(E28="",0,VLOOKUP(E28,PSMListe!Pflanzenschutz,2,FALSE)) -> 0 | F29: =IF(F28="",0,VLOOKUP(F28,PSMListe!Pflanzenschutz,2,FALSE)) -> 0 | G29: =IF(G28="",0,VLOOKUP(G28,PSMListe!Pflanzenschutz,2,FALSE)) -> 0 | H29: =IF(H28="",0,VLOOKUP(H28,PSMListe!Pflanzenschutz,2,FALSE)) -> 0 | I29: =IF(I28="",0,VLOOKUP(I28,PSMListe!Pflanzenschutz,2,FALSE)) -> 0 | J29: =IF(J28="",0,VLOOKUP(J28,PSMListe!Pflanzenschutz,2,FALSE)) -> 0 | K29: =IF(K28="",0,VLOOKUP(K28,PSMListe!Pflanzenschutz,2,FALSE)) -> 0 | L29: =IF(L28="",0,VLOOKUP(L28,PSMListe!Pflanzenschutz,2,FALSE)) -> 0 | M29: =IF(M28="",0,VLOOKUP(M28,PSMListe!Pflanzenschutz,2,FALSE)) -> 0 | N29: =IF(N28="",0,VLOOKUP(N28,PSMListe!Pflanzenschutz,2,FALSE)) -> 0 | O29: =IF(O28="",0,VLOOKUP(O28,PSMListe!Pflanzenschutz,2,FALSE)) -> 0 | P29: =IF(P28="",0,VLOOKUP(P28,PSMListe!Pflanzenschutz,2,FALSE)) -> 0 | Q29: =IF(Q28="",0,VLOOKUP(Q28,PSMListe!Pflanzenschutz,2,FALSE)) -> 0 | R29: =IF(R28="",0,VLOOKUP(R28,PSMListe!Pflanzenschutz,2,FALSE)) -> 0 | S29: =IF(S28="",0,VLOOKUP(S28,PSMListe!Pflanzenschutz,2,FALSE)) -> 0 | T29: =IF(T28="",0,VLOOKUP(T28,PSMListe!Pflanzenschutz,2,FALSE)) -> 0 | U29: =IF(U28="",0,VLOOKUP(U28,PSMListe!Pflanzenschutz,2,FALSE)) -> 0 | V29: =IF(V28="",0,VLOOKUP(V28,PSMListe!Pflanzenschutz,2,FALSE)) -> 0 | W29: =IF(W28="",0,VLOOKUP(W28,PSMListe!Pflanzenschutz,2,FALSE)) -> 0 | X29: =IF(X28="",0,VLOOKUP(X28,PSMListe!Pflanzenschutz,2,FALSE)) -> 0 | Y29: =IF(Y28="",0,VLOOKUP(Y28,PSMListe!Pflanzenschutz,2,FALSE)) -> 0 | Z29: =IF(Z28="",0,VLOOKUP(Z28,PSMListe!Pflanzenschutz,2,FALSE)) -> 0 | AA29: =IF(AA28="",0,VLOOKUP(AA28,PSMListe!Pflanzenschutz,2,FALSE)) -> 0 | AB29: =IF(AB28="",0,VLOOKUP(AB28,PSMListe!Pflanzenschutz,2,FALSE)) -> 0 | AC29: =IF(AC28="",0,VLOOKUP(AC28,PSMListe!Pflanzenschutz,2,FALSE)) -> 0 | AD29: =IF(AD28="",0,VLOOKUP(AD28,PSMListe!Pflanzenschutz,2,FALSE)) -> 0 | AE29: =IF(AE28="",0,VLOOKUP(AE28,PSMListe!Pflanzenschutz,2,FALSE)) -> 0 | AF29: =IF(AF28="",0,VLOOKUP(AF28,PSMListe!Pflanzenschutz,2,FALSE)) -> 0 | AG29: =IF(AG28="",0,VLOOKUP(AG28,PSMListe!Pflanzenschutz,2,FALSE)) -> 0 | AH29: =IF(AH28="",0,VLOOKUP(AH28,PSMListe!Pflanzenschutz,2,FALSE)) -> 0 | AI29: =IF(AI28="",0,VLOOKUP(AI28,PSMListe!Pflanzenschutz,2,FALSE)) -> 0 | AJ29: =IF(AJ28="",0,VLOOKUP(AJ28,PSMListe!Pflanzenschutz,2,FALSE)) -> 0 | AK29: =IF(AK28="",0,VLOOKUP(AK28,PSMListe!Pflanzenschutz,2,FALSE)) -> 0 | AL29: =IF(AL28="",0,VLOOKUP(AL28,PSMListe!Pflanzenschutz,2,FALSE)) -> 0 | AM29: =IF(AM28="",0,VLOOKUP(AM28,PSMListe!Pflanzenschutz,2,FALSE)) -> 0 | AN29: =IF(AN28="",0,VLOOKUP(AN28,PSMListe!Pflanzenschutz,2,FALSE)) -> 0 | AO29: =IF(AO28="",0,VLOOKUP(AO28,PSMListe!Pflanzenschutz,2,FALSE)) -> 0 | AP29: =IF(AP28="",0,VLOOKUP(AP28,PSMListe!Pflanzenschutz,2,FALSE)) -> 0 | AQ29: =IF(AQ28="",0,VLOOKUP(AQ28,PSMListe!Pflanzenschutz,2,FALSE)) -> 0 | AR29: =IF(AR28="",0,VLOOKUP(AR28,PSMListe!Pflanzenschutz,2,FALSE)) -> 0 | AS29: =IF(AS28="",0,VLOOKUP(AS28,PSMListe!Pflanzenschutz,2,FALSE)) -> 0 | AT29: =IF(AT28="",0,VLOOKUP(AT28,PSMListe!Pflanzenschutz,2,FALSE)) -> 0 | AU29: =IF(AU28="",0,VLOOKUP(AU28,PSMListe!Pflanzenschutz,2,FALSE)) -> 0 | AV29: =IF(AV28="",0,VLOOKUP(AV28,PSMListe!Pflanzenschutz,2,FALSE)) -> 0 | AW29: =IF(AW28="",0,VLOOKUP(AW28,PSMListe!Pflanzenschutz,2,FALSE)) -> 0 | AX29: =IF(AX28="",0,VLOOKUP(AX28,PSMListe!Pflanzenschutz,2,FALSE)) -> 0 | AY29: =IF(AY28="",0,VLOOKUP(AY28,PSMListe!Pflanzenschutz,2,FALSE)) -> 0 | AZ29: =IF(AZ28="",0,VLOOKUP(AZ28,PSMListe!Pflanzenschutz,2,FALSE)) -> 0 | BA29: =IF(BA28="",0,VLOOKUP(BA28,PSMListe!Pflanzenschutz,2,FALSE)) -> 0 | BB29: =IF(BB28="",0,VLOOKUP(BB28,PSMListe!Pflanzenschutz,2,FALSE)) -> 0 | BC29: =IF(BC28="",0,VLOOKUP(BC28,PSMListe!Pflanzenschutz,2,FALSE)) -> 0 | BD29: =IF(BD28="",0,VLOOKUP(BD28,PSMListe!Pflanzenschutz,2,FALSE)) -> 0 | BE29: =IF(BE28="",0,VLOOKUP(BE28,PSMListe!Pflanzenschutz,2,FALSE)) -> 0 | BF29: =IF(BF28="",0,VLOOKUP(BF28,PSMListe!Pflanzenschutz,2,FALSE)) -> 0 | BG29: =IF(BG28="",0,VLOOKUP(BG28,PSMListe!Pflanzenschutz,2,FALSE)) -> 0 | BH29: =IF(BH28="",0,VLOOKUP(BH28,PSMListe!Pflanzenschutz,2,FALSE)) -> 0 | BI29: =IF(BI28="",0,VLOOKUP(BI28,PSMListe!Pflanzenschutz,2,FALSE)) -> 0 | BJ29: =IF(BJ28="",0,VLOOKUP(BJ28,PSMListe!Pflanzenschutz,2,FALSE)) -> 0
B30: Menge | C30: 1
B31: Bemerkung
B32: Datum | C32: 2018-08-28
B33: Mittel 6 | C33: Karate Zeon
B34: Preis | C34: =IF(C33="",0,VLOOKUP(C33,PSMListe!Pflanzenschutz,2,FALSE)) -> 137.3 | D34: =IF(D33="",0,VLOOKUP(D33,PSMListe!Pflanzenschutz,2,FALSE)) -> 0 | E34: =IF(E33="",0,VLOOKUP(E33,PSMListe!Pflanzenschutz,2,FALSE)) -> 0 | F34: =IF(F33="",0,VLOOKUP(F33,PSMListe!Pflanzenschutz,2,FALSE)) -> 0 | G34: =IF(G33="",0,VLOOKUP(G33,PSMListe!Pflanzenschutz,2,FALSE)) -> 0 | H34: =IF(H33="",0,VLOOKUP(H33,PSMListe!Pflanzenschutz,2,FALSE)) -> 0 | I34: =IF(I33="",0,VLOOKUP(I33,PSMListe!Pflanzenschutz,2,FALSE)) -> 0 | J34: =IF(J33="",0,VLOOKUP(J33,PSMListe!Pflanzenschutz,2,FALSE)) -> 0 | K34: =IF(K33="",0,VLOOKUP(K33,PSMListe!Pflanzenschutz,2,FALSE)) -> 0 | L34: =IF(L33="",0,VLOOKUP(L33,PSMListe!Pflanzenschutz,2,FALSE)) -> 0 | M34: =IF(M33="",0,VLOOKUP(M33,PSMListe!Pflanzenschutz,2,FALSE)) -> 0 | N34: =IF(N33="",0,VLOOKUP(N33,PSMListe!Pflanzenschutz,2,FALSE)) -> 0 | O34: =IF(O33="",0,VLOOKUP(O33,PSMListe!Pflanzenschutz,2,FALSE)) -> 0 | P34: =IF(P33="",0,VLOOKUP(P33,PSMListe!Pflanzenschutz,2,FALSE)) -> 0 | Q34: =IF(Q33="",0,VLOOKUP(Q33,PSMListe!Pflanzenschutz,2,FALSE)) -> 0 | R34: =IF(R33="",0,VLOOKUP(R33,PSMListe!Pflanzenschutz,2,FALSE)) -> 0 | S34: =IF(S33="",0,VLOOKUP(S33,PSMListe!Pflanzenschutz,2,FALSE)) -> 0 | T34: =IF(T33="",0,VLOOKUP(T33,PSMListe!Pflanzenschutz,2,FALSE)) -> 0 | U34: =IF(U33="",0,VLOOKUP(U33,PSMListe!Pflanzenschutz,2,FALSE)) -> 0 | V34: =IF(V33="",0,VLOOKUP(V33,PSMListe!Pflanzenschutz,2,FALSE)) -> 0 | W34: =IF(W33="",0,VLOOKUP(W33,PSMListe!Pflanzenschutz,2,FALSE)) -> 0 | X34: =IF(X33="",0,VLOOKUP(X33,PSMListe!Pflanzenschutz,2,FALSE)) -> 0 | Y34: =IF(Y33="",0,VLOOKUP(Y33,PSMListe!Pflanzenschutz,2,FALSE)) -> 0 | Z34: =IF(Z33="",0,VLOOKUP(Z33,PSMListe!Pflanzenschutz,2,FALSE)) -> 0 | AA34: =IF(AA33="",0,VLOOKUP(AA33,PSMListe!Pflanzenschutz,2,FALSE)) -> 0 | AB34: =IF(AB33="",0,VLOOKUP(AB33,PSMListe!Pflanzenschutz,2,FALSE)) -> 0 | AC34: =IF(AC33="",0,VLOOKUP(AC33,PSMListe!Pflanzenschutz,2,FALSE)) -> 0 | AD34: =IF(AD33="",0,VLOOKUP(AD33,PSMListe!Pflanzenschutz,2,FALSE)) -> 0 | AE34: =IF(AE33="",0,VLOOKUP(AE33,PSMListe!Pflanzenschutz,2,FALSE)) -> 0 | AF34: =IF(AF33="",0,VLOOKUP(AF33,PSMListe!Pflanzenschutz,2,FALSE)) -> 0 | AG34: =IF(AG33="",0,VLOOKUP(AG33,PSMListe!Pflanzenschutz,2,FALSE)) -> 0 | AH34: =IF(AH33="",0,VLOOKUP(AH33,PSMListe!Pflanzenschutz,2,FALSE)) -> 0 | AI34: =IF(AI33="",0,VLOOKUP(AI33,PSMListe!Pflanzenschutz,2,FALSE)) -> 0 | AJ34: =IF(AJ33="",0,VLOOKUP(AJ33,PSMListe!Pflanzenschutz,2,FALSE)) -> 0 | AK34: =IF(AK33="",0,VLOOKUP(AK33,PSMListe!Pflanzenschutz,2,FALSE)) -> 0 | AL34: =IF(AL33="",0,VLOOKUP(AL33,PSMListe!Pflanzenschutz,2,FALSE)) -> 0 | AM34: =IF(AM33="",0,VLOOKUP(AM33,PSMListe!Pflanzenschutz,2,FALSE)) -> 0 | AN34: =IF(AN33="",0,VLOOKUP(AN33,PSMListe!Pflanzenschutz,2,FALSE)) -> 0 | AO34: =IF(AO33="",0,VLOOKUP(AO33,PSMListe!Pflanzenschutz,2,FALSE)) -> 0 | AP34: =IF(AP33="",0,VLOOKUP(AP33,PSMListe!Pflanzenschutz,2,FALSE)) -> 0 | AQ34: =IF(AQ33="",0,VLOOKUP(AQ33,PSMListe!Pflanzenschutz,2,FALSE)) -> 0 | AR34: =IF(AR33="",0,VLOOKUP(AR33,PSMListe!Pflanzenschutz,2,FALSE)) -> 0 | AS34: =IF(AS33="",0,VLOOKUP(AS33,PSMListe!Pflanzenschutz,2,FALSE)) -> 0 | AT34: =IF(AT33="",0,VLOOKUP(AT33,PSMListe!Pflanzenschutz,2,FALSE)) -> 0 | AU34: =IF(AU33="",0,VLOOKUP(AU33,PSMListe!Pflanzenschutz,2,FALSE)) -> 0 | AV34: =IF(AV33="",0,VLOOKUP(AV33,PSMListe!Pflanzenschutz,2,FALSE)) -> 0 | AW34: =IF(AW33="",0,VLOOKUP(AW33,PSMListe!Pflanzenschutz,2,FALSE)) -> 0 | AX34: =IF(AX33="",0,VLOOKUP(AX33,PSMListe!Pflanzenschutz,2,FALSE)) -> 0 | AY34: =IF(AY33="",0,VLOOKUP(AY33,PSMListe!Pflanzenschutz,2,FALSE)) -> 0 | AZ34: =IF(AZ33="",0,VLOOKUP(AZ33,PSMListe!Pflanzenschutz,2,FALSE)) -> 0 | BA34: =IF(BA33="",0,VLOOKUP(BA33,PSMListe!Pflanzenschutz,2,FALSE)) -> 0 | BB34: =IF(BB33="",0,VLOOKUP(BB33,PSMListe!Pflanzenschutz,2,FALSE)) -> 0 | BC34: =IF(BC33="",0,VLOOKUP(BC33,PSMListe!Pflanzenschutz,2,FALSE)) -> 0 | BD34: =IF(BD33="",0,VLOOKUP(BD33,PSMListe!Pflanzenschutz,2,FALSE)) -> 0 | BE34: =IF(BE33="",0,VLOOKUP(BE33,PSMListe!Pflanzenschutz,2,FALSE)) -> 0 | BF34: =IF(BF33="",0,VLOOKUP(BF33,PSMListe!Pflanzenschutz,2,FALSE)) -> 0 | BG34: =IF(BG33="",0,VLOOKUP(BG33,PSMListe!Pflanzenschutz,2,FALSE)) -> 0 | BH34: =IF(BH33="",0,VLOOKUP(BH33,PSMListe!Pflanzenschutz,2,FALSE)) -> 0 | BI34: =IF(BI33="",0,VLOOKUP(BI33,PSMListe!Pflanzenschutz,2,FALSE)) -> 0 | BJ34: =IF(BJ33="",0,VLOOKUP(BJ33,PSMListe!Pflanzenschutz,2,FALSE)) -> 0
B35: Menge | C35: 0.075
B36: Bemerkung | C36: Ralf, Spargelhähnchen, 60 04 er bewölkt 24°C
B37: Datum
B38: Mittel 7
B39: Preis | C39: =IF(C38="",0,VLOOKUP(C38,PSMListe!Pflanzenschutz,2,FALSE)) -> 0 | D39: =IF(D38="",0,VLOOKUP(D38,PSMListe!Pflanzenschutz,2,FALSE)) -> 0 | E39: =IF(E38="",0,VLOOKUP(E38,PSMListe!Pflanzenschutz,2,FALSE)) -> 0 | F39: =IF(F38="",0,VLOOKUP(F38,PSMListe!Pflanzenschutz,2,FALSE)) -> 0 | G39: =IF(G38="",0,VLOOKUP(G38,PSMListe!Pflanzenschutz,2,FALSE)) -> 0 | H39: =IF(H38="",0,VLOOKUP(H38,PSMListe!Pflanzenschutz,2,FALSE)) -> 0 | I39: =IF(I38="",0,VLOOKUP(I38,PSMListe!Pflanzenschutz,2,FALSE)) -> 0 | J39: =IF(J38="",0,VLOOKUP(J38,PSMListe!Pflanzenschutz,2,FALSE)) -> 0 | K39: =IF(K38="",0,VLOOKUP(K38,PSMListe!Pflanzenschutz,2,FALSE)) -> 0 | L39: =IF(L38="",0,VLOOKUP(L38,PSMListe!Pflanzenschutz,2,FALSE)) -> 0 | M39: =IF(M38="",0,VLOOKUP(M38,PSMListe!Pflanzenschutz,2,FALSE)) -> 0 | N39: =IF(N38="",0,VLOOKUP(N38,PSMListe!Pflanzenschutz,2,FALSE)) -> 0 | O39: =IF(O38="",0,VLOOKUP(O38,PSMListe!Pflanzenschutz,2,FALSE)) -> 0 | P39: =IF(P38="",0,VLOOKUP(P38,PSMListe!Pflanzenschutz,2,FALSE)) -> 0 | Q39: =IF(Q38="",0,VLOOKUP(Q38,PSMListe!Pflanzenschutz,2,FALSE)) -> 0 | R39: =IF(R38="",0,VLOOKUP(R38,PSMListe!Pflanzenschutz,2,FALSE)) -> 0 | S39: =IF(S38="",0,VLOOKUP(S38,PSMListe!Pflanzenschutz,2,FALSE)) -> 0 | T39: =IF(T38="",0,VLOOKUP(T38,PSMListe!Pflanzenschutz,2,FALSE)) -> 0 | U39: =IF(U38="",0,VLOOKUP(U38,PSMListe!Pflanzenschutz,2,FALSE)) -> 0 | V39: =IF(V38="",0,VLOOKUP(V38,PSMListe!Pflanzenschutz,2,FALSE)) -> 0 | W39: =IF(W38="",0,VLOOKUP(W38,PSMListe!Pflanzenschutz,2,FALSE)) -> 0 | X39: =IF(X38="",0,VLOOKUP(X38,PSMListe!Pflanzenschutz,2,FALSE)) -> 0 | Y39: =IF(Y38="",0,VLOOKUP(Y38,PSMListe!Pflanzenschutz,2,FALSE)) -> 0 | Z39: =IF(Z38="",0,VLOOKUP(Z38,PSMListe!Pflanzenschutz,2,FALSE)) -> 0 | AA39: =IF(AA38="",0,VLOOKUP(AA38,PSMListe!Pflanzenschutz,2,FALSE)) -> 0 | AB39: =IF(AB38="",0,VLOOKUP(AB38,PSMListe!Pflanzenschutz,2,FALSE)) -> 0 | AC39: =IF(AC38="",0,VLOOKUP(AC38,PSMListe!Pflanzenschutz,2,FALSE)) -> 0 | AD39: =IF(AD38="",0,VLOOKUP(AD38,PSMListe!Pflanzenschutz,2,FALSE)) -> 0 | AE39: =IF(AE38="",0,VLOOKUP(AE38,PSMListe!Pflanzenschutz,2,FALSE)) -> 0 | AF39: =IF(AF38="",0,VLOOKUP(AF38,PSMListe!Pflanzenschutz,2,FALSE)) -> 0 | AG39: =IF(AG38="",0,VLOOKUP(AG38,PSMListe!Pflanzenschutz,2,FALSE)) -> 0 | AH39: =IF(AH38="",0,VLOOKUP(AH38,PSMListe!Pflanzenschutz,2,FALSE)) -> 0 | AI39: =IF(AI38="",0,VLOOKUP(AI38,PSMListe!Pflanzenschutz,2,FALSE)) -> 0 | AJ39: =IF(AJ38="",0,VLOOKUP(AJ38,PSMListe!Pflanzenschutz,2,FALSE)) -> 0 | AK39: =IF(AK38="",0,VLOOKUP(AK38,PSMListe!Pflanzenschutz,2,FALSE)) -> 0 | AL39: =IF(AL38="",0,VLOOKUP(AL38,PSMListe!Pflanzenschutz,2,FALSE)) -> 0 | AM39: =IF(AM38="",0,VLOOKUP(AM38,PSMListe!Pflanzenschutz,2,FALSE)) -> 0 | AN39: =IF(AN38="",0,VLOOKUP(AN38,PSMListe!Pflanzenschutz,2,FALSE)) -> 0 | AO39: =IF(AO38="",0,VLOOKUP(AO38,PSMListe!Pflanzenschutz,2,FALSE)) -> 0 | AP39: =IF(AP38="",0,VLOOKUP(AP38,PSMListe!Pflanzenschutz,2,FALSE)) -> 0 | AQ39: =IF(AQ38="",0,VLOOKUP(AQ38,PSMListe!Pflanzenschutz,2,FALSE)) -> 0 | AR39: =IF(AR38="",0,VLOOKUP(AR38,PSMListe!Pflanzenschutz,2,FALSE)) -> 0 | AS39: =IF(AS38="",0,VLOOKUP(AS38,PSMListe!Pflanzenschutz,2,FALSE)) -> 0 | AT39: =IF(AT38="",0,VLOOKUP(AT38,PSMListe!Pflanzenschutz,2,FALSE)) -> 0 | AU39: =IF(AU38="",0,VLOOKUP(AU38,PSMListe!Pflanzenschutz,2,FALSE)) -> 0 | AV39: =IF(AV38="",0,VLOOKUP(AV38,PSMListe!Pflanzenschutz,2,FALSE)) -> 0 | AW39: =IF(AW38="",0,VLOOKUP(AW38,PSMListe!Pflanzenschutz,2,FALSE)) -> 0 | AX39: =IF(AX38="",0,VLOOKUP(AX38,PSMListe!Pflanzenschutz,2,FALSE)) -> 0 | AY39: =IF(AY38="",0,VLOOKUP(AY38,PSMListe!Pflanzenschutz,2,FALSE)) -> 0 | AZ39: =IF(AZ38="",0,VLOOKUP(AZ38,PSMListe!Pflanzenschutz,2,FALSE)) -> 0 | BA39: =IF(BA38="",0,VLOOKUP(BA38,PSMListe!Pflanzenschutz,2,FALSE)) -> 0 | BB39: =IF(BB38="",0,VLOOKUP(BB38,PSMListe!Pflanzenschutz,2,FALSE)) -> 0 | BC39: =IF(BC38="",0,VLOOKUP(BC38,PSMListe!Pflanzenschutz,2,FALSE)) -> 0 | BD39: =IF(BD38="",0,VLOOKUP(BD38,PSMListe!Pflanzenschutz,2,FALSE)) -> 0 | BE39: =IF(BE38="",0,VLOOKUP(BE38,PSMListe!Pflanzenschutz,2,FALSE)) -> 0 | BF39: =IF(BF38="",0,VLOOKUP(BF38,PSMListe!Pflanzenschutz,2,FALSE)) -> 0 | BG39: =IF(BG38="",0,VLOOKUP(BG38,PSMListe!Pflanzenschutz,2,FALSE)) -> 0 | BH39: =IF(BH38="",0,VLOOKUP(BH38,PSMListe!Pflanzenschutz,2,FALSE)) -> 0 | BI39: =IF(BI38="",0,VLOOKUP(BI38,PSMListe!Pflanzenschutz,2,FALSE)) -> 0 | BJ39: =IF(BJ38="",0,VLOOKUP(BJ38,PSMListe!Pflanzenschutz,2,FALSE)) -> 0
B40: Menge
B41: Bemerkung
B42: Datum
B43: Mittel 8
B44: Preis | C44: =IF(C43="",0,VLOOKUP(C43,PSMListe!Pflanzenschutz,2,FALSE)) -> 0 | D44: =IF(D43="",0,VLOOKUP(D43,PSMListe!Pflanzenschutz,2,FALSE)) -> 0 | E44: =IF(E43="",0,VLOOKUP(E43,PSMListe!Pflanzenschutz,2,FALSE)) -> 0 | F44: =IF(F43="",0,VLOOKUP(F43,PSMListe!Pflanzenschutz,2,FALSE)) -> 0 | G44: =IF(G43="",0,VLOOKUP(G43,PSMListe!Pflanzenschutz,2,FALSE)) -> 0 | H44: =IF(H43="",0,VLOOKUP(H43,PSMListe!Pflanzenschutz,2,FALSE)) -> 0 | I44: =IF(I43="",0,VLOOKUP(I43,PSMListe!Pflanzenschutz,2,FALSE)) -> 0 | J44: =IF(J43="",0,VLOOKUP(J43,PSMListe!Pflanzenschutz,2,FALSE)) -> 0 | K44: =IF(K43="",0,VLOOKUP(K43,PSMListe!Pflanzenschutz,2,FALSE)) -> 0 | L44: =IF(L43="",0,VLOOKUP(L43,PSMListe!Pflanzenschutz,2,FALSE)) -> 0 | M44: =IF(M43="",0,VLOOKUP(M43,PSMListe!Pflanzenschutz,2,FALSE)) -> 0 | N44: =IF(N43="",0,VLOOKUP(N43,PSMListe!Pflanzenschutz,2,FALSE)) -> 0 | O44: =IF(O43="",0,VLOOKUP(O43,PSMListe!Pflanzenschutz,2,FALSE)) -> 0 | P44: =IF(P43="",0,VLOOKUP(P43,PSMListe!Pflanzenschutz,2,FALSE)) -> 0 | Q44: =IF(Q43="",0,VLOOKUP(Q43,PSMListe!Pflanzenschutz,2,FALSE)) -> 0 | R44: =IF(R43="",0,VLOOKUP(R43,PSMListe!Pflanzenschutz,2,FALSE)) -> 0 | S44: =IF(S43="",0,VLOOKUP(S43,PSMListe!Pflanzenschutz,2,FALSE)) -> 0 | T44: =IF(T43="",0,VLOOKUP(T43,PSMListe!Pflanzenschutz,2,FALSE)) -> 0 | U44: =IF(U43="",0,VLOOKUP(U43,PSMListe!Pflanzenschutz,2,FALSE)) -> 0 | V44: =IF(V43="",0,VLOOKUP(V43,PSMListe!Pflanzenschutz,2,FALSE)) -> 0 | W44: =IF(W43="",0,VLOOKUP(W43,PSMListe!Pflanzenschutz,2,FALSE)) -> 0 | X44: =IF(X43="",0,VLOOKUP(X43,PSMListe!Pflanzenschutz,2,FALSE)) -> 0 | Y44: =IF(Y43="",0,VLOOKUP(Y43,PSMListe!Pflanzenschutz,2,FALSE)) -> 0 | Z44: =IF(Z43="",0,VLOOKUP(Z43,PSMListe!Pflanzenschutz,2,FALSE)) -> 0 | AA44: =IF(AA43="",0,VLOOKUP(AA43,PSMListe!Pflanzenschutz,2,FALSE)) -> 0 | AB44: =IF(AB43="",0,VLOOKUP(AB43,PSMListe!Pflanzenschutz,2,FALSE)) -> 0 | AC44: =IF(AC43="",0,VLOOKUP(AC43,PSMListe!Pflanzenschutz,2,FALSE)) -> 0 | AD44: =IF(AD43="",0,VLOOKUP(AD43,PSMListe!Pflanzenschutz,2,FALSE)) -> 0 | AE44: =IF(AE43="",0,VLOOKUP(AE43,PSMListe!Pflanzenschutz,2,FALSE)) -> 0 | AF44: =IF(AF43="",0,VLOOKUP(AF43,PSMListe!Pflanzenschutz,2,FALSE)) -> 0 | AG44: =IF(AG43="",0,VLOOKUP(AG43,PSMListe!Pflanzenschutz,2,FALSE)) -> 0 | AH44: =IF(AH43="",0,VLOOKUP(AH43,PSMListe!Pflanzenschutz,2,FALSE)) -> 0 | AI44: =IF(AI43="",0,VLOOKUP(AI43,PSMListe!Pflanzenschutz,2,FALSE)) -> 0 | AJ44: =IF(AJ43="",0,VLOOKUP(AJ43,PSMListe!Pflanzenschutz,2,FALSE)) -> 0 | AK44: =IF(AK43="",0,VLOOKUP(AK43,PSMListe!Pflanzenschutz,2,FALSE)) -> 0 | AL44: =IF(AL43="",0,VLOOKUP(AL43,PSMListe!Pflanzenschutz,2,FALSE)) -> 0 | AM44: =IF(AM43="",0,VLOOKUP(AM43,PSMListe!Pflanzenschutz,2,FALSE)) -> 0 | AN44: =IF(AN43="",0,VLOOKUP(AN43,PSMListe!Pflanzenschutz,2,FALSE)) -> 0 | AO44: =IF(AO43="",0,VLOOKUP(AO43,PSMListe!Pflanzenschutz,2,FALSE)) -> 0 | AP44: =IF(AP43="",0,VLOOKUP(AP43,PSMListe!Pflanzenschutz,2,FALSE)) -> 0 | AQ44: =IF(AQ43="",0,VLOOKUP(AQ43,PSMListe!Pflanzenschutz,2,FALSE)) -> 0 | AR44: =IF(AR43="",0,VLOOKUP(AR43,PSMListe!Pflanzenschutz,2,FALSE)) -> 0 | AS44: =IF(AS43="",0,VLOOKUP(AS43,PSMListe!Pflanzenschutz,2,FALSE)) -> 0 | AT44: =IF(AT43="",0,VLOOKUP(AT43,PSMListe!Pflanzenschutz,2,FALSE)) -> 0 | AU44: =IF(AU43="",0,VLOOKUP(AU43,PSMListe!Pflanzenschutz,2,FALSE)) -> 0 | AV44: =IF(AV43="",0,VLOOKUP(AV43,PSMListe!Pflanzenschutz,2,FALSE)) -> 0 | AW44: =IF(AW43="",0,VLOOKUP(AW43,PSMListe!Pflanzenschutz,2,FALSE)) -> 0 | AX44: =IF(AX43="",0,VLOOKUP(AX43,PSMListe!Pflanzenschutz,2,FALSE)) -> 0 | AY44: =IF(AY43="",0,VLOOKUP(AY43,PSMListe!Pflanzenschutz,2,FALSE)) -> 0 | AZ44: =IF(AZ43="",0,VLOOKUP(AZ43,PSMListe!Pflanzenschutz,2,FALSE)) -> 0 | BA44: =IF(BA43="",0,VLOOKUP(BA43,PSMListe!Pflanzenschutz,2,FALSE)) -> 0 | BB44: =IF(BB43="",0,VLOOKUP(BB43,PSMListe!Pflanzenschutz,2,FALSE)) -> 0 | BC44: =IF(BC43="",0,VLOOKUP(BC43,PSMListe!Pflanzenschutz,2,FALSE)) -> 0 | BD44: =IF(BD43="",0,VLOOKUP(BD43,PSMListe!Pflanzenschutz,2,FALSE)) -> 0 | BE44: =IF(BE43="",0,VLOOKUP(BE43,PSMListe!Pflanzenschutz,2,FALSE)) -> 0 | BF44: =IF(BF43="",0,VLOOKUP(BF43,PSMListe!Pflanzenschutz,2,FALSE)) -> 0 | BG44: =IF(BG43="",0,VLOOKUP(BG43,PSMListe!Pflanzenschutz,2,FALSE)) -> 0 | BH44: =IF(BH43="",0,VLOOKUP(BH43,PSMListe!Pflanzenschutz,2,FALSE)) -> 0 | BI44: =IF(BI43="",0,VLOOKUP(BI43,PSMListe!Pflanzenschutz,2,FALSE)) -> 0 | BJ44: =IF(BJ43="",0,VLOOKUP(BJ43,PSMListe!Pflanzenschutz,2,FALSE)) -> 0
B45: Menge
B46: Bemerkung
B47: Datum
B48: Mittel 9
B49: Preis | C49: =IF(C48="",0,VLOOKUP(C48,PSMListe!Pflanzenschutz,2,FALSE)) -> 0 | D49: =IF(D48="",0,VLOOKUP(D48,PSMListe!Pflanzenschutz,2,FALSE)) -> 0 | E49: =IF(E48="",0,VLOOKUP(E48,PSMListe!Pflanzenschutz,2,FALSE)) -> 0 | F49: =IF(F48="",0,VLOOKUP(F48,PSMListe!Pflanzenschutz,2,FALSE)) -> 0 | G49: =IF(G48="",0,VLOOKUP(G48,PSMListe!Pflanzenschutz,2,FALSE)) -> 0 | H49: =IF(H48="",0,VLOOKUP(H48,PSMListe!Pflanzenschutz,2,FALSE)) -> 0 | I49: =IF(I48="",0,VLOOKUP(I48,PSMListe!Pflanzenschutz,2,FALSE)) -> 0 | J49: =IF(J48="",0,VLOOKUP(J48,PSMListe!Pflanzenschutz,2,FALSE)) -> 0 | K49: =IF(K48="",0,VLOOKUP(K48,PSMListe!Pflanzenschutz,2,FALSE)) -> 0 | L49: =IF(L48="",0,VLOOKUP(L48,PSMListe!Pflanzenschutz,2,FALSE)) -> 0 | M49: =IF(M48="",0,VLOOKUP(M48,PSMListe!Pflanzenschutz,2,FALSE)) -> 0 | N49: =IF(N48="",0,VLOOKUP(N48,PSMListe!Pflanzenschutz,2,FALSE)) -> 0 | O49: =IF(O48="",0,VLOOKUP(O48,PSMListe!Pflanzenschutz,2,FALSE)) -> 0 | P49: =IF(P48="",0,VLOOKUP(P48,PSMListe!Pflanzenschutz,2,FALSE)) -> 0 | Q49: =IF(Q48="",0,VLOOKUP(Q48,PSMListe!Pflanzenschutz,2,FALSE)) -> 0 | R49: =IF(R48="",0,VLOOKUP(R48,PSMListe!Pflanzenschutz,2,FALSE)) -> 0 | S49: =IF(S48="",0,VLOOKUP(S48,PSMListe!Pflanzenschutz,2,FALSE)) -> 0 | T49: =IF(T48="",0,VLOOKUP(T48,PSMListe!Pflanzenschutz,2,FALSE)) -> 0 | U49: =IF(U48="",0,VLOOKUP(U48,PSMListe!Pflanzenschutz,2,FALSE)) -> 0 | V49: =IF(V48="",0,VLOOKUP(V48,PSMListe!Pflanzenschutz,2,FALSE)) -> 0 | W49: =IF(W48="",0,VLOOKUP(W48,PSMListe!Pflanzenschutz,2,FALSE)) -> 0 | X49: =IF(X48="",0,VLOOKUP(X48,PSMListe!Pflanzenschutz,2,FALSE)) -> 0 | Y49: =IF(Y48="",0,VLOOKUP(Y48,PSMListe!Pflanzenschutz,2,FALSE)) -> 0 | Z49: =IF(Z48="",0,VLOOKUP(Z48,PSMListe!Pflanzenschutz,2,FALSE)) -> 0 | AA49: =IF(AA48="",0,VLOOKUP(AA48,PSMListe!Pflanzenschutz,2,FALSE)) -> 0 | AB49: =IF(AB48="",0,VLOOKUP(AB48,PSMListe!Pflanzenschutz,2,FALSE)) -> 0 | AC49: =IF(AC48="",0,VLOOKUP(AC48,PSMListe!Pflanzenschutz,2,FALSE)) -> 0 | AD49: =IF(AD48="",0,VLOOKUP(AD48,PSMListe!Pflanzenschutz,2,FALSE)) -> 0 | AE49: =IF(AE48="",0,VLOOKUP(AE48,PSMListe!Pflanzenschutz,2,FALSE)) -> 0 | AF49: =IF(AF48="",0,VLOOKUP(AF48,PSMListe!Pflanzenschutz,2,FALSE)) -> 0 | AG49: =IF(AG48="",0,VLOOKUP(AG48,PSMListe!Pflanzenschutz,2,FALSE)) -> 0 | AH49: =IF(AH48="",0,VLOOKUP(AH48,PSMListe!Pflanzenschutz,2,FALSE)) -> 0 | AI49: =IF(AI48="",0,VLOOKUP(AI48,PSMListe!Pflanzenschutz,2,FALSE)) -> 0 | AJ49: =IF(AJ48="",0,VLOOKUP(AJ48,PSMListe!Pflanzenschutz,2,FALSE)) -> 0 | AK49: =IF(AK48="",0,VLOOKUP(AK48,PSMListe!Pflanzenschutz,2,FALSE)) -> 0 | AL49: =IF(AL48="",0,VLOOKUP(AL48,PSMListe!Pflanzenschutz,2,FALSE)) -> 0 | AM49: =IF(AM48="",0,VLOOKUP(AM48,PSMListe!Pflanzenschutz,2,FALSE)) -> 0 | AN49: =IF(AN48="",0,VLOOKUP(AN48,PSMListe!Pflanzenschutz,2,FALSE)) -> 0 | AO49: =IF(AO48="",0,VLOOKUP(AO48,PSMListe!Pflanzenschutz,2,FALSE)) -> 0 | AP49: =IF(AP48="",0,VLOOKUP(AP48,PSMListe!Pflanzenschutz,2,FALSE)) -> 0 | AQ49: =IF(AQ48="",0,VLOOKUP(AQ48,PSMListe!Pflanzenschutz,2,FALSE)) -> 0 | AR49: =IF(AR48="",0,VLOOKUP(AR48,PSMListe!Pflanzenschutz,2,FALSE)) -> 0 | AS49: =IF(AS48="",0,VLOOKUP(AS48,PSMListe!Pflanzenschutz,2,FALSE)) -> 0 | AT49: =IF(AT48="",0,VLOOKUP(AT48,PSMListe!Pflanzenschutz,2,FALSE)) -> 0 | AU49: =IF(AU48="",0,VLOOKUP(AU48,PSMListe!Pflanzenschutz,2,FALSE)) -> 0 | AV49: =IF(AV48="",0,VLOOKUP(AV48,PSMListe!Pflanzenschutz,2,FALSE)) -> 0 | AW49: =IF(AW48="",0,VLOOKUP(AW48,PSMListe!Pflanzenschutz,2,FALSE)) -> 0 | AX49: =IF(AX48="",0,VLOOKUP(AX48,PSMListe!Pflanzenschutz,2,FALSE)) -> 0 | AY49: =IF(AY48="",0,VLOOKUP(AY48,PSMListe!Pflanzenschutz,2,FALSE)) -> 0 | AZ49: =IF(AZ48="",0,VLOOKUP(AZ48,PSMListe!Pflanzenschutz,2,FALSE)) -> 0 | BA49: =IF(BA48="",0,VLOOKUP(BA48,PSMListe!Pflanzenschutz,2,FALSE)) -> 0 | BB49: =IF(BB48="",0,VLOOKUP(BB48,PSMListe!Pflanzenschutz,2,FALSE)) -> 0 | BC49: =IF(BC48="",0,VLOOKUP(BC48,PSMListe!Pflanzenschutz,2,FALSE)) -> 0 | BD49: =IF(BD48="",0,VLOOKUP(BD48,PSMListe!Pflanzenschutz,2,FALSE)) -> 0 | BE49: =IF(BE48="",0,VLOOKUP(BE48,PSMListe!Pflanzenschutz,2,FALSE)) -> 0 | BF49: =IF(BF48="",0,VLOOKUP(BF48,PSMListe!Pflanzenschutz,2,FALSE)) -> 0 | BG49: =IF(BG48="",0,VLOOKUP(BG48,PSMListe!Pflanzenschutz,2,FALSE)) -> 0 | BH49: =IF(BH48="",0,VLOOKUP(BH48,PSMListe!Pflanzenschutz,2,FALSE)) -> 0 | BI49: =IF(BI48="",0,VLOOKUP(BI48,PSMListe!Pflanzenschutz,2,FALSE)) -> 0 | BJ49: =IF(BJ48="",0,VLOOKUP(BJ48,PSMListe!Pflanzenschutz,2,FALSE)) -> 0
B50: Menge
B51: Bemerkung
B52: Datum
B53: Mittel 10
B54: Preis | C54: =IF(C53="",0,VLOOKUP(C53,PSMListe!Pflanzenschutz,2,FALSE)) -> 0 | D54: =IF(D53="",0,VLOOKUP(D53,PSMListe!Pflanzenschutz,2,FALSE)) -> 0 | E54: =IF(E53="",0,VLOOKUP(E53,PSMListe!Pflanzenschutz,2,FALSE)) -> 0 | F54: =IF(F53="",0,VLOOKUP(F53,PSMListe!Pflanzenschutz,2,FALSE)) -> 0 | G54: =IF(G53="",0,VLOOKUP(G53,PSMListe!Pflanzenschutz,2,FALSE)) -> 0 | H54: =IF(H53="",0,VLOOKUP(H53,PSMListe!Pflanzenschutz,2,FALSE)) -> 0 | I54: =IF(I53="",0,VLOOKUP(I53,PSMListe!Pflanzenschutz,2,FALSE)) -> 0 | J54: =IF(J53="",0,VLOOKUP(J53,PSMListe!Pflanzenschutz,2,FALSE)) -> 0 | K54: =IF(K53="",0,VLOOKUP(K53,PSMListe!Pflanzenschutz,2,FALSE)) -> 0 | L54: =IF(L53="",0,VLOOKUP(L53,PSMListe!Pflanzenschutz,2,FALSE)) -> 0 | M54: =IF(M53="",0,VLOOKUP(M53,PSMListe!Pflanzenschutz,2,FALSE)) -> 0 | N54: =IF(N53="",0,VLOOKUP(N53,PSMListe!Pflanzenschutz,2,FALSE)) -> 0 | O54: =IF(O53="",0,VLOOKUP(O53,PSMListe!Pflanzenschutz,2,FALSE)) -> 0 | P54: =IF(P53="",0,VLOOKUP(P53,PSMListe!Pflanzenschutz,2,FALSE)) -> 0 | Q54: =IF(Q53="",0,VLOOKUP(Q53,PSMListe!Pflanzenschutz,2,FALSE)) -> 0 | R54: =IF(R53="",0,VLOOKUP(R53,PSMListe!Pflanzenschutz,2,FALSE)) -> 0 | S54: =IF(S53="",0,VLOOKUP(S53,PSMListe!Pflanzenschutz,2,FALSE)) -> 0 | T54: =IF(T53="",0,VLOOKUP(T53,PSMListe!Pflanzenschutz,2,FALSE)) -> 0 | U54: =IF(U53="",0,VLOOKUP(U53,PSMListe!Pflanzenschutz,2,FALSE)) -> 0 | V54: =IF(V53="",0,VLOOKUP(V53,PSMListe!Pflanzenschutz,2,FALSE)) -> 0 | W54: =IF(W53="",0,VLOOKUP(W53,PSMListe!Pflanzenschutz,2,FALSE)) -> 0 | X54: =IF(X53="",0,VLOOKUP(X53,PSMListe!Pflanzenschutz,2,FALSE)) -> 0 | Y54: =IF(Y53="",0,VLOOKUP(Y53,PSMListe!Pflanzenschutz,2,FALSE)) -> 0 | Z54: =IF(Z53="",0,VLOOKUP(Z53,PSMListe!Pflanzenschutz,2,FALSE)) -> 0 | AA54: =IF(AA53="",0,VLOOKUP(AA53,PSMListe!Pflanzenschutz,2,FALSE)) -> 0 | AB54: =IF(AB53="",0,VLOOKUP(AB53,PSMListe!Pflanzenschutz,2,FALSE)) -> 0 | AC54: =IF(AC53="",0,VLOOKUP(AC53,PSMListe!Pflanzenschutz,2,FALSE)) -> 0 | AD54: =IF(AD53="",0,VLOOKUP(AD53,PSMListe!Pflanzenschutz,2,FALSE)) -> 0 | AE54: =IF(AE53="",0,VLOOKUP(AE53,PSMListe!Pflanzenschutz,2,FALSE)) -> 0 | AF54: =IF(AF53="",0,VLOOKUP(AF53,PSMListe!Pflanzenschutz,2,FALSE)) -> 0 | AG54: =IF(AG53="",0,VLOOKUP(AG53,PSMListe!Pflanzenschutz,2,FALSE)) -> 0 | AH54: =IF(AH53="",0,VLOOKUP(AH53,PSMListe!Pflanzenschutz,2,FALSE)) -> 0 | AI54: =IF(AI53="",0,VLOOKUP(AI53,PSMListe!Pflanzenschutz,2,FALSE)) -> 0 | AJ54: =IF(AJ53="",0,VLOOKUP(AJ53,PSMListe!Pflanzenschutz,2,FALSE)) -> 0 | AK54: =IF(AK53="",0,VLOOKUP(AK53,PSMListe!Pflanzenschutz,2,FALSE)) -> 0 | AL54: =IF(AL53="",0,VLOOKUP(AL53,PSMListe!Pflanzenschutz,2,FALSE)) -> 0 | AM54: =IF(AM53="",0,VLOOKUP(AM53,PSMListe!Pflanzenschutz,2,FALSE)) -> 0 | AN54: =IF(AN53="",0,VLOOKUP(AN53,PSMListe!Pflanzenschutz,2,FALSE)) -> 0 | AO54: =IF(AO53="",0,VLOOKUP(AO53,PSMListe!Pflanzenschutz,2,FALSE)) -> 0 | AP54: =IF(AP53="",0,VLOOKUP(AP53,PSMListe!Pflanzenschutz,2,FALSE)) -> 0 | AQ54: =IF(AQ53="",0,VLOOKUP(AQ53,PSMListe!Pflanzenschutz,2,FALSE)) -> 0 | AR54: =IF(AR53="",0,VLOOKUP(AR53,PSMListe!Pflanzenschutz,2,FALSE)) -> 0 | AS54: =IF(AS53="",0,VLOOKUP(AS53,PSMListe!Pflanzenschutz,2,FALSE)) -> 0 | AT54: =IF(AT53="",0,VLOOKUP(AT53,PSMListe!Pflanzenschutz,2,FALSE)) -> 0 | AU54: =IF(AU53="",0,VLOOKUP(AU53,PSMListe!Pflanzenschutz,2,FALSE)) -> 0 | AV54: =IF(AV53="",0,VLOOKUP(AV53,PSMListe!Pflanzenschutz,2,FALSE)) -> 0 | AW54: =IF(AW53="",0,VLOOKUP(AW53,PSMListe!Pflanzenschutz,2,FALSE)) -> 0 | AX54: =IF(AX53="",0,VLOOKUP(AX53,PSMListe!Pflanzenschutz,2,FALSE)) -> 0 | AY54: =IF(AY53="",0,VLOOKUP(AY53,PSMListe!Pflanzenschutz,2,FALSE)) -> 0 | AZ54: =IF(AZ53="",0,VLOOKUP(AZ53,PSMListe!Pflanzenschutz,2,FALSE)) -> 0 | BA54: =IF(BA53="",0,VLOOKUP(BA53,PSMListe!Pflanzenschutz,2,FALSE)) -> 0 | BB54: =IF(BB53="",0,VLOOKUP(BB53,PSMListe!Pflanzenschutz,2,FALSE)) -> 0 | BC54: =IF(BC53="",0,VLOOKUP(BC53,PSMListe!Pflanzenschutz,2,FALSE)) -> 0 | BD54: =IF(BD53="",0,VLOOKUP(BD53,PSMListe!Pflanzenschutz,2,FALSE)) -> 0 | BE54: =IF(BE53="",0,VLOOKUP(BE53,PSMListe!Pflanzenschutz,2,FALSE)) -> 0 | BF54: =IF(BF53="",0,VLOOKUP(BF53,PSMListe!Pflanzenschutz,2,FALSE)) -> 0 | BG54: =IF(BG53="",0,VLOOKUP(BG53,PSMListe!Pflanzenschutz,2,FALSE)) -> 0 | BH54: =IF(BH53="",0,VLOOKUP(BH53,PSMListe!Pflanzenschutz,2,FALSE)) -> 0 | BI54: =IF(BI53="",0,VLOOKUP(BI53,PSMListe!Pflanzenschutz,2,FALSE)) -> 0 | BJ54: =IF(BJ53="",0,VLOOKUP(BJ53,PSMListe!Pflanzenschutz,2,FALSE)) -> 0
B55: Menge
B56: Bemerkung
B57: Datum
B58: Mittel 11
B59: Preis | C59: =IF(C58="",0,VLOOKUP(C58,PSMListe!Pflanzenschutz,2,FALSE)) -> 0 | D59: =IF(D58="",0,VLOOKUP(D58,PSMListe!Pflanzenschutz,2,FALSE)) -> 0 | E59: =IF(E58="",0,VLOOKUP(E58,PSMListe!Pflanzenschutz,2,FALSE)) -> 0 | F59: =IF(F58="",0,VLOOKUP(F58,PSMListe!Pflanzenschutz,2,FALSE)) -> 0 | G59: =IF(G58="",0,VLOOKUP(G58,PSMListe!Pflanzenschutz,2,FALSE)) -> 0 | H59: =IF(H58="",0,VLOOKUP(H58,PSMListe!Pflanzenschutz,2,FALSE)) -> 0 | I59: =IF(I58="",0,VLOOKUP(I58,PSMListe!Pflanzenschutz,2,FALSE)) -> 0 | J59: =IF(J58="",0,VLOOKUP(J58,PSMListe!Pflanzenschutz,2,FALSE)) -> 0 | K59: =IF(K58="",0,VLOOKUP(K58,PSMListe!Pflanzenschutz,2,FALSE)) -> 0 | L59: =IF(L58="",0,VLOOKUP(L58,PSMListe!Pflanzenschutz,2,FALSE)) -> 0 | M59: =IF(M58="",0,VLOOKUP(M58,PSMListe!Pflanzenschutz,2,FALSE)) -> 0 | N59: =IF(N58="",0,VLOOKUP(N58,PSMListe!Pflanzenschutz,2,FALSE)) -> 0 | O59: =IF(O58="",0,VLOOKUP(O58,PSMListe!Pflanzenschutz,2,FALSE)) -> 0 | P59: =IF(P58="",0,VLOOKUP(P58,PSMListe!Pflanzenschutz,2,FALSE)) -> 0 | Q59: =IF(Q58="",0,VLOOKUP(Q58,PSMListe!Pflanzenschutz,2,FALSE)) -> 0 | R59: =IF(R58="",0,VLOOKUP(R58,PSMListe!Pflanzenschutz,2,FALSE)) -> 0 | S59: =IF(S58="",0,VLOOKUP(S58,PSMListe!Pflanzenschutz,2,FALSE)) -> 0 | T59: =IF(T58="",0,VLOOKUP(T58,PSMListe!Pflanzenschutz,2,FALSE)) -> 0 | U59: =IF(U58="",0,VLOOKUP(U58,PSMListe!Pflanzenschutz,2,FALSE)) -> 0 | V59: =IF(V58="",0,VLOOKUP(V58,PSMListe!Pflanzenschutz,2,FALSE)) -> 0 | W59: =IF(W58="",0,VLOOKUP(W58,PSMListe!Pflanzenschutz,2,FALSE)) -> 0 | X59: =IF(X58="",0,VLOOKUP(X58,PSMListe!Pflanzenschutz,2,FALSE)) -> 0 | Y59: =IF(Y58="",0,VLOOKUP(Y58,PSMListe!Pflanzenschutz,2,FALSE)) -> 0 | Z59: =IF(Z58="",0,VLOOKUP(Z58,PSMListe!Pflanzenschutz,2,FALSE)) -> 0 | AA59: =IF(AA58="",0,VLOOKUP(AA58,PSMListe!Pflanzenschutz,2,FALSE)) -> 0 | AB59: =IF(AB58="",0,VLOOKUP(AB58,PSMListe!Pflanzenschutz,2,FALSE)) -> 0 | AC59: =IF(AC58="",0,VLOOKUP(AC58,PSMListe!Pflanzenschutz,2,FALSE)) -> 0 | AD59: =IF(AD58="",0,VLOOKUP(AD58,PSMListe!Pflanzenschutz,2,FALSE)) -> 0 | AE59: =IF(AE58="",0,VLOOKUP(AE58,PSMListe!Pflanzenschutz,2,FALSE)) -> 0 | AF59: =IF(AF58="",0,VLOOKUP(AF58,PSMListe!Pflanzenschutz,2,FALSE)) -> 0 | AG59: =IF(AG58="",0,VLOOKUP(AG58,PSMListe!Pflanzenschutz,2,FALSE)) -> 0 | AH59: =IF(AH58="",0,VLOOKUP(AH58,PSMListe!Pflanzenschutz,2,FALSE)) -> 0 | AI59: =IF(AI58="",0,VLOOKUP(AI58,PSMListe!Pflanzenschutz,2,FALSE)) -> 0 | AJ59: =IF(AJ58="",0,VLOOKUP(AJ58,PSMListe!Pflanzenschutz,2,FALSE)) -> 0 | AK59: =IF(AK58="",0,VLOOKUP(AK58,PSMListe!Pflanzenschutz,2,FALSE)) -> 0 | AL59: =IF(AL58="",0,VLOOKUP(AL58,PSMListe!Pflanzenschutz,2,FALSE)) -> 0 | AM59: =IF(AM58="",0,VLOOKUP(AM58,PSMListe!Pflanzenschutz,2,FALSE)) -> 0 | AN59: =IF(AN58="",0,VLOOKUP(AN58,PSMListe!Pflanzenschutz,2,FALSE)) -> 0 | AO59: =IF(AO58="",0,VLOOKUP(AO58,PSMListe!Pflanzenschutz,2,FALSE)) -> 0 | AP59: =IF(AP58="",0,VLOOKUP(AP58,PSMListe!Pflanzenschutz,2,FALSE)) -> 0 | AQ59: =IF(AQ58="",0,VLOOKUP(AQ58,PSMListe!Pflanzenschutz,2,FALSE)) -> 0 | AR59: =IF(AR58="",0,VLOOKUP(AR58,PSMListe!Pflanzenschutz,2,FALSE)) -> 0 | AS59: =IF(AS58="",0,VLOOKUP(AS58,PSMListe!Pflanzenschutz,2,FALSE)) -> 0 | AT59: =IF(AT58="",0,VLOOKUP(AT58,PSMListe!Pflanzenschutz,2,FALSE)) -> 0 | AU59: =IF(AU58="",0,VLOOKUP(AU58,PSMListe!Pflanzenschutz,2,FALSE)) -> 0 | AV59: =IF(AV58="",0,VLOOKUP(AV58,PSMListe!Pflanzenschutz,2,FALSE)) -> 0 | AW59: =IF(AW58="",0,VLOOKUP(AW58,PSMListe!Pflanzenschutz,2,FALSE)) -> 0 | AX59: =IF(AX58="",0,VLOOKUP(AX58,PSMListe!Pflanzenschutz,2,FALSE)) -> 0 | AY59: =IF(AY58="",0,VLOOKUP(AY58,PSMListe!Pflanzenschutz,2,FALSE)) -> 0 | AZ59: =IF(AZ58="",0,VLOOKUP(AZ58,PSMListe!Pflanzenschutz,2,FALSE)) -> 0 | BA59: =IF(BA58="",0,VLOOKUP(BA58,PSMListe!Pflanzenschutz,2,FALSE)) -> 0 | BB59: =IF(BB58="",0,VLOOKUP(BB58,PSMListe!Pflanzenschutz,2,FALSE)) -> 0 | BC59: =IF(BC58="",0,VLOOKUP(BC58,PSMListe!Pflanzenschutz,2,FALSE)) -> 0 | BD59: =IF(BD58="",0,VLOOKUP(BD58,PSMListe!Pflanzenschutz,2,FALSE)) -> 0 | BE59: =IF(BE58="",0,VLOOKUP(BE58,PSMListe!Pflanzenschutz,2,FALSE)) -> 0 | BF59: =IF(BF58="",0,VLOOKUP(BF58,PSMListe!Pflanzenschutz,2,FALSE)) -> 0 | BG59: =IF(BG58="",0,VLOOKUP(BG58,PSMListe!Pflanzenschutz,2,FALSE)) -> 0 | BH59: =IF(BH58="",0,VLOOKUP(BH58,PSMListe!Pflanzenschutz,2,FALSE)) -> 0 | BI59: =IF(BI58="",0,VLOOKUP(BI58,PSMListe!Pflanzenschutz,2,FALSE)) -> 0 | BJ59: =IF(BJ58="",0,VLOOKUP(BJ58,PSMListe!Pflanzenschutz,2,FALSE)) -> 0
B60: Menge
B61: Bemerkung
B62: Datum
B63: Mittel 12
B64: Preis | C64: =IF(C63="",0,VLOOKUP(C63,PSMListe!Pflanzenschutz,2,FALSE)) -> 0 | D64: =IF(D63="",0,VLOOKUP(D63,PSMListe!Pflanzenschutz,2,FALSE)) -> 0 | E64: =IF(E63="",0,VLOOKUP(E63,PSMListe!Pflanzenschutz,2,FALSE)) -> 0 | F64: =IF(F63="",0,VLOOKUP(F63,PSMListe!Pflanzenschutz,2,FALSE)) -> 0 | G64: =IF(G63="",0,VLOOKUP(G63,PSMListe!Pflanzenschutz,2,FALSE)) -> 0 | H64: =IF(H63="",0,VLOOKUP(H63,PSMListe!Pflanzenschutz,2,FALSE)) -> 0 | I64: =IF(I63="",0,VLOOKUP(I63,PSMListe!Pflanzenschutz,2,FALSE)) -> 0 | J64: =IF(J63="",0,VLOOKUP(J63,PSMListe!Pflanzenschutz,2,FALSE)) -> 0 | K64: =IF(K63="",0,VLOOKUP(K63,PSMListe!Pflanzenschutz,2,FALSE)) -> 0 | L64: =IF(L63="",0,VLOOKUP(L63,PSMListe!Pflanzenschutz,2,FALSE)) -> 0 | M64: =IF(M63="",0,VLOOKUP(M63,PSMListe!Pflanzenschutz,2,FALSE)) -> 0 | N64: =IF(N63="",0,VLOOKUP(N63,PSMListe!Pflanzenschutz,2,FALSE)) -> 0 | O64: =IF(O63="",0,VLOOKUP(O63,PSMListe!Pflanzenschutz,2,FALSE)) -> 0 | P64: =IF(P63="",0,VLOOKUP(P63,PSMListe!Pflanzenschutz,2,FALSE)) -> 0 | Q64: =IF(Q63="",0,VLOOKUP(Q63,PSMListe!Pflanzenschutz,2,FALSE)) -> 0 | R64: =IF(R63="",0,VLOOKUP(R63,PSMListe!Pflanzenschutz,2,FALSE)) -> 0 | S64: =IF(S63="",0,VLOOKUP(S63,PSMListe!Pflanzenschutz,2,FALSE)) -> 0 | T64: =IF(T63="",0,VLOOKUP(T63,PSMListe!Pflanzenschutz,2,FALSE)) -> 0 | U64: =IF(U63="",0,VLOOKUP(U63,PSMListe!Pflanzenschutz,2,FALSE)) -> 0 | V64: =IF(V63="",0,VLOOKUP(V63,PSMListe!Pflanzenschutz,2,FALSE)) -> 0 | W64: =IF(W63="",0,VLOOKUP(W63,PSMListe!Pflanzenschutz,2,FALSE)) -> 0 | X64: =IF(X63="",0,VLOOKUP(X63,PSMListe!Pflanzenschutz,2,FALSE)) -> 0 | Y64: =IF(Y63="",0,VLOOKUP(Y63,PSMListe!Pflanzenschutz,2,FALSE)) -> 0 | Z64: =IF(Z63="",0,VLOOKUP(Z63,PSMListe!Pflanzenschutz,2,FALSE)) -> 0 | AA64: =IF(AA63="",0,VLOOKUP(AA63,PSMListe!Pflanzenschutz,2,FALSE)) -> 0 | AB64: =IF(AB63="",0,VLOOKUP(AB63,PSMListe!Pflanzenschutz,2,FALSE)) -> 0 | AC64: =IF(AC63="",0,VLOOKUP(AC63,PSMListe!Pflanzenschutz,2,FALSE)) -> 0 | AD64: =IF(AD63="",0,VLOOKUP(AD63,PSMListe!Pflanzenschutz,2,FALSE)) -> 0 | AE64: =IF(AE63="",0,VLOOKUP(AE63,PSMListe!Pflanzenschutz,2,FALSE)) -> 0 | AF64: =IF(AF63="",0,VLOOKUP(AF63,PSMListe!Pflanzenschutz,2,FALSE)) -> 0 | AG64: =IF(AG63="",0,VLOOKUP(AG63,PSMListe!Pflanzenschutz,2,FALSE)) -> 0 | AH64: =IF(AH63="",0,VLOOKUP(AH63,PSMListe!Pflanzenschutz,2,FALSE)) -> 0 | AI64: =IF(AI63="",0,VLOOKUP(AI63,PSMListe!Pflanzenschutz,2,FALSE)) -> 0 | AJ64: =IF(AJ63="",0,VLOOKUP(AJ63,PSMListe!Pflanzenschutz,2,FALSE)) -> 0 | AK64: =IF(AK63="",0,VLOOKUP(AK63,PSMListe!Pflanzenschutz,2,FALSE)) -> 0 | AL64: =IF(AL63="",0,VLOOKUP(AL63,PSMListe!Pflanzenschutz,2,FALSE)) -> 0 | AM64: =IF(AM63="",0,VLOOKUP(AM63,PSMListe!Pflanzenschutz,2,FALSE)) -> 0 | AN64: =IF(AN63="",0,VLOOKUP(AN63,PSMListe!Pflanzenschutz,2,FALSE)) -> 0 | AO64: =IF(AO63="",0,VLOOKUP(AO63,PSMListe!Pflanzenschutz,2,FALSE)) -> 0 | AP64: =IF(AP63="",0,VLOOKUP(AP63,PSMListe!Pflanzenschutz,2,FALSE)) -> 0 | AQ64: =IF(AQ63="",0,VLOOKUP(AQ63,PSMListe!Pflanzenschutz,2,FALSE)) -> 0 | AR64: =IF(AR63="",0,VLOOKUP(AR63,PSMListe!Pflanzenschutz,2,FALSE)) -> 0 | AS64: =IF(AS63="",0,VLOOKUP(AS63,PSMListe!Pflanzenschutz,2,FALSE)) -> 0 | AT64: =IF(AT63="",0,VLOOKUP(AT63,PSMListe!Pflanzenschutz,2,FALSE)) -> 0 | AU64: =IF(AU63="",0,VLOOKUP(AU63,PSMListe!Pflanzenschutz,2,FALSE)) -> 0 | AV64: =IF(AV63="",0,VLOOKUP(AV63,PSMListe!Pflanzenschutz,2,FALSE)) -> 0 | AW64: =IF(AW63="",0,VLOOKUP(AW63,PSMListe!Pflanzenschutz,2,FALSE)) -> 0 | AX64: =IF(AX63="",0,VLOOKUP(AX63,PSMListe!Pflanzenschutz,2,FALSE)) -> 0 | AY64: =IF(AY63="",0,VLOOKUP(AY63,PSMListe!Pflanzenschutz,2,FALSE)) -> 0 | AZ64: =IF(AZ63="",0,VLOOKUP(AZ63,PSMListe!Pflanzenschutz,2,FALSE)) -> 0 | BA64: =IF(BA63="",0,VLOOKUP(BA63,PSMListe!Pflanzenschutz,2,FALSE)) -> 0 | BB64: =IF(BB63="",0,VLOOKUP(BB63,PSMListe!Pflanzenschutz,2,FALSE)) -> 0 | BC64: =IF(BC63="",0,VLOOKUP(BC63,PSMListe!Pflanzenschutz,2,FALSE)) -> 0 | BD64: =IF(BD63="",0,VLOOKUP(BD63,PSMListe!Pflanzenschutz,2,FALSE)) -> 0 | BE64: =IF(BE63="",0,VLOOKUP(BE63,PSMListe!Pflanzenschutz,2,FALSE)) -> 0 | BF64: =IF(BF63="",0,VLOOKUP(BF63,PSMListe!Pflanzenschutz,2,FALSE)) -> 0 | BG64: =IF(BG63="",0,VLOOKUP(BG63,PSMListe!Pflanzenschutz,2,FALSE)) -> 0 | BH64: =IF(BH63="",0,VLOOKUP(BH63,PSMListe!Pflanzenschutz,2,FALSE)) -> 0 | BI64: =IF(BI63="",0,VLOOKUP(BI63,PSMListe!Pflanzenschutz,2,FALSE)) -> 0 | BJ64: =IF(BJ63="",0,VLOOKUP(BJ63,PSMListe!Pflanzenschutz,2,FALSE)) -> 0
B65: Menge
B66: Bemerkung
B67: Datum
B68: Mittel 13
B69: Preis | C69: =IF(C68="",0,VLOOKUP(C68,PSMListe!Pflanzenschutz,2,FALSE)) -> 0 | D69: =IF(D68="",0,VLOOKUP(D68,PSMListe!Pflanzenschutz,2,FALSE)) -> 0 | E69: =IF(E68="",0,VLOOKUP(E68,PSMListe!Pflanzenschutz,2,FALSE)) -> 0 | F69: =IF(F68="",0,VLOOKUP(F68,PSMListe!Pflanzenschutz,2,FALSE)) -> 0 | G69: =IF(G68="",0,VLOOKUP(G68,PSMListe!Pflanzenschutz,2,FALSE)) -> 0 | H69: =IF(H68="",0,VLOOKUP(H68,PSMListe!Pflanzenschutz,2,FALSE)) -> 0 | I69: =IF(I68="",0,VLOOKUP(I68,PSMListe!Pflanzenschutz,2,FALSE)) -> 0 | J69: =IF(J68="",0,VLOOKUP(J68,PSMListe!Pflanzenschutz,2,FALSE)) -> 0 | K69: =IF(K68="",0,VLOOKUP(K68,PSMListe!Pflanzenschutz,2,FALSE)) -> 0 | L69: =IF(L68="",0,VLOOKUP(L68,PSMListe!Pflanzenschutz,2,FALSE)) -> 0 | M69: =IF(M68="",0,VLOOKUP(M68,PSMListe!Pflanzenschutz,2,FALSE)) -> 0 | N69: =IF(N68="",0,VLOOKUP(N68,PSMListe!Pflanzenschutz,2,FALSE)) -> 0 | O69: =IF(O68="",0,VLOOKUP(O68,PSMListe!Pflanzenschutz,2,FALSE)) -> 0 | P69: =IF(P68="",0,VLOOKUP(P68,PSMListe!Pflanzenschutz,2,FALSE)) -> 0 | Q69: =IF(Q68="",0,VLOOKUP(Q68,PSMListe!Pflanzenschutz,2,FALSE)) -> 0 | R69: =IF(R68="",0,VLOOKUP(R68,PSMListe!Pflanzenschutz,2,FALSE)) -> 0 | S69: =IF(S68="",0,VLOOKUP(S68,PSMListe!Pflanzenschutz,2,FALSE)) -> 0 | T69: =IF(T68="",0,VLOOKUP(T68,PSMListe!Pflanzenschutz,2,FALSE)) -> 0 | U69: =IF(U68="",0,VLOOKUP(U68,PSMListe!Pflanzenschutz,2,FALSE)) -> 0 | V69: =IF(V68="",0,VLOOKUP(V68,PSMListe!Pflanzenschutz,2,FALSE)) -> 0 | W69: =IF(W68="",0,VLOOKUP(W68,PSMListe!Pflanzenschutz,2,FALSE)) -> 0 | X69: =IF(X68="",0,VLOOKUP(X68,PSMListe!Pflanzenschutz,2,FALSE)) -> 0 | Y69: =IF(Y68="",0,VLOOKUP(Y68,PSMListe!Pflanzenschutz,2,FALSE)) -> 0 | Z69: =IF(Z68="",0,VLOOKUP(Z68,PSMListe!Pflanzenschutz,2,FALSE)) -> 0 | AA69: =IF(AA68="",0,VLOOKUP(AA68,PSMListe!Pflanzenschutz,2,FALSE)) -> 0 | AB69: =IF(AB68="",0,VLOOKUP(AB68,PSMListe!Pflanzenschutz,2,FALSE)) -> 0 | AC69: =IF(AC68="",0,VLOOKUP(AC68,PSMListe!Pflanzenschutz,2,FALSE)) -> 0 | AD69: =IF(AD68="",0,VLOOKUP(AD68,PSMListe!Pflanzenschutz,2,FALSE)) -> 0 | AE69: =IF(AE68="",0,VLOOKUP(AE68,PSMListe!Pflanzenschutz,2,FALSE)) -> 0 | AF69: =IF(AF68="",0,VLOOKUP(AF68,PSMListe!Pflanzenschutz,2,FALSE)) -> 0 | AG69: =IF(AG68="",0,VLOOKUP(AG68,PSMListe!Pflanzenschutz,2,FALSE)) -> 0 | AH69: =IF(AH68="",0,VLOOKUP(AH68,PSMListe!Pflanzenschutz,2,FALSE)) -> 0 | AI69: =IF(AI68="",0,VLOOKUP(AI68,PSMListe!Pflanzenschutz,2,FALSE)) -> 0 | AJ69: =IF(AJ68="",0,VLOOKUP(AJ68,PSMListe!Pflanzenschutz,2,FALSE)) -> 0 | AK69: =IF(AK68="",0,VLOOKUP(AK68,PSMListe!Pflanzenschutz,2,FALSE)) -> 0 | AL69: =IF(AL68="",0,VLOOKUP(AL68,PSMListe!Pflanzenschutz,2,FALSE)) -> 0 | AM69: =IF(AM68="",0,VLOOKUP(AM68,PSMListe!Pflanzenschutz,2,FALSE)) -> 0 | AN69: =IF(AN68="",0,VLOOKUP(AN68,PSMListe!Pflanzenschutz,2,FALSE)) -> 0 | AO69: =IF(AO68="",0,VLOOKUP(AO68,PSMListe!Pflanzenschutz,2,FALSE)) -> 0 | AP69: =IF(AP68="",0,VLOOKUP(AP68,PSMListe!Pflanzenschutz,2,FALSE)) -> 0 | AQ69: =IF(AQ68="",0,VLOOKUP(AQ68,PSMListe!Pflanzenschutz,2,FALSE)) -> 0 | AR69: =IF(AR68="",0,VLOOKUP(AR68,PSMListe!Pflanzenschutz,2,FALSE)) -> 0 | AS69: =IF(AS68="",0,VLOOKUP(AS68,PSMListe!Pflanzenschutz,2,FALSE)) -> 0 | AT69: =IF(AT68="",0,VLOOKUP(AT68,PSMListe!Pflanzenschutz,2,FALSE)) -> 0 | AU69: =IF(AU68="",0,VLOOKUP(AU68,PSMListe!Pflanzenschutz,2,FALSE)) -> 0 | AV69: =IF(AV68="",0,VLOOKUP(AV68,PSMListe!Pflanzenschutz,2,FALSE)) -> 0 | AW69: =IF(AW68="",0,VLOOKUP(AW68,PSMListe!Pflanzenschutz,2,FALSE)) -> 0 | AX69: =IF(AX68="",0,VLOOKUP(AX68,PSMListe!Pflanzenschutz,2,FALSE)) -> 0 | AY69: =IF(AY68="",0,VLOOKUP(AY68,PSMListe!Pflanzenschutz,2,FALSE)) -> 0 | AZ69: =IF(AZ68="",0,VLOOKUP(AZ68,PSMListe!Pflanzenschutz,2,FALSE)) -> 0 | BA69: =IF(BA68="",0,VLOOKUP(BA68,PSMListe!Pflanzenschutz,2,FALSE)) -> 0 | BB69: =IF(BB68="",0,VLOOKUP(BB68,PSMListe!Pflanzenschutz,2,FALSE)) -> 0 | BC69: =IF(BC68="",0,VLOOKUP(BC68,PSMListe!Pflanzenschutz,2,FALSE)) -> 0 | BD69: =IF(BD68="",0,VLOOKUP(BD68,PSMListe!Pflanzenschutz,2,FALSE)) -> 0 | BE69: =IF(BE68="",0,VLOOKUP(BE68,PSMListe!Pflanzenschutz,2,FALSE)) -> 0 | BF69: =IF(BF68="",0,VLOOKUP(BF68,PSMListe!Pflanzenschutz,2,FALSE)) -> 0 | BG69: =IF(BG68="",0,VLOOKUP(BG68,PSMListe!Pflanzenschutz,2,FALSE)) -> 0 | BH69: =IF(BH68="",0,VLOOKUP(BH68,PSMListe!Pflanzenschutz,2,FALSE)) -> 0 | BI69: =IF(BI68="",0,VLOOKUP(BI68,PSMListe!Pflanzenschutz,2,FALSE)) -> 0 | BJ69: =IF(BJ68="",0,VLOOKUP(BJ68,PSMListe!Pflanzenschutz,2,FALSE)) -> 0
B70: Menge
B71: Bemerkung
B72: Datum
B73: Mittel 14
B74: Preis | C74: =IF(C73="",0,VLOOKUP(C73,PSMListe!Pflanzenschutz,2,FALSE)) -> 0 | D74: =IF(D73="",0,VLOOKUP(D73,PSMListe!Pflanzenschutz,2,FALSE)) -> 0 | E74: =IF(E73="",0,VLOOKUP(E73,PSMListe!Pflanzenschutz,2,FALSE)) -> 0 | F74: =IF(F73="",0,VLOOKUP(F73,PSMListe!Pflanzenschutz,2,FALSE)) -> 0 | G74: =IF(G73="",0,VLOOKUP(G73,PSMListe!Pflanzenschutz,2,FALSE)) -> 0 | H74: =IF(H73="",0,VLOOKUP(H73,PSMListe!Pflanzenschutz,2,FALSE)) -> 0 | I74: =IF(I73="",0,VLOOKUP(I73,PSMListe!Pflanzenschutz,2,FALSE)) -> 0 | J74: =IF(J73="",0,VLOOKUP(J73,PSMListe!Pflanzenschutz,2,FALSE)) -> 0 | K74: =IF(K73="",0,VLOOKUP(K73,PSMListe!Pflanzenschutz,2,FALSE)) -> 0 | L74: =IF(L73="",0,VLOOKUP(L73,PSMListe!Pflanzenschutz,2,FALSE)) -> 0 | M74: =IF(M73="",0,VLOOKUP(M73,PSMListe!Pflanzenschutz,2,FALSE)) -> 0 | N74: =IF(N73="",0,VLOOKUP(N73,PSMListe!Pflanzenschutz,2,FALSE)) -> 0 | O74: =IF(O73="",0,VLOOKUP(O73,PSMListe!Pflanzenschutz,2,FALSE)) -> 0 | P74: =IF(P73="",0,VLOOKUP(P73,PSMListe!Pflanzenschutz,2,FALSE)) -> 0 | Q74: =IF(Q73="",0,VLOOKUP(Q73,PSMListe!Pflanzenschutz,2,FALSE)) -> 0 | R74: =IF(R73="",0,VLOOKUP(R73,PSMListe!Pflanzenschutz,2,FALSE)) -> 0 | S74: =IF(S73="",0,VLOOKUP(S73,PSMListe!Pflanzenschutz,2,FALSE)) -> 0 | T74: =IF(T73="",0,VLOOKUP(T73,PSMListe!Pflanzenschutz,2,FALSE)) -> 0 | U74: =IF(U73="",0,VLOOKUP(U73,PSMListe!Pflanzenschutz,2,FALSE)) -> 0 | V74: =IF(V73="",0,VLOOKUP(V73,PSMListe!Pflanzenschutz,2,FALSE)) -> 0 | W74: =IF(W73="",0,VLOOKUP(W73,PSMListe!Pflanzenschutz,2,FALSE)) -> 0 | X74: =IF(X73="",0,VLOOKUP(X73,PSMListe!Pflanzenschutz,2,FALSE)) -> 0 | Y74: =IF(Y73="",0,VLOOKUP(Y73,PSMListe!Pflanzenschutz,2,FALSE)) -> 0 | Z74: =IF(Z73="",0,VLOOKUP(Z73,PSMListe!Pflanzenschutz,2,FALSE)) -> 0 | AA74: =IF(AA73="",0,VLOOKUP(AA73,PSMListe!Pflanzenschutz,2,FALSE)) -> 0 | AB74: =IF(AB73="",0,VLOOKUP(AB73,PSMListe!Pflanzenschutz,2,FALSE)) -> 0 | AC74: =IF(AC73="",0,VLOOKUP(AC73,PSMListe!Pflanzenschutz,2,FALSE)) -> 0 | AD74: =IF(AD73="",0,VLOOKUP(AD73,PSMListe!Pflanzenschutz,2,FALSE)) -> 0 | AE74: =IF(AE73="",0,VLOOKUP(AE73,PSMListe!Pflanzenschutz,2,FALSE)) -> 0 | AF74: =IF(AF73="",0,VLOOKUP(AF73,PSMListe!Pflanzenschutz,2,FALSE)) -> 0 | AG74: =IF(AG73="",0,VLOOKUP(AG73,PSMListe!Pflanzenschutz,2,FALSE)) -> 0 | AH74: =IF(AH73="",0,VLOOKUP(AH73,PSMListe!Pflanzenschutz,2,FALSE)) -> 0 | AI74: =IF(AI73="",0,VLOOKUP(AI73,PSMListe!Pflanzenschutz,2,FALSE)) -> 0 | AJ74: =IF(AJ73="",0,VLOOKUP(AJ73,PSMListe!Pflanzenschutz,2,FALSE)) -> 0 | AK74: =IF(AK73="",0,VLOOKUP(AK73,PSMListe!Pflanzenschutz,2,FALSE)) -> 0 | AL74: =IF(AL73="",0,VLOOKUP(AL73,PSMListe!Pflanzenschutz,2,FALSE)) -> 0 | AM74: =IF(AM73="",0,VLOOKUP(AM73,PSMListe!Pflanzenschutz,2,FALSE)) -> 0 | AN74: =IF(AN73="",0,VLOOKUP(AN73,PSMListe!Pflanzenschutz,2,FALSE)) -> 0 | AO74: =IF(AO73="",0,VLOOKUP(AO73,PSMListe!Pflanzenschutz,2,FALSE)) -> 0 | AP74: =IF(AP73="",0,VLOOKUP(AP73,PSMListe!Pflanzenschutz,2,FALSE)) -> 0 | AQ74: =IF(AQ73="",0,VLOOKUP(AQ73,PSMListe!Pflanzenschutz,2,FALSE)) -> 0 | AR74: =IF(AR73="",0,VLOOKUP(AR73,PSMListe!Pflanzenschutz,2,FALSE)) -> 0 | AS74: =IF(AS73="",0,VLOOKUP(AS73,PSMListe!Pflanzenschutz,2,FALSE)) -> 0 | AT74: =IF(AT73="",0,VLOOKUP(AT73,PSMListe!Pflanzenschutz,2,FALSE)) -> 0 | AU74: =IF(AU73="",0,VLOOKUP(AU73,PSMListe!Pflanzenschutz,2,FALSE)) -> 0 | AV74: =IF(AV73="",0,VLOOKUP(AV73,PSMListe!Pflanzenschutz,2,FALSE)) -> 0 | AW74: =IF(AW73="",0,VLOOKUP(AW73,PSMListe!Pflanzenschutz,2,FALSE)) -> 0 | AX74: =IF(AX73="",0,VLOOKUP(AX73,PSMListe!Pflanzenschutz,2,FALSE)) -> 0 | AY74: =IF(AY73="",0,VLOOKUP(AY73,PSMListe!Pflanzenschutz,2,FALSE)) -> 0 | AZ74: =IF(AZ73="",0,VLOOKUP(AZ73,PSMListe!Pflanzenschutz,2,FALSE)) -> 0 | BA74: =IF(BA73="",0,VLOOKUP(BA73,PSMListe!Pflanzenschutz,2,FALSE)) -> 0 | BB74: =IF(BB73="",0,VLOOKUP(BB73,PSMListe!Pflanzenschutz,2,FALSE)) -> 0 | BC74: =IF(BC73="",0,VLOOKUP(BC73,PSMListe!Pflanzenschutz,2,FALSE)) -> 0 | BD74: =IF(BD73="",0,VLOOKUP(BD73,PSMListe!Pflanzenschutz,2,FALSE)) -> 0 | BE74: =IF(BE73="",0,VLOOKUP(BE73,PSMListe!Pflanzenschutz,2,FALSE)) -> 0 | BF74: =IF(BF73="",0,VLOOKUP(BF73,PSMListe!Pflanzenschutz,2,FALSE)) -> 0 | BG74: =IF(BG73="",0,VLOOKUP(BG73,PSMListe!Pflanzenschutz,2,FALSE)) -> 0 | BH74: =IF(BH73="",0,VLOOKUP(BH73,PSMListe!Pflanzenschutz,2,FALSE)) -> 0 | BI74: =IF(BI73="",0,VLOOKUP(BI73,PSMListe!Pflanzenschutz,2,FALSE)) -> 0 | BJ74: =IF(BJ73="",0,VLOOKUP(BJ73,PSMListe!Pflanzenschutz,2,FALSE)) -> 0
B75: Menge
B76: Bemerkung
B77: Datum
B78: Mittel 15
B79: Preis | C79: =IF(C78="",0,VLOOKUP(C78,PSMListe!Pflanzenschutz,2,FALSE)) -> 0 | D79: =IF(D78="",0,VLOOKUP(D78,PSMListe!Pflanzenschutz,2,FALSE)) -> 0 | E79: =IF(E78="",0,VLOOKUP(E78,PSMListe!Pflanzenschutz,2,FALSE)) -> 0 | F79: =IF(F78="",0,VLOOKUP(F78,PSMListe!Pflanzenschutz,2,FALSE)) -> 0 | G79: =IF(G78="",0,VLOOKUP(G78,PSMListe!Pflanzenschutz,2,FALSE)) -> 0 | H79: =IF(H78="",0,VLOOKUP(H78,PSMListe!Pflanzenschutz,2,FALSE)) -> 0 | I79: =IF(I78="",0,VLOOKUP(I78,PSMListe!Pflanzenschutz,2,FALSE)) -> 0 | J79: =IF(J78="",0,VLOOKUP(J78,PSMListe!Pflanzenschutz,2,FALSE)) -> 0 | K79: =IF(K78="",0,VLOOKUP(K78,PSMListe!Pflanzenschutz,2,FALSE)) -> 0 | L79: =IF(L78="",0,VLOOKUP(L78,PSMListe!Pflanzenschutz,2,FALSE)) -> 0 | M79: =IF(M78="",0,VLOOKUP(M78,PSMListe!Pflanzenschutz,2,FALSE)) -> 0 | N79: =IF(N78="",0,VLOOKUP(N78,PSMListe!Pflanzenschutz,2,FALSE)) -> 0 | O79: =IF(O78="",0,VLOOKUP(O78,PSMListe!Pflanzenschutz,2,FALSE)) -> 0 | P79: =IF(P78="",0,VLOOKUP(P78,PSMListe!Pflanzenschutz,2,FALSE)) -> 0 | Q79: =IF(Q78="",0,VLOOKUP(Q78,PSMListe!Pflanzenschutz,2,FALSE)) -> 0 | R79: =IF(R78="",0,VLOOKUP(R78,PSMListe!Pflanzenschutz,2,FALSE)) -> 0 | S79: =IF(S78="",0,VLOOKUP(S78,PSMListe!Pflanzenschutz,2,FALSE)) -> 0 | T79: =IF(T78="",0,VLOOKUP(T78,PSMListe!Pflanzenschutz,2,FALSE)) -> 0 | U79: =IF(U78="",0,VLOOKUP(U78,PSMListe!Pflanzenschutz,2,FALSE)) -> 0 | V79: =IF(V78="",0,VLOOKUP(V78,PSMListe!Pflanzenschutz,2,FALSE)) -> 0 | W79: =IF(W78="",0,VLOOKUP(W78,PSMListe!Pflanzenschutz,2,FALSE)) -> 0 | X79: =IF(X78="",0,VLOOKUP(X78,PSMListe!Pflanzenschutz,2,FALSE)) -> 0 | Y79: =IF(Y78="",0,VLOOKUP(Y78,PSMListe!Pflanzenschutz,2,FALSE)) -> 0 | Z79: =IF(Z78="",0,VLOOKUP(Z78,PSMListe!Pflanzenschutz,2,FALSE)) -> 0 | AA79: =IF(AA78="",0,VLOOKUP(AA78,PSMListe!Pflanzenschutz,2,FALSE)) -> 0 | AB79: =IF(AB78="",0,VLOOKUP(AB78,PSMListe!Pflanzenschutz,2,FALSE)) -> 0 | AC79: =IF(AC78="",0,VLOOKUP(AC78,PSMListe!Pflanzenschutz,2,FALSE)) -> 0 | AD79: =IF(AD78="",0,VLOOKUP(AD78,PSMListe!Pflanzenschutz,2,FALSE)) -> 0 | AE79: =IF(AE78="",0,VLOOKUP(AE78,PSMListe!Pflanzenschutz,2,FALSE)) -> 0 | AF79: =IF(AF78="",0,VLOOKUP(AF78,PSMListe!Pflanzenschutz,2,FALSE)) -> 0 | AG79: =IF(AG78="",0,VLOOKUP(AG78,PSMListe!Pflanzenschutz,2,FALSE)) -> 0 | AH79: =IF(AH78="",0,VLOOKUP(AH78,PSMListe!Pflanzenschutz,2,FALSE)) -> 0 | AI79: =IF(AI78="",0,VLOOKUP(AI78,PSMListe!Pflanzenschutz,2,FALSE)) -> 0 | AJ79: =IF(AJ78="",0,VLOOKUP(AJ78,PSMListe!Pflanzenschutz,2,FALSE)) -> 0 | AK79: =IF(AK78="",0,VLOOKUP(AK78,PSMListe!Pflanzenschutz,2,FALSE)) -> 0 | AL79: =IF(AL78="",0,VLOOKUP(AL78,PSMListe!Pflanzenschutz,2,FALSE)) -> 0 | AM79: =IF(AM78="",0,VLOOKUP(AM78,PSMListe!Pflanzenschutz,2,FALSE)) -> 0 | AN79: =IF(AN78="",0,VLOOKUP(AN78,PSMListe!Pflanzenschutz,2,FALSE)) -> 0 | AO79: =IF(AO78="",0,VLOOKUP(AO78,PSMListe!Pflanzenschutz,2,FALSE)) -> 0 | AP79: =IF(AP78="",0,VLOOKUP(AP78,PSMListe!Pflanzenschutz,2,FALSE)) -> 0 | AQ79: =IF(AQ78="",0,VLOOKUP(AQ78,PSMListe!Pflanzenschutz,2,FALSE)) -> 0 | AR79: =IF(AR78="",0,VLOOKUP(AR78,PSMListe!Pflanzenschutz,2,FALSE)) -> 0 | AS79: =IF(AS78="",0,VLOOKUP(AS78,PSMListe!Pflanzenschutz,2,FALSE)) -> 0 | AT79: =IF(AT78="",0,VLOOKUP(AT78,PSMListe!Pflanzenschutz,2,FALSE)) -> 0 | AU79: =IF(AU78="",0,VLOOKUP(AU78,PSMListe!Pflanzenschutz,2,FALSE)) -> 0 | AV79: =IF(AV78="",0,VLOOKUP(AV78,PSMListe!Pflanzenschutz,2,FALSE)) -> 0 | AW79: =IF(AW78="",0,VLOOKUP(AW78,PSMListe!Pflanzenschutz,2,FALSE)) -> 0 | AX79: =IF(AX78="",0,VLOOKUP(AX78,PSMListe!Pflanzenschutz,2,FALSE)) -> 0 | AY79: =IF(AY78="",0,VLOOKUP(AY78,PSMListe!Pflanzenschutz,2,FALSE)) -> 0 | AZ79: =IF(AZ78="",0,VLOOKUP(AZ78,PSMListe!Pflanzenschutz,2,FALSE)) -> 0 | BA79: =IF(BA78="",0,VLOOKUP(BA78,PSMListe!Pflanzenschutz,2,FALSE)) -> 0 | BB79: =IF(BB78="",0,VLOOKUP(BB78,PSMListe!Pflanzenschutz,2,FALSE)) -> 0 | BC79: =IF(BC78="",0,VLOOKUP(BC78,PSMListe!Pflanzenschutz,2,FALSE)) -> 0 | BD79: =IF(BD78="",0,VLOOKUP(BD78,PSMListe!Pflanzenschutz,2,FALSE)) -> 0 | BE79: =IF(BE78="",0,VLOOKUP(BE78,PSMListe!Pflanzenschutz,2,FALSE)) -> 0 | BF79: =IF(BF78="",0,VLOOKUP(BF78,PSMListe!Pflanzenschutz,2,FALSE)) -> 0 | BG79: =IF(BG78="",0,VLOOKUP(BG78,PSMListe!Pflanzenschutz,2,FALSE)) -> 0 | BH79: =IF(BH78="",0,VLOOKUP(BH78,PSMListe!Pflanzenschutz,2,FALSE)) -> 0 | BI79: =IF(BI78="",0,VLOOKUP(BI78,PSMListe!Pflanzenschutz,2,FALSE)) -> 0 | BJ79: =IF(BJ78="",0,VLOOKUP(BJ78,PSMListe!Pflanzenschutz,2,FALSE)) -> 0
B80: Menge
B81: Bemerkung
B82: Datum
B83: Mittel 16
B84: Preis | C84: =IF(C83="",0,VLOOKUP(C83,PSMListe!Pflanzenschutz,2,FALSE)) -> 0 | D84: =IF(D83="",0,VLOOKUP(D83,PSMListe!Pflanzenschutz,2,FALSE)) -> 0 | E84: =IF(E83="",0,VLOOKUP(E83,PSMListe!Pflanzenschutz,2,FALSE)) -> 0 | F84: =IF(F83="",0,VLOOKUP(F83,PSMListe!Pflanzenschutz,2,FALSE)) -> 0 | G84: =IF(G83="",0,VLOOKUP(G83,PSMListe!Pflanzenschutz,2,FALSE)) -> 0 | H84: =IF(H83="",0,VLOOKUP(H83,PSMListe!Pflanzenschutz,2,FALSE)) -> 0 | I84: =IF(I83="",0,VLOOKUP(I83,PSMListe!Pflanzenschutz,2,FALSE)) -> 0 | J84: =IF(J83="",0,VLOOKUP(J83,PSMListe!Pflanzenschutz,2,FALSE)) -> 0 | K84: =IF(K83="",0,VLOOKUP(K83,PSMListe!Pflanzenschutz,2,FALSE)) -> 0 | L84: =IF(L83="",0,VLOOKUP(L83,PSMListe!Pflanzenschutz,2,FALSE)) -> 0 | M84: =IF(M83="",0,VLOOKUP(M83,PSMListe!Pflanzenschutz,2,FALSE)) -> 0 | N84: =IF(N83="",0,VLOOKUP(N83,PSMListe!Pflanzenschutz,2,FALSE)) -> 0 | O84: =IF(O83="",0,VLOOKUP(O83,PSMListe!Pflanzenschutz,2,FALSE)) -> 0 | P84: =IF(P83="",0,VLOOKUP(P83,PSMListe!Pflanzenschutz,2,FALSE)) -> 0 | Q84: =IF(Q83="",0,VLOOKUP(Q83,PSMListe!Pflanzenschutz,2,FALSE)) -> 0 | R84: =IF(R83="",0,VLOOKUP(R83,PSMListe!Pflanzenschutz,2,FALSE)) -> 0 | S84: =IF(S83="",0,VLOOKUP(S83,PSMListe!Pflanzenschutz,2,FALSE)) -> 0 | T84: =IF(T83="",0,VLOOKUP(T83,PSMListe!Pflanzenschutz,2,FALSE)) -> 0 | U84: =IF(U83="",0,VLOOKUP(U83,PSMListe!Pflanzenschutz,2,FALSE)) -> 0 | V84: =IF(V83="",0,VLOOKUP(V83,PSMListe!Pflanzenschutz,2,FALSE)) -> 0 | W84: =IF(W83="",0,VLOOKUP(W83,PSMListe!Pflanzenschutz,2,FALSE)) -> 0 | X84: =IF(X83="",0,VLOOKUP(X83,PSMListe!Pflanzenschutz,2,FALSE)) -> 0 | Y84: =IF(Y83="",0,VLOOKUP(Y83,PSMListe!Pflanzenschutz,2,FALSE)) -> 0 | Z84: =IF(Z83="",0,VLOOKUP(Z83,PSMListe!Pflanzenschutz,2,FALSE)) -> 0 | AA84: =IF(AA83="",0,VLOOKUP(AA83,PSMListe!Pflanzenschutz,2,FALSE)) -> 0 | AB84: =IF(AB83="",0,VLOOKUP(AB83,PSMListe!Pflanzenschutz,2,FALSE)) -> 0 | AC84: =IF(AC83="",0,VLOOKUP(AC83,PSMListe!Pflanzenschutz,2,FALSE)) -> 0 | AD84: =IF(AD83="",0,VLOOKUP(AD83,PSMListe!Pflanzenschutz,2,FALSE)) -> 0 | AE84: =IF(AE83="",0,VLOOKUP(AE83,PSMListe!Pflanzenschutz,2,FALSE)) -> 0 | AF84: =IF(AF83="",0,VLOOKUP(AF83,PSMListe!Pflanzenschutz,2,FALSE)) -> 0 | AG84: =IF(AG83="",0,VLOOKUP(AG83,PSMListe!Pflanzenschutz,2,FALSE)) -> 0 | AH84: =IF(AH83="",0,VLOOKUP(AH83,PSMListe!Pflanzenschutz,2,FALSE)) -> 0 | AI84: =IF(AI83="",0,VLOOKUP(AI83,PSMListe!Pflanzenschutz,2,FALSE)) -> 0 | AJ84: =IF(AJ83="",0,VLOOKUP(AJ83,PSMListe!Pflanzenschutz,2,FALSE)) -> 0 | AK84: =IF(AK83="",0,VLOOKUP(AK83,PSMListe!Pflanzenschutz,2,FALSE)) -> 0 | AL84: =IF(AL83="",0,VLOOKUP(AL83,PSMListe!Pflanzenschutz,2,FALSE)) -> 0 | AM84: =IF(AM83="",0,VLOOKUP(AM83,PSMListe!Pflanzenschutz,2,FALSE)) -> 0 | AN84: =IF(AN83="",0,VLOOKUP(AN83,PSMListe!Pflanzenschutz,2,FALSE)) -> 0 | AO84: =IF(AO83="",0,VLOOKUP(AO83,PSMListe!Pflanzenschutz,2,FALSE)) -> 0 | AP84: =IF(AP83="",0,VLOOKUP(AP83,PSMListe!Pflanzenschutz,2,FALSE)) -> 0 | AQ84: =IF(AQ83="",0,VLOOKUP(AQ83,PSMListe!Pflanzenschutz,2,FALSE)) -> 0 | AR84: =IF(AR83="",0,VLOOKUP(AR83,PSMListe!Pflanzenschutz,2,FALSE)) -> 0 | AS84: =IF(AS83="",0,VLOOKUP(AS83,PSMListe!Pflanzenschutz,2,FALSE)) -> 0 | AT84: =IF(AT83="",0,VLOOKUP(AT83,PSMListe!Pflanzenschutz,2,FALSE)) -> 0 | AU84: =IF(AU83="",0,VLOOKUP(AU83,PSMListe!Pflanzenschutz,2,FALSE)) -> 0 | AV84: =IF(AV83="",0,VLOOKUP(AV83,PSMListe!Pflanzenschutz,2,FALSE)) -> 0 | AW84: =IF(AW83="",0,VLOOKUP(AW83,PSMListe!Pflanzenschutz,2,FALSE)) -> 0 | AX84: =IF(AX83="",0,VLOOKUP(AX83,PSMListe!Pflanzenschutz,2,FALSE)) -> 0 | AY84: =IF(AY83="",0,VLOOKUP(AY83,PSMListe!Pflanzenschutz,2,FALSE)) -> 0 | AZ84: =IF(AZ83="",0,VLOOKUP(AZ83,PSMListe!Pflanzenschutz,2,FALSE)) -> 0 | BA84: =IF(BA83="",0,VLOOKUP(BA83,PSMListe!Pflanzenschutz,2,FALSE)) -> 0 | BB84: =IF(BB83="",0,VLOOKUP(BB83,PSMListe!Pflanzenschutz,2,FALSE)) -> 0 | BC84: =IF(BC83="",0,VLOOKUP(BC83,PSMListe!Pflanzenschutz,2,FALSE)) -> 0 | BD84: =IF(BD83="",0,VLOOKUP(BD83,PSMListe!Pflanzenschutz,2,FALSE)) -> 0 | BE84: =IF(BE83="",0,VLOOKUP(BE83,PSMListe!Pflanzenschutz,2,FALSE)) -> 0 | BF84: =IF(BF83="",0,VLOOKUP(BF83,PSMListe!Pflanzenschutz,2,FALSE)) -> 0 | BG84: =IF(BG83="",0,VLOOKUP(BG83,PSMListe!Pflanzenschutz,2,FALSE)) -> 0 | BH84: =IF(BH83="",0,VLOOKUP(BH83,PSMListe!Pflanzenschutz,2,FALSE)) -> 0 | BI84: =IF(BI83="",0,VLOOKUP(BI83,PSMListe!Pflanzenschutz,2,FALSE)) -> 0 | BJ84: =IF(BJ83="",0,VLOOKUP(BJ83,PSMListe!Pflanzenschutz,2,FALSE)) -> 0
B85: Menge
B86: Bemerkung
B87: Datum
B88: Mittel 17
B89: Preis | C89: =IF(C88="",0,VLOOKUP(C88,PSMListe!Pflanzenschutz,2,FALSE)) -> 0 | D89: =IF(D88="",0,VLOOKUP(D88,PSMListe!Pflanzenschutz,2,FALSE)) -> 0 | E89: =IF(E88="",0,VLOOKUP(E88,PSMListe!Pflanzenschutz,2,FALSE)) -> 0 | F89: =IF(F88="",0,VLOOKUP(F88,PSMListe!Pflanzenschutz,2,FALSE)) -> 0 | G89: =IF(G88="",0,VLOOKUP(G88,PSMListe!Pflanzenschutz,2,FALSE)) -> 0 | H89: =IF(H88="",0,VLOOKUP(H88,PSMListe!Pflanzenschutz,2,FALSE)) -> 0 | I89: =IF(I88="",0,VLOOKUP(I88,PSMListe!Pflanzenschutz,2,FALSE)) -> 0 | J89: =IF(J88="",0,VLOOKUP(J88,PSMListe!Pflanzenschutz,2,FALSE)) -> 0 | K89: =IF(K88="",0,VLOOKUP(K88,PSMListe!Pflanzenschutz,2,FALSE)) -> 0 | L89: =IF(L88="",0,VLOOKUP(L88,PSMListe!Pflanzenschutz,2,FALSE)) -> 0 | M89: =IF(M88="",0,VLOOKUP(M88,PSMListe!Pflanzenschutz,2,FALSE)) -> 0 | N89: =IF(N88="",0,VLOOKUP(N88,PSMListe!Pflanzenschutz,2,FALSE)) -> 0 | O89: =IF(O88="",0,VLOOKUP(O88,PSMListe!Pflanzenschutz,2,FALSE)) -> 0 | P89: =IF(P88="",0,VLOOKUP(P88,PSMListe!Pflanzenschutz,2,FALSE)) -> 0 | Q89: =IF(Q88="",0,VLOOKUP(Q88,PSMListe!Pflanzenschutz,2,FALSE)) -> 0 | R89: =IF(R88="",0,VLOOKUP(R88,PSMListe!Pflanzenschutz,2,FALSE)) -> 0 | S89: =IF(S88="",0,VLOOKUP(S88,PSMListe!Pflanzenschutz,2,FALSE)) -> 0 | T89: =IF(T88="",0,VLOOKUP(T88,PSMListe!Pflanzenschutz,2,FALSE)) -> 0 | U89: =IF(U88="",0,VLOOKUP(U88,PSMListe!Pflanzenschutz,2,FALSE)) -> 0 | V89: =IF(V88="",0,VLOOKUP(V88,PSMListe!Pflanzenschutz,2,FALSE)) -> 0 | W89: =IF(W88="",0,VLOOKUP(W88,PSMListe!Pflanzenschutz,2,FALSE)) -> 0 | X89: =IF(X88="",0,VLOOKUP(X88,PSMListe!Pflanzenschutz,2,FALSE)) -> 0 | Y89: =IF(Y88="",0,VLOOKUP(Y88,PSMListe!Pflanzenschutz,2,FALSE)) -> 0 | Z89: =IF(Z88="",0,VLOOKUP(Z88,PSMListe!Pflanzenschutz,2,FALSE)) -> 0 | AA89: =IF(AA88="",0,VLOOKUP(AA88,PSMListe!Pflanzenschutz,2,FALSE)) -> 0 | AB89: =IF(AB88="",0,VLOOKUP(AB88,PSMListe!Pflanzenschutz,2,FALSE)) -> 0 | AC89: =IF(AC88="",0,VLOOKUP(AC88,PSMListe!Pflanzenschutz,2,FALSE)) -> 0 | AD89: =IF(AD88="",0,VLOOKUP(AD88,PSMListe!Pflanzenschutz,2,FALSE)) -> 0 | AE89: =IF(AE88="",0,VLOOKUP(AE88,PSMListe!Pflanzenschutz,2,FALSE)) -> 0 | AF89: =IF(AF88="",0,VLOOKUP(AF88,PSMListe!Pflanzenschutz,2,FALSE)) -> 0 | AG89: =IF(AG88="",0,VLOOKUP(AG88,PSMListe!Pflanzenschutz,2,FALSE)) -> 0 | AH89: =IF(AH88="",0,VLOOKUP(AH88,PSMListe!Pflanzenschutz,2,FALSE)) -> 0 | AI89: =IF(AI88="",0,VLOOKUP(AI88,PSMListe!Pflanzenschutz,2,FALSE)) -> 0 | AJ89: =IF(AJ88="",0,VLOOKUP(AJ88,PSMListe!Pflanzenschutz,2,FALSE)) -> 0 | AK89: =IF(AK88="",0,VLOOKUP(AK88,PSMListe!Pflanzenschutz,2,FALSE)) -> 0 | AL89: =IF(AL88="",0,VLOOKUP(AL88,PSMListe!Pflanzenschutz,2,FALSE)) -> 0 | AM89: =IF(AM88="",0,VLOOKUP(AM88,PSMListe!Pflanzenschutz,2,FALSE)) -> 0 | AN89: =IF(AN88="",0,VLOOKUP(AN88,PSMListe!Pflanzenschutz,2,FALSE)) -> 0 | AO89: =IF(AO88="",0,VLOOKUP(AO88,PSMListe!Pflanzenschutz,2,FALSE)) -> 0 | AP89: =IF(AP88="",0,VLOOKUP(AP88,PSMListe!Pflanzenschutz,2,FALSE)) -> 0 | AQ89: =IF(AQ88="",0,VLOOKUP(AQ88,PSMListe!Pflanzenschutz,2,FALSE)) -> 0 | AR89: =IF(AR88="",0,VLOOKUP(AR88,PSMListe!Pflanzenschutz,2,FALSE)) -> 0 | AS89: =IF(AS88="",0,VLOOKUP(AS88,PSMListe!Pflanzenschutz,2,FALSE)) -> 0 | AT89: =IF(AT88="",0,VLOOKUP(AT88,PSMListe!Pflanzenschutz,2,FALSE)) -> 0 | AU89: =IF(AU88="",0,VLOOKUP(AU88,PSMListe!Pflanzenschutz,2,FALSE)) -> 0 | AV89: =IF(AV88="",0,VLOOKUP(AV88,PSMListe!Pflanzenschutz,2,FALSE)) -> 0 | AW89: =IF(AW88="",0,VLOOKUP(AW88,PSMListe!Pflanzenschutz,2,FALSE)) -> 0 | AX89: =IF(AX88="",0,VLOOKUP(AX88,PSMListe!Pflanzenschutz,2,FALSE)) -> 0 | AY89: =IF(AY88="",0,VLOOKUP(AY88,PSMListe!Pflanzenschutz,2,FALSE)) -> 0 | AZ89: =IF(AZ88="",0,VLOOKUP(AZ88,PSMListe!Pflanzenschutz,2,FALSE)) -> 0 | BA89: =IF(BA88="",0,VLOOKUP(BA88,PSMListe!Pflanzenschutz,2,FALSE)) -> 0 | BB89: =IF(BB88="",0,VLOOKUP(BB88,PSMListe!Pflanzenschutz,2,FALSE)) -> 0 | BC89: =IF(BC88="",0,VLOOKUP(BC88,PSMListe!Pflanzenschutz,2,FALSE)) -> 0 | BD89: =IF(BD88="",0,VLOOKUP(BD88,PSMListe!Pflanzenschutz,2,FALSE)) -> 0 | BE89: =IF(BE88="",0,VLOOKUP(BE88,PSMListe!Pflanzenschutz,2,FALSE)) -> 0 | BF89: =IF(BF88="",0,VLOOKUP(BF88,PSMListe!Pflanzenschutz,2,FALSE)) -> 0 | BG89: =IF(BG88="",0,VLOOKUP(BG88,PSMListe!Pflanzenschutz,2,FALSE)) -> 0 | BH89: =IF(BH88="",0,VLOOKUP(BH88,PSMListe!Pflanzenschutz,2,FALSE)) -> 0 | BI89: =IF(BI88="",0,VLOOKUP(BI88,PSMListe!Pflanzenschutz,2,FALSE)) -> 0 | BJ89: =IF(BJ88="",0,VLOOKUP(BJ88,PSMListe!Pflanzenschutz,2,FALSE)) -> 0
B90: Menge
B91: Bemerkung
B92: Datum
B93: Mittel 18
B94: Preis | C94: =IF(C93="",0,VLOOKUP(C93,PSMListe!Pflanzenschutz,2,FALSE)) -> 0 | D94: =IF(D93="",0,VLOOKUP(D93,PSMListe!Pflanzenschutz,2,FALSE)) -> 0 | E94: =IF(E93="",0,VLOOKUP(E93,PSMListe!Pflanzenschutz,2,FALSE)) -> 0 | F94: =IF(F93="",0,VLOOKUP(F93,PSMListe!Pflanzenschutz,2,FALSE)) -> 0 | G94: =IF(G93="",0,VLOOKUP(G93,PSMListe!Pflanzenschutz,2,FALSE)) -> 0 | H94: =IF(H93="",0,VLOOKUP(H93,PSMListe!Pflanzenschutz,2,FALSE)) -> 0 | I94: =IF(I93="",0,VLOOKUP(I93,PSMListe!Pflanzenschutz,2,FALSE)) -> 0 | J94: =IF(J93="",0,VLOOKUP(J93,PSMListe!Pflanzenschutz,2,FALSE)) -> 0 | K94: =IF(K93="",0,VLOOKUP(K93,PSMListe!Pflanzenschutz,2,FALSE)) -> 0 | L94: =IF(L93="",0,VLOOKUP(L93,PSMListe!Pflanzenschutz,2,FALSE)) -> 0 | M94: =IF(M93="",0,VLOOKUP(M93,PSMListe!Pflanzenschutz,2,FALSE)) -> 0 | N94: =IF(N93="",0,VLOOKUP(N93,PSMListe!Pflanzenschutz,2,FALSE)) -> 0 | O94: =IF(O93="",0,VLOOKUP(O93,PSMListe!Pflanzenschutz,2,FALSE)) -> 0 | P94: =IF(P93="",0,VLOOKUP(P93,PSMListe!Pflanzenschutz,2,FALSE)) -> 0 | Q94: =IF(Q93="",0,VLOOKUP(Q93,PSMListe!Pflanzenschutz,2,FALSE)) -> 0 | R94: =IF(R93="",0,VLOOKUP(R93,PSMListe!Pflanzenschutz,2,FALSE)) -> 0 | S94: =IF(S93="",0,VLOOKUP(S93,PSMListe!Pflanzenschutz,2,FALSE)) -> 0 | T94: =IF(T93="",0,VLOOKUP(T93,PSMListe!Pflanzenschutz,2,FALSE)) -> 0 | U94: =IF(U93="",0,VLOOKUP(U93,PSMListe!Pflanzenschutz,2,FALSE)) -> 0 | V94: =IF(V93="",0,VLOOKUP(V93,PSMListe!Pflanzenschutz,2,FALSE)) -> 0 | W94: =IF(W93="",0,VLOOKUP(W93,PSMListe!Pflanzenschutz,2,FALSE)) -> 0 | X94: =IF(X93="",0,VLOOKUP(X93,PSMListe!Pflanzenschutz,2,FALSE)) -> 0 | Y94: =IF(Y93="",0,VLOOKUP(Y93,PSMListe!Pflanzenschutz,2,FALSE)) -> 0 | Z94: =IF(Z93="",0,VLOOKUP(Z93,PSMListe!Pflanzenschutz,2,FALSE)) -> 0 | AA94: =IF(AA93="",0,VLOOKUP(AA93,PSMListe!Pflanzenschutz,2,FALSE)) -> 0 | AB94: =IF(AB93="",0,VLOOKUP(AB93,PSMListe!Pflanzenschutz,2,FALSE)) -> 0 | AC94: =IF(AC93="",0,VLOOKUP(AC93,PSMListe!Pflanzenschutz,2,FALSE)) -> 0 | AD94: =IF(AD93="",0,VLOOKUP(AD93,PSMListe!Pflanzenschutz,2,FALSE)) -> 0 | AE94: =IF(AE93="",0,VLOOKUP(AE93,PSMListe!Pflanzenschutz,2,FALSE)) -> 0 | AF94: =IF(AF93="",0,VLOOKUP(AF93,PSMListe!Pflanzenschutz,2,FALSE)) -> 0 | AG94: =IF(AG93="",0,VLOOKUP(AG93,PSMListe!Pflanzenschutz,2,FALSE)) -> 0 | AH94: =IF(AH93="",0,VLOOKUP(AH93,PSMListe!Pflanzenschutz,2,FALSE)) -> 0 | AI94: =IF(AI93="",0,VLOOKUP(AI93,PSMListe!Pflanzenschutz,2,FALSE)) -> 0 | AJ94: =IF(AJ93="",0,VLOOKUP(AJ93,PSMListe!Pflanzenschutz,2,FALSE)) -> 0 | AK94: =IF(AK93="",0,VLOOKUP(AK93,PSMListe!Pflanzenschutz,2,FALSE)) -> 0 | AL94: =IF(AL93="",0,VLOOKUP(AL93,PSMListe!Pflanzenschutz,2,FALSE)) -> 0 | AM94: =IF(AM93="",0,VLOOKUP(AM93,PSMListe!Pflanzenschutz,2,FALSE)) -> 0 | AN94: =IF(AN93="",0,VLOOKUP(AN93,PSMListe!Pflanzenschutz,2,FALSE)) -> 0 | AO94: =IF(AO93="",0,VLOOKUP(AO93,PSMListe!Pflanzenschutz,2,FALSE)) -> 0 | AP94: =IF(AP93="",0,VLOOKUP(AP93,PSMListe!Pflanzenschutz,2,FALSE)) -> 0 | AQ94: =IF(AQ93="",0,VLOOKUP(AQ93,PSMListe!Pflanzenschutz,2,FALSE)) -> 0 | AR94: =IF(AR93="",0,VLOOKUP(AR93,PSMListe!Pflanzenschutz,2,FALSE)) -> 0 | AS94: =IF(AS93="",0,VLOOKUP(AS93,PSMListe!Pflanzenschutz,2,FALSE)) -> 0 | AT94: =IF(AT93="",0,VLOOKUP(AT93,PSMListe!Pflanzenschutz,2,FALSE)) -> 0 | AU94: =IF(AU93="",0,VLOOKUP(AU93,PSMListe!Pflanzenschutz,2,FALSE)) -> 0 | AV94: =IF(AV93="",0,VLOOKUP(AV93,PSMListe!Pflanzenschutz,2,FALSE)) -> 0 | AW94: =IF(AW93="",0,VLOOKUP(AW93,PSMListe!Pflanzenschutz,2,FALSE)) -> 0 | AX94: =IF(AX93="",0,VLOOKUP(AX93,PSMListe!Pflanzenschutz,2,FALSE)) -> 0 | AY94: =IF(AY93="",0,VLOOKUP(AY93,PSMListe!Pflanzenschutz,2,FALSE)) -> 0 | AZ94: =IF(AZ93="",0,VLOOKUP(AZ93,PSMListe!Pflanzenschutz,2,FALSE)) -> 0 | BA94: =IF(BA93="",0,VLOOKUP(BA93,PSMListe!Pflanzenschutz,2,FALSE)) -> 0 | BB94: =IF(BB93="",0,VLOOKUP(BB93,PSMListe!Pflanzenschutz,2,FALSE)) -> 0 | BC94: =IF(BC93="",0,VLOOKUP(BC93,PSMListe!Pflanzenschutz,2,FALSE)) -> 0 | BD94: =IF(BD93="",0,VLOOKUP(BD93,PSMListe!Pflanzenschutz,2,FALSE)) -> 0 | BE94: =IF(BE93="",0,VLOOKUP(BE93,PSMListe!Pflanzenschutz,2,FALSE)) -> 0 | BF94: =IF(BF93="",0,VLOOKUP(BF93,PSMListe!Pflanzenschutz,2,FALSE)) -> 0 | BG94: =IF(BG93="",0,VLOOKUP(BG93,PSMListe!Pflanzenschutz,2,FALSE)) -> 0 | BH94: =IF(BH93="",0,VLOOKUP(BH93,PSMListe!Pflanzenschutz,2,FALSE)) -> 0 | BI94: =IF(BI93="",0,VLOOKUP(BI93,PSMListe!Pflanzenschutz,2,FALSE)) -> 0 | BJ94: =IF(BJ93="",0,VLOOKUP(BJ93,PSMListe!Pflanzenschutz,2,FALSE)) -> 0
B95: Menge
B96: Bemerkung
B97: Datum
B98: Mittel 19
B99: Preis | C99: =IF(C98="",0,VLOOKUP(C98,PSMListe!Pflanzenschutz,2,FALSE)) -> 0 | D99: =IF(D98="",0,VLOOKUP(D98,PSMListe!Pflanzenschutz,2,FALSE)) -> 0 | E99: =IF(E98="",0,VLOOKUP(E98,PSMListe!Pflanzenschutz,2,FALSE)) -> 0 | F99: =IF(F98="",0,VLOOKUP(F98,PSMListe!Pflanzenschutz,2,FALSE)) -> 0 | G99: =IF(G98="",0,VLOOKUP(G98,PSMListe!Pflanzenschutz,2,FALSE)) -> 0 | H99: =IF(H98="",0,VLOOKUP(H98,PSMListe!Pflanzenschutz,2,FALSE)) -> 0 | I99: =IF(I98="",0,VLOOKUP(I98,PSMListe!Pflanzenschutz,2,FALSE)) -> 0 | J99: =IF(J98="",0,VLOOKUP(J98,PSMListe!Pflanzenschutz,2,FALSE)) -> 0 | K99: =IF(K98="",0,VLOOKUP(K98,PSMListe!Pflanzenschutz,2,FALSE)) -> 0 | L99: =IF(L98="",0,VLOOKUP(L98,PSMListe!Pflanzenschutz,2,FALSE)) -> 0 | M99: =IF(M98="",0,VLOOKUP(M98,PSMListe!Pflanzenschutz,2,FALSE)) -> 0 | N99: =IF(N98="",0,VLOOKUP(N98,PSMListe!Pflanzenschutz,2,FALSE)) -> 0 | O99: =IF(O98="",0,VLOOKUP(O98,PSMListe!Pflanzenschutz,2,FALSE)) -> 0 | P99: =IF(P98="",0,VLOOKUP(P98,PSMListe!Pflanzenschutz,2,FALSE)) -> 0 | Q99: =IF(Q98="",0,VLOOKUP(Q98,PSMListe!Pflanzenschutz,2,FALSE)) -> 0 | R99: =IF(R98="",0,VLOOKUP(R98,PSMListe!Pflanzenschutz,2,FALSE)) -> 0 | S99: =IF(S98="",0,VLOOKUP(S98,PSMListe!Pflanzenschutz,2,FALSE)) -> 0 | T99: =IF(T98="",0,VLOOKUP(T98,PSMListe!Pflanzenschutz,2,FALSE)) -> 0 | U99: =IF(U98="",0,VLOOKUP(U98,PSMListe!Pflanzenschutz,2,FALSE)) -> 0 | V99: =IF(V98="",0,VLOOKUP(V98,PSMListe!Pflanzenschutz,2,FALSE)) -> 0 | W99: =IF(W98="",0,VLOOKUP(W98,PSMListe!Pflanzenschutz,2,FALSE)) -> 0 | X99: =IF(X98="",0,VLOOKUP(X98,PSMListe!Pflanzenschutz,2,FALSE)) -> 0 | Y99: =IF(Y98="",0,VLOOKUP(Y98,PSMListe!Pflanzenschutz,2,FALSE)) -> 0 | Z99: =IF(Z98="",0,VLOOKUP(Z98,PSMListe!Pflanzenschutz,2,FALSE)) -> 0 | AA99: =IF(AA98="",0,VLOOKUP(AA98,PSMListe!Pflanzenschutz,2,FALSE)) -> 0 | AB99: =IF(AB98="",0,VLOOKUP(AB98,PSMListe!Pflanzenschutz,2,FALSE)) -> 0 | AC99: =IF(AC98="",0,VLOOKUP(AC98,PSMListe!Pflanzenschutz,2,FALSE)) -> 0 | AD99: =IF(AD98="",0,VLOOKUP(AD98,PSMListe!Pflanzenschutz,2,FALSE)) -> 0 | AE99: =IF(AE98="",0,VLOOKUP(AE98,PSMListe!Pflanzenschutz,2,FALSE)) -> 0 | AF99: =IF(AF98="",0,VLOOKUP(AF98,PSMListe!Pflanzenschutz,2,FALSE)) -> 0 | AG99: =IF(AG98="",0,VLOOKUP(AG98,PSMListe!Pflanzenschutz,2,FALSE)) -> 0 | AH99: =IF(AH98="",0,VLOOKUP(AH98,PSMListe!Pflanzenschutz,2,FALSE)) -> 0 | AI99: =IF(AI98="",0,VLOOKUP(AI98,PSMListe!Pflanzenschutz,2,FALSE)) -> 0 | AJ99: =IF(AJ98="",0,VLOOKUP(AJ98,PSMListe!Pflanzenschutz,2,FALSE)) -> 0 | AK99: =IF(AK98="",0,VLOOKUP(AK98,PSMListe!Pflanzenschutz,2,FALSE)) -> 0 | AL99: =IF(AL98="",0,VLOOKUP(AL98,PSMListe!Pflanzenschutz,2,FALSE)) -> 0 | AM99: =IF(AM98="",0,VLOOKUP(AM98,PSMListe!Pflanzenschutz,2,FALSE)) -> 0 | AN99: =IF(AN98="",0,VLOOKUP(AN98,PSMListe!Pflanzenschutz,2,FALSE)) -> 0 | AO99: =IF(AO98="",0,VLOOKUP(AO98,PSMListe!Pflanzenschutz,2,FALSE)) -> 0 | AP99: =IF(AP98="",0,VLOOKUP(AP98,PSMListe!Pflanzenschutz,2,FALSE)) -> 0 | AQ99: =IF(AQ98="",0,VLOOKUP(AQ98,PSMListe!Pflanzenschutz,2,FALSE)) -> 0 | AR99: =IF(AR98="",0,VLOOKUP(AR98,PSMListe!Pflanzenschutz,2,FALSE)) -> 0 | AS99: =IF(AS98="",0,VLOOKUP(AS98,PSMListe!Pflanzenschutz,2,FALSE)) -> 0 | AT99: =IF(AT98="",0,VLOOKUP(AT98,PSMListe!Pflanzenschutz,2,FALSE)) -> 0 | AU99: =IF(AU98="",0,VLOOKUP(AU98,PSMListe!Pflanzenschutz,2,FALSE)) -> 0 | AV99: =IF(AV98="",0,VLOOKUP(AV98,PSMListe!Pflanzenschutz,2,FALSE)) -> 0 | AW99: =IF(AW98="",0,VLOOKUP(AW98,PSMListe!Pflanzenschutz,2,FALSE)) -> 0 | AX99: =IF(AX98="",0,VLOOKUP(AX98,PSMListe!Pflanzenschutz,2,FALSE)) -> 0 | AY99: =IF(AY98="",0,VLOOKUP(AY98,PSMListe!Pflanzenschutz,2,FALSE)) -> 0 | AZ99: =IF(AZ98="",0,VLOOKUP(AZ98,PSMListe!Pflanzenschutz,2,FALSE)) -> 0 | BA99: =IF(BA98="",0,VLOOKUP(BA98,PSMListe!Pflanzenschutz,2,FALSE)) -> 0 | BB99: =IF(BB98="",0,VLOOKUP(BB98,PSMListe!Pflanzenschutz,2,FALSE)) -> 0 | BC99: =IF(BC98="",0,VLOOKUP(BC98,PSMListe!Pflanzenschutz,2,FALSE)) -> 0 | BD99: =IF(BD98="",0,VLOOKUP(BD98,PSMListe!Pflanzenschutz,2,FALSE)) -> 0 | BE99: =IF(BE98="",0,VLOOKUP(BE98,PSMListe!Pflanzenschutz,2,FALSE)) -> 0 | BF99: =IF(BF98="",0,VLOOKUP(BF98,PSMListe!Pflanzenschutz,2,FALSE)) -> 0 | BG99: =IF(BG98="",0,VLOOKUP(BG98,PSMListe!Pflanzenschutz,2,FALSE)) -> 0 | BH99: =IF(BH98="",0,VLOOKUP(BH98,PSMListe!Pflanzenschutz,2,FALSE)) -> 0 | BI99: =IF(BI98="",0,VLOOKUP(BI98,PSMListe!Pflanzenschutz,2,FALSE)) -> 0 | BJ99: =IF(BJ98="",0,VLOOKUP(BJ98,PSMListe!Pflanzenschutz,2,FALSE)) -> 0
B100: Menge
B101: Bemerkung
B102: Datum
B103: Mittel 20
B104: Preis | C104: =IF(C103="",0,VLOOKUP(C103,PSMListe!Pflanzenschutz,2,FALSE)) -> 0 | D104: =IF(D103="",0,VLOOKUP(D103,PSMListe!Pflanzenschutz,2,FALSE)) -> 0 | E104: =IF(E103="",0,VLOOKUP(E103,PSMListe!Pflanzenschutz,2,FALSE)) -> 0 | F104: =IF(F103="",0,VLOOKUP(F103,PSMListe!Pflanzenschutz,2,FALSE)) -> 0 | G104: =IF(G103="",0,VLOOKUP(G103,PSMListe!Pflanzenschutz,2,FALSE)) -> 0 | H104: =IF(H103="",0,VLOOKUP(H103,PSMListe!Pflanzenschutz,2,FALSE)) -> 0 | I104: =IF(I103="",0,VLOOKUP(I103,PSMListe!Pflanzenschutz,2,FALSE)) -> 0 | J104: =IF(J103="",0,VLOOKUP(J103,PSMListe!Pflanzenschutz,2,FALSE)) -> 0 | K104: =IF(K103="",0,VLOOKUP(K103,PSMListe!Pflanzenschutz,2,FALSE)) -> 0 | L104: =IF(L103="",0,VLOOKUP(L103,PSMListe!Pflanzenschutz,2,FALSE)) -> 0 | M104: =IF(M103="",0,VLOOKUP(M103,PSMListe!Pflanzenschutz,2,FALSE)) -> 0 | N104: =IF(N103="",0,VLOOKUP(N103,PSMListe!Pflanzenschutz,2,FALSE)) -> 0 | O104: =IF(O103="",0,VLOOKUP(O103,PSMListe!Pflanzenschutz,2,FALSE)) -> 0 | P104: =IF(P103="",0,VLOOKUP(P103,PSMListe!Pflanzenschutz,2,FALSE)) -> 0 | Q104: =IF(Q103="",0,VLOOKUP(Q103,PSMListe!Pflanzenschutz,2,FALSE)) -> 0 | R104: =IF(R103="",0,VLOOKUP(R103,PSMListe!Pflanzenschutz,2,FALSE)) -> 0 | S104: =IF(S103="",0,VLOOKUP(S103,PSMListe!Pflanzenschutz,2,FALSE)) -> 0 | T104: =IF(T103="",0,VLOOKUP(T103,PSMListe!Pflanzenschutz,2,FALSE)) -> 0 | U104: =IF(U103="",0,VLOOKUP(U103,PSMListe!Pflanzenschutz,2,FALSE)) -> 0 | V104: =IF(V103="",0,VLOOKUP(V103,PSMListe!Pflanzenschutz,2,FALSE)) -> 0 | W104: =IF(W103="",0,VLOOKUP(W103,PSMListe!Pflanzenschutz,2,FALSE)) -> 0 | X104: =IF(X103="",0,VLOOKUP(X103,PSMListe!Pflanzenschutz,2,FALSE)) -> 0 | Y104: =IF(Y103="",0,VLOOKUP(Y103,PSMListe!Pflanzenschutz,2,FALSE)) -> 0 | Z104: =IF(Z103="",0,VLOOKUP(Z103,PSMListe!Pflanzenschutz,2,FALSE)) -> 0 | AA104: =IF(AA103="",0,VLOOKUP(AA103,PSMListe!Pflanzenschutz,2,FALSE)) -> 0 | AB104: =IF(AB103="",0,VLOOKUP(AB103,PSMListe!Pflanzenschutz,2,FALSE)) -> 0 | AC104: =IF(AC103="",0,VLOOKUP(AC103,PSMListe!Pflanzenschutz,2,FALSE)) -> 0 | AD104: =IF(AD103="",0,VLOOKUP(AD103,PSMListe!Pflanzenschutz,2,FALSE)) -> 0 | AE104: =IF(AE103="",0,VLOOKUP(AE103,PSMListe!Pflanzenschutz,2,FALSE)) -> 0 | AF104: =IF(AF103="",0,VLOOKUP(AF103,PSMListe!Pflanzenschutz,2,FALSE)) -> 0 | AG104: =IF(AG103="",0,VLOOKUP(AG103,PSMListe!Pflanzenschutz,2,FALSE)) -> 0 | AH104: =IF(AH103="",0,VLOOKUP(AH103,PSMListe!Pflanzenschutz,2,FALSE)) -> 0 | AI104: =IF(AI103="",0,VLOOKUP(AI103,PSMListe!Pflanzenschutz,2,FALSE)) -> 0 | AJ104: =IF(AJ103="",0,VLOOKUP(AJ103,PSMListe!Pflanzenschutz,2,FALSE)) -> 0 | AK104: =IF(AK103="",0,VLOOKUP(AK103,PSMListe!Pflanzenschutz,2,FALSE)) -> 0 | AL104: =IF(AL103="",0,VLOOKUP(AL103,PSMListe!Pflanzenschutz,2,FALSE)) -> 0 | AM104: =IF(AM103="",0,VLOOKUP(AM103,PSMListe!Pflanzenschutz,2,FALSE)) -> 0 | AN104: =IF(AN103="",0,VLOOKUP(AN103,PSMListe!Pflanzenschutz,2,FALSE)) -> 0 | AO104: =IF(AO103="",0,VLOOKUP(AO103,PSMListe!Pflanzenschutz,2,FALSE)) -> 0 | AP104: =IF(AP103="",0,VLOOKUP(AP103,PSMListe!Pflanzenschutz,2,FALSE)) -> 0 | AQ104: =IF(AQ103="",0,VLOOKUP(AQ103,PSMListe!Pflanzenschutz,2,FALSE)) -> 0 | AR104: =IF(AR103="",0,VLOOKUP(AR103,PSMListe!Pflanzenschutz,2,FALSE)) -> 0 | AS104: =IF(AS103="",0,VLOOKUP(AS103,PSMListe!Pflanzenschutz,2,FALSE)) -> 0 | AT104: =IF(AT103="",0,VLOOKUP(AT103,PSMListe!Pflanzenschutz,2,FALSE)) -> 0 | AU104: =IF(AU103="",0,VLOOKUP(AU103,PSMListe!Pflanzenschutz,2,FALSE)) -> 0 | AV104: =IF(AV103="",0,VLOOKUP(AV103,PSMListe!Pflanzenschutz,2,FALSE)) -> 0 | AW104: =IF(AW103="",0,VLOOKUP(AW103,PSMListe!Pflanzenschutz,2,FALSE)) -> 0 | AX104: =IF(AX103="",0,VLOOKUP(AX103,PSMListe!Pflanzenschutz,2,FALSE)) -> 0 | AY104: =IF(AY103="",0,VLOOKUP(AY103,PSMListe!Pflanzenschutz,2,FALSE)) -> 0 | AZ104: =IF(AZ103="",0,VLOOKUP(AZ103,PSMListe!Pflanzenschutz,2,FALSE)) -> 0 | BA104: =IF(BA103="",0,VLOOKUP(BA103,PSMListe!Pflanzenschutz,2,FALSE)) -> 0 | BB104: =IF(BB103="",0,VLOOKUP(BB103,PSMListe!Pflanzenschutz,2,FALSE)) -> 0 | BC104: =IF(BC103="",0,VLOOKUP(BC103,PSMListe!Pflanzenschutz,2,FALSE)) -> 0 | BD104: =IF(BD103="",0,VLOOKUP(BD103,PSMListe!Pflanzenschutz,2,FALSE)) -> 0 | BE104: =IF(BE103="",0,VLOOKUP(BE103,PSMListe!Pflanzenschutz,2,FALSE)) -> 0 | BF104: =IF(BF103="",0,VLOOKUP(BF103,PSMListe!Pflanzenschutz,2,FALSE)) -> 0 | BG104: =IF(BG103="",0,VLOOKUP(BG103,PSMListe!Pflanzenschutz,2,FALSE)) -> 0 | BH104: =IF(BH103="",0,VLOOKUP(BH103,PSMListe!Pflanzenschutz,2,FALSE)) -> 0 | BI104: =IF(BI103="",0,VLOOKUP(BI103,PSMListe!Pflanzenschutz,2,FALSE)) -> 0 | BJ104: =IF(BJ103="",0,VLOOKUP(BJ103,PSMListe!Pflanzenschutz,2,FALSE)) -> 0
B105: Menge
B106: Bemerkung
B107: Datum
B108: Mittel 21
B109: Preis | C109: =IF(C108="",0,VLOOKUP(C108,PSMListe!Pflanzenschutz,2,FALSE)) -> 0 | D109: =IF(D108="",0,VLOOKUP(D108,PSMListe!Pflanzenschutz,2,FALSE)) -> 0 | E109: =IF(E108="",0,VLOOKUP(E108,PSMListe!Pflanzenschutz,2,FALSE)) -> 0 | F109: =IF(F108="",0,VLOOKUP(F108,PSMListe!Pflanzenschutz,2,FALSE)) -> 0 | G109: =IF(G108="",0,VLOOKUP(G108,PSMListe!Pflanzenschutz,2,FALSE)) -> 0 | H109: =IF(H108="",0,VLOOKUP(H108,PSMListe!Pflanzenschutz,2,FALSE)) -> 0 | I109: =IF(I108="",0,VLOOKUP(I108,PSMListe!Pflanzenschutz,2,FALSE)) -> 0 | J109: =IF(J108="",0,VLOOKUP(J108,PSMListe!Pflanzenschutz,2,FALSE)) -> 0 | K109: =IF(K108="",0,VLOOKUP(K108,PSMListe!Pflanzenschutz,2,FALSE)) -> 0 | L109: =IF(L108="",0,VLOOKUP(L108,PSMListe!Pflanzenschutz,2,FALSE)) -> 0 | M109: =IF(M108="",0,VLOOKUP(M108,PSMListe!Pflanzenschutz,2,FALSE)) -> 0 | N109: =IF(N108="",0,VLOOKUP(N108,PSMListe!Pflanzenschutz,2,FALSE)) -> 0 | O109: =IF(O108="",0,VLOOKUP(O108,PSMListe!Pflanzenschutz,2,FALSE)) -> 0 | P109: =IF(P108="",0,VLOOKUP(P108,PSMListe!Pflanzenschutz,2,FALSE)) -> 0 | Q109: =IF(Q108="",0,VLOOKUP(Q108,PSMListe!Pflanzenschutz,2,FALSE)) -> 0 | R109: =IF(R108="",0,VLOOKUP(R108,PSMListe!Pflanzenschutz,2,FALSE)) -> 0 | S109: =IF(S108="",0,VLOOKUP(S108,PSMListe!Pflanzenschutz,2,FALSE)) -> 0 | T109: =IF(T108="",0,VLOOKUP(T108,PSMListe!Pflanzenschutz,2,FALSE)) -> 0 | U109: =IF(U108="",0,VLOOKUP(U108,PSMListe!Pflanzenschutz,2,FALSE)) -> 0 | V109: =IF(V108="",0,VLOOKUP(V108,PSMListe!Pflanzenschutz,2,FALSE)) -> 0 | W109: =IF(W108="",0,VLOOKUP(W108,PSMListe!Pflanzenschutz,2,FALSE)) -> 0 | X109: =IF(X108="",0,VLOOKUP(X108,PSMListe!Pflanzenschutz,2,FALSE)) -> 0 | Y109: =IF(Y108="",0,VLOOKUP(Y108,PSMListe!Pflanzenschutz,2,FALSE)) -> 0 | Z109: =IF(Z108="",0,VLOOKUP(Z108,PSMListe!Pflanzenschutz,2,FALSE)) -> 0 | AA109: =IF(AA108="",0,VLOOKUP(AA108,PSMListe!Pflanzenschutz,2,FALSE)) -> 0 | AB109: =IF(AB108="",0,VLOOKUP(AB108,PSMListe!Pflanzenschutz,2,FALSE)) -> 0 | AC109: =IF(AC108="",0,VLOOKUP(AC108,PSMListe!Pflanzenschutz,2,FALSE)) -> 0 | AD109: =IF(AD108="",0,VLOOKUP(AD108,PSMListe!Pflanzenschutz,2,FALSE)) -> 0 | AE109: =IF(AE108="",0,VLOOKUP(AE108,PSMListe!Pflanzenschutz,2,FALSE)) -> 0 | AF109: =IF(AF108="",0,VLOOKUP(AF108,PSMListe!Pflanzenschutz,2,FALSE)) -> 0 | AG109: =IF(AG108="",0,VLOOKUP(AG108,PSMListe!Pflanzenschutz,2,FALSE)) -> 0 | AH109: =IF(AH108="",0,VLOOKUP(AH108,PSMListe!Pflanzenschutz,2,FALSE)) -> 0 | AI109: =IF(AI108="",0,VLOOKUP(AI108,PSMListe!Pflanzenschutz,2,FALSE)) -> 0 | AJ109: =IF(AJ108="",0,VLOOKUP(AJ108,PSMListe!Pflanzenschutz,2,FALSE)) -> 0 | AK109: =IF(AK108="",0,VLOOKUP(AK108,PSMListe!Pflanzenschutz,2,FALSE)) -> 0 | AL109: =IF(AL108="",0,VLOOKUP(AL108,PSMListe!Pflanzenschutz,2,FALSE)) -> 0 | AM109: =IF(AM108="",0,VLOOKUP(AM108,PSMListe!Pflanzenschutz,2,FALSE)) -> 0 | AN109: =IF(AN108="",0,VLOOKUP(AN108,PSMListe!Pflanzenschutz,2,FALSE)) -> 0 | AO109: =IF(AO108="",0,VLOOKUP(AO108,PSMListe!Pflanzenschutz,2,FALSE)) -> 0 | AP109: =IF(AP108="",0,VLOOKUP(AP108,PSMListe!Pflanzenschutz,2,FALSE)) -> 0 | AQ109: =IF(AQ108="",0,VLOOKUP(AQ108,PSMListe!Pflanzenschutz,2,FALSE)) -> 0 | AR109: =IF(AR108="",0,VLOOKUP(AR108,PSMListe!Pflanzenschutz,2,FALSE)) -> 0 | AS109: =IF(AS108="",0,VLOOKUP(AS108,PSMListe!Pflanzenschutz,2,FALSE)) -> 0 | AT109: =IF(AT108="",0,VLOOKUP(AT108,PSMListe!Pflanzenschutz,2,FALSE)) -> 0 | AU109: =IF(AU108="",0,VLOOKUP(AU108,PSMListe!Pflanzenschutz,2,FALSE)) -> 0 | AV109: =IF(AV108="",0,VLOOKUP(AV108,PSMListe!Pflanzenschutz,2,FALSE)) -> 0 | AW109: =IF(AW108="",0,VLOOKUP(AW108,PSMListe!Pflanzenschutz,2,FALSE)) -> 0 | AX109: =IF(AX108="",0,VLOOKUP(AX108,PSMListe!Pflanzenschutz,2,FALSE)) -> 0 | AY109: =IF(AY108="",0,VLOOKUP(AY108,PSMListe!Pflanzenschutz,2,FALSE)) -> 0 | AZ109: =IF(AZ108="",0,VLOOKUP(AZ108,PSMListe!Pflanzenschutz,2,FALSE)) -> 0 | BA109: =IF(BA108="",0,VLOOKUP(BA108,PSMListe!Pflanzenschutz,2,FALSE)) -> 0 | BB109: =IF(BB108="",0,VLOOKUP(BB108,PSMListe!Pflanzenschutz,2,FALSE)) -> 0 | BC109: =IF(BC108="",0,VLOOKUP(BC108,PSMListe!Pflanzenschutz,2,FALSE)) -> 0 | BD109: =IF(BD108="",0,VLOOKUP(BD108,PSMListe!Pflanzenschutz,2,FALSE)) -> 0 | BE109: =IF(BE108="",0,VLOOKUP(BE108,PSMListe!Pflanzenschutz,2,FALSE)) -> 0 | BF109: =IF(BF108="",0,VLOOKUP(BF108,PSMListe!Pflanzenschutz,2,FALSE)) -> 0 | BG109: =IF(BG108="",0,VLOOKUP(BG108,PSMListe!Pflanzenschutz,2,FALSE)) -> 0 | BH109: =IF(BH108="",0,VLOOKUP(BH108,PSMListe!Pflanzenschutz,2,FALSE)) -> 0 | BI109: =IF(BI108="",0,VLOOKUP(BI108,PSMListe!Pflanzenschutz,2,FALSE)) -> 0 | BJ109: =IF(BJ108="",0,VLOOKUP(BJ108,PSMListe!Pflanzenschutz,2,FALSE)) -> 0
B110: Menge
B111: Bemerkung
B112: Datum
B113: Mittel 22
B114: Preis | C114: =IF(C113="",0,VLOOKUP(C113,PSMListe!Pflanzenschutz,2,FALSE)) -> 0 | D114: =IF(D113="",0,VLOOKUP(D113,PSMListe!Pflanzenschutz,2,FALSE)) -> 0 | E114: =IF(E113="",0,VLOOKUP(E113,PSMListe!Pflanzenschutz,2,FALSE)) -> 0 | F114: =IF(F113="",0,VLOOKUP(F113,PSMListe!Pflanzenschutz,2,FALSE)) -> 0 | G114: =IF(G113="",0,VLOOKUP(G113,PSMListe!Pflanzenschutz,2,FALSE)) -> 0 | H114: =IF(H113="",0,VLOOKUP(H113,PSMListe!Pflanzenschutz,2,FALSE)) -> 0 | I114: =IF(I113="",0,VLOOKUP(I113,PSMListe!Pflanzenschutz,2,FALSE)) -> 0 | J114: =IF(J113="",0,VLOOKUP(J113,PSMListe!Pflanzenschutz,2,FALSE)) -> 0 | K114: =IF(K113="",0,VLOOKUP(K113,PSMListe!Pflanzenschutz,2,FALSE)) -> 0 | L114: =IF(L113="",0,VLOOKUP(L113,PSMListe!Pflanzenschutz,2,FALSE)) -> 0 | M114: =IF(M113="",0,VLOOKUP(M113,PSMListe!Pflanzenschutz,2,FALSE)) -> 0 | N114: =IF(N113="",0,VLOOKUP(N113,PSMListe!Pflanzenschutz,2,FALSE)) -> 0 | O114: =IF(O113="",0,VLOOKUP(O113,PSMListe!Pflanzenschutz,2,FALSE)) -> 0 | P114: =IF(P113="",0,VLOOKUP(P113,PSMListe!Pflanzenschutz,2,FALSE)) -> 0 | Q114: =IF(Q113="",0,VLOOKUP(Q113,PSMListe!Pflanzenschutz,2,FALSE)) -> 0 | R114: =IF(R113="",0,VLOOKUP(R113,PSMListe!Pflanzenschutz,2,FALSE)) -> 0 | S114: =IF(S113="",0,VLOOKUP(S113,PSMListe!Pflanzenschutz,2,FALSE)) -> 0 | T114: =IF(T113="",0,VLOOKUP(T113,PSMListe!Pflanzenschutz,2,FALSE)) -> 0 | U114: =IF(U113="",0,VLOOKUP(U113,PSMListe!Pflanzenschutz,2,FALSE)) -> 0 | V114: =IF(V113="",0,VLOOKUP(V113,PSMListe!Pflanzenschutz,2,FALSE)) -> 0 | W114: =IF(W113="",0,VLOOKUP(W113,PSMListe!Pflanzenschutz,2,FALSE)) -> 0 | X114: =IF(X113="",0,VLOOKUP(X113,PSMListe!Pflanzenschutz,2,FALSE)) -> 0 | Y114: =IF(Y113="",0,VLOOKUP(Y113,PSMListe!Pflanzenschutz,2,FALSE)) -> 0 | Z114: =IF(Z113="",0,VLOOKUP(Z113,PSMListe!Pflanzenschutz,2,FALSE)) -> 0 | AA114: =IF(AA113="",0,VLOOKUP(AA113,PSMListe!Pflanzenschutz,2,FALSE)) -> 0 | AB114: =IF(AB113="",0,VLOOKUP(AB113,PSMListe!Pflanzenschutz,2,FALSE)) -> 0 | AC114: =IF(AC113="",0,VLOOKUP(AC113,PSMListe!Pflanzenschutz,2,FALSE)) -> 0 | AD114: =IF(AD113="",0,VLOOKUP(AD113,PSMListe!Pflanzenschutz,2,FALSE)) -> 0 | AE114: =IF(AE113="",0,VLOOKUP(AE113,PSMListe!Pflanzenschutz,2,FALSE)) -> 0 | AF114: =IF(AF113="",0,VLOOKUP(AF113,PSMListe!Pflanzenschutz,2,FALSE)) -> 0 | AG114: =IF(AG113="",0,VLOOKUP(AG113,PSMListe!Pflanzenschutz,2,FALSE)) -> 0 | AH114: =IF(AH113="",0,VLOOKUP(AH113,PSMListe!Pflanzenschutz,2,FALSE)) -> 0 | AI114: =IF(AI113="",0,VLOOKUP(AI113,PSMListe!Pflanzenschutz,2,FALSE)) -> 0 | AJ114: =IF(AJ113="",0,VLOOKUP(AJ113,PSMListe!Pflanzenschutz,2,FALSE)) -> 0 | AK114: =IF(AK113="",0,VLOOKUP(AK113,PSMListe!Pflanzenschutz,2,FALSE)) -> 0 | AL114: =IF(AL113="",0,VLOOKUP(AL113,PSMListe!Pflanzenschutz,2,FALSE)) -> 0 | AM114: =IF(AM113="",0,VLOOKUP(AM113,PSMListe!Pflanzenschutz,2,FALSE)) -> 0 | AN114: =IF(AN113="",0,VLOOKUP(AN113,PSMListe!Pflanzenschutz,2,FALSE)) -> 0 | AO114: =IF(AO113="",0,VLOOKUP(AO113,PSMListe!Pflanzenschutz,2,FALSE)) -> 0 | AP114: =IF(AP113="",0,VLOOKUP(AP113,PSMListe!Pflanzenschutz,2,FALSE)) -> 0 | AQ114: =IF(AQ113="",0,VLOOKUP(AQ113,PSMListe!Pflanzenschutz,2,FALSE)) -> 0 | AR114: =IF(AR113="",0,VLOOKUP(AR113,PSMListe!Pflanzenschutz,2,FALSE)) -> 0 | AS114: =IF(AS113="",0,VLOOKUP(AS113,PSMListe!Pflanzenschutz,2,FALSE)) -> 0 | AT114: =IF(AT113="",0,VLOOKUP(AT113,PSMListe!Pflanzenschutz,2,FALSE)) -> 0 | AU114: =IF(AU113="",0,VLOOKUP(AU113,PSMListe!Pflanzenschutz,2,FALSE)) -> 0 | AV114: =IF(AV113="",0,VLOOKUP(AV113,PSMListe!Pflanzenschutz,2,FALSE)) -> 0 | AW114: =IF(AW113="",0,VLOOKUP(AW113,PSMListe!Pflanzenschutz,2,FALSE)) -> 0 | AX114: =IF(AX113="",0,VLOOKUP(AX113,PSMListe!Pflanzenschutz,2,FALSE)) -> 0 | AY114: =IF(AY113="",0,VLOOKUP(AY113,PSMListe!Pflanzenschutz,2,FALSE)) -> 0 | AZ114: =IF(AZ113="",0,VLOOKUP(AZ113,PSMListe!Pflanzenschutz,2,FALSE)) -> 0 | BA114: =IF(BA113="",0,VLOOKUP(BA113,PSMListe!Pflanzenschutz,2,FALSE)) -> 0 | BB114: =IF(BB113="",0,VLOOKUP(BB113,PSMListe!Pflanzenschutz,2,FALSE)) -> 0 | BC114: =IF(BC113="",0,VLOOKUP(BC113,PSMListe!Pflanzenschutz,2,FALSE)) -> 0 | BD114: =IF(BD113="",0,VLOOKUP(BD113,PSMListe!Pflanzenschutz,2,FALSE)) -> 0 | BE114: =IF(BE113="",0,VLOOKUP(BE113,PSMListe!Pflanzenschutz,2,FALSE)) -> 0 | BF114: =IF(BF113="",0,VLOOKUP(BF113,PSMListe!Pflanzenschutz,2,FALSE)) -> 0 | BG114: =IF(BG113="",0,VLOOKUP(BG113,PSMListe!Pflanzenschutz,2,FALSE)) -> 0 | BH114: =IF(BH113="",0,VLOOKUP(BH113,PSMListe!Pflanzenschutz,2,FALSE)) -> 0 | BI114: =IF(BI113="",0,VLOOKUP(BI113,PSMListe!Pflanzenschutz,2,FALSE)) -> 0 | BJ114: =IF(BJ113="",0,VLOOKUP(BJ113,PSMListe!Pflanzenschutz,2,FALSE)) -> 0
B115: Menge
B116: Bemerkung
B117: Datum
B118: Mittel 23
B119: Preis | C119: =IF(C118="",0,VLOOKUP(C118,PSMListe!Pflanzenschutz,2,FALSE)) -> 0 | D119: =IF(D118="",0,VLOOKUP(D118,PSMListe!Pflanzenschutz,2,FALSE)) -> 0 | E119: =IF(E118="",0,VLOOKUP(E118,PSMListe!Pflanzenschutz,2,FALSE)) -> 0 | F119: =IF(F118="",0,VLOOKUP(F118,PSMListe!Pflanzenschutz,2,FALSE)) -> 0 | G119: =IF(G118="",0,VLOOKUP(G118,PSMListe!Pflanzenschutz,2,FALSE)) -> 0 | H119: =IF(H118="",0,VLOOKUP(H118,PSMListe!Pflanzenschutz,2,FALSE)) -> 0 | I119: =IF(I118="",0,VLOOKUP(I118,PSMListe!Pflanzenschutz,2,FALSE)) -> 0 | J119: =IF(J118="",0,VLOOKUP(J118,PSMListe!Pflanzenschutz,2,FALSE)) -> 0 | K119: =IF(K118="",0,VLOOKUP(K118,PSMListe!Pflanzenschutz,2,FALSE)) -> 0 | L119: =IF(L118="",0,VLOOKUP(L118,PSMListe!Pflanzenschutz,2,FALSE)) -> 0 | M119: =IF(M118="",0,VLOOKUP(M118,PSMListe!Pflanzenschutz,2,FALSE)) -> 0 | N119: =IF(N118="",0,VLOOKUP(N118,PSMListe!Pflanzenschutz,2,FALSE)) -> 0 | O119: =IF(O118="",0,VLOOKUP(O118,PSMListe!Pflanzenschutz,2,FALSE)) -> 0 | P119: =IF(P118="",0,VLOOKUP(P118,PSMListe!Pflanzenschutz,2,FALSE)) -> 0 | Q119: =IF(Q118="",0,VLOOKUP(Q118,PSMListe!Pflanzenschutz,2,FALSE)) -> 0 | R119: =IF(R118="",0,VLOOKUP(R118,PSMListe!Pflanzenschutz,2,FALSE)) -> 0 | S119: =IF(S118="",0,VLOOKUP(S118,PSMListe!Pflanzenschutz,2,FALSE)) -> 0 | T119: =IF(T118="",0,VLOOKUP(T118,PSMListe!Pflanzenschutz,2,FALSE)) -> 0 | U119: =IF(U118="",0,VLOOKUP(U118,PSMListe!Pflanzenschutz,2,FALSE)) -> 0 | V119: =IF(V118="",0,VLOOKUP(V118,PSMListe!Pflanzenschutz,2,FALSE)) -> 0 | W119: =IF(W118="",0,VLOOKUP(W118,PSMListe!Pflanzenschutz,2,FALSE)) -> 0 | X119: =IF(X118="",0,VLOOKUP(X118,PSMListe!Pflanzenschutz,2,FALSE)) -> 0 | Y119: =IF(Y118="",0,VLOOKUP(Y118,PSMListe!Pflanzenschutz,2,FALSE)) -> 0 | Z119: =IF(Z118="",0,VLOOKUP(Z118,PSMListe!Pflanzenschutz,2,FALSE)) -> 0 | AA119: =IF(AA118="",0,VLOOKUP(AA118,PSMListe!Pflanzenschutz,2,FALSE)) -> 0 | AB119: =IF(AB118="",0,VLOOKUP(AB118,PSMListe!Pflanzenschutz,2,FALSE)) -> 0 | AC119: =IF(AC118="",0,VLOOKUP(AC118,PSMListe!Pflanzenschutz,2,FALSE)) -> 0 | AD119: =IF(AD118="",0,VLOOKUP(AD118,PSMListe!Pflanzenschutz,2,FALSE)) -> 0 | AE119: =IF(AE118="",0,VLOOKUP(AE118,PSMListe!Pflanzenschutz,2,FALSE)) -> 0 | AF119: =IF(AF118="",0,VLOOKUP(AF118,PSMListe!Pflanzenschutz,2,FALSE)) -> 0 | AG119: =IF(AG118="",0,VLOOKUP(AG118,PSMListe!Pflanzenschutz,2,FALSE)) -> 0 | AH119: =IF(AH118="",0,VLOOKUP(AH118,PSMListe!Pflanzenschutz,2,FALSE)) -> 0 | AI119: =IF(AI118="",0,VLOOKUP(AI118,PSMListe!Pflanzenschutz,2,FALSE)) -> 0 | AJ119: =IF(AJ118="",0,VLOOKUP(AJ118,PSMListe!Pflanzenschutz,2,FALSE)) -> 0 | AK119: =IF(AK118="",0,VLOOKUP(AK118,PSMListe!Pflanzenschutz,2,FALSE)) -> 0 | AL119: =IF(AL118="",0,VLOOKUP(AL118,PSMListe!Pflanzenschutz,2,FALSE)) -> 0 | AM119: =IF(AM118="",0,VLOOKUP(AM118,PSMListe!Pflanzenschutz,2,FALSE)) -> 0 | AN119: =IF(AN118="",0,VLOOKUP(AN118,PSMListe!Pflanzenschutz,2,FALSE)) -> 0 | AO119: =IF(AO118="",0,VLOOKUP(AO118,PSMListe!Pflanzenschutz,2,FALSE)) -> 0 | AP119: =IF(AP118="",0,VLOOKUP(AP118,PSMListe!Pflanzenschutz,2,FALSE)) -> 0 | AQ119: =IF(AQ118="",0,VLOOKUP(AQ118,PSMListe!Pflanzenschutz,2,FALSE)) -> 0 | AR119: =IF(AR118="",0,VLOOKUP(AR118,PSMListe!Pflanzenschutz,2,FALSE)) -> 0 | AS119: =IF(AS118="",0,VLOOKUP(AS118,PSMListe!Pflanzenschutz,2,FALSE)) -> 0 | AT119: =IF(AT118="",0,VLOOKUP(AT118,PSMListe!Pflanzenschutz,2,FALSE)) -> 0 | AU119: =IF(AU118="",0,VLOOKUP(AU118,PSMListe!Pflanzenschutz,2,FALSE)) -> 0 | AV119: =IF(AV118="",0,VLOOKUP(AV118,PSMListe!Pflanzenschutz,2,FALSE)) -> 0 | AW119: =IF(AW118="",0,VLOOKUP(AW118,PSMListe!Pflanzenschutz,2,FALSE)) -> 0 | AX119: =IF(AX118="",0,VLOOKUP(AX118,PSMListe!Pflanzenschutz,2,FALSE)) -> 0 | AY119: =IF(AY118="",0,VLOOKUP(AY118,PSMListe!Pflanzenschutz,2,FALSE)) -> 0 | AZ119: =IF(AZ118="",0,VLOOKUP(AZ118,PSMListe!Pflanzenschutz,2,FALSE)) -> 0 | BA119: =IF(BA118="",0,VLOOKUP(BA118,PSMListe!Pflanzenschutz,2,FALSE)) -> 0 | BB119: =IF(BB118="",0,VLOOKUP(BB118,PSMListe!Pflanzenschutz,2,FALSE)) -> 0 | BC119: =IF(BC118="",0,VLOOKUP(BC118,PSMListe!Pflanzenschutz,2,FALSE)) -> 0 | BD119: =IF(BD118="",0,VLOOKUP(BD118,PSMListe!Pflanzenschutz,2,FALSE)) -> 0 | BE119: =IF(BE118="",0,VLOOKUP(BE118,PSMListe!Pflanzenschutz,2,FALSE)) -> 0 | BF119: =IF(BF118="",0,VLOOKUP(BF118,PSMListe!Pflanzenschutz,2,FALSE)) -> 0 | BG119: =IF(BG118="",0,VLOOKUP(BG118,PSMListe!Pflanzenschutz,2,FALSE)) -> 0 | BH119: =IF(BH118="",0,VLOOKUP(BH118,PSMListe!Pflanzenschutz,2,FALSE)) -> 0 | BI119: =IF(BI118="",0,VLOOKUP(BI118,PSMListe!Pflanzenschutz,2,FALSE)) -> 0 | BJ119: =IF(BJ118="",0,VLOOKUP(BJ118,PSMListe!Pflanzenschutz,2,FALSE)) -> 0
B120: Menge
B121: Bemerkung
B122: Datum
B123: Mittel 24
B124: Preis | C124: =IF(C123="",0,VLOOKUP(C123,PSMListe!Pflanzenschutz,2,FALSE)) -> 0 | D124: =IF(D123="",0,VLOOKUP(D123,PSMListe!Pflanzenschutz,2,FALSE)) -> 0 | E124: =IF(E123="",0,VLOOKUP(E123,PSMListe!Pflanzenschutz,2,FALSE)) -> 0 | F124: =IF(F123="",0,VLOOKUP(F123,PSMListe!Pflanzenschutz,2,FALSE)) -> 0 | G124: =IF(G123="",0,VLOOKUP(G123,PSMListe!Pflanzenschutz,2,FALSE)) -> 0 | H124: =IF(H123="",0,VLOOKUP(H123,PSMListe!Pflanzenschutz,2,FALSE)) -> 0 | I124: =IF(I123="",0,VLOOKUP(I123,PSMListe!Pflanzenschutz,2,FALSE)) -> 0 | J124: =IF(J123="",0,VLOOKUP(J123,PSMListe!Pflanzenschutz,2,FALSE)) -> 0 | K124: =IF(K123="",0,VLOOKUP(K123,PSMListe!Pflanzenschutz,2,FALSE)) -> 0 | L124: =IF(L123="",0,VLOOKUP(L123,PSMListe!Pflanzenschutz,2,FALSE)) -> 0 | M124: =IF(M123="",0,VLOOKUP(M123,PSMListe!Pflanzenschutz,2,FALSE)) -> 0 | N124: =IF(N123="",0,VLOOKUP(N123,PSMListe!Pflanzenschutz,2,FALSE)) -> 0 | O124: =IF(O123="",0,VLOOKUP(O123,PSMListe!Pflanzenschutz,2,FALSE)) -> 0 | P124: =IF(P123="",0,VLOOKUP(P123,PSMListe!Pflanzenschutz,2,FALSE)) -> 0 | Q124: =IF(Q123="",0,VLOOKUP(Q123,PSMListe!Pflanzenschutz,2,FALSE)) -> 0 | R124: =IF(R123="",0,VLOOKUP(R123,PSMListe!Pflanzenschutz,2,FALSE)) -> 0 | S124: =IF(S123="",0,VLOOKUP(S123,PSMListe!Pflanzenschutz,2,FALSE)) -> 0 | T124: =IF(T123="",0,VLOOKUP(T123,PSMListe!Pflanzenschutz,2,FALSE)) -> 0 | U124: =IF(U123="",0,VLOOKUP(U123,PSMListe!Pflanzenschutz,2,FALSE)) -> 0 | V124: =IF(V123="",0,VLOOKUP(V123,PSMListe!Pflanzenschutz,2,FALSE)) -> 0 | W124: =IF(W123="",0,VLOOKUP(W123,PSMListe!Pflanzenschutz,2,FALSE)) -> 0 | X124: =IF(X123="",0,VLOOKUP(X123,PSMListe!Pflanzenschutz,2,FALSE)) -> 0 | Y124: =IF(Y123="",0,VLOOKUP(Y123,PSMListe!Pflanzenschutz,2,FALSE)) -> 0 | Z124: =IF(Z123="",0,VLOOKUP(Z123,PSMListe!Pflanzenschutz,2,FALSE)) -> 0 | AA124: =IF(AA123="",0,VLOOKUP(AA123,PSMListe!Pflanzenschutz,2,FALSE)) -> 0 | AB124: =IF(AB123="",0,VLOOKUP(AB123,PSMListe!Pflanzenschutz,2,FALSE)) -> 0 | AC124: =IF(AC123="",0,VLOOKUP(AC123,PSMListe!Pflanzenschutz,2,FALSE)) -> 0 | AD124: =IF(AD123="",0,VLOOKUP(AD123,PSMListe!Pflanzenschutz,2,FALSE)) -> 0 | AE124: =IF(AE123="",0,VLOOKUP(AE123,PSMListe!Pflanzenschutz,2,FALSE)) -> 0 | AF124: =IF(AF123="",0,VLOOKUP(AF123,PSMListe!Pflanzenschutz,2,FALSE)) -> 0 | AG124: =IF(AG123="",0,VLOOKUP(AG123,PSMListe!Pflanzenschutz,2,FALSE)) -> 0 | AH124: =IF(AH123="",0,VLOOKUP(AH123,PSMListe!Pflanzenschutz,2,FALSE)) -> 0 | AI124: =IF(AI123="",0,VLOOKUP(AI123,PSMListe!Pflanzenschutz,2,FALSE)) -> 0 | AJ124: =IF(AJ123="",0,VLOOKUP(AJ123,PSMListe!Pflanzenschutz,2,FALSE)) -> 0 | AK124: =IF(AK123="",0,VLOOKUP(AK123,PSMListe!Pflanzenschutz,2,FALSE)) -> 0 | AL124: =IF(AL123="",0,VLOOKUP(AL123,PSMListe!Pflanzenschutz,2,FALSE)) -> 0 | AM124: =IF(AM123="",0,VLOOKUP(AM123,PSMListe!Pflanzenschutz,2,FALSE)) -> 0 | AN124: =IF(AN123="",0,VLOOKUP(AN123,PSMListe!Pflanzenschutz,2,FALSE)) -> 0 | AO124: =IF(AO123="",0,VLOOKUP(AO123,PSMListe!Pflanzenschutz,2,FALSE)) -> 0 | AP124: =IF(AP123="",0,VLOOKUP(AP123,PSMListe!Pflanzenschutz,2,FALSE)) -> 0 | AQ124: =IF(AQ123="",0,VLOOKUP(AQ123,PSMListe!Pflanzenschutz,2,FALSE)) -> 0 | AR124: =IF(AR123="",0,VLOOKUP(AR123,PSMListe!Pflanzenschutz,2,FALSE)) -> 0 | AS124: =IF(AS123="",0,VLOOKUP(AS123,PSMListe!Pflanzenschutz,2,FALSE)) -> 0 | AT124: =IF(AT123="",0,VLOOKUP(AT123,PSMListe!Pflanzenschutz,2,FALSE)) -> 0 | AU124: =IF(AU123="",0,VLOOKUP(AU123,PSMListe!Pflanzenschutz,2,FALSE)) -> 0 | AV124: =IF(AV123="",0,VLOOKUP(AV123,PSMListe!Pflanzenschutz,2,FALSE)) -> 0 | AW124: =IF(AW123="",0,VLOOKUP(AW123,PSMListe!Pflanzenschutz,2,FALSE)) -> 0 | AX124: =IF(AX123="",0,VLOOKUP(AX123,PSMListe!Pflanzenschutz,2,FALSE)) -> 0 | AY124: =IF(AY123="",0,VLOOKUP(AY123,PSMListe!Pflanzenschutz,2,FALSE)) -> 0 | AZ124: =IF(AZ123="",0,VLOOKUP(AZ123,PSMListe!Pflanzenschutz,2,FALSE)) -> 0 | BA124: =IF(BA123="",0,VLOOKUP(BA123,PSMListe!Pflanzenschutz,2,FALSE)) -> 0 | BB124: =IF(BB123="",0,VLOOKUP(BB123,PSMListe!Pflanzenschutz,2,FALSE)) -> 0 | BC124: =IF(BC123="",0,VLOOKUP(BC123,PSMListe!Pflanzenschutz,2,FALSE)) -> 0 | BD124: =IF(BD123="",0,VLOOKUP(BD123,PSMListe!Pflanzenschutz,2,FALSE)) -> 0 | BE124: =IF(BE123="",0,VLOOKUP(BE123,PSMListe!Pflanzenschutz,2,FALSE)) -> 0 | BF124: =IF(BF123="",0,VLOOKUP(BF123,PSMListe!Pflanzenschutz,2,FALSE)) -> 0 | BG124: =IF(BG123="",0,VLOOKUP(BG123,PSMListe!Pflanzenschutz,2,FALSE)) -> 0 | BH124: =IF(BH123="",0,VLOOKUP(BH123,PSMListe!Pflanzenschutz,2,FALSE)) -> 0 | BI124: =IF(BI123="",0,VLOOKUP(BI123,PSMListe!Pflanzenschutz,2,FALSE)) -> 0 | BJ124: =IF(BJ123="",0,VLOOKUP(BJ123,PSMListe!Pflanzenschutz,2,FALSE)) -> 0
B125: Menge
B126: Bemerkung
B127: Datum
B128: Mittel 25
B129: Preis | C129: =IF(C128="",0,VLOOKUP(C128,PSMListe!Pflanzenschutz,2,FALSE)) -> 0 | D129: =IF(D128="",0,VLOOKUP(D128,PSMListe!Pflanzenschutz,2,FALSE)) -> 0 | E129: =IF(E128="",0,VLOOKUP(E128,PSMListe!Pflanzenschutz,2,FALSE)) -> 0 | F129: =IF(F128="",0,VLOOKUP(F128,PSMListe!Pflanzenschutz,2,FALSE)) -> 0 | G129: =IF(G128="",0,VLOOKUP(G128,PSMListe!Pflanzenschutz,2,FALSE)) -> 0 | H129: =IF(H128="",0,VLOOKUP(H128,PSMListe!Pflanzenschutz,2,FALSE)) -> 0 | I129: =IF(I128="",0,VLOOKUP(I128,PSMListe!Pflanzenschutz,2,FALSE)) -> 0 | J129: =IF(J128="",0,VLOOKUP(J128,PSMListe!Pflanzenschutz,2,FALSE)) -> 0 | K129: =IF(K128="",0,VLOOKUP(K128,PSMListe!Pflanzenschutz,2,FALSE)) -> 0 | L129: =IF(L128="",0,VLOOKUP(L128,PSMListe!Pflanzenschutz,2,FALSE)) -> 0 | M129: =IF(M128="",0,VLOOKUP(M128,PSMListe!Pflanzenschutz,2,FALSE)) -> 0 | N129: =IF(N128="",0,VLOOKUP(N128,PSMListe!Pflanzenschutz,2,FALSE)) -> 0 | O129: =IF(O128="",0,VLOOKUP(O128,PSMListe!Pflanzenschutz,2,FALSE)) -> 0 | P129: =IF(P128="",0,VLOOKUP(P128,PSMListe!Pflanzenschutz,2,FALSE)) -> 0 | Q129: =IF(Q128="",0,VLOOKUP(Q128,PSMListe!Pflanzenschutz,2,FALSE)) -> 0 | R129: =IF(R128="",0,VLOOKUP(R128,PSMListe!Pflanzenschutz,2,FALSE)) -> 0 | S129: =IF(S128="",0,VLOOKUP(S128,PSMListe!Pflanzenschutz,2,FALSE)) -> 0 | T129: =IF(T128="",0,VLOOKUP(T128,PSMListe!Pflanzenschutz,2,FALSE)) -> 0 | U129: =IF(U128="",0,VLOOKUP(U128,PSMListe!Pflanzenschutz,2,FALSE)) -> 0 | V129: =IF(V128="",0,VLOOKUP(V128,PSMListe!Pflanzenschutz,2,FALSE)) -> 0 | W129: =IF(W128="",0,VLOOKUP(W128,PSMListe!Pflanzenschutz,2,FALSE)) -> 0 | X129: =IF(X128="",0,VLOOKUP(X128,PSMListe!Pflanzenschutz,2,FALSE)) -> 0 | Y129: =IF(Y128="",0,VLOOKUP(Y128,PSMListe!Pflanzenschutz,2,FALSE)) -> 0 | Z129: =IF(Z128="",0,VLOOKUP(Z128,PSMListe!Pflanzenschutz,2,FALSE)) -> 0 | AA129: =IF(AA128="",0,VLOOKUP(AA128,PSMListe!Pflanzenschutz,2,FALSE)) -> 0 | AB129: =IF(AB128="",0,VLOOKUP(AB128,PSMListe!Pflanzenschutz,2,FALSE)) -> 0 | AC129: =IF(AC128="",0,VLOOKUP(AC128,PSMListe!Pflanzenschutz,2,FALSE)) -> 0 | AD129: =IF(AD128="",0,VLOOKUP(AD128,PSMListe!Pflanzenschutz,2,FALSE)) -> 0 | AE129: =IF(AE128="",0,VLOOKUP(AE128,PSMListe!Pflanzenschutz,2,FALSE)) -> 0 | AF129: =IF(AF128="",0,VLOOKUP(AF128,PSMListe!Pflanzenschutz,2,FALSE)) -> 0 | AG129: =IF(AG128="",0,VLOOKUP(AG128,PSMListe!Pflanzenschutz,2,FALSE)) -> 0 | AH129: =IF(AH128="",0,VLOOKUP(AH128,PSMListe!Pflanzenschutz,2,FALSE)) -> 0 | AI129: =IF(AI128="",0,VLOOKUP(AI128,PSMListe!Pflanzenschutz,2,FALSE)) -> 0 | AJ129: =IF(AJ128="",0,VLOOKUP(AJ128,PSMListe!Pflanzenschutz,2,FALSE)) -> 0 | AK129: =IF(AK128="",0,VLOOKUP(AK128,PSMListe!Pflanzenschutz,2,FALSE)) -> 0 | AL129: =IF(AL128="",0,VLOOKUP(AL128,PSMListe!Pflanzenschutz,2,FALSE)) -> 0 | AM129: =IF(AM128="",0,VLOOKUP(AM128,PSMListe!Pflanzenschutz,2,FALSE)) -> 0 | AN129: =IF(AN128="",0,VLOOKUP(AN128,PSMListe!Pflanzenschutz,2,FALSE)) -> 0 | AO129: =IF(AO128="",0,VLOOKUP(AO128,PSMListe!Pflanzenschutz,2,FALSE)) -> 0 | AP129: =IF(AP128="",0,VLOOKUP(AP128,PSMListe!Pflanzenschutz,2,FALSE)) -> 0 | AQ129: =IF(AQ128="",0,VLOOKUP(AQ128,PSMListe!Pflanzenschutz,2,FALSE)) -> 0 | AR129: =IF(AR128="",0,VLOOKUP(AR128,PSMListe!Pflanzenschutz,2,FALSE)) -> 0 | AS129: =IF(AS128="",0,VLOOKUP(AS128,PSMListe!Pflanzenschutz,2,FALSE)) -> 0 | AT129: =IF(AT128="",0,VLOOKUP(AT128,PSMListe!Pflanzenschutz,2,FALSE)) -> 0 | AU129: =IF(AU128="",0,VLOOKUP(AU128,PSMListe!Pflanzenschutz,2,FALSE)) -> 0 | AV129: =IF(AV128="",0,VLOOKUP(AV128,PSMListe!Pflanzenschutz,2,FALSE)) -> 0 | AW129: =IF(AW128="",0,VLOOKUP(AW128,PSMListe!Pflanzenschutz,2,FALSE)) -> 0 | AX129: =IF(AX128="",0,VLOOKUP(AX128,PSMListe!Pflanzenschutz,2,FALSE)) -> 0 | AY129: =IF(AY128="",0,VLOOKUP(AY128,PSMListe!Pflanzenschutz,2,FALSE)) -> 0 | AZ129: =IF(AZ128="",0,VLOOKUP(AZ128,PSMListe!Pflanzenschutz,2,FALSE)) -> 0 | BA129: =IF(BA128="",0,VLOOKUP(BA128,PSMListe!Pflanzenschutz,2,FALSE)) -> 0 | BB129: =IF(BB128="",0,VLOOKUP(BB128,PSMListe!Pflanzenschutz,2,FALSE)) -> 0 | BC129: =IF(BC128="",0,VLOOKUP(BC128,PSMListe!Pflanzenschutz,2,FALSE)) -> 0 | BD129: =IF(BD128="",0,VLOOKUP(BD128,PSMListe!Pflanzenschutz,2,FALSE)) -> 0 | BE129: =IF(BE128="",0,VLOOKUP(BE128,PSMListe!Pflanzenschutz,2,FALSE)) -> 0 | BF129: =IF(BF128="",0,VLOOKUP(BF128,PSMListe!Pflanzenschutz,2,FALSE)) -> 0 | BG129: =IF(BG128="",0,VLOOKUP(BG128,PSMListe!Pflanzenschutz,2,FALSE)) -> 0 | BH129: =IF(BH128="",0,VLOOKUP(BH128,PSMListe!Pflanzenschutz,2,FALSE)) -> 0 | BI129: =IF(BI128="",0,VLOOKUP(BI128,PSMListe!Pflanzenschutz,2,FALSE)) -> 0 | BJ129: =IF(BJ128="",0,VLOOKUP(BJ128,PSMListe!Pflanzenschutz,2,FALSE)) -> 0
B130: Menge
B131: Bemerkung
B132: Datum
B133: Mittel 26
B134: Preis | C134: =IF(C133="",0,VLOOKUP(C133,PSMListe!Pflanzenschutz,2,FALSE)) -> 0 | D134: =IF(D133="",0,VLOOKUP(D133,PSMListe!Pflanzenschutz,2,FALSE)) -> 0 | E134: =IF(E133="",0,VLOOKUP(E133,PSMListe!Pflanzenschutz,2,FALSE)) -> 0 | F134: =IF(F133="",0,VLOOKUP(F133,PSMListe!Pflanzenschutz,2,FALSE)) -> 0 | G134: =IF(G133="",0,VLOOKUP(G133,PSMListe!Pflanzenschutz,2,FALSE)) -> 0 | H134: =IF(H133="",0,VLOOKUP(H133,PSMListe!Pflanzenschutz,2,FALSE)) -> 0 | I134: =IF(I133="",0,VLOOKUP(I133,PSMListe!Pflanzenschutz,2,FALSE)) -> 0 | J134: =IF(J133="",0,VLOOKUP(J133,PSMListe!Pflanzenschutz,2,FALSE)) -> 0 | K134: =IF(K133="",0,VLOOKUP(K133,PSMListe!Pflanzenschutz,2,FALSE)) -> 0 | L134: =IF(L133="",0,VLOOKUP(L133,PSMListe!Pflanzenschutz,2,FALSE)) -> 0 | M134: =IF(M133="",0,VLOOKUP(M133,PSMListe!Pflanzenschutz,2,FALSE)) -> 0 | N134: =IF(N133="",0,VLOOKUP(N133,PSMListe!Pflanzenschutz,2,FALSE)) -> 0 | O134: =IF(O133="",0,VLOOKUP(O133,PSMListe!Pflanzenschutz,2,FALSE)) -> 0 | P134: =IF(P133="",0,VLOOKUP(P133,PSMListe!Pflanzenschutz,2,FALSE)) -> 0 | Q134: =IF(Q133="",0,VLOOKUP(Q133,PSMListe!Pflanzenschutz,2,FALSE)) -> 0 | R134: =IF(R133="",0,VLOOKUP(R133,PSMListe!Pflanzenschutz,2,FALSE)) -> 0 | S134: =IF(S133="",0,VLOOKUP(S133,PSMListe!Pflanzenschutz,2,FALSE)) -> 0 | T134: =IF(T133="",0,VLOOKUP(T133,PSMListe!Pflanzenschutz,2,FALSE)) -> 0 | U134: =IF(U133="",0,VLOOKUP(U133,PSMListe!Pflanzenschutz,2,FALSE)) -> 0 | V134: =IF(V133="",0,VLOOKUP(V133,PSMListe!Pflanzenschutz,2,FALSE)) -> 0 | W134: =IF(W133="",0,VLOOKUP(W133,PSMListe!Pflanzenschutz,2,FALSE)) -> 0 | X134: =IF(X133="",0,VLOOKUP(X133,PSMListe!Pflanzenschutz,2,FALSE)) -> 0 | Y134: =IF(Y133="",0,VLOOKUP(Y133,PSMListe!Pflanzenschutz,2,FALSE)) -> 0 | Z134: =IF(Z133="",0,VLOOKUP(Z133,PSMListe!Pflanzenschutz,2,FALSE)) -> 0 | AA134: =IF(AA133="",0,VLOOKUP(AA133,PSMListe!Pflanzenschutz,2,FALSE)) -> 0 | AB134: =IF(AB133="",0,VLOOKUP(AB133,PSMListe!Pflanzenschutz,2,FALSE)) -> 0 | AC134: =IF(AC133="",0,VLOOKUP(AC133,PSMListe!Pflanzenschutz,2,FALSE)) -> 0 | AD134: =IF(AD133="",0,VLOOKUP(AD133,PSMListe!Pflanzenschutz,2,FALSE)) -> 0 | AE134: =IF(AE133="",0,VLOOKUP(AE133,PSMListe!Pflanzenschutz,2,FALSE)) -> 0 | AF134: =IF(AF133="",0,VLOOKUP(AF133,PSMListe!Pflanzenschutz,2,FALSE)) -> 0 | AG134: =IF(AG133="",0,VLOOKUP(AG133,PSMListe!Pflanzenschutz,2,FALSE)) -> 0 | AH134: =IF(AH133="",0,VLOOKUP(AH133,PSMListe!Pflanzenschutz,2,FALSE)) -> 0 | AI134: =IF(AI133="",0,VLOOKUP(AI133,PSMListe!Pflanzenschutz,2,FALSE)) -> 0 | AJ134: =IF(AJ133="",0,VLOOKUP(AJ133,PSMListe!Pflanzenschutz,2,FALSE)) -> 0 | AK134: =IF(AK133="",0,VLOOKUP(AK133,PSMListe!Pflanzenschutz,2,FALSE)) -> 0 | AL134: =IF(AL133="",0,VLOOKUP(AL133,PSMListe!Pflanzenschutz,2,FALSE)) -> 0 | AM134: =IF(AM133="",0,VLOOKUP(AM133,PSMListe!Pflanzenschutz,2,FALSE)) -> 0 | AN134: =IF(AN133="",0,VLOOKUP(AN133,PSMListe!Pflanzenschutz,2,FALSE)) -> 0 | AO134: =IF(AO133="",0,VLOOKUP(AO133,PSMListe!Pflanzenschutz,2,FALSE)) -> 0 | AP134: =IF(AP133="",0,VLOOKUP(AP133,PSMListe!Pflanzenschutz,2,FALSE)) -> 0 | AQ134: =IF(AQ133="",0,VLOOKUP(AQ133,PSMListe!Pflanzenschutz,2,FALSE)) -> 0 | AR134: =IF(AR133="",0,VLOOKUP(AR133,PSMListe!Pflanzenschutz,2,FALSE)) -> 0 | AS134: =IF(AS133="",0,VLOOKUP(AS133,PSMListe!Pflanzenschutz,2,FALSE)) -> 0 | AT134: =IF(AT133="",0,VLOOKUP(AT133,PSMListe!Pflanzenschutz,2,FALSE)) -> 0 | AU134: =IF(AU133="",0,VLOOKUP(AU133,PSMListe!Pflanzenschutz,2,FALSE)) -> 0 | AV134: =IF(AV133="",0,VLOOKUP(AV133,PSMListe!Pflanzenschutz,2,FALSE)) -> 0 | AW134: =IF(AW133="",0,VLOOKUP(AW133,PSMListe!Pflanzenschutz,2,FALSE)) -> 0 | AX134: =IF(AX133="",0,VLOOKUP(AX133,PSMListe!Pflanzenschutz,2,FALSE)) -> 0 | AY134: =IF(AY133="",0,VLOOKUP(AY133,PSMListe!Pflanzenschutz,2,FALSE)) -> 0 | AZ134: =IF(AZ133="",0,VLOOKUP(AZ133,PSMListe!Pflanzenschutz,2,FALSE)) -> 0 | BA134: =IF(BA133="",0,VLOOKUP(BA133,PSMListe!Pflanzenschutz,2,FALSE)) -> 0 | BB134: =IF(BB133="",0,VLOOKUP(BB133,PSMListe!Pflanzenschutz,2,FALSE)) -> 0 | BC134: =IF(BC133="",0,VLOOKUP(BC133,PSMListe!Pflanzenschutz,2,FALSE)) -> 0 | BD134: =IF(BD133="",0,VLOOKUP(BD133,PSMListe!Pflanzenschutz,2,FALSE)) -> 0 | BE134: =IF(BE133="",0,VLOOKUP(BE133,PSMListe!Pflanzenschutz,2,FALSE)) -> 0 | BF134: =IF(BF133="",0,VLOOKUP(BF133,PSMListe!Pflanzenschutz,2,FALSE)) -> 0 | BG134: =IF(BG133="",0,VLOOKUP(BG133,PSMListe!Pflanzenschutz,2,FALSE)) -> 0 | BH134: =IF(BH133="",0,VLOOKUP(BH133,PSMListe!Pflanzenschutz,2,FALSE)) -> 0 | BI134: =IF(BI133="",0,VLOOKUP(BI133,PSMListe!Pflanzenschutz,2,FALSE)) -> 0 | BJ134: =IF(BJ133="",0,VLOOKUP(BJ133,PSMListe!Pflanzenschutz,2,FALSE)) -> 0
B135: Menge
B136: Bemerkung
B137: Datum
B138: Mittel 27
B139: Preis | C139: =IF(C138="",0,VLOOKUP(C138,PSMListe!Pflanzenschutz,2,FALSE)) -> 0 | D139: =IF(D138="",0,VLOOKUP(D138,PSMListe!Pflanzenschutz,2,FALSE)) -> 0 | E139: =IF(E138="",0,VLOOKUP(E138,PSMListe!Pflanzenschutz,2,FALSE)) -> 0 | F139: =IF(F138="",0,VLOOKUP(F138,PSMListe!Pflanzenschutz,2,FALSE)) -> 0 | G139: =IF(G138="",0,VLOOKUP(G138,PSMListe!Pflanzenschutz,2,FALSE)) -> 0 | H139: =IF(H138="",0,VLOOKUP(H138,PSMListe!Pflanzenschutz,2,FALSE)) -> 0 | I139: =IF(I138="",0,VLOOKUP(I138,PSMListe!Pflanzenschutz,2,FALSE)) -> 0 | J139: =IF(J138="",0,VLOOKUP(J138,PSMListe!Pflanzenschutz,2,FALSE)) -> 0 | K139: =IF(K138="",0,VLOOKUP(K138,PSMListe!Pflanzenschutz,2,FALSE)) -> 0 | L139: =IF(L138="",0,VLOOKUP(L138,PSMListe!Pflanzenschutz,2,FALSE)) -> 0 | M139: =IF(M138="",0,VLOOKUP(M138,PSMListe!Pflanzenschutz,2,FALSE)) -> 0 | N139: =IF(N138="",0,VLOOKUP(N138,PSMListe!Pflanzenschutz,2,FALSE)) -> 0 | O139: =IF(O138="",0,VLOOKUP(O138,PSMListe!Pflanzenschutz,2,FALSE)) -> 0 | P139: =IF(P138="",0,VLOOKUP(P138,PSMListe!Pflanzenschutz,2,FALSE)) -> 0 | Q139: =IF(Q138="",0,VLOOKUP(Q138,PSMListe!Pflanzenschutz,2,FALSE)) -> 0 | R139: =IF(R138="",0,VLOOKUP(R138,PSMListe!Pflanzenschutz,2,FALSE)) -> 0 | S139: =IF(S138="",0,VLOOKUP(S138,PSMListe!Pflanzenschutz,2,FALSE)) -> 0 | T139: =IF(T138="",0,VLOOKUP(T138,PSMListe!Pflanzenschutz,2,FALSE)) -> 0 | U139: =IF(U138="",0,VLOOKUP(U138,PSMListe!Pflanzenschutz,2,FALSE)) -> 0 | V139: =IF(V138="",0,VLOOKUP(V138,PSMListe!Pflanzenschutz,2,FALSE)) -> 0 | W139: =IF(W138="",0,VLOOKUP(W138,PSMListe!Pflanzenschutz,2,FALSE)) -> 0 | X139: =IF(X138="",0,VLOOKUP(X138,PSMListe!Pflanzenschutz,2,FALSE)) -> 0 | Y139: =IF(Y138="",0,VLOOKUP(Y138,PSMListe!Pflanzenschutz,2,FALSE)) -> 0 | Z139: =IF(Z138="",0,VLOOKUP(Z138,PSMListe!Pflanzenschutz,2,FALSE)) -> 0 | AA139: =IF(AA138="",0,VLOOKUP(AA138,PSMListe!Pflanzenschutz,2,FALSE)) -> 0 | AB139: =IF(AB138="",0,VLOOKUP(AB138,PSMListe!Pflanzenschutz,2,FALSE)) -> 0 | AC139: =IF(AC138="",0,VLOOKUP(AC138,PSMListe!Pflanzenschutz,2,FALSE)) -> 0 | AD139: =IF(AD138="",0,VLOOKUP(AD138,PSMListe!Pflanzenschutz,2,FALSE)) -> 0 | AE139: =IF(AE138="",0,VLOOKUP(AE138,PSMListe!Pflanzenschutz,2,FALSE)) -> 0 | AF139: =IF(AF138="",0,VLOOKUP(AF138,PSMListe!Pflanzenschutz,2,FALSE)) -> 0 | AG139: =IF(AG138="",0,VLOOKUP(AG138,PSMListe!Pflanzenschutz,2,FALSE)) -> 0 | AH139: =IF(AH138="",0,VLOOKUP(AH138,PSMListe!Pflanzenschutz,2,FALSE)) -> 0 | AI139: =IF(AI138="",0,VLOOKUP(AI138,PSMListe!Pflanzenschutz,2,FALSE)) -> 0 | AJ139: =IF(AJ138="",0,VLOOKUP(AJ138,PSMListe!Pflanzenschutz,2,FALSE)) -> 0 | AK139: =IF(AK138="",0,VLOOKUP(AK138,PSMListe!Pflanzenschutz,2,FALSE)) -> 0 | AL139: =IF(AL138="",0,VLOOKUP(AL138,PSMListe!Pflanzenschutz,2,FALSE)) -> 0 | AM139: =IF(AM138="",0,VLOOKUP(AM138,PSMListe!Pflanzenschutz,2,FALSE)) -> 0 | AN139: =IF(AN138="",0,VLOOKUP(AN138,PSMListe!Pflanzenschutz,2,FALSE)) -> 0 | AO139: =IF(AO138="",0,VLOOKUP(AO138,PSMListe!Pflanzenschutz,2,FALSE)) -> 0 | AP139: =IF(AP138="",0,VLOOKUP(AP138,PSMListe!Pflanzenschutz,2,FALSE)) -> 0 | AQ139: =IF(AQ138="",0,VLOOKUP(AQ138,PSMListe!Pflanzenschutz,2,FALSE)) -> 0 | AR139: =IF(AR138="",0,VLOOKUP(AR138,PSMListe!Pflanzenschutz,2,FALSE)) -> 0 | AS139: =IF(AS138="",0,VLOOKUP(AS138,PSMListe!Pflanzenschutz,2,FALSE)) -> 0 | AT139: =IF(AT138="",0,VLOOKUP(AT138,PSMListe!Pflanzenschutz,2,FALSE)) -> 0 | AU139: =IF(AU138="",0,VLOOKUP(AU138,PSMListe!Pflanzenschutz,2,FALSE)) -> 0 | AV139: =IF(AV138="",0,VLOOKUP(AV138,PSMListe!Pflanzenschutz,2,FALSE)) -> 0 | AW139: =IF(AW138="",0,VLOOKUP(AW138,PSMListe!Pflanzenschutz,2,FALSE)) -> 0 | AX139: =IF(AX138="",0,VLOOKUP(AX138,PSMListe!Pflanzenschutz,2,FALSE)) -> 0 | AY139: =IF(AY138="",0,VLOOKUP(AY138,PSMListe!Pflanzenschutz,2,FALSE)) -> 0 | AZ139: =IF(AZ138="",0,VLOOKUP(AZ138,PSMListe!Pflanzenschutz,2,FALSE)) -> 0 | BA139: =IF(BA138="",0,VLOOKUP(BA138,PSMListe!Pflanzenschutz,2,FALSE)) -> 0 | BB139: =IF(BB138="",0,VLOOKUP(BB138,PSMListe!Pflanzenschutz,2,FALSE)) -> 0 | BC139: =IF(BC138="",0,VLOOKUP(BC138,PSMListe!Pflanzenschutz,2,FALSE)) -> 0 | BD139: =IF(BD138="",0,VLOOKUP(BD138,PSMListe!Pflanzenschutz,2,FALSE)) -> 0 | BE139: =IF(BE138="",0,VLOOKUP(BE138,PSMListe!Pflanzenschutz,2,FALSE)) -> 0 | BF139: =IF(BF138="",0,VLOOKUP(BF138,PSMListe!Pflanzenschutz,2,FALSE)) -> 0 | BG139: =IF(BG138="",0,VLOOKUP(BG138,PSMListe!Pflanzenschutz,2,FALSE)) -> 0 | BH139: =IF(BH138="",0,VLOOKUP(BH138,PSMListe!Pflanzenschutz,2,FALSE)) -> 0 | BI139: =IF(BI138="",0,VLOOKUP(BI138,PSMListe!Pflanzenschutz,2,FALSE)) -> 0 | BJ139: =IF(BJ138="",0,VLOOKUP(BJ138,PSMListe!Pflanzenschutz,2,FALSE)) -> 0
B140: Menge
B141: Bemerkung
B142: Datum
B143: Mittel 28
B144: Preis | C144: =IF(C143="",0,VLOOKUP(C143,PSMListe!Pflanzenschutz,2,FALSE)) -> 0 | D144: =IF(D143="",0,VLOOKUP(D143,PSMListe!Pflanzenschutz,2,FALSE)) -> 0 | E144: =IF(E143="",0,VLOOKUP(E143,PSMListe!Pflanzenschutz,2,FALSE)) -> 0 | F144: =IF(F143="",0,VLOOKUP(F143,PSMListe!Pflanzenschutz,2,FALSE)) -> 0 | G144: =IF(G143="",0,VLOOKUP(G143,PSMListe!Pflanzenschutz,2,FALSE)) -> 0 | H144: =IF(H143="",0,VLOOKUP(H143,PSMListe!Pflanzenschutz,2,FALSE)) -> 0 | I144: =IF(I143="",0,VLOOKUP(I143,PSMListe!Pflanzenschutz,2,FALSE)) -> 0 | J144: =IF(J143="",0,VLOOKUP(J143,PSMListe!Pflanzenschutz,2,FALSE)) -> 0 | K144: =IF(K143="",0,VLOOKUP(K143,PSMListe!Pflanzenschutz,2,FALSE)) -> 0 | L144: =IF(L143="",0,VLOOKUP(L143,PSMListe!Pflanzenschutz,2,FALSE)) -> 0 | M144: =IF(M143="",0,VLOOKUP(M143,PSMListe!Pflanzenschutz,2,FALSE)) -> 0 | N144: =IF(N143="",0,VLOOKUP(N143,PSMListe!Pflanzenschutz,2,FALSE)) -> 0 | O144: =IF(O143="",0,VLOOKUP(O143,PSMListe!Pflanzenschutz,2,FALSE)) -> 0 | P144: =IF(P143="",0,VLOOKUP(P143,PSMListe!Pflanzenschutz,2,FALSE)) -> 0 | Q144: =IF(Q143="",0,VLOOKUP(Q143,PSMListe!Pflanzenschutz,2,FALSE)) -> 0 | R144: =IF(R143="",0,VLOOKUP(R143,PSMListe!Pflanzenschutz,2,FALSE)) -> 0 | S144: =IF(S143="",0,VLOOKUP(S143,PSMListe!Pflanzenschutz,2,FALSE)) -> 0 | T144: =IF(T143="",0,VLOOKUP(T143,PSMListe!Pflanzenschutz,2,FALSE)) -> 0 | U144: =IF(U143="",0,VLOOKUP(U143,PSMListe!Pflanzenschutz,2,FALSE)) -> 0 | V144: =IF(V143="",0,VLOOKUP(V143,PSMListe!Pflanzenschutz,2,FALSE)) -> 0 | W144: =IF(W143="",0,VLOOKUP(W143,PSMListe!Pflanzenschutz,2,FALSE)) -> 0 | X144: =IF(X143="",0,VLOOKUP(X143,PSMListe!Pflanzenschutz,2,FALSE)) -> 0 | Y144: =IF(Y143="",0,VLOOKUP(Y143,PSMListe!Pflanzenschutz,2,FALSE)) -> 0 | Z144: =IF(Z143="",0,VLOOKUP(Z143,PSMListe!Pflanzenschutz,2,FALSE)) -> 0 | AA144: =IF(AA143="",0,VLOOKUP(AA143,PSMListe!Pflanzenschutz,2,FALSE)) -> 0 | AB144: =IF(AB143="",0,VLOOKUP(AB143,PSMListe!Pflanzenschutz,2,FALSE)) -> 0 | AC144: =IF(AC143="",0,VLOOKUP(AC143,PSMListe!Pflanzenschutz,2,FALSE)) -> 0 | AD144: =IF(AD143="",0,VLOOKUP(AD143,PSMListe!Pflanzenschutz,2,FALSE)) -> 0 | AE144: =IF(AE143="",0,VLOOKUP(AE143,PSMListe!Pflanzenschutz,2,FALSE)) -> 0 | AF144: =IF(AF143="",0,VLOOKUP(AF143,PSMListe!Pflanzenschutz,2,FALSE)) -> 0 | AG144: =IF(AG143="",0,VLOOKUP(AG143,PSMListe!Pflanzenschutz,2,FALSE)) -> 0 | AH144: =IF(AH143="",0,VLOOKUP(AH143,PSMListe!Pflanzenschutz,2,FALSE)) -> 0 | AI144: =IF(AI143="",0,VLOOKUP(AI143,PSMListe!Pflanzenschutz,2,FALSE)) -> 0 | AJ144: =IF(AJ143="",0,VLOOKUP(AJ143,PSMListe!Pflanzenschutz,2,FALSE)) -> 0 | AK144: =IF(AK143="",0,VLOOKUP(AK143,PSMListe!Pflanzenschutz,2,FALSE)) -> 0 | AL144: =IF(AL143="",0,VLOOKUP(AL143,PSMListe!Pflanzenschutz,2,FALSE)) -> 0 | AM144: =IF(AM143="",0,VLOOKUP(AM143,PSMListe!Pflanzenschutz,2,FALSE)) -> 0 | AN144: =IF(AN143="",0,VLOOKUP(AN143,PSMListe!Pflanzenschutz,2,FALSE)) -> 0 | AO144: =IF(AO143="",0,VLOOKUP(AO143,PSMListe!Pflanzenschutz,2,FALSE)) -> 0 | AP144: =IF(AP143="",0,VLOOKUP(AP143,PSMListe!Pflanzenschutz,2,FALSE)) -> 0 | AQ144: =IF(AQ143="",0,VLOOKUP(AQ143,PSMListe!Pflanzenschutz,2,FALSE)) -> 0 | AR144: =IF(AR143="",0,VLOOKUP(AR143,PSMListe!Pflanzenschutz,2,FALSE)) -> 0 | AS144: =IF(AS143="",0,VLOOKUP(AS143,PSMListe!Pflanzenschutz,2,FALSE)) -> 0 | AT144: =IF(AT143="",0,VLOOKUP(AT143,PSMListe!Pflanzenschutz,2,FALSE)) -> 0 | AU144: =IF(AU143="",0,VLOOKUP(AU143,PSMListe!Pflanzenschutz,2,FALSE)) -> 0 | AV144: =IF(AV143="",0,VLOOKUP(AV143,PSMListe!Pflanzenschutz,2,FALSE)) -> 0 | AW144: =IF(AW143="",0,VLOOKUP(AW143,PSMListe!Pflanzenschutz,2,FALSE)) -> 0 | AX144: =IF(AX143="",0,VLOOKUP(AX143,PSMListe!Pflanzenschutz,2,FALSE)) -> 0 | AY144: =IF(AY143="",0,VLOOKUP(AY143,PSMListe!Pflanzenschutz,2,FALSE)) -> 0 | AZ144: =IF(AZ143="",0,VLOOKUP(AZ143,PSMListe!Pflanzenschutz,2,FALSE)) -> 0 | BA144: =IF(BA143="",0,VLOOKUP(BA143,PSMListe!Pflanzenschutz,2,FALSE)) -> 0 | BB144: =IF(BB143="",0,VLOOKUP(BB143,PSMListe!Pflanzenschutz,2,FALSE)) -> 0 | BC144: =IF(BC143="",0,VLOOKUP(BC143,PSMListe!Pflanzenschutz,2,FALSE)) -> 0 | BD144: =IF(BD143="",0,VLOOKUP(BD143,PSMListe!Pflanzenschutz,2,FALSE)) -> 0 | BE144: =IF(BE143="",0,VLOOKUP(BE143,PSMListe!Pflanzenschutz,2,FALSE)) -> 0 | BF144: =IF(BF143="",0,VLOOKUP(BF143,PSMListe!Pflanzenschutz,2,FALSE)) -> 0 | BG144: =IF(BG143="",0,VLOOKUP(BG143,PSMListe!Pflanzenschutz,2,FALSE)) -> 0 | BH144: =IF(BH143="",0,VLOOKUP(BH143,PSMListe!Pflanzenschutz,2,FALSE)) -> 0 | BI144: =IF(BI143="",0,VLOOKUP(BI143,PSMListe!Pflanzenschutz,2,FALSE)) -> 0 | BJ144: =IF(BJ143="",0,VLOOKUP(BJ143,PSMListe!Pflanzenschutz,2,FALSE)) -> 0
B145: Menge
B146: Bemerkung
B147: Datum
B148: Mittel 29
B149: Preis | C149: =IF(C148="",0,VLOOKUP(C148,PSMListe!Pflanzenschutz,2,FALSE)) -> 0 | D149: =IF(D148="",0,VLOOKUP(D148,PSMListe!Pflanzenschutz,2,FALSE)) -> 0 | E149: =IF(E148="",0,VLOOKUP(E148,PSMListe!Pflanzenschutz,2,FALSE)) -> 0 | F149: =IF(F148="",0,VLOOKUP(F148,PSMListe!Pflanzenschutz,2,FALSE)) -> 0 | G149: =IF(G148="",0,VLOOKUP(G148,PSMListe!Pflanzenschutz,2,FALSE)) -> 0 | H149: =IF(H148="",0,VLOOKUP(H148,PSMListe!Pflanzenschutz,2,FALSE)) -> 0 | I149: =IF(I148="",0,VLOOKUP(I148,PSMListe!Pflanzenschutz,2,FALSE)) -> 0 | J149: =IF(J148="",0,VLOOKUP(J148,PSMListe!Pflanzenschutz,2,FALSE)) -> 0 | K149: =IF(K148="",0,VLOOKUP(K148,PSMListe!Pflanzenschutz,2,FALSE)) -> 0 | L149: =IF(L148="",0,VLOOKUP(L148,PSMListe!Pflanzenschutz,2,FALSE)) -> 0 | M149: =IF(M148="",0,VLOOKUP(M148,PSMListe!Pflanzenschutz,2,FALSE)) -> 0 | N149: =IF(N148="",0,VLOOKUP(N148,PSMListe!Pflanzenschutz,2,FALSE)) -> 0 | O149: =IF(O148="",0,VLOOKUP(O148,PSMListe!Pflanzenschutz,2,FALSE)) -> 0 | P149: =IF(P148="",0,VLOOKUP(P148,PSMListe!Pflanzenschutz,2,FALSE)) -> 0 | Q149: =IF(Q148="",0,VLOOKUP(Q148,PSMListe!Pflanzenschutz,2,FALSE)) -> 0 | R149: =IF(R148="",0,VLOOKUP(R148,PSMListe!Pflanzenschutz,2,FALSE)) -> 0 | S149: =IF(S148="",0,VLOOKUP(S148,PSMListe!Pflanzenschutz,2,FALSE)) -> 0 | T149: =IF(T148="",0,VLOOKUP(T148,PSMListe!Pflanzenschutz,2,FALSE)) -> 0 | U149: =IF(U148="",0,VLOOKUP(U148,PSMListe!Pflanzenschutz,2,FALSE)) -> 0 | V149: =IF(V148="",0,VLOOKUP(V148,PSMListe!Pflanzenschutz,2,FALSE)) -> 0 | W149: =IF(W148="",0,VLOOKUP(W148,PSMListe!Pflanzenschutz,2,FALSE)) -> 0 | X149: =IF(X148="",0,VLOOKUP(X148,PSMListe!Pflanzenschutz,2,FALSE)) -> 0 | Y149: =IF(Y148="",0,VLOOKUP(Y148,PSMListe!Pflanzenschutz,2,FALSE)) -> 0 | Z149: =IF(Z148="",0,VLOOKUP(Z148,PSMListe!Pflanzenschutz,2,FALSE)) -> 0 | AA149: =IF(AA148="",0,VLOOKUP(AA148,PSMListe!Pflanzenschutz,2,FALSE)) -> 0 | AB149: =IF(AB148="",0,VLOOKUP(AB148,PSMListe!Pflanzenschutz,2,FALSE)) -> 0 | AC149: =IF(AC148="",0,VLOOKUP(AC148,PSMListe!Pflanzenschutz,2,FALSE)) -> 0 | AD149: =IF(AD148="",0,VLOOKUP(AD148,PSMListe!Pflanzenschutz,2,FALSE)) -> 0 | AE149: =IF(AE148="",0,VLOOKUP(AE148,PSMListe!Pflanzenschutz,2,FALSE)) -> 0 | AF149: =IF(AF148="",0,VLOOKUP(AF148,PSMListe!Pflanzenschutz,2,FALSE)) -> 0 | AG149: =IF(AG148="",0,VLOOKUP(AG148,PSMListe!Pflanzenschutz,2,FALSE)) -> 0 | AH149: =IF(AH148="",0,VLOOKUP(AH148,PSMListe!Pflanzenschutz,2,FALSE)) -> 0 | AI149: =IF(AI148="",0,VLOOKUP(AI148,PSMListe!Pflanzenschutz,2,FALSE)) -> 0 | AJ149: =IF(AJ148="",0,VLOOKUP(AJ148,PSMListe!Pflanzenschutz,2,FALSE)) -> 0 | AK149: =IF(AK148="",0,VLOOKUP(AK148,PSMListe!Pflanzenschutz,2,FALSE)) -> 0 | AL149: =IF(AL148="",0,VLOOKUP(AL148,PSMListe!Pflanzenschutz,2,FALSE)) -> 0 | AM149: =IF(AM148="",0,VLOOKUP(AM148,PSMListe!Pflanzenschutz,2,FALSE)) -> 0 | AN149: =IF(AN148="",0,VLOOKUP(AN148,PSMListe!Pflanzenschutz,2,FALSE)) -> 0 | AO149: =IF(AO148="",0,VLOOKUP(AO148,PSMListe!Pflanzenschutz,2,FALSE)) -> 0 | AP149: =IF(AP148="",0,VLOOKUP(AP148,PSMListe!Pflanzenschutz,2,FALSE)) -> 0 | AQ149: =IF(AQ148="",0,VLOOKUP(AQ148,PSMListe!Pflanzenschutz,2,FALSE)) -> 0 | AR149: =IF(AR148="",0,VLOOKUP(AR148,PSMListe!Pflanzenschutz,2,FALSE)) -> 0 | AS149: =IF(AS148="",0,VLOOKUP(AS148,PSMListe!Pflanzenschutz,2,FALSE)) -> 0 | AT149: =IF(AT148="",0,VLOOKUP(AT148,PSMListe!Pflanzenschutz,2,FALSE)) -> 0 | AU149: =IF(AU148="",0,VLOOKUP(AU148,PSMListe!Pflanzenschutz,2,FALSE)) -> 0 | AV149: =IF(AV148="",0,VLOOKUP(AV148,PSMListe!Pflanzenschutz,2,FALSE)) -> 0 | AW149: =IF(AW148="",0,VLOOKUP(AW148,PSMListe!Pflanzenschutz,2,FALSE)) -> 0 | AX149: =IF(AX148="",0,VLOOKUP(AX148,PSMListe!Pflanzenschutz,2,FALSE)) -> 0 | AY149: =IF(AY148="",0,VLOOKUP(AY148,PSMListe!Pflanzenschutz,2,FALSE)) -> 0 | AZ149: =IF(AZ148="",0,VLOOKUP(AZ148,PSMListe!Pflanzenschutz,2,FALSE)) -> 0 | BA149: =IF(BA148="",0,VLOOKUP(BA148,PSMListe!Pflanzenschutz,2,FALSE)) -> 0 | BB149: =IF(BB148="",0,VLOOKUP(BB148,PSMListe!Pflanzenschutz,2,FALSE)) -> 0 | BC149: =IF(BC148="",0,VLOOKUP(BC148,PSMListe!Pflanzenschutz,2,FALSE)) -> 0 | BD149: =IF(BD148="",0,VLOOKUP(BD148,PSMListe!Pflanzenschutz,2,FALSE)) -> 0 | BE149: =IF(BE148="",0,VLOOKUP(BE148,PSMListe!Pflanzenschutz,2,FALSE)) -> 0 | BF149: =IF(BF148="",0,VLOOKUP(BF148,PSMListe!Pflanzenschutz,2,FALSE)) -> 0 | BG149: =IF(BG148="",0,VLOOKUP(BG148,PSMListe!Pflanzenschutz,2,FALSE)) -> 0 | BH149: =IF(BH148="",0,VLOOKUP(BH148,PSMListe!Pflanzenschutz,2,FALSE)) -> 0 | BI149: =IF(BI148="",0,VLOOKUP(BI148,PSMListe!Pflanzenschutz,2,FALSE)) -> 0 | BJ149: =IF(BJ148="",0,VLOOKUP(BJ148,PSMListe!Pflanzenschutz,2,FALSE)) -> 0
B150: Menge
B151: Bemerkung
B152: Datum
B153: Mittel 30
B154: Preis | C154: =IF(C153="",0,VLOOKUP(C153,PSMListe!Pflanzenschutz,2,FALSE)) -> 0 | D154: =IF(D153="",0,VLOOKUP(D153,PSMListe!Pflanzenschutz,2,FALSE)) -> 0 | E154: =IF(E153="",0,VLOOKUP(E153,PSMListe!Pflanzenschutz,2,FALSE)) -> 0 | F154: =IF(F153="",0,VLOOKUP(F153,PSMListe!Pflanzenschutz,2,FALSE)) -> 0 | G154: =IF(G153="",0,VLOOKUP(G153,PSMListe!Pflanzenschutz,2,FALSE)) -> 0 | H154: =IF(H153="",0,VLOOKUP(H153,PSMListe!Pflanzenschutz,2,FALSE)) -> 0 | I154: =IF(I153="",0,VLOOKUP(I153,PSMListe!Pflanzenschutz,2,FALSE)) -> 0 | J154: =IF(J153="",0,VLOOKUP(J153,PSMListe!Pflanzenschutz,2,FALSE)) -> 0 | K154: =IF(K153="",0,VLOOKUP(K153,PSMListe!Pflanzenschutz,2,FALSE)) -> 0 | L154: =IF(L153="",0,VLOOKUP(L153,PSMListe!Pflanzenschutz,2,FALSE)) -> 0 | M154: =IF(M153="",0,VLOOKUP(M153,PSMListe!Pflanzenschutz,2,FALSE)) -> 0 | N154: =IF(N153="",0,VLOOKUP(N153,PSMListe!Pflanzenschutz,2,FALSE)) -> 0 | O154: =IF(O153="",0,VLOOKUP(O153,PSMListe!Pflanzenschutz,2,FALSE)) -> 0 | P154: =IF(P153="",0,VLOOKUP(P153,PSMListe!Pflanzenschutz,2,FALSE)) -> 0 | Q154: =IF(Q153="",0,VLOOKUP(Q153,PSMListe!Pflanzenschutz,2,FALSE)) -> 0 | R154: =IF(R153="",0,VLOOKUP(R153,PSMListe!Pflanzenschutz,2,FALSE)) -> 0 | S154: =IF(S153="",0,VLOOKUP(S153,PSMListe!Pflanzenschutz,2,FALSE)) -> 0 | T154: =IF(T153="",0,VLOOKUP(T153,PSMListe!Pflanzenschutz,2,FALSE)) -> 0 | U154: =IF(U153="",0,VLOOKUP(U153,PSMListe!Pflanzenschutz,2,FALSE)) -> 0 | V154: =IF(V153="",0,VLOOKUP(V153,PSMListe!Pflanzenschutz,2,FALSE)) -> 0 | W154: =IF(W153="",0,VLOOKUP(W153,PSMListe!Pflanzenschutz,2,FALSE)) -> 0 | X154: =IF(X153="",0,VLOOKUP(X153,PSMListe!Pflanzenschutz,2,FALSE)) -> 0 | Y154: =IF(Y153="",0,VLOOKUP(Y153,PSMListe!Pflanzenschutz,2,FALSE)) -> 0 | Z154: =IF(Z153="",0,VLOOKUP(Z153,PSMListe!Pflanzenschutz,2,FALSE)) -> 0 | AA154: =IF(AA153="",0,VLOOKUP(AA153,PSMListe!Pflanzenschutz,2,FALSE)) -> 0 | AB154: =IF(AB153="",0,VLOOKUP(AB153,PSMListe!Pflanzenschutz,2,FALSE)) -> 0 | AC154: =IF(AC153="",0,VLOOKUP(AC153,PSMListe!Pflanzenschutz,2,FALSE)) -> 0 | AD154: =IF(AD153="",0,VLOOKUP(AD153,PSMListe!Pflanzenschutz,2,FALSE)) -> 0 | AE154: =IF(AE153="",0,VLOOKUP(AE153,PSMListe!Pflanzenschutz,2,FALSE)) -> 0 | AF154: =IF(AF153="",0,VLOOKUP(AF153,PSMListe!Pflanzenschutz,2,FALSE)) -> 0 | AG154: =IF(AG153="",0,VLOOKUP(AG153,PSMListe!Pflanzenschutz,2,FALSE)) -> 0 | AH154: =IF(AH153="",0,VLOOKUP(AH153,PSMListe!Pflanzenschutz,2,FALSE)) -> 0 | AI154: =IF(AI153="",0,VLOOKUP(AI153,PSMListe!Pflanzenschutz,2,FALSE)) -> 0 | AJ154: =IF(AJ153="",0,VLOOKUP(AJ153,PSMListe!Pflanzenschutz,2,FALSE)) -> 0 | AK154: =IF(AK153="",0,VLOOKUP(AK153,PSMListe!Pflanzenschutz,2,FALSE)) -> 0 | AL154: =IF(AL153="",0,VLOOKUP(AL153,PSMListe!Pflanzenschutz,2,FALSE)) -> 0 | AM154: =IF(AM153="",0,VLOOKUP(AM153,PSMListe!Pflanzenschutz,2,FALSE)) -> 0 | AN154: =IF(AN153="",0,VLOOKUP(AN153,PSMListe!Pflanzenschutz,2,FALSE)) -> 0 | AO154: =IF(AO153="",0,VLOOKUP(AO153,PSMListe!Pflanzenschutz,2,FALSE)) -> 0 | AP154: =IF(AP153="",0,VLOOKUP(AP153,PSMListe!Pflanzenschutz,2,FALSE)) -> 0 | AQ154: =IF(AQ153="",0,VLOOKUP(AQ153,PSMListe!Pflanzenschutz,2,FALSE)) -> 0 | AR154: =IF(AR153="",0,VLOOKUP(AR153,PSMListe!Pflanzenschutz,2,FALSE)) -> 0 | AS154: =IF(AS153="",0,VLOOKUP(AS153,PSMListe!Pflanzenschutz,2,FALSE)) -> 0 | AT154: =IF(AT153="",0,VLOOKUP(AT153,PSMListe!Pflanzenschutz,2,FALSE)) -> 0 | AU154: =IF(AU153="",0,VLOOKUP(AU153,PSMListe!Pflanzenschutz,2,FALSE)) -> 0 | AV154: =IF(AV153="",0,VLOOKUP(AV153,PSMListe!Pflanzenschutz,2,FALSE)) -> 0 | AW154: =IF(AW153="",0,VLOOKUP(AW153,PSMListe!Pflanzenschutz,2,FALSE)) -> 0 | AX154: =IF(AX153="",0,VLOOKUP(AX153,PSMListe!Pflanzenschutz,2,FALSE)) -> 0 | AY154: =IF(AY153="",0,VLOOKUP(AY153,PSMListe!Pflanzenschutz,2,FALSE)) -> 0 | AZ154: =IF(AZ153="",0,VLOOKUP(AZ153,PSMListe!Pflanzenschutz,2,FALSE)) -> 0 | BA154: =IF(BA153="",0,VLOOKUP(BA153,PSMListe!Pflanzenschutz,2,FALSE)) -> 0 | BB154: =IF(BB153="",0,VLOOKUP(BB153,PSMListe!Pflanzenschutz,2,FALSE)) -> 0 | BC154: =IF(BC153="",0,VLOOKUP(BC153,PSMListe!Pflanzenschutz,2,FALSE)) -> 0 | BD154: =IF(BD153="",0,VLOOKUP(BD153,PSMListe!Pflanzenschutz,2,FALSE)) -> 0 | BE154: =IF(BE153="",0,VLOOKUP(BE153,PSMListe!Pflanzenschutz,2,FALSE)) -> 0 | BF154: =IF(BF153="",0,VLOOKUP(BF153,PSMListe!Pflanzenschutz,2,FALSE)) -> 0 | BG154: =IF(BG153="",0,VLOOKUP(BG153,PSMListe!Pflanzenschutz,2,FALSE)) -> 0 | BH154: =IF(BH153="",0,VLOOKUP(BH153,PSMListe!Pflanzenschutz,2,FALSE)) -> 0 | BI154: =IF(BI153="",0,VLOOKUP(BI153,PSMListe!Pflanzenschutz,2,FALSE)) -> 0 | BJ154: =IF(BJ153="",0,VLOOKUP(BJ153,PSMListe!Pflanzenschutz,2,FALSE)) -> 0
B155: Menge
B156: Bemerkung
B157: Kosten / ha | C157: =C9*C10+C14*C15+C19*C20+C24*C25+C29*C30+C34*C35+C39*C40+C44*C45+C49*C50+C54*C55+C59*C60+C64*C65+C69*C70+C74*C75+C79*C80+C84*C85+C89*C90+C94*C95+C99*C100+C104*C105+C109*C110+C114*C115+C119*C120+C124*C125+C129*C130+C134*C135+C139*C140+C144*C145+C149*C150+C154*C155 -> 238.2675 | D157: =D9*D10+D14*D15+D19*D20+D24*D25+D29*D30+D34*D35+D39*D40+D44*D45+D49*D50+D54*D55+D59*D60+D64*D65+D69*D70+D74*D75+D79*D80+D84*D85+D89*D90+D94*D95+D99*D100+D104*D105+D109*D110+D114*D115+D119*D120+D124*D125+D129*D130+D134*D135+D139*D140+D144*D145+D149*D150+D154*D155 -> 0 | E157: 0 | F157: 0 | G157: 0 | H157: 0 | I157: 0 | J157: 0 | K157: 0 | L157: 0 | M157: 0 | N157: 0 | O157: 0 | P157: 0 | Q157: 0 | R157: 0 | S157: 0 | T157: 0 | U157: 0 | V157: 0 | W157: 0 | X157: 0 | Y157: 0 | Z157: 0 | AA157: 0 | AB157: 0 | AC157: 0 | AD157: 0 | AE157: 0 | AF157: 0 | AG157: 0 | AH157: 0 | AI157: 0 | AJ157: 0 | AK157: 0 | AL157: 0 | AM157: 0 | AN157: 0 | AO157: 0 | AP157: 0 | AQ157: 0 | AR157: 0 | AS157: 0 | AT157: 0 | AU157: 0 | AV157: 0 | AW157: 0 | AX157: 0 | AY157: 0 | AZ157: 0 | BA157: 0 | BB157: 0 | BC157: 0 | BD157: 0 | BE157: 0 | BF157: 0 | BG157: 0 | BH157: 0 | BI157: 0 | BJ157: 0
B158: Kosten gesamt | C158: =C157*C6 -> 905.4165 | D158: 0 | E158: 0 | F158: 0 | G158: 0 | H158: 0 | I158: 0 | J158: 0 | K158: 0 | L158: 0 | M158: 0 | N158: 0 | O158: 0 | P158: 0 | Q158: 0 | R158: 0 | S158: 0 | T158: 0 | U158: 0 | V158: 0 | W158: 0 | X158: 0 | Y158: 0 | Z158: 0 | AA158: 0 | AB158: 0 | AC158: 0 | AD158: 0 | AE158: 0 | AF158: 0 | AG158: 0 | AH158: 0 | AI158: =AI157*AI6 -> 0 | AJ158: 0 | AK158: 0 | AL158: 0 | AM158: 0 | AN158: 0 | AO158: 0 | AP158: 0 | AQ158: 0 | AR158: 0 | AS158: 0 | AT158: 0 | AU158: 0 | AV158: 0 | AW158: 0 | AX158: 0 | AY158: 0 | AZ158: 0 | BA158: 0 | BB158: 0 | BC158: 0 | BD158: 0 | BE158: 0 | BF158: 0 | BG158: 0 | BH158: 0 | BI158: 0 | BJ158: 0 | BK158: =SUM(C158:BJ158) -> 905.4165

Sheet Düngung
B2: Düngung
B3: Schlag | C3: =Betriebsdaten!C11 -> Bester Feld | D3: =Betriebsdaten!D11 -> 0 | E3: =Betriebsdaten!E11 -> 0 | F3: =Betriebsdaten!F11 -> 0 | G3: =Betriebsdaten!G11 -> 0 | H3: =Betriebsdaten!H11 -> 0 | I3: =Betriebsdaten!I11 -> 0 | J3: =Betriebsdaten!J11 -> 0 | K3: =Betriebsdaten!K11 -> 0 | L3: =Betriebsdaten!L11 -> 0 | M3: =Betriebsdaten!M11 -> 0 | N3: =Betriebsdaten!N11 -> 0 | O3: =Betriebsdaten!O11 -> 0 | P3: =Betriebsdaten!P11 -> 0 | Q3: =Betriebsdaten!Q11 -> 0 | R3: =Betriebsdaten!R11 -> 0 | S3: =Betriebsdaten!S11 -> 0 | T3: =Betriebsdaten!T11 -> 0 | U3: =Betriebsdaten!U11 -> 0 | V3: =Betriebsdaten!V11 -> 0 | W3: =Betriebsdaten!W11 -> 0 | X3: =Betriebsdaten!X11 -> 0 | Y3: =Betriebsdaten!Y11 -> 0 | Z3: =Betriebsdaten!Z11 -> 0 | AA3: =Betriebsdaten!AA11 -> 25 | AB3: =Betriebsdaten!AB11 -> 26 | AC3: =Betriebsdaten!AC11 -> 27 | AD3: =Betriebsdaten!AD11 -> 28 | AE3: =Betriebsdaten!AE11 -> 29 | AF3: =Betriebsdaten!AF11 -> 30 | AG3: =Betriebsdaten!AG11 -> 31 | AH3: =Betriebsdaten!AH11 -> 32 | AI3: =Betriebsdaten!AI11 -> 33 | AJ3: =Betriebsdaten!AJ11 -> 34 | AK3: =Betriebsdaten!AK11 -> 35 | AL3: =Betriebsdaten!AL11 -> 36 | AM3: =Betriebsdaten!AM11 -> 37 | AN3: =Betriebsdaten!AN11 -> 38 | AO3: =Betriebsdaten!AO11 -> 39 | AP3: =Betriebsdaten!AP11 -> 40 | AQ3: =Betriebsdaten!AQ11 -> 41 | AR3: =Betriebsdaten!AR11 -> 42 | AS3: =Betriebsdaten!AS11 -> 43 | AT3: =Betriebsdaten!AT11 -> 44 | AU3: =Betriebsdaten!AU11 -> 45 | AV3: =Betriebsdaten!AV11 -> 46 | AW3: =Betriebsdaten!AW11 -> 47 | AX3: =Betriebsdaten!AX11 -> 48 | AY3: =Betriebsdaten!AY11 -> 49 | AZ3: =Betriebsdaten!AZ11 -> 50 | BA3: =Betriebsdaten!BA11 -> 51 | BB3: =Betriebsdaten!BB11 -> 52 | BC3: =Betriebsdaten!BC11 -> 53 | BD3: =Betriebsdaten!BD11 -> 54 | BE3: =Betriebsdaten!BE11 -> 55 | BF3: =Betriebsdaten!BF11 -> 56 | BG3: =Betriebsdaten!BG11 -> 57 | BH3: =Betriebsdaten!BH11 -> 58 | BI3: =Betriebsdaten!BI11 -> 59 | BJ3: =Betriebsdaten!BJ11 -> 60
B4: Frucht | C4: =Betriebsdaten!C15 -> Spargel | D4: =Betriebsdaten!D15 -> 0 | E4: =Betriebsdaten!E15 -> 0 | F4: =Betriebsdaten!F15 -> 0 | G4: =Betriebsdaten!G15 -> 0 | H4: =Betriebsdaten!H15 -> 0 | I4: =Betriebsdaten!I15 -> 0 | J4: =Betriebsdaten!J15 -> 0 | K4: =Betriebsdaten!K15 -> 0 | L4: =Betriebsdaten!L15 -> 0 | M4: =Betriebsdaten!M15 -> 0 | N4: =Betriebsdaten!N15 -> 0 | O4: =Betriebsdaten!O15 -> 0 | P4: =Betriebsdaten!P15 -> 0 | Q4: =Betriebsdaten!Q15 -> 0 | R4: =Betriebsdaten!R15 -> 0 | S4: =Betriebsdaten!S15 -> 0 | T4: =Betriebsdaten!T15 -> 0 | U4: =Betriebsdaten!U15 -> 0 | V4: =Betriebsdaten!V15 -> 0 | W4: =Betriebsdaten!W15 -> 0 | X4: =Betriebsdaten!X15 -> 0 | Y4: =Betriebsdaten!Y15 -> 0 | Z4: =Betriebsdaten!Z15 -> 0 | AA4: =Betriebsdaten!AA15 -> 0 | AB4: =Betriebsdaten!AB15 -> 0 | AC4: =Betriebsdaten!AC15 -> 0 | AD4: =Betriebsdaten!AD15 -> 0 | AE4: =Betriebsdaten!AE15 -> 0 | AF4: =Betriebsdaten!AF15 -> 0 | AG4: =Betriebsdaten!AG15 -> 0 | AH4: =Betriebsdaten!AH15 -> 0 | AI4: =Betriebsdaten!AI15 -> 0 | AJ4: =Betriebsdaten!AJ15 -> 0 | AK4: =Betriebsdaten!AK15 -> 0 | AL4: =Betriebsdaten!AL15 -> 0 | AM4: =Betriebsdaten!AM15 -> 0 | AN4: =Betriebsdaten!AN15 -> 0 | AO4: =Betriebsdaten!AO15 -> 0 | AP4: =Betriebsdaten!AP15 -> 0 | AQ4: =Betriebsdaten!AQ15 -> 0 | AR4: =Betriebsdaten!AR15 -> 0 | AS4: =Betriebsdaten!AS15 -> 0 | AT4: =Betriebsdaten!AT15 -> 0 | AU4: =Betriebsdaten!AU15 -> 0 | AV4: =Betriebsdaten!AV15 -> 0 | AW4: =Betriebsdaten!AW15 -> 0 | AX4: =Betriebsdaten!AX15 -> 0 | AY4: =Betriebsdaten!AY15 -> 0 | AZ4: =Betriebsdaten!AZ15 -> 0 | BA4: =Betriebsdaten!BA15 -> 0 | BB4: =Betriebsdaten!BB15 -> 0 | BC4: =Betriebsdaten!BC15 -> 0 | BD4: =Betriebsdaten!BD15 -> 0 | BE4: =Betriebsdaten!BE15 -> 0 | BF4: =Betriebsdaten!BF15 -> 0 | BG4: =Betriebsdaten!BG15 -> 0 | BH4: =Betriebsdaten!BH15 -> 0 | BI4: =Betriebsdaten!BI15 -> 0 | BJ4: =Betriebsdaten!BJ15 -> 0
B5: Sorte | C5: =Betriebsdaten!C16 -> Gijnlim | D5: =Betriebsdaten!D16 -> 0 | E5: =Betriebsdaten!E16 -> 0 | F5: =Betriebsdaten!F16 -> 0 | G5: =Betriebsdaten!G16 -> 0 | H5: =Betriebsdaten!H16 -> 0 | I5: =Betriebsdaten!I16 -> 0 | J5: =Betriebsdaten!J16 -> 0 | K5: =Betriebsdaten!K16 -> 0 | L5: =Betriebsdaten!L16 -> 0 | M5: =Betriebsdaten!M16 -> 0 | N5: =Betriebsdaten!N16 -> 0 | O5: =Betriebsdaten!O16 -> 0 | P5: =Betriebsdaten!P16 -> 0 | Q5: =Betriebsdaten!Q16 -> 0 | R5: =Betriebsdaten!R16 -> 0 | S5: =Betriebsdaten!S16 -> 0 | T5: =Betriebsdaten!T16 -> 0 | U5: =Betriebsdaten!U16 -> 0 | V5: =Betriebsdaten!V16 -> 0 | W5: =Betriebsdaten!W16 -> 0 | X5: =Betriebsdaten!X16 -> 0 | Y5: =Betriebsdaten!Y16 -> 0 | Z5: =Betriebsdaten!Z16 -> 0 | AA5: =Betriebsdaten!AA16 -> 0 | AB5: =Betriebsdaten!AB16 -> 0 | AC5: =Betriebsdaten!AC16 -> 0 | AD5: =Betriebsdaten!AD16 -> 0 | AE5: =Betriebsdaten!AE16 -> 0 | AF5: =Betriebsdaten!AF16 -> 0 | AG5: =Betriebsdaten!AG16 -> 0 | AH5: =Betriebsdaten!AH16 -> 0 | AI5: =Betriebsdaten!AI16 -> 0 | AJ5: =Betriebsdaten!AJ16 -> 0 | AK5: =Betriebsdaten!AK16 -> 0 | AL5: =Betriebsdaten!AL16 -> 0 | AM5: =Betriebsdaten!AM16 -> 0 | AN5: =Betriebsdaten!AN16 -> 0 | AO5: =Betriebsdaten!AO16 -> 0 | AP5: =Betriebsdaten!AP16 -> 0 | AQ5: =Betriebsdaten!AQ16 -> 0 | AR5: =Betriebsdaten!AR16 -> 0 | AS5: =Betriebsdaten!AS16 -> 0 | AT5: =Betriebsdaten!AT16 -> 0 | AU5: =Betriebsdaten!AU16 -> 0 | AV5: =Betriebsdaten!AV16 -> 0 | AW5: =Betriebsdaten!AW16 -> 0 | AX5: =Betriebsdaten!AX16 -> 0 | AY5: =Betriebsdaten!AY16 -> 0 | AZ5: =Betriebsdaten!AZ16 -> 0 | BA5: =Betriebsdaten!BA16 -> 0 | BB5: =Betriebsdaten!BB16 -> 0 | BC5: =Betriebsdaten!BC16 -> 0 | BD5: =Betriebsdaten!BD16 -> 0 | BE5: =Betriebsdaten!BE16 -> 0 | BF5: =Betriebsdaten!BF16 -> 0 | BG5: =Betriebsdaten!BG16 -> 0 | BH5: =Betriebsdaten!BH16 -> 0 | BI5: =Betriebsdaten!BI16 -> 0 | BJ5: =Betriebsdaten!BJ16 -> 0
B6: ha | C6: =Betriebsdaten!C17 -> 3.8 | D6: =Betriebsdaten!D17 -> 0 | E6: =Betriebsdaten!E17 -> 0 | F6: =Betriebsdaten!F17 -> 0 | G6: =Betriebsdaten!G17 -> 0 | H6: =Betriebsdaten!H17 -> 0 | I6: =Betriebsdaten!I17 -> 0 | J6: =Betriebsdaten!J17 -> 0 | K6: =Betriebsdaten!K17 -> 0 | L6: =Betriebsdaten!L17 -> 0 | M6: =Betriebsdaten!M17 -> 0 | N6: =Betriebsdaten!N17 -> 0 | O6: =Betriebsdaten!O17 -> 0 | P6: =Betriebsdaten!P17 -> 0 | Q6: =Betriebsdaten!Q17 -> 0 | R6: =Betriebsdaten!R17 -> 0 | S6: =Betriebsdaten!S17 -> 0 | T6: =Betriebsdaten!T17 -> 0 | U6: =Betriebsdaten!U17 -> 0 | V6: =Betriebsdaten!V17 -> 0 | W6: =Betriebsdaten!W17 -> 0 | X6: =Betriebsdaten!X17 -> 0 | Y6: =Betriebsdaten!Y17 -> 0 | Z6: =Betriebsdaten!Z17 -> 0 | AA6: =Betriebsdaten!AA17 -> 0 | AB6: =Betriebsdaten!AB17 -> 0 | AC6: =Betriebsdaten!AC17 -> 0 | AD6: =Betriebsdaten!AD17 -> 0 | AE6: =Betriebsdaten!AE17 -> 0 | AF6: =Betriebsdaten!AF17 -> 0 | AG6: =Betriebsdaten!AG17 -> 0 | AH6: =Betriebsdaten!AH17 -> 0 | AI6: =Betriebsdaten!AI17 -> 0 | AJ6: =Betriebsdaten!AJ17 -> 0 | AK6: =Betriebsdaten!AK17 -> 0 | AL6: =Betriebsdaten!AL17 -> 0 | AM6: =Betriebsdaten!AM17 -> 0 | AN6: =Betriebsdaten!AN17 -> 0 | AO6: =Betriebsdaten!AO17 -> 0 | AP6: =Betriebsdaten!AP17 -> 0 | AQ6: =Betriebsdaten!AQ17 -> 0 | AR6: =Betriebsdaten!AR17 -> 0 | AS6: =Betriebsdaten!AS17 -> 0 | AT6: =Betriebsdaten!AT17 -> 0 | AU6: =Betriebsdaten!AU17 -> 0 | AV6: =Betriebsdaten!AV17 -> 0 | AW6: =Betriebsdaten!AW17 -> 0 | AX6: =Betriebsdaten!AX17 -> 0 | AY6: =Betriebsdaten!AY17 -> 0 | AZ6: =Betriebsdaten!AZ17 -> 0 | BA6: =Betriebsdaten!BA17 -> 0 | BB6: =Betriebsdaten!BB17 -> 0 | BC6: =Betriebsdaten!BC17 -> 0 | BD6: =Betriebsdaten!BD17 -> 0 | BE6: =Betriebsdaten!BE17 -> 0 | BF6: =Betriebsdaten!BF17 -> 0 | BG6: =Betriebsdaten!BG17 -> 0 | BH6: =Betriebsdaten!BH17 -> 0 | BI6: =Betriebsdaten!BI17 -> 0 | BJ6: =Betriebsdaten!BJ17 -> 0
B7: Datum | C7: 2018-05-25
B8: Dünger 1 | C8: KAS
B9: Preis | C9: =IF(C8="",0,VLOOKUP(C8,Düngemittel,3,FALSE)) -> 28.5 | D9: 0 | E9: 0 | F9: 0 | G9: 0 | H9: 0 | I9: 0 | J9: 0 | K9: 0 | L9: 0 | M9: 0 | N9: 0 | O9: 0 | P9: 0 | Q9: 0 | R9: 0 | S9: 0 | T9: 0 | U9: 0 | V9: 0 | W9: 0 | X9: 0 | Y9: 0 | Z9: 0 | AA9: 0 | AB9: 0 | AC9: 0 | AD9: 0 | AE9: 0 | AF9: 0 | AG9: 0 | AH9: 0 | AI9: =IF(AI8="",0,VLOOKUP(AI8,Düngemittel,3,FALSE)) -> 0 | AJ9: 0 | AK9: 0 | AL9: 0 | AM9: 0 | AN9: 0 | AO9: 0 | AP9: 0 | AQ9: 0 | AR9: 0 | AS9: 0 | AT9: 0 | AU9: 0 | AV9: 0 | AW9: 0 | AX9: 0 | AY9: 0 | AZ9: 0 | BA9: 0 | BB9: 0 | BC9: 0 | BD9: 0 | BE9: 0 | BF9: 0 | BG9: 0 | BH9: 0 | BI9: 0 | BJ9: 0
B10: Menge/ha | C10: 1
B11: Bemerkung | C11: Ralf, NP Max Bedarf
B12: Datum | C12: 2018-05-25
B13: Dünger 2 | C13: 40 er Kali
B14: Preis | C14: =IF(C13="",0,VLOOKUP(C13,Düngemittel,3,FALSE)) -> 28.25 | D14: 0 | E14: 0 | F14: 0 | G14: 0 | H14: 0 | I14: 0 | J14: 0 | K14: 0 | L14: 0 | M14: 0 | N14: 0 | O14: 0 | P14: 0 | Q14: 0 | R14: 0 | S14: 0 | T14: 0 | U14: 0 | V14: 0 | W14: 0 | X14: 0 | Y14: 0 | Z14: 0 | AA14: 0 | AB14: 0 | AC14: 0 | AD14: 0 | AE14: 0 | AF14: 0 | AG14: 0 | AH14: 0 | AI14: =IF(AI13="",0,VLOOKUP(AI13,Düngemittel,3,FALSE)) -> 0 | AJ14: 0 | AK14: 0 | AL14: 0 | AM14: 0 | AN14: 0 | AO14: 0 | AP14: 0 | AQ14: 0 | AR14: 0 | AS14: 0 | AT14: 0 | AU14: 0 | AV14: 0 | AW14: 0 | AX14: 0 | AY14: 0 | AZ14: 0 | BA14: 0 | BB14: 0 | BC14: 0 | BD14: 0 | BE14: 0 | BF14: 0 | BG14: 0 | BH14: 0 | BI14: 0 | BJ14: 0
B15: Menge/ha | C15: 2.5
B16: Bemerkung
B17: Datum
B18: Dünger 3
B19: Preis | C19: =IF(C18="",0,VLOOKUP(C18,Düngemittel,3,FALSE)) -> 0 | D19: 0 | E19: 0 | F19: 0 | G19: 0 | H19: 0 | I19: 0 | J19: 0 | K19: 0 | L19: 0 | M19: 0 | N19: 0 | O19: 0 | P19: 0 | Q19: 0 | R19: 0 | S19: 0 | T19: 0 | U19: 0 | V19: 0 | W19: 0 | X19: 0 | Y19: 0 | Z19: 0 | AA19: 0 | AB19: 0 | AC19: 0 | AD19: 0 | AE19: 0 | AF19: 0 | AG19: 0 | AH19: 0 | AI19: =IF(AI18="",0,VLOOKUP(AI18,Düngemittel,3,FALSE)) -> 0 | AJ19: 0 | AK19: 0 | AL19: 0 | AM19: 0 | AN19: 0 | AO19: 0 | AP19: 0 | AQ19: 0 | AR19: 0 | AS19: 0 | AT19: 0 | AU19: 0 | AV19: 0 | AW19: 0 | AX19: 0 | AY19: 0 | AZ19: 0 | BA19: 0 | BB19: 0 | BC19: 0 | BD19: 0 | BE19: 0 | BF19: 0 | BG19: 0 | BH19: 0 | BI19: 0 | BJ19: 0
B20: Menge/ha
B21: Bemerkung
B22: Datum
B23: Dünger 4
B24: Preis | C24: =IF(C23="",0,VLOOKUP(C23,Düngemittel,3,FALSE)) -> 0 | D24: 0 | E24: 0 | F24: 0 | G24: 0 | H24: 0 | I24: 0 | J24: 0 | K24: 0 | L24: 0 | M24: 0 | N24: 0 | O24: 0 | P24: 0 | Q24: 0 | R24: 0 | S24: 0 | T24: 0 | U24: 0 | V24: 0 | W24: 0 | X24: 0 | Y24: 0 | Z24: 0 | AA24: 0 | AB24: 0 | AC24: 0 | AD24: 0 | AE24: 0 | AF24: 0 | AG24: 0 | AH24: 0 | AI24: =IF(AI23="",0,VLOOKUP(AI23,Düngemittel,3,FALSE)) -> 0 | AJ24: 0 | AK24: 0 | AL24: 0 | AM24: 0 | AN24: 0 | AO24: 0 | AP24: 0 | AQ24: 0 | AR24: 0 | AS24: 0 | AT24: 0 | AU24: 0 | AV24: 0 | AW24: 0 | AX24: 0 | AY24: 0 | AZ24: 0 | BA24: 0 | BB24: 0 | BC24: 0 | BD24: 0 | BE24: 0 | BF24: 0 | BG24: 0 | BH24: 0 | BI24: 0 | BJ24: 0
B25: Menge/ha
B26: Bemerkung
B27: Datum
B28: Dünger 5
B29: Preis | C29: =IF(C28="",0,VLOOKUP(C28,Düngemittel,3,FALSE)) -> 0 | D29: 0 | E29: 0 | F29: 0 | G29: 0 | H29: 0 | I29: 0 | J29: 0 | K29: 0 | L29: 0 | M29: 0 | N29: 0 | O29: 0 | P29: 0 | Q29: 0 | R29: 0 | S29: 0 | T29: 0 | U29: 0 | V29: 0 | W29: 0 | X29: 0 | Y29: 0 | Z29: 0 | AA29: 0 | AB29: 0 | AC29: 0 | AD29: 0 | AE29: 0 | AF29: 0 | AG29: 0 | AH29: 0 | AI29: =IF(AI28="",0,VLOOKUP(AI28,Düngemittel,3,FALSE)) -> 0 | AJ29: 0 | AK29: 0 | AL29: 0 | AM29: 0 | AN29: 0 | AO29: 0 | AP29: 0 | AQ29: 0 | AR29: 0 | AS29: 0 | AT29: 0 | AU29: 0 | AV29: 0 | AW29: 0 | AX29: 0 | AY29: 0 | AZ29: 0 | BA29: 0 | BB29: 0 | BC29: 0 | BD29: 0 | BE29: 0 | BF29: 0 | BG29: 0 | BH29: 0 | BI29: 0 | BJ29: 0
B30: Menge/ha
B31: Bemerkung
B32: Datum
B33: Dünger 6
B34: Preis | C34: =IF(C33="",0,VLOOKUP(C33,Düngemittel,3,FALSE)) -> 0 | D34: 0 | E34: 0 | F34: 0 | G34: 0 | H34: 0 | I34: 0 | J34: 0 | K34: 0 | L34: 0 | M34: 0 | N34: 0 | O34: 0 | P34: 0 | Q34: 0 | R34: 0 | S34: 0 | T34: 0 | U34: 0 | V34: 0 | W34: 0 | X34: 0 | Y34: 0 | Z34: 0 | AA34: 0 | AB34: 0 | AC34: 0 | AD34: 0 | AE34: 0 | AF34: 0 | AG34: 0 | AH34: 0 | AI34: =IF(AI33="",0,VLOOKUP(AI33,Düngemittel,3,FALSE)) -> 0 | AJ34: 0 | AK34: 0 | AL34: 0 | AM34: 0 | AN34: 0 | AO34: 0 | AP34: 0 | AQ34: 0 | AR34: 0 | AS34: 0 | AT34: 0 | AU34: 0 | AV34: 0 | AW34: 0 | AX34: 0 | AY34: 0 | AZ34: 0 | BA34: 0 | BB34: 0 | BC34: 0 | BD34: 0 | BE34: 0 | BF34: 0 | BG34: 0 | BH34: 0 | BI34: 0 | BJ34: 0
B35: Menge/ha
B36: Bemerkung
B37: Datum
B38: Dünger 7
B39: Preis | C39: =IF(C38="",0,VLOOKUP(C38,Düngemittel,3,FALSE)) -> 0 | D39: 0 | E39: 0 | F39: 0 | G39: 0 | H39: 0 | I39: 0 | J39: 0 | K39: 0 | L39: 0 | M39: 0 | N39: 0 | O39: 0 | P39: 0 | Q39: 0 | R39: 0 | S39: 0 | T39: 0 | U39: 0 | V39: 0 | W39: 0 | X39: 0 | Y39: 0 | Z39: 0 | AA39: 0 | AB39: 0 | AC39: 0 | AD39: 0 | AE39: 0 | AF39: 0 | AG39: 0 | AH39: 0 | AI39: =IF(AI38="",0,VLOOKUP(AI38,Düngemittel,3,FALSE)) -> 0 | AJ39: 0 | AK39: 0 | AL39: 0 | AM39: 0 | AN39: 0 | AO39: 0 | AP39: 0 | AQ39: 0 | AR39: 0 | AS39: 0 | AT39: 0 | AU39: 0 | AV39: 0 | AW39: 0 | AX39: 0 | AY39: 0 | AZ39: 0 | BA39: 0 | BB39: 0 | BC39: 0 | BD39: 0 | BE39: 0 | BF39: 0 | BG39: 0 | BH39: 0 | BI39: 0 | BJ39: 0
B40: Menge/ha
B41: Bemerkung
B42: Datum
B43: Dünger 8
B44: Preis | C44: =IF(C43="",0,VLOOKUP(C43,Düngemittel,3,FALSE)) -> 0 | D44: 0 | E44: 0 | F44: 0 | G44: 0 | H44: 0 | I44: 0 | J44: 0 | K44: 0 | L44: 0 | M44: 0 | N44: 0 | O44: 0 | P44: 0 | Q44: 0 | R44: 0 | S44: 0 | T44: 0 | U44: 0 | V44: 0 | W44: 0 | X44: 0 | Y44: 0 | Z44: 0 | AA44: 0 | AB44: 0 | AC44: 0 | AD44: 0 | AE44: 0 | AF44: 0 | AG44: 0 | AH44: 0 | AI44: =IF(AI43="",0,VLOOKUP(AI43,Düngemittel,3,FALSE)) -> 0 | AJ44: 0 | AK44: 0 | AL44: 0 | AM44: 0 | AN44: 0 | AO44: 0 | AP44: 0 | AQ44: 0 | AR44: 0 | AS44: 0 | AT44: 0 | AU44: 0 | AV44: 0 | AW44: 0 | AX44: 0 | AY44: 0 | AZ44: 0 | BA44: 0 | BB44: 0 | BC44: 0 | BD44: 0 | BE44: 0 | BF44: 0 | BG44: 0 | BH44: 0 | BI44: 0 | BJ44: 0
B45: Menge/ha
B46: Bemerkung
B47: Datum
B48: Dünger 9
B49: Preis | C49: =IF(C48="",0,VLOOKUP(C48,Düngemittel,3,FALSE)) -> 0 | D49: 0 | E49: 0 | F49: 0 | G49: 0 | H49: 0 | I49: 0 | J49: 0 | K49: 0 | L49: 0 | M49: 0 | N49: 0 | O49: 0 | P49: 0 | Q49: 0 | R49: 0 | S49: 0 | T49: 0 | U49: 0 | V49: 0 | W49: 0 | X49: 0 | Y49: 0 | Z49: 0 | AA49: 0 | AB49: 0 | AC49: 0 | AD49: 0 | AE49: 0 | AF49: 0 | AG49: 0 | AH49: 0 | AI49: =IF(AI48="",0,VLOOKUP(AI48,Düngemittel,3,FALSE)) -> 0 | AJ49: 0 | AK49: 0 | AL49: 0 | AM49: 0 | AN49: 0 | AO49: 0 | AP49: 0 | AQ49: 0 | AR49: 0 | AS49: 0 | AT49: 0 | AU49: 0 | AV49: 0 | AW49: 0 | AX49: 0 | AY49: 0 | AZ49: 0 | BA49: 0 | BB49: 0 | BC49: 0 | BD49: 0 | BE49: 0 | BF49: 0 | BG49: 0 | BH49: 0 | BI49: 0 | BJ49: 0
B50: Menge/ha
B51: Bemerkung
B52: Datum
B53: Dünger 10
B54: Preis | C54: =IF(C53="",0,VLOOKUP(C53,Düngemittel,3,FALSE)) -> 0 | D54: 0 | E54: 0 | F54: 0 | G54: 0 | H54: 0 | I54: 0 | J54: 0 | K54: 0 | L54: 0 | M54: 0 | N54: 0 | O54: 0 | P54: 0 | Q54: 0 | R54: 0 | S54: 0 | T54: 0 | U54: 0 | V54: 0 | W54: 0 | X54: 0 | Y54: 0 | Z54: 0 | AA54: 0 | AB54: 0 | AC54: 0 | AD54: 0 | AE54: 0 | AF54: 0 | AG54: 0 | AH54: 0 | AI54: =IF(AI53="",0,VLOOKUP(AI53,Düngemittel,3,FALSE)) -> 0 | AJ54: 0 | AK54: 0 | AL54: 0 | AM54: 0 | AN54: 0 | AO54: 0 | AP54: 0 | AQ54: 0 | AR54: 0 | AS54: 0 | AT54: 0 | AU54: 0 | AV54: 0 | AW54: 0 | AX54: 0 | AY54: 0 | AZ54: 0 | BA54: 0 | BB54: 0 | BC54: 0 | BD54: 0 | BE54: 0 | BF54: 0 | BG54: 0 | BH54: 0 | BI54: 0 | BJ54: 0
B55: Menge/ha
B56: Bemerkung
B57: Datum
B58: Dünger 11
B59: Preis | C59: =IF(C58="",0,VLOOKUP(C58,Düngemittel,3,FALSE)) -> 0 | D59: 0 | E59: 0 | F59: 0 | G59: 0 | H59: 0 | I59: 0 | J59: 0 | K59: 0 | L59: 0 | M59: 0 | N59: 0 | O59: 0 | P59: 0 | Q59: 0 | R59: 0 | S59: 0 | T59: 0 | U59: 0 | V59: 0 | W59: 0 | X59: 0 | Y59: 0 | Z59: 0 | AA59: 0 | AB59: 0 | AC59: 0 | AD59: 0 | AE59: 0 | AF59: 0 | AG59: 0 | AH59: 0 | AI59: =IF(AI58="",0,VLOOKUP(AI58,Düngemittel,3,FALSE)) -> 0 | AJ59: 0 | AK59: 0 | AL59: 0 | AM59: 0 | AN59: 0 | AO59: 0 | AP59: 0 | AQ59: 0 | AR59: 0 | AS59: 0 | AT59: 0 | AU59: 0 | AV59: 0 | AW59: 0 | AX59: 0 | AY59: 0 | AZ59: 0 | BA59: 0 | BB59: 0 | BC59: 0 | BD59: 0 | BE59: 0 | BF59: 0 | BG59: 0 | BH59: 0 | BI59: 0 | BJ59: 0
B60: Menge/ha
B61: Bemerkung
B62: Datum
B63: Dünger 12
B64: Preis | C64: =IF(C63="",0,VLOOKUP(C63,Düngemittel,3,FALSE)) -> 0 | D64: 0 | E64: 0 | F64: 0 | G64: 0 | H64: 0 | I64: 0 | J64: 0 | K64: 0 | L64: 0 | M64: 0 | N64: 0 | O64: 0 | P64: 0 | Q64: 0 | R64: 0 | S64: 0 | T64: 0 | U64: 0 | V64: 0 | W64: 0 | X64: 0 | Y64: 0 | Z64: 0 | AA64: 0 | AB64: 0 | AC64: 0 | AD64: 0 | AE64: 0 | AF64: 0 | AG64: 0 | AH64: 0 | AI64: =IF(AI63="",0,VLOOKUP(AI63,Düngemittel,3,FALSE)) -> 0 | AJ64: 0 | AK64: 0 | AL64: 0 | AM64: 0 | AN64: 0 | AO64: 0 | AP64: 0 | AQ64: 0 | AR64: 0 | AS64: 0 | AT64: 0 | AU64: 0 | AV64: 0 | AW64: 0 | AX64: 0 | AY64: 0 | AZ64: 0 | BA64: 0 | BB64: 0 | BC64: 0 | BD64: 0 | BE64: 0 | BF64: 0 | BG64: 0 | BH64: 0 | BI64: 0 | BJ64: 0
B65: Menge/ha
B66: Bemerkung
B67: Datum
B68: Dünger 13
B69: Preis | C69: =IF(C68="",0,VLOOKUP(C68,Düngemittel,3,FALSE)) -> 0 | D69: 0 | E69: 0 | F69: 0 | G69: 0 | H69: 0 | I69: 0 | J69: 0 | K69: 0 | L69: 0 | M69: 0 | N69: 0 | O69: 0 | P69: 0 | Q69: 0 | R69: 0 | S69: 0 | T69: 0 | U69: 0 | V69: 0 | W69: 0 | X69: 0 | Y69: 0 | Z69: 0 | AA69: 0 | AB69: 0 | AC69: 0 | AD69: 0 | AE69: 0 | AF69: 0 | AG69: 0 | AH69: 0 | AI69: =IF(AI68="",0,VLOOKUP(AI68,Düngemittel,3,FALSE)) -> 0 | AJ69: 0 | AK69: 0 | AL69: 0 | AM69: 0 | AN69: 0 | AO69: 0 | AP69: 0 | AQ69: 0 | AR69: 0 | AS69: 0 | AT69: 0 | AU69: 0 | AV69: 0 | AW69: 0 | AX69: 0 | AY69: 0 | AZ69: 0 | BA69: 0 | BB69: 0 | BC69: 0 | BD69: 0 | BE69: 0 | BF69: 0 | BG69: 0 | BH69: 0 | BI69: 0 | BJ69: 0
B70: Menge/ha
B71: Bemerkung
B72: Datum
B73: Dünger 14
B74: Preis | C74: =IF(C73="",0,VLOOKUP(C73,Düngemittel,3,FALSE)) -> 0 | D74: 0 | E74: 0 | F74: 0 | G74: 0 | H74: 0 | I74: 0 | J74: 0 | K74: 0 | L74: 0 | M74: 0 | N74: 0 | O74: 0 | P74: 0 | Q74: 0 | R74: 0 | S74: 0 | T74: 0 | U74: 0 | V74: 0 | W74: 0 | X74: 0 | Y74: 0 | Z74: 0 | AA74: 0 | AB74: 0 | AC74: 0 | AD74: 0 | AE74: 0 | AF74: 0 | AG74: 0 | AH74: 0 | AI74: =IF(AI73="",0,VLOOKUP(AI73,Düngemittel,3,FALSE)) -> 0 | AJ74: 0 | AK74: 0 | AL74: 0 | AM74: 0 | AN74: 0 | AO74: 0 | AP74: 0 | AQ74: 0 | AR74: 0 | AS74: 0 | AT74: 0 | AU74: 0 | AV74: 0 | AW74: 0 | AX74: 0 | AY74: 0 | AZ74: 0 | BA74: 0 | BB74: 0 | BC74: 0 | BD74: 0 | BE74: 0 | BF74: 0 | BG74: 0 | BH74: 0 | BI74: 0 | BJ74: 0
B75: Menge/ha
B76: Bemerkung
B77: Datum
B78: Dünger 15
B79: Preis | C79: =IF(C78="",0,VLOOKUP(C78,Düngemittel,3,FALSE)) -> 0 | D79: 0 | E79: 0 | F79: 0 | G79: 0 | H79: 0 | I79: 0 | J79: 0 | K79: 0 | L79: 0 | M79: 0 | N79: 0 | O79: 0 | P79: 0 | Q79: 0 | R79: 0 | S79: 0 | T79: 0 | U79: 0 | V79: 0 | W79: 0 | X79: 0 | Y79: 0 | Z79: 0 | AA79: 0 | AB79: 0 | AC79: 0 | AD79: 0 | AE79: 0 | AF79: 0 | AG79: 0 | AH79: 0 | AI79: =IF(AI78="",0,VLOOKUP(AI78,Düngemittel,3,FALSE)) -> 0 | AJ79: 0 | AK79: 0 | AL79: 0 | AM79: 0 | AN79: 0 | AO79: 0 | AP79: 0 | AQ79: 0 | AR79: 0 | AS79: 0 | AT79: 0 | AU79: 0 | AV79: 0 | AW79: 0 | AX79: 0 | AY79: 0 | AZ79: 0 | BA79: 0 | BB79: 0 | BC79: 0 | BD79: 0 | BE79: 0 | BF79: 0 | BG79: 0 | BH79: 0 | BI79: 0 | BJ79: 0
B80: Menge/ha
B81: Bemerkung
B82: Datum
B83: Dünger 16
B84: Preis | C84: =IF(C83="",0,VLOOKUP(C83,Düngemittel,3,FALSE)) -> 0 | D84: 0 | E84: 0 | F84: 0 | G84: 0 | H84: 0 | I84: 0 | J84: 0 | K84: 0 | L84: 0 | M84: 0 | N84: 0 | O84: 0 | P84: 0 | Q84: 0 | R84: 0 | S84: 0 | T84: 0 | U84: 0 | V84: 0 | W84: 0 | X84: 0 | Y84: 0 | Z84: 0 | AA84: 0 | AB84: 0 | AC84: 0 | AD84: 0 | AE84: 0 | AF84: 0 | AG84: 0 | AH84: 0 | AI84: =IF(AI83="",0,VLOOKUP(AI83,Düngemittel,3,FALSE)) -> 0 | AJ84: 0 | AK84: 0 | AL84: 0 | AM84: 0 | AN84: 0 | AO84: 0 | AP84: 0 | AQ84: 0 | AR84: 0 | AS84: 0 | AT84: 0 | AU84: 0 | AV84: 0 | AW84: 0 | AX84: 0 | AY84: 0 | AZ84: 0 | BA84: 0 | BB84: 0 | BC84: 0 | BD84: 0 | BE84: 0 | BF84: 0 | BG84: 0 | BH84: 0 | BI84: 0 | BJ84: 0
B85: Menge/ha
B86: Bemerkung
B87: Datum
B88: Dünger 17
B89: Preis | C89: =IF(C88="",0,VLOOKUP(C88,Düngemittel,3,FALSE)) -> 0 | D89: 0 | E89: 0 | F89: 0 | G89: 0 | H89: 0 | I89: 0 | J89: 0 | K89: 0 | L89: 0 | M89: 0 | N89: 0 | O89: 0 | P89: 0 | Q89: 0 | R89: 0 | S89: 0 | T89: 0 | U89: 0 | V89: 0 | W89: 0 | X89: 0 | Y89: 0 | Z89: 0 | AA89: 0 | AB89: 0 | AC89: 0 | AD89: 0 | AE89: 0 | AF89: 0 | AG89: 0 | AH89: 0 | AI89: =IF(AI88="",0,VLOOKUP(AI88,Düngemittel,3,FALSE)) -> 0 | AJ89: 0 | AK89: 0 | AL89: 0 | AM89: 0 | AN89: 0 | AO89: 0 | AP89: 0 | AQ89: 0 | AR89: 0 | AS89: 0 | AT89: 0 | AU89: 0 | AV89: 0 | AW89: 0 | AX89: 0 | AY89: 0 | AZ89: 0 | BA89: 0 | BB89: 0 | BC89: 0 | BD89: 0 | BE89: 0 | BF89: 0 | BG89: 0 | BH89: 0 | BI89: 0 | BJ89: 0
B90: Menge/ha
B91: Bemerkung
B92: Datum
B93: Dünger 18
B94: Preis | C94: =IF(C93="",0,VLOOKUP(C93,Düngemittel,3,FALSE)) -> 0 | D94: 0 | E94: 0 | F94: 0 | G94: 0 | H94: 0 | I94: 0 | J94: 0 | K94: 0 | L94: 0 | M94: 0 | N94: 0 | O94: 0 | P94: 0 | Q94: 0 | R94: 0 | S94: 0 | T94: 0 | U94: 0 | V94: 0 | W94: 0 | X94: 0 | Y94: 0 | Z94: 0 | AA94: 0 | AB94: 0 | AC94: 0 | AD94: 0 | AE94: 0 | AF94: 0 | AG94: 0 | AH94: 0 | AI94: =IF(AI93="",0,VLOOKUP(AI93,Düngemittel,3,FALSE)) -> 0 | AJ94: 0 | AK94: 0 | AL94: 0 | AM94: 0 | AN94: 0 | AO94: 0 | AP94: 0 | AQ94: 0 | AR94: 0 | AS94: 0 | AT94: 0 | AU94: 0 | AV94: 0 | AW94: 0 | AX94: 0 | AY94: 0 | AZ94: 0 | BA94: 0 | BB94: 0 | BC94: 0 | BD94: 0 | BE94: 0 | BF94: 0 | BG94: 0 | BH94: 0 | BI94: 0 | BJ94: 0
B95: Menge/ha
B96: Bemerkung
B97: Datum
B98: Dünger 19
B99: Preis | C99: =IF(C98="",0,VLOOKUP(C98,Düngemittel,3,FALSE)) -> 0 | D99: 0 | E99: 0 | F99: 0 | G99: 0 | H99: 0 | I99: 0 | J99: 0 | K99: 0 | L99: 0 | M99: 0 | N99: 0 | O99: 0 | P99: 0 | Q99: 0 | R99: 0 | S99: 0 | T99: 0 | U99: 0 | V99: 0 | W99: 0 | X99: 0 | Y99: 0 | Z99: 0 | AA99: 0 | AB99: 0 | AC99: 0 | AD99: 0 | AE99: 0 | AF99: 0 | AG99: 0 | AH99: 0 | AI99: =IF(AI98="",0,VLOOKUP(AI98,Düngemittel,3,FALSE)) -> 0 | AJ99: 0 | AK99: 0 | AL99: 0 | AM99: 0 | AN99: 0 | AO99: 0 | AP99: 0 | AQ99: 0 | AR99: 0 | AS99: 0 | AT99: 0 | AU99: 0 | AV99: 0 | AW99: 0 | AX99: 0 | AY99: 0 | AZ99: 0 | BA99: 0 | BB99: 0 | BC99: 0 | BD99: 0 | BE99: 0 | BF99: 0 | BG99: 0 | BH99: 0 | BI99: 0 | BJ99: 0
B100: Menge/ha
B101: Bemerkung
B102: Datum
B103: Dünger 20
B104: Preis | C104: =IF(C103="",0,VLOOKUP(C103,Düngemittel,3,FALSE)) -> 0 | D104: 0 | E104: 0 | F104: 0 | G104: 0 | H104: 0 | I104: 0 | J104: 0 | K104: 0 | L104: 0 | M104: 0 | N104: 0 | O104: 0 | P104: 0 | Q104: 0 | R104: 0 | S104: 0 | T104: 0 | U104: 0 | V104: 0 | W104: 0 | X104: 0 | Y104: 0 | Z104: 0 | AA104: 0 | AB104: 0 | AC104: 0 | AD104: 0 | AE104: 0 | AF104: 0 | AG104: 0 | AH104: 0 | AI104: =IF(AI103="",0,VLOOKUP(AI103,Düngemittel,3,FALSE)) -> 0 | AJ104: 0 | AK104: 0 | AL104: 0 | AM104: 0 | AN104: 0 | AO104: 0 | AP104: 0 | AQ104: 0 | AR104: 0 | AS104: 0 | AT104: 0 | AU104: 0 | AV104: 0 | AW104: 0 | AX104: 0 | AY104: 0 | AZ104: 0 | BA104: 0 | BB104: 0 | BC104: 0 | BD104: 0 | BE104: 0 | BF104: 0 | BG104: 0 | BH104: 0 | BI104: 0 | BJ104: 0
B105: Menge/ha
B106: Bemerkung
B107: Datum
B108: Dünger 21
B109: Preis | C109: =IF(C108="",0,VLOOKUP(C108,Düngemittel,3,FALSE)) -> 0 | D109: 0 | E109: 0 | F109: 0 | G109: 0 | H109: 0 | I109: 0 | J109: 0 | K109: 0 | L109: 0 | M109: 0 | N109: 0 | O109: 0 | P109: 0 | Q109: 0 | R109: 0 | S109: 0 | T109: 0 | U109: 0 | V109: 0 | W109: 0 | X109: 0 | Y109: 0 | Z109: 0 | AA109: 0 | AB109: 0 | AC109: 0 | AD109: 0 | AE109: 0 | AF109: 0 | AG109: 0 | AH109: 0 | AI109: =IF(AI108="",0,VLOOKUP(AI108,Düngemittel,3,FALSE)) -> 0 | AJ109: 0 | AK109: 0 | AL109: 0 | AM109: 0 | AN109: 0 | AO109: 0 | AP109: 0 | AQ109: 0 | AR109: 0 | AS109: 0 | AT109: 0 | AU109: 0 | AV109: 0 | AW109: 0 | AX109: 0 | AY109: 0 | AZ109: 0 | BA109: 0 | BB109: 0 | BC109: 0 | BD109: 0 | BE109: 0 | BF109: 0 | BG109: 0 | BH109: 0 | BI109: 0 | BJ109: 0
B110: Menge/ha
B111: Bemerkung
B112: Datum
B113: Dünger 22
B114: Preis | C114: =IF(C113="",0,VLOOKUP(C113,Düngemittel,3,FALSE)) -> 0 | D114: 0 | E114: 0 | F114: 0 | G114: 0 | H114: 0 | I114: 0 | J114: 0 | K114: 0 | L114: 0 | M114: 0 | N114: 0 | O114: 0 | P114: 0 | Q114: 0 | R114: 0 | S114: 0 | T114: 0 | U114: 0 | V114: 0 | W114: 0 | X114: 0 | Y114: 0 | Z114: 0 | AA114: 0 | AB114: 0 | AC114: 0 | AD114: 0 | AE114: 0 | AF114: 0 | AG114: 0 | AH114: 0 | AI114: =IF(AI113="",0,VLOOKUP(AI113,Düngemittel,3,FALSE)) -> 0 | AJ114: 0 | AK114: 0 | AL114: 0 | AM114: 0 | AN114: 0 | AO114: 0 | AP114: 0 | AQ114: 0 | AR114: 0 | AS114: 0 | AT114: 0 | AU114: 0 | AV114: 0 | AW114: 0 | AX114: 0 | AY114: 0 | AZ114: 0 | BA114: 0 | BB114: 0 | BC114: 0 | BD114: 0 | BE114: 0 | BF114: 0 | BG114: 0 | BH114: 0 | BI114: 0 | BJ114: 0
B115: Menge/ha
B116: Bemerkung
B117: Datum
B118: Dünger 23
B119: Preis | C119: =IF(C118="",0,VLOOKUP(C118,Düngemittel,3,FALSE)) -> 0 | D119: 0 | E119: 0 | F119: 0 | G119: 0 | H119: 0 | I119: 0 | J119: 0 | K119: 0 | L119: 0 | M119: 0 | N119: 0 | O119: 0 | P119: 0 | Q119: 0 | R119: 0 | S119: 0 | T119: 0 | U119: 0 | V119: 0 | W119: 0 | X119: 0 | Y119: 0 | Z119: 0 | AA119: 0 | AB119: 0 | AC119: 0 | AD119: 0 | AE119: 0 | AF119: 0 | AG119: 0 | AH119: 0 | AI119: =IF(AI118="",0,VLOOKUP(AI118,Düngemittel,3,FALSE)) -> 0 | AJ119: 0 | AK119: 0 | AL119: 0 | AM119: 0 | AN119: 0 | AO119: 0 | AP119: 0 | AQ119: 0 | AR119: 0 | AS119: 0 | AT119: 0 | AU119: 0 | AV119: 0 | AW119: 0 | AX119: 0 | AY119: 0 | AZ119: 0 | BA119: 0 | BB119: 0 | BC119: 0 | BD119: 0 | BE119: 0 | BF119: 0 | BG119: 0 | BH119: 0 | BI119: 0 | BJ119: 0
B120: Menge/ha
B121: Bemerkung
B122: Datum
B123: Dünger 24
B124: Preis | C124: =IF(C123="",0,VLOOKUP(C123,Düngemittel,3,FALSE)) -> 0 | D124: 0 | E124: 0 | F124: 0 | G124: 0 | H124: 0 | I124: 0 | J124: 0 | K124: 0 | L124: 0 | M124: 0 | N124: 0 | O124: 0 | P124: 0 | Q124: 0 | R124: 0 | S124: 0 | T124: 0 | U124: 0 | V124: 0 | W124: 0 | X124: 0 | Y124: 0 | Z124: 0 | AA124: 0 | AB124: 0 | AC124: 0 | AD124: 0 | AE124: 0 | AF124: 0 | AG124: 0 | AH124: 0 | AI124: =IF(AI123="",0,VLOOKUP(AI123,Düngemittel,3,FALSE)) -> 0 | AJ124: 0 | AK124: 0 | AL124: 0 | AM124: 0 | AN124: 0 | AO124: 0 | AP124: 0 | AQ124: 0 | AR124: 0 | AS124: 0 | AT124: 0 | AU124: 0 | AV124: 0 | AW124: 0 | AX124: 0 | AY124: 0 | AZ124: 0 | BA124: 0 | BB124: 0 | BC124: 0 | BD124: 0 | BE124: 0 | BF124: 0 | BG124: 0 | BH124: 0 | BI124: 0 | BJ124: 0
B125: Menge/ha
B126: Bemerkung
B127: Datum
B128: Dünger 25
B129: Preis | C129: =IF(C128="",0,VLOOKUP(C128,Düngemittel,3,FALSE)) -> 0 | D129: 0 | E129: 0 | F129: 0 | G129: 0 | H129: 0 | I129: 0 | J129: 0 | K129: 0 | L129: 0 | M129: 0 | N129: 0 | O129: 0 | P129: 0 | Q129: 0 | R129: 0 | S129: 0 | T129: 0 | U129: 0 | V129: 0 | W129: 0 | X129: 0 | Y129: 0 | Z129: 0 | AA129: 0 | AB129: 0 | AC129: 0 | AD129: 0 | AE129: 0 | AF129: 0 | AG129: 0 | AH129: 0 | AI129: =IF(AI128="",0,VLOOKUP(AI128,Düngemittel,3,FALSE)) -> 0 | AJ129: 0 | AK129: 0 | AL129: 0 | AM129: 0 | AN129: 0 | AO129: 0 | AP129: 0 | AQ129: 0 | AR129: 0 | AS129: 0 | AT129: 0 | AU129: 0 | AV129: 0 | AW129: 0 | AX129: 0 | AY129: 0 | AZ129: 0 | BA129: 0 | BB129: 0 | BC129: 0 | BD129: 0 | BE129: 0 | BF129: 0 | BG129: 0 | BH129: 0 | BI129: 0 | BJ129: 0
B130: Menge/ha
B131: Bemerkung
B132: Datum
B133: Dünger 26
B134: Preis | C134: =IF(C133="",0,VLOOKUP(C133,Düngemittel,3,FALSE)) -> 0 | D134: 0 | E134: 0 | F134: 0 | G134: 0 | H134: 0 | I134: 0 | J134: 0 | K134: 0 | L134: 0 | M134: 0 | N134: 0 | O134: 0 | P134: 0 | Q134: 0 | R134: 0 | S134: 0 | T134: 0 | U134: 0 | V134: 0 | W134: 0 | X134: 0 | Y134: 0 | Z134: 0 | AA134: 0 | AB134: 0 | AC134: 0 | AD134: 0 | AE134: 0 | AF134: 0 | AG134: 0 | AH134: 0 | AI134: =IF(AI133="",0,VLOOKUP(AI133,Düngemittel,3,FALSE)) -> 0 | AJ134: 0 | AK134: 0 | AL134: 0 | AM134: 0 | AN134: 0 | AO134: 0 | AP134: 0 | AQ134: 0 | AR134: 0 | AS134: 0 | AT134: 0 | AU134: 0 | AV134: 0 | AW134: 0 | AX134: 0 | AY134: 0 | AZ134: 0 | BA134: 0 | BB134: 0 | BC134: 0 | BD134: 0 | BE134: 0 | BF134: 0 | BG134: 0 | BH134: 0 | BI134: 0 | BJ134: 0
B135: Menge/ha
B136: Bemerkung
B137: Datum
B138: Dünger 27
B139: Preis | C139: =IF(C138="",0,VLOOKUP(C138,Düngemittel,3,FALSE)) -> 0 | D139: 0 | E139: 0 | F139: 0 | G139: 0 | H139: 0 | I139: 0 | J139: 0 | K139: 0 | L139: 0 | M139: 0 | N139: 0 | O139: 0 | P139: 0 | Q139: 0 | R139: 0 | S139: 0 | T139: 0 | U139: 0 | V139: 0 | W139: 0 | X139: 0 | Y139: 0 | Z139: 0 | AA139: 0 | AB139: 0 | AC139: 0 | AD139: 0 | AE139: 0 | AF139: 0 | AG139: 0 | AH139: 0 | AI139: =IF(AI138="",0,VLOOKUP(AI138,Düngemittel,3,FALSE)) -> 0 | AJ139: 0 | AK139: 0 | AL139: 0 | AM139: 0 | AN139: 0 | AO139: 0 | AP139: 0 | AQ139: 0 | AR139: 0 | AS139: 0 | AT139: 0 | AU139: 0 | AV139: 0 | AW139: 0 | AX139: 0 | AY139: 0 | AZ139: 0 | BA139: 0 | BB139: 0 | BC139: 0 | BD139: 0 | BE139: 0 | BF139: 0 | BG139: 0 | BH139: 0 | BI139: 0 | BJ139: 0
B140: Menge/ha
B141: Bemerkung
B142: Datum
B143: Dünger 28
B144: Preis | C144: =IF(C143="",0,VLOOKUP(C143,Düngemittel,3,FALSE)) -> 0 | D144: 0 | E144: 0 | F144: 0 | G144: 0 | H144: 0 | I144: 0 | J144: 0 | K144: 0 | L144: 0 | M144: 0 | N144: 0 | O144: 0 | P144: 0 | Q144: 0 | R144: 0 | S144: 0 | T144: 0 | U144: 0 | V144: 0 | W144: 0 | X144: 0 | Y144: 0 | Z144: 0 | AA144: 0 | AB144: 0 | AC144: 0 | AD144: 0 | AE144: 0 | AF144: 0 | AG144: 0 | AH144: 0 | AI144: =IF(AI143="",0,VLOOKUP(AI143,Düngemittel,3,FALSE)) -> 0 | AJ144: 0 | AK144: 0 | AL144: 0 | AM144: 0 | AN144: 0 | AO144: 0 | AP144: 0 | AQ144: 0 | AR144: 0 | AS144: 0 | AT144: 0 | AU144: 0 | AV144: 0 | AW144: 0 | AX144: 0 | AY144: 0 | AZ144: 0 | BA144: 0 | BB144: 0 | BC144: 0 | BD144: 0 | BE144: 0 | BF144: 0 | BG144: 0 | BH144: 0 | BI144: 0 | BJ144: 0
B145: Menge/ha
B146: Bemerkung
B147: Datum
B148: Dünger 29
B149: Preis | C149: =IF(C148="",0,VLOOKUP(C148,Düngemittel,3,FALSE)) -> 0 | D149: 0 | E149: 0 | F149: 0 | G149: 0 | H149: 0 | I149: 0 | J149: 0 | K149: 0 | L149: 0 | M149: 0 | N149: 0 | O149: 0 | P149: 0 | Q149: 0 | R149: 0 | S149: 0 | T149: 0 | U149: 0 | V149: 0 | W149: 0 | X149: 0 | Y149: 0 | Z149: 0 | AA149: 0 | AB149: 0 | AC149: 0 | AD149: 0 | AE149: 0 | AF149: 0 | AG149: 0 | AH149: 0 | AI149: =IF(AI148="",0,VLOOKUP(AI148,Düngemittel,3,FALSE)) -> 0 | AJ149: 0 | AK149: 0 | AL149: 0 | AM149: 0 | AN149: 0 | AO149: 0 | AP149: 0 | AQ149: 0 | AR149: 0 | AS149: 0 | AT149: 0 | AU149: 0 | AV149: 0 | AW149: 0 | AX149: 0 | AY149: 0 | AZ149: 0 | BA149: 0 | BB149: 0 | BC149: 0 | BD149: 0 | BE149: 0 | BF149: 0 | BG149: 0 | BH149: 0 | BI149: 0 | BJ149: 0
B150: Menge/ha
B151: Bemerkung
B152: Datum
B153: Dünger 30
B154: Preis | C154: =IF(C153="",0,VLOOKUP(C153,Düngemittel,3,FALSE)) -> 0 | D154: 0 | E154: 0 | F154: 0 | G154: 0 | H154: 0 | I154: 0 | J154: 0 | K154: 0 | L154: 0 | M154: 0 | N154: 0 | O154: 0 | P154: 0 | Q154: 0 | R154: 0 | S154: 0 | T154: 0 | U154: 0 | V154: 0 | W154: 0 | X154: 0 | Y154: 0 | Z154: 0 | AA154: 0 | AB154: 0 | AC154: 0 | AD154: 0 | AE154: 0 | AF154: 0 | AG154: 0 | AH154: 0 | AI154: =IF(AI153="",0,VLOOKUP(AI153,Düngemittel,3,FALSE)) -> 0 | AJ154: 0 | AK154: 0 | AL154: 0 | AM154: 0 | AN154: 0 | AO154: 0 | AP154: 0 | AQ154: 0 | AR154: 0 | AS154: 0 | AT154: 0 | AU154: 0 | AV154: 0 | AW154: 0 | AX154: 0 | AY154: 0 | AZ154: 0 | BA154: 0 | BB154: 0 | BC154: 0 | BD154: 0 | BE154: 0 | BF154: 0 | BG154: 0 | BH154: 0 | BI154: 0 | BJ154: 0
B155: Menge/ha
B156: Bemerkung
B157: Datum
B158: Dünger 31
B159: Preis | C159: =IF(C158="",0,VLOOKUP(C158,Düngemittel,3,FALSE)) -> 0 | D159: 0 | E159: 0 | F159: 0 | G159: 0 | H159: 0 | I159: 0 | J159: 0 | K159: 0 | L159: 0 | M159: 0 | N159: 0 | O159: 0 | P159: 0 | Q159: 0 | R159: 0 | S159: 0 | T159: 0 | U159: 0 | V159: 0 | W159: 0 | X159: 0 | Y159: 0 | Z159: 0 | AA159: 0 | AB159: 0 | AC159: 0 | AD159: 0 | AE159: 0 | AF159: 0 | AG159: 0 | AH159: 0 | AI159: =IF(AI158="",0,VLOOKUP(AI158,Düngemittel,3,FALSE)) -> 0 | AJ159: 0 | AK159: 0 | AL159: 0 | AM159: 0 | AN159: 0 | AO159: 0 | AP159: 0 | AQ159: 0 | AR159: 0 | AS159: 0 | AT159: 0 | AU159: 0 | AV159: 0 | AW159: 0 | AX159: 0 | AY159: 0 | AZ159: 0 | BA159: 0 | BB159: 0 | BC159: 0 | BD159: 0 | BE159: 0 | BF159: 0 | BG159: 0 | BH159: 0 | BI159: 0 | BJ159: 0
B160: Menge/ha
B161: Bemerkung
B162: €/ha | C162: =C9*C10+C14*C15+C19*C20+C24*C25+C29*C30+C34*C35+C39*C40+C44*C45+C49*C50+C54*C55+C59*C60+C64*C65+C69*C70+C74*C75+C79*C80+C84*C85+C89*C90+C99*C100 -> 99.125 | D162: =D9*D10+D14*D15+D19*D20+D24*D25+D29*D30+D34*D35+D39*D40+D44*D45+D49*D50+D54*D55+D59*D60+D64*D65+D69*D70+D74*D75+D79*D80+D84*D85+D89*D90+D99*D100 -> 0 | E162: 0 | F162: 0 | G162: 0 | H162: 0 | I162: 0 | J162: 0 | K162: 0 | L162: 0 | M162: 0 | N162: 0 | O162: 0 | P162: 0 | Q162: 0 | R162: 0 | S162: 0 | T162: 0 | U162: 0 | V162: 0 | W162: 0 | X162: 0 | Y162: 0 | Z162: 0 | AA162: 0 | AB162: 0 | AC162: 0 | AD162: 0 | AE162: 0 | AF162: 0 | AG162: 0 | AH162: 0 | AI162: 0 | AJ162: 0 | AK162: 0 | AL162: 0 | AM162: 0 | AN162: 0 | AO162: 0 | AP162: 0 | AQ162: 0 | AR162: 0 | AS162: 0 | AT162: 0 | AU162: 0 | AV162: 0 | AW162: 0 | AX162: 0 | AY162: 0 | AZ162: 0 | BA162: 0 | BB162: 0 | BC162: 0 | BD162: 0 | BE162: 0 | BF162: 0 | BG162: 0 | BH162: 0 | BI162: 0 | BJ162: 0
B163: €/gesamt | C163: =C162*C6 -> 376.675 | D163: =D162*D6 -> 0 | E163: 0 | F163: 0 | G163: 0 | H163: 0 | I163: 0 | J163: 0 | K163: 0 | L163: 0 | M163: 0 | N163: 0 | O163: 0 | P163: 0 | Q163: 0 | R163: 0 | S163: 0 | T163: 0 | U163: 0 | V163: 0 | W163: =W162*W6 -> 0 | X163: 0 | Y163: 0 | Z163: 0 | AA163: 0 | AB163: 0 | AC163: 0 | AD163: 0 | AE163: 0 | AF163: 0 | AG163: =AG162*AG6 -> 0 | AH163: 0 | AI163: 0 | AJ163: 0 | AK163: 0 | AL163: 0 | AM163: 0 | AN163: 0 | AO163: 0 | AP163: 0 | AQ163: 0 | AR163: 0 | AS163: 0 | AT163: 0 | AU163: 0 | AV163: 0 | AW163: 0 | AX163: 0 | AY163: 0 | AZ163: 0 | BA163: 0 | BB163: 0 | BC163: 0 | BD163: 0 | BE163: 0 | BF163: 0 | BG163: 0 | BH163: 0 | BI163: 0 | BJ163: 0 | BK163: =SUM(C163:BJ163) -> 376.675
B168: Düngebilanz
B169: N- Düngebedarf | C169: 28
B170: - N-min | C170: =IF(Betriebsdaten!C37="",0,Betriebsdaten!C37) -> 52 | D170: =IF(Betriebsdaten!D37="",0,Betriebsdaten!D37) -> 0 | E170: =IF(Betriebsdaten!E37="",0,Betriebsdaten!E37) -> 0 | F170: =IF(Betriebsdaten!F37="",0,Betriebsdaten!F37) -> 0 | G170: =IF(Betriebsdaten!G37="",0,Betriebsdaten!G37) -> 0 | H170: =IF(Betriebsdaten!H37="",0,Betriebsdaten!H37) -> 0 | I170: =IF(Betriebsdaten!I37="",0,Betriebsdaten!I37) -> 0 | J170: =IF(Betriebsdaten!J37="",0,Betriebsdaten!J37) -> 0 | K170: =IF(Betriebsdaten!K37="",0,Betriebsdaten!K37) -> 0 | L170: =IF(Betriebsdaten!L37="",0,Betriebsdaten!L37) -> 0 | M170: =IF(Betriebsdaten!M37="",0,Betriebsdaten!M37) -> 0 | N170: =IF(Betriebsdaten!N37="",0,Betriebsdaten!N37) -> 0 | O170: =IF(Betriebsdaten!O37="",0,Betriebsdaten!O37) -> 0 | P170: =IF(Betriebsdaten!K37="",0,Betriebsdaten!K37) -> 0 | Q170: =IF(Betriebsdaten!Q37="",0,Betriebsdaten!Q37) -> 0 | R170: =IF(Betriebsdaten!R37="",0,Betriebsdaten!R37) -> 0 | S170: =IF(Betriebsdaten!S37="",0,Betriebsdaten!S37) -> 0 | T170: =IF(Betriebsdaten!T37="",0,Betriebsdaten!T37) -> 0 | U170: =IF(Betriebsdaten!U37="",0,Betriebsdaten!U37) -> 0 | V170: =IF(Betriebsdaten!V37="",0,Betriebsdaten!V37) -> 0 | W170: =IF(Betriebsdaten!W37="",0,Betriebsdaten!W37) -> 0 | X170: =IF(Betriebsdaten!X37="",0,Betriebsdaten!X37) -> 0 | Y170: =IF(Betriebsdaten!Y37="",0,Betriebsdaten!Y37) -> 0 | Z170: =IF(Betriebsdaten!Z37="",0,Betriebsdaten!Z37) -> 0 | AA170: =IF(Betriebsdaten!AA37="",0,Betriebsdaten!AA37) -> 0 | AB170: =IF(Betriebsdaten!AB37="",0,Betriebsdaten!AB37) -> 0 | AC170: =IF(Betriebsdaten!AC37="",0,Betriebsdaten!AC37) -> 0 | AD170: =IF(Betriebsdaten!AD37="",0,Betriebsdaten!AD37) -> 0 | AE170: =IF(Betriebsdaten!AE37="",0,Betriebsdaten!AE37) -> 0 | AF170: =IF(Betriebsdaten!AF37="",0,Betriebsdaten!AF37) -> 0 | AG170: =IF(Betriebsdaten!AG37="",0,Betriebsdaten!AG37) -> 0 | AH170: =IF(Betriebsdaten!AH37="",0,Betriebsdaten!AH37) -> 0 | AI170: =IF(Betriebsdaten!AI37="",0,Betriebsdaten!AI37) -> 0 | AJ170: =IF(Betriebsdaten!AJ37="",0,Betriebsdaten!AJ37) -> 0 | AK170: =IF(Betriebsdaten!AK37="",0,Betriebsdaten!AK37) -> 0 | AL170: =IF(Betriebsdaten!AL37="",0,Betriebsdaten!AL37) -> 0 | AM170: =IF(Betriebsdaten!AM37="",0,Betriebsdaten!AM37) -> 0 | AN170: =IF(Betriebsdaten!AN37="",0,Betriebsdaten!AN37) -> 0 | AO170: =IF(Betriebsdaten!AO37="",0,Betriebsdaten!AO37) -> 0 | AP170: =IF(Betriebsdaten!AP37="",0,Betriebsdaten!AP37) -> 0 | AQ170: =IF(Betriebsdaten!AQ37="",0,Betriebsdaten!AQ37) -> 0 | AR170: =IF(Betriebsdaten!AR37="",0,Betriebsdaten!AR37) -> 0 | AS170: =IF(Betriebsdaten!AS37="",0,Betriebsdaten!AS37) -> 0 | AT170: =IF(Betriebsdaten!AT37="",0,Betriebsdaten!AT37) -> 0 | AU170: =IF(Betriebsdaten!AU37="",0,Betriebsdaten!AU37) -> 0 | AV170: =IF(Betriebsdaten!AV37="",0,Betriebsdaten!AV37) -> 0 | AW170: =IF(Betriebsdaten!AW37="",0,Betriebsdaten!AW37) -> 0 | AX170: =IF(Betriebsdaten!AX37="",0,Betriebsdaten!AX37) -> 0 | AY170: =IF(Betriebsdaten!AY37="",0,Betriebsdaten!AY37) -> 0 | AZ170: =IF(Betriebsdaten!AZ37="",0,Betriebsdaten!AZ37) -> 0 | BA170: =IF(Betriebsdaten!BA37="",0,Betriebsdaten!BA37) -> 0 | BB170: =IF(Betriebsdaten!BB37="",0,Betriebsdaten!BB37) -> 0 | BC170: =IF(Betriebsdaten!BC37="",0,Betriebsdaten!BC37) -> 0 | BD170: =IF(Betriebsdaten!BD37="",0,Betriebsdaten!BD37) -> 0 | BE170: =IF(Betriebsdaten!BE37="",0,Betriebsdaten!BE37) -> 0 | BF170: =IF(Betriebsdaten!BF37="",0,Betriebsdaten!BF37) -> 0 | BG170: =IF(Betriebsdaten!BG37="",0,Betriebsdaten!BG37) -> 0 | BH170: =IF(Betriebsdaten!BH37="",0,Betriebsdaten!BH37) -> 0 | BI170: =IF(Betriebsdaten!BI37="",0,Betriebsdaten!BI37) -> 0 | BJ170: =IF(Betriebsdaten!BJ37="",0,Betriebsdaten!BJ37) -> 0
B171: = N-Bedarf | C171: =IF(C169="","",C169-(#REF!+#REF!+#REF!+#REF!-#REF!-#REF!-#REF!-#REF!+C170)) ->  | D171: =IF(D169="","",D169-D170) ->  | AJ171: =IF(AJ169="","",AJ169-AJ170) -> 
B172: N gedüngt | C172: =SUMPRODUCT($A$187:$A$247,C187:C247) -> 27 | D172: =SUMPRODUCT($A$187:$A$247,D187:D247) -> 0 | E172: 0 | F172: 0 | G172: 0 | H172: 0 | I172: 0 | J172: 0 | K172: 0 | L172: 0 | M172: 0 | N172: 0 | O172: 0 | P172: 0 | Q172: 0 | R172: 0 | S172: 0 | T172: 0 | U172: 0 | V172: 0 | W172: 0 | X172: 0 | Y172: 0 | Z172: 0 | AA172: 0 | AB172: 0 | AC172: 0 | AD172: 0 | AE172: 0 | AF172: 0 | AG172: 0 | AH172: 0 | AI172: 0 | AJ172: 0 | AK172: 0 | AL172: 0 | AM172: 0 | AN172: 0 | AO172: 0 | AP172: 0 | AQ172: 0 | AR172: 0 | AS172: 0 | AT172: 0 | AU172: 0 | AV172: 0 | AW172: 0 | AX172: 0 | AY172: 0 | AZ172: 0 | BA172: 0 | BB172: 0 | BC172: 0 | BD172: 0 | BE172: 0 | BF172: 0 | BG172: 0 | BH172: 0 | BI172: 0 | BJ172: 0
B173: + / - | C173: =IF(C169="","",(C169-C172)) -> 1 | D173: =IF(D169="","",(D169-D172)) -> 
B175: P-Düngebedarf | C175: 10
B176: P2O5 gedüngt | C176: =SUMPRODUCT($A$249:$A$309,C249:C309) -> 0 | D176: =SUMPRODUCT($A$249:$A$309,D249:D309) -> 0 | E176: 0 | F176: 0 | G176: 0 | H176: 0 | I176: 0 | J176: 0 | K176: 0 | L176: 0 | M176: 0 | N176: 0 | O176: 0 | P176: 0 | Q176: 0 | R176: 0 | S176: 0 | T176: 0 | U176: 0 | V176: 0 | W176: 0 | X176: 0 | Y176: 0 | Z176: 0 | AA176: 0 | AB176: 0 | AC176: 0 | AD176: 0 | AE176: 0 | AF176: 0 | AG176: 0 | AH176: 0 | AI176: 0 | AJ176: 0 | AK176: 0 | AL176: 0 | AM176: 0 | AN176: 0 | AO176: 0 | AP176: 0 | AQ176: 0 | AR176: 0 | AS176: 0 | AT176: 0 | AU176: 0 | AV176: 0 | AW176: 0 | AX176: 0 | AY176: 0 | AZ176: 0 | BA176: 0 | BB176: 0 | BC176: 0 | BD176: 0 | BE176: 0 | BF176: 0 | BG176: 0 | BH176: 0 | BI176: 0 | BJ176: 0
B177: + / - | C177: =C176-C175 -> -10 | D177: 0 | E177: 0 | F177: 0 | G177: 0 | H177: 0 | I177: 0 | J177: =J176-J175 -> 0 | K177: 0 | L177: 0 | M177: 0 | N177: 0 | O177: 0 | P177: 0 | Q177: 0 | R177: 0 | S177: 0 | T177: 0 | U177: 0 | V177: 0 | W177: =W176-W175 -> 0 | X177: 0 | Y177: 0 | Z177: 0 | AA177: 0 | AB177: 0 | AC177: 0 | AD177: 0 | AE177: 0 | AF177: 0 | AG177: =AG176-AG175 -> 0 | AH177: 0 | AI177: 0 | AJ177: 0 | AK177: 0 | AL177: 0 | AM177: 0 | AN177: 0 | AO177: 0 | AP177: 0 | AQ177: 0 | AR177: 0 | AS177: 0 | AT177: 0 | AU177: 0 | AV177: 0 | AW177: 0 | AX177: 0 | AY177: 0 | AZ177: 0 | BA177: 0 | BB177: 0 | BC177: 0 | BD177: 0 | BE177: 0 | BF177: 0 | BG177: 0 | BH177: 0 | BI177: 0 | BJ177: 0
B179: K-Sollwert | C179: 120
B180: K2O gedüngt | C180: =SUMPRODUCT($A$311:$A$371,C311:C371) -> 100 | D180: =SUMPRODUCT($A$311:$A$371,D311:D371) -> 0 | E180: 0 | F180: 0 | G180: 0 | H180: 0 | I180: 0 | J180: 0 | K180: 0 | L180: 0 | M180: 0 | N180: 0 | O180: 0 | P180: 0 | Q180: 0 | R180: 0 | S180: 0 | T180: 0 | U180: 0 | V180: 0 | W180: 0 | X180: 0 | Y180: 0 | Z180: 0 | AA180: 0 | AB180: 0 | AC180: 0 | AD180: 0 | AE180: 0 | AF180: 0 | AG180: 0 | AH180: 0 | AI180: 0 | AJ180: 0 | AK180: 0 | AL180: 0 | AM180: 0 | AN180: 0 | AO180: 0 | AP180: 0 | AQ180: 0 | AR180: 0 | AS180: 0 | AT180: 0 | AU180: 0 | AV180: 0 | AW180: 0 | AX180: 0 | AY180: 0 | AZ180: 0 | BA180: 0 | BB180: 0 | BC180: 0 | BD180: 0 | BE180: 0 | BF180: 0 | BG180: 0 | BH180: 0 | BI180: 0 | BJ180: 0
B181: + / - | C181: =C180-C179 -> -20 | D181: 0 | E181: 0 | F181: 0 | G181: 0 | H181: 0 | I181: 0 | J181: =J180-J179 -> 0 | K181: 0 | L181: 0 | M181: 0 | N181: 0 | O181: 0 | P181: 0 | Q181: 0 | R181: 0 | S181: 0 | T181: 0 | U181: 0 | V181: 0 | W181: =W180-W179 -> 0 | X181: 0 | Y181: 0 | Z181: 0 | AA181: 0 | AB181: 0 | AC181: 0 | AD181: 0 | AE181: 0 | AF181: 0 | AG181: =AG180-AG179 -> 0 | AH181: 0 | AI181: 0 | AJ181: 0 | AK181: 0 | AL181: 0 | AM181: 0 | AN181: 0 | AO181: 0 | AP181: 0 | AQ181: 0 | AR181: 0 | AS181: 0 | AT181: 0 | AU181: 0 | AV181: 0 | AW181: 0 | AX181: 0 | AY181: 0 | AZ181: 0 | BA181: 0 | BB181: 0 | BC181: 0 | BD181: 0 | BE181: 0 | BF181: 0 | BG181: 0 | BH181: 0 | BI181: 0 | BJ181: 0
B186: N1 | C186: =IF(C8="",0,VLOOKUP(C8,Düngemittel,5,FALSE)) -> 27 | D186: 0 | E186: 0 | F186: 0 | G186: 0 | H186: 0 | I186: 0 | J186: 0 | K186: 0 | L186: 0 | M186: 0 | N186: 0 | O186: 0 | P186: 0 | Q186: 0 | R186: 0 | S186: 0 | T186: 0 | U186: 0 | V186: 0 | W186: 0 | X186: 0 | Y186: 0 | Z186: 0 | AA186: 0 | AB186: 0 | AC186: 0 | AD186: 0 | AE186: 0 | AF186: 0 | AG186: 0 | AH186: 0 | AI186: =IF(AI8="",0,VLOOKUP(AI8,Düngemittel,5,FALSE)) -> 0 | AJ186: 0 | AK186: 0 | AL186: 0 | AM186: 0 | AN186: 0 | AO186: 0 | AP186: 0 | AQ186: 0 | AR186: 0 | AS186: 0 | AT186: 0 | AU186: 0 | AV186: 0 | AW186: 0 | AX186: 0 | AY186: 0 | AZ186: 0 | BA186: 0 | BB186: 0 | BC186: 0 | BD186: 0 | BE186: 0 | BF186: 0 | BG186: 0 | BH186: 0 | BI186: 0 | BJ186: 0
A187: 1 | C187: =C186*C10 -> 27 | D187: 0 | E187: 0 | F187: 0 | G187: 0 | H187: 0 | I187: 0 | J187: 0 | K187: 0 | L187: 0 | M187: 0 | N187: 0 | O187: 0 | P187: 0 | Q187: 0 | R187: 0 | S187: 0 | T187: 0 | U187: 0 | V187: 0 | W187: 0 | X187: 0 | Y187: 0 | Z187: 0 | AA187: 0 | AB187: 0 | AC187: 0 | AD187: 0 | AE187: 0 | AF187: 0 | AG187: 0 | AH187: 0 | AI187: =AI186*AI10 -> 0 | AJ187: 0 | AK187: 0 | AL187: 0 | AM187: 0 | AN187: 0 | AO187: 0 | AP187: 0 | AQ187: 0 | AR187: 0 | AS187: 0 | AT187: 0 | AU187: 0 | AV187: 0 | AW187: 0 | AX187: 0 | AY187: 0 | AZ187: 0 | BA187: 0 | BB187: 0 | BC187: 0 | BD187: 0 | BE187: 0 | BF187: 0 | BG187: 0 | BH187: 0 | BI187: 0 | BJ187: 0
B188: N2 | C188: =IF(C13="",0,VLOOKUP(C13,Düngemittel,5,FALSE)) -> 0 | D188: 0 | E188: 0 | F188: 0 | G188: 0 | H188: 0 | I188: 0 | J188: 0 | K188: 0 | L188: 0 | M188: 0 | N188: 0 | O188: 0 | P188: 0 | Q188: 0 | R188: 0 | S188: 0 | T188: 0 | U188: 0 | V188: 0 | W188: 0 | X188: 0 | Y188: 0 | Z188: 0 | AA188: 0 | AB188: 0 | AC188: 0 | AD188: 0 | AE188: 0 | AF188: 0 | AG188: 0 | AH188: 0 | AI188: =IF(AI13="",0,VLOOKUP(AI13,Düngemittel,5,FALSE)) -> 0 | AJ188: 0 | AK188: 0 | AL188: 0 | AM188: 0 | AN188: 0 | AO188: 0 | AP188: 0 | AQ188: 0 | AR188: 0 | AS188: 0 | AT188: 0 | AU188: 0 | AV188: 0 | AW188: 0 | AX188: 0 | AY188: 0 | AZ188: 0 | BA188: 0 | BB188: 0 | BC188: 0 | BD188: 0 | BE188: 0 | BF188: 0 | BG188: 0 | BH188: 0 | BI188: 0 | BJ188: 0
A189: 1 | C189: =C188*C15 -> 0 | D189: 0 | E189: 0 | F189: 0 | G189: 0 | H189: 0 | I189: 0 | J189: 0 | K189: 0 | L189: 0 | M189: 0 | N189: 0 | O189: 0 | P189: 0 | Q189: 0 | R189: 0 | S189: 0 | T189: 0 | U189: 0 | V189: 0 | W189: 0 | X189: 0 | Y189: 0 | Z189: 0 | AA189: 0 | AB189: 0 | AC189: 0 | AD189: 0 | AE189: 0 | AF189: 0 | AG189: 0 | AH189: 0 | AI189: =AI188*AI15 -> 0 | AJ189: 0 | AK189: 0 | AL189: 0 | AM189: 0 | AN189: 0 | AO189: 0 | AP189: 0 | AQ189: 0 | AR189: 0 | AS189: 0 | AT189: 0 | AU189: 0 | AV189: 0 | AW189: 0 | AX189: 0 | AY189: 0 | AZ189: 0 | BA189: 0 | BB189: 0 | BC189: 0 | BD189: 0 | BE189: 0 | BF189: 0 | BG189: 0 | BH189: 0 | BI189: 0 | BJ189: 0
B190: N3 | C190: =IF(C18="",0,VLOOKUP(C18,Düngemittel,5,FALSE)) -> 0 | D190: 0 | E190: 0 | F190: 0 | G190: 0 | H190: 0 | I190: 0 | J190: 0 | K190: 0 | L190: 0 | M190: 0 | N190: 0 | O190: 0 | P190: 0 | Q190: 0 | R190: 0 | S190: 0 | T190: 0 | U190: 0 | V190: 0 | W190: 0 | X190: 0 | Y190: 0 | Z190: 0 | AA190: 0 | AB190: 0 | AC190: 0 | AD190: 0 | AE190: 0 | AF190: 0 | AG190: 0 | AH190: 0 | AI190: =IF(AI18="",0,VLOOKUP(AI18,Düngemittel,5,FALSE)) -> 0 | AJ190: 0 | AK190: 0 | AL190: 0 | AM190: 0 | AN190: 0 | AO190: 0 | AP190: 0 | AQ190: 0 | AR190: 0 | AS190: 0 | AT190: 0 | AU190: 0 | AV190: 0 | AW190: 0 | AX190: 0 | AY190: 0 | AZ190: 0 | BA190: 0 | BB190: 0 | BC190: 0 | BD190: 0 | BE190: 0 | BF190: 0 | BG190: 0 | BH190: 0 | BI190: 0 | BJ190: 0
A191: 1 | C191: =C190*C20 -> 0 | D191: 0 | E191: 0 | F191: 0 | G191: 0 | H191: 0 | I191: 0 | J191: 0 | K191: 0 | L191: 0 | M191: 0 | N191: 0 | O191: 0 | P191: 0 | Q191: 0 | R191: 0 | S191: 0 | T191: 0 | U191: 0 | V191: 0 | W191: 0 | X191: 0 | Y191: 0 | Z191: 0 | AA191: 0 | AB191: 0 | AC191: 0 | AD191: 0 | AE191: 0 | AF191: 0 | AG191: 0 | AH191: 0 | AI191: =AI190*AI20 -> 0 | AJ191: 0 | AK191: 0 | AL191: 0 | AM191: 0 | AN191: 0 | AO191: 0 | AP191: 0 | AQ191: 0 | AR191: 0 | AS191: 0 | AT191: 0 | AU191: 0 | AV191: 0 | AW191: 0 | AX191: 0 | AY191: 0 | AZ191: 0 | BA191: 0 | BB191: 0 | BC191: 0 | BD191: 0 | BE191: 0 | BF191: 0 | BG191: 0 | BH191: 0 | BI191: 0 | BJ191: 0
B192: N4 | C192: =IF(C23="",0,VLOOKUP(C23,Düngemittel,5,FALSE)) -> 0 | D192: 0 | E192: 0 | F192: 0 | G192: 0 | H192: 0 | I192: 0 | J192: 0 | K192: 0 | L192: 0 | M192: 0 | N192: 0 | O192: 0 | P192: 0 | Q192: 0 | R192: 0 | S192: 0 | T192: 0 | U192: 0 | V192: 0 | W192: 0 | X192: 0 | Y192: 0 | Z192: 0 | AA192: 0 | AB192: 0 | AC192: 0 | AD192: 0 | AE192: 0 | AF192: 0 | AG192: 0 | AH192: 0 | AI192: =IF(AI23="",0,VLOOKUP(AI23,Düngemittel,5,FALSE)) -> 0 | AJ192: 0 | AK192: 0 | AL192: 0 | AM192: 0 | AN192: 0 | AO192: 0 | AP192: 0 | AQ192: 0 | AR192: 0 | AS192: 0 | AT192: 0 | AU192: 0 | AV192: 0 | AW192: 0 | AX192: 0 | AY192: 0 | AZ192: 0 | BA192: 0 | BB192: 0 | BC192: 0 | BD192: 0 | BE192: 0 | BF192: 0 | BG192: 0 | BH192: 0 | BI192: 0 | BJ192: 0
A193: 1 | C193: =C192*C25 -> 0 | D193: 0 | E193: 0 | F193: 0 | G193: 0 | H193: 0 | I193: 0 | J193: 0 | K193: 0 | L193: 0 | M193: 0 | N193: 0 | O193: 0 | P193: 0 | Q193: 0 | R193: 0 | S193: 0 | T193: 0 | U193: 0 | V193: 0 | W193: 0 | X193: 0 | Y193: 0 | Z193: 0 | AA193: 0 | AB193: 0 | AC193: 0 | AD193: 0 | AE193: 0 | AF193: 0 | AG193: 0 | AH193: 0 | AI193: =AI192*AI25 -> 0 | AJ193: 0 | AK193: 0 | AL193: 0 | AM193: 0 | AN193: 0 | AO193: 0 | AP193: 0 | AQ193: 0 | AR193: 0 | AS193: 0 | AT193: 0 | AU193: 0 | AV193: 0 | AW193: 0 | AX193: 0 | AY193: 0 | AZ193: 0 | BA193: 0 | BB193: 0 | BC193: 0 | BD193: 0 | BE193: 0 | BF193: 0 | BG193: 0 | BH193: 0 | BI193: 0 | BJ193: 0
B194: N5 | C194: =IF(C28="",0,VLOOKUP(C28,Düngemittel,5,FALSE)) -> 0 | D194: 0 | E194: 0 | F194: 0 | G194: 0 | H194: 0 | I194: 0 | J194: 0 | K194: 0 | L194: 0 | M194: 0 | N194: 0 | O194: 0 | P194: 0 | Q194: 0 | R194: 0 | S194: 0 | T194: 0 | U194: 0 | V194: 0 | W194: 0 | X194: 0 | Y194: 0 | Z194: 0 | AA194: 0 | AB194: 0 | AC194: 0 | AD194: 0 | AE194: 0 | AF194: 0 | AG194: 0 | AH194: 0 | AI194: =IF(AI28="",0,VLOOKUP(AI28,Düngemittel,5,FALSE)) -> 0 | AJ194: 0 | AK194: 0 | AL194: 0 | AM194: 0 | AN194: 0 | AO194: 0 | AP194: 0 | AQ194: 0 | AR194: 0 | AS194: 0 | AT194: 0 | AU194: 0 | AV194: 0 | AW194: 0 | AX194: 0 | AY194: 0 | AZ194: 0 | BA194: 0 | BB194: 0 | BC194: 0 | BD194: 0 | BE194: 0 | BF194: 0 | BG194: 0 | BH194: 0 | BI194: 0 | BJ194: 0
A195: 1 | C195: =C194*C30 -> 0 | D195: 0 | E195: 0 | F195: 0 | G195: 0 | H195: 0 | I195: 0 | J195: 0 | K195: 0 | L195: 0 | M195: 0 | N195: 0 | O195: 0 | P195: 0 | Q195: 0 | R195: 0 | S195: 0 | T195: 0 | U195: 0 | V195: 0 | W195: 0 | X195: 0 | Y195: 0 | Z195: 0 | AA195: 0 | AB195: 0 | AC195: 0 | AD195: 0 | AE195: 0 | AF195: 0 | AG195: 0 | AH195: 0 | AI195: =AI194*AI30 -> 0 | AJ195: 0 | AK195: 0 | AL195: 0 | AM195: 0 | AN195: 0 | AO195: 0 | AP195: 0 | AQ195: 0 | AR195: 0 | AS195: 0 | AT195: 0 | AU195: 0 | AV195: 0 | AW195: 0 | AX195: 0 | AY195: 0 | AZ195: 0 | BA195: 0 | BB195: 0 | BC195: 0 | BD195: 0 | BE195: 0 | BF195: 0 | BG195: 0 | BH195: 0 | BI195: 0 | BJ195: 0
B196: N6 | C196: =IF(C33="",0,VLOOKUP(C33,Düngemittel,5,FALSE)) -> 0 | D196: 0 | E196: 0 | F196: 0 | G196: 0 | H196: 0 | I196: 0 | J196: 0 | K196: 0 | L196: 0 | M196: 0 | N196: 0 | O196: 0 | P196: 0 | Q196: 0 | R196: 0 | S196: 0 | T196: 0 | U196: 0 | V196: 0 | W196: 0 | X196: 0 | Y196: 0 | Z196: 0 | AA196: 0 | AB196: 0 | AC196: 0 | AD196: 0 | AE196: 0 | AF196: 0 | AG196: 0 | AH196: 0 | AI196: =IF(AI33="",0,VLOOKUP(AI33,Düngemittel,5,FALSE)) -> 0 | AJ196: 0 | AK196: 0 | AL196: 0 | AM196: 0 | AN196: 0 | AO196: 0 | AP196: 0 | AQ196: 0 | AR196: 0 | AS196: 0 | AT196: 0 | AU196: 0 | AV196: 0 | AW196: 0 | AX196: 0 | AY196: 0 | AZ196: 0 | BA196: 0 | BB196: 0 | BC196: 0 | BD196: 0 | BE196: 0 | BF196: 0 | BG196: 0 | BH196: 0 | BI196: 0 | BJ196: 0
A197: 1 | C197: =C196*C35 -> 0 | D197: 0 | E197: 0 | F197: 0 | G197: 0 | H197: 0 | I197: 0 | J197: 0 | K197: 0 | L197: 0 | M197: 0 | N197: 0 | O197: 0 | P197: 0 | Q197: 0 | R197: 0 | S197: 0 | T197: 0 | U197: 0 | V197: 0 | W197: 0 | X197: 0 | Y197: 0 | Z197: 0 | AA197: 0 | AB197: 0 | AC197: 0 | AD197: 0 | AE197: 0 | AF197: 0 | AG197: 0 | AH197: 0 | AI197: =AI196*AI35 -> 0 | AJ197: 0 | AK197: 0 | AL197: 0 | AM197: 0 | AN197: 0 | AO197: 0 | AP197: 0 | AQ197: 0 | AR197: 0 | AS197: 0 | AT197: 0 | AU197: 0 | AV197: 0 | AW197: 0 | AX197: 0 | AY197: 0 | AZ197: 0 | BA197: 0 | BB197: 0 | BC197: 0 | BD197: 0 | BE197: 0 | BF197: 0 | BG197: 0 | BH197: 0 | BI197: 0 | BJ197: 0
B198: N7 | C198: =IF(C38="",0,VLOOKUP(C38,Düngemittel,5,FALSE)) -> 0 | D198: 0 | E198: 0 | F198: 0 | G198: 0 | H198: 0 | I198: 0 | J198: 0 | K198: 0 | L198: 0 | M198: 0 | N198: 0 | O198: 0 | P198: 0 | Q198: 0 | R198: 0 | S198: 0 | T198: 0 | U198: 0 | V198: 0 | W198: 0 | X198: 0 | Y198: 0 | Z198: 0 | AA198: 0 | AB198: 0 | AC198: 0 | AD198: 0 | AE198: 0 | AF198: 0 | AG198: 0 | AH198: 0 | AI198: =IF(AI38="",0,VLOOKUP(AI38,Düngemittel,5,FALSE)) -> 0 | AJ198: 0 | AK198: 0 | AL198: 0 | AM198: 0 | AN198: 0 | AO198: 0 | AP198: 0 | AQ198: 0 | AR198: 0 | AS198: 0 | AT198: 0 | AU198: 0 | AV198: 0 | AW198: 0 | AX198: 0 | AY198: 0 | AZ198: 0 | BA198: 0 | BB198: 0 | BC198: 0 | BD198: 0 | BE198: 0 | BF198: 0 | BG198: 0 | BH198: 0 | BI198: 0 | BJ198: 0
A199: 1 | C199: =C198*C40 -> 0 | D199: 0 | E199: 0 | F199: 0 | G199: 0 | H199: 0 | I199: 0 | J199: 0 | K199: 0 | L199: 0 | M199: 0 | N199: 0 | O199: 0 | P199: 0 | Q199: 0 | R199: 0 | S199: 0 | T199: 0 | U199: 0 | V199: 0 | W199: 0 | X199: 0 | Y199: 0 | Z199: 0 | AA199: 0 | AB199: 0 | AC199: 0 | AD199: 0 | AE199: 0 | AF199: 0 | AG199: 0 | AH199: 0 | AI199: =AI198*AI40 -> 0 | AJ199: 0 | AK199: 0 | AL199: 0 | AM199: 0 | AN199: 0 | AO199: 0 | AP199: 0 | AQ199: 0 | AR199: 0 | AS199: 0 | AT199: 0 | AU199: 0 | AV199: 0 | AW199: 0 | AX199: 0 | AY199: 0 | AZ199: 0 | BA199: 0 | BB199: 0 | BC199: 0 | BD199: 0 | BE199: 0 | BF199: 0 | BG199: 0 | BH199: 0 | BI199: 0 | BJ199: 0
B200: N8 | C200: =IF(C43="",0,VLOOKUP(C43,Düngemittel,5,FALSE)) -> 0 | D200: 0 | E200: 0 | F200: 0 | G200: 0 | H200: 0 | I200: 0 | J200: 0 | K200: 0 | L200: 0 | M200: 0 | N200: 0 | O200: 0 | P200: 0 | Q200: 0 | R200: 0 | S200: 0 | T200: 0 | U200: 0 | V200: 0 | W200: 0 | X200: 0 | Y200: 0 | Z200: 0 | AA200: 0 | AB200: 0 | AC200: 0 | AD200: 0 | AE200: 0 | AF200: 0 | AG200: 0 | AH200: 0 | AI200: =IF(AI43="",0,VLOOKUP(AI43,Düngemittel,5,FALSE)) -> 0 | AJ200: 0 | AK200: 0 | AL200: 0 | AM200: 0 | AN200: 0 | AO200: 0 | AP200: 0 | AQ200: 0 | AR200: 0 | AS200: 0 | AT200: 0 | AU200: 0 | AV200: 0 | AW200: 0 | AX200: 0 | AY200: 0 | AZ200: 0 | BA200: 0 | BB200: 0 | BC200: 0 | BD200: 0 | BE200: 0 | BF200: 0 | BG200: 0 | BH200: 0 | BI200: 0 | BJ200: 0
A201: 1 | C201: =C200*C45 -> 0 | D201: 0 | E201: 0 | F201: 0 | G201: 0 | H201: 0 | I201: 0 | J201: 0 | K201: 0 | L201: 0 | M201: 0 | N201: 0 | O201: 0 | P201: 0 | Q201: 0 | R201: 0 | S201: 0 | T201: 0 | U201: 0 | V201: 0 | W201: 0 | X201: 0 | Y201: 0 | Z201: 0 | AA201: 0 | AB201: 0 | AC201: 0 | AD201: 0 | AE201: 0 | AF201: 0 | AG201: 0 | AH201: 0 | AI201: =AI200*AI45 -> 0 | AJ201: 0 | AK201: 0 | AL201: 0 | AM201: 0 | AN201: 0 | AO201: 0 | AP201: 0 | AQ201: 0 | AR201: 0 | AS201: 0 | AT201: 0 | AU201: 0 | AV201: 0 | AW201: 0 | AX201: 0 | AY201: 0 | AZ201: 0 | BA201: 0 | BB201: 0 | BC201: 0 | BD201: 0 | BE201: 0 | BF201: 0 | BG201: 0 | BH201: 0 | BI201: 0 | BJ201: 0
B202: N9 | C202: =IF(C48="",0,VLOOKUP(C48,Düngemittel,5,FALSE)) -> 0 | D202: 0 | E202: 0 | F202: 0 | G202: 0 | H202: 0 | I202: 0 | J202: 0 | K202: 0 | L202: 0 | M202: 0 | N202: 0 | O202: 0 | P202: 0 | Q202: 0 | R202: 0 | S202: 0 | T202: 0 | U202: 0 | V202: 0 | W202: 0 | X202: 0 | Y202: 0 | Z202: 0 | AA202: 0 | AB202: 0 | AC202: 0 | AD202: 0 | AE202: 0 | AF202: 0 | AG202: 0 | AH202: 0 | AI202: =IF(AI48="",0,VLOOKUP(AI48,Düngemittel,5,FALSE)) -> 0 | AJ202: 0 | AK202: 0 | AL202: 0 | AM202: 0 | AN202: 0 | AO202: 0 | AP202: 0 | AQ202: 0 | AR202: 0 | AS202: 0 | AT202: 0 | AU202: 0 | AV202: 0 | AW202: 0 | AX202: 0 | AY202: 0 | AZ202: 0 | BA202: 0 | BB202: 0 | BC202: 0 | BD202: 0 | BE202: 0 | BF202: 0 | BG202: 0 | BH202: 0 | BI202: 0 | BJ202: 0
A203: 1 | C203: =C202*C50 -> 0 | D203: 0 | E203: 0 | F203: 0 | G203: 0 | H203: 0 | I203: 0 | J203: 0 | K203: 0 | L203: 0 | M203: 0 | N203: 0 | O203: 0 | P203: 0 | Q203: 0 | R203: 0 | S203: 0 | T203: 0 | U203: 0 | V203: 0 | W203: 0 | X203: 0 | Y203: 0 | Z203: 0 | AA203: 0 | AB203: 0 | AC203: 0 | AD203: 0 | AE203: 0 | AF203: 0 | AG203: 0 | AH203: 0 | AI203: =AI202*AI50 -> 0 | AJ203: 0 | AK203: 0 | AL203: 0 | AM203: 0 | AN203: 0 | AO203: 0 | AP203: 0 | AQ203: 0 | AR203: 0 | AS203: 0 | AT203: 0 | AU203: 0 | AV203: 0 | AW203: 0 | AX203: 0 | AY203: 0 | AZ203: 0 | BA203: 0 | BB203: 0 | BC203: 0 | BD203: 0 | BE203: 0 | BF203: 0 | BG203: 0 | BH203: 0 | BI203: 0 | BJ203: 0
B204: N10 | C204: =IF(C53="",0,VLOOKUP(C53,Düngemittel,5,FALSE)) -> 0 | D204: 0 | E204: 0 | F204: 0 | G204: 0 | H204: 0 | I204: 0 | J204: 0 | K204: 0 | L204: 0 | M204: 0 | N204: 0 | O204: 0 | P204: 0 | Q204: 0 | R204: 0 | S204: 0 | T204: 0 | U204: 0 | V204: 0 | W204: 0 | X204: 0 | Y204: 0 | Z204: 0 | AA204: 0 | AB204: 0 | AC204: 0 | AD204: 0 | AE204: 0 | AF204: 0 | AG204: 0 | AH204: 0 | AI204: =IF(AI53="",0,VLOOKUP(AI53,Düngemittel,5,FALSE)) -> 0 | AJ204: 0 | AK204: 0 | AL204: 0 | AM204: 0 | AN204: 0 | AO204: 0 | AP204: 0 | AQ204: 0 | AR204: 0 | AS204: 0 | AT204: 0 | AU204: 0 | AV204: 0 | AW204: 0 | AX204: 0 | AY204: 0 | AZ204: 0 | BA204: 0 | BB204: 0 | BC204: 0 | BD204: 0 | BE204: 0 | BF204: 0 | BG204: 0 | BH204: 0 | BI204: 0 | BJ204: 0
A205: 1 | C205: =C204*C55 -> 0 | D205: 0 | E205: 0 | F205: 0 | G205: 0 | H205: 0 | I205: 0 | J205: 0 | K205: 0 | L205: 0 | M205: 0 | N205: 0 | O205: 0 | P205: 0 | Q205: 0 | R205: 0 | S205: 0 | T205: 0 | U205: 0 | V205: 0 | W205: 0 | X205: 0 | Y205: 0 | Z205: 0 | AA205: 0 | AB205: 0 | AC205: 0 | AD205: 0 | AE205: 0 | AF205: 0 | AG205: 0 | AH205: 0 | AI205: =AI204*AI55 -> 0 | AJ205: 0 | AK205: 0 | AL205: 0 | AM205: 0 | AN205: 0 | AO205: 0 | AP205: 0 | AQ205: 0 | AR205: 0 | AS205: 0 | AT205: 0 | AU205: 0 | AV205: 0 | AW205: 0 | AX205: 0 | AY205: 0 | AZ205: 0 | BA205: 0 | BB205: 0 | BC205: 0 | BD205: 0 | BE205: 0 | BF205: 0 | BG205: 0 | BH205: 0 | BI205: 0 | BJ205: 0
B206: N11 | C206: =IF(C58="",0,VLOOKUP(C58,Düngemittel,5,FALSE)) -> 0 | D206: 0 | E206: 0 | F206: 0 | G206: 0 | H206: 0 | I206: 0 | J206: 0 | K206: 0 | L206: 0 | M206: 0 | N206: 0 | O206: 0 | P206: 0 | Q206: 0 | R206: 0 | S206: 0 | T206: 0 | U206: 0 | V206: 0 | W206: 0 | X206: 0 | Y206: 0 | Z206: 0 | AA206: 0 | AB206: 0 | AC206: 0 | AD206: 0 | AE206: 0 | AF206: 0 | AG206: 0 | AH206: 0 | AI206: =IF(AI58="",0,VLOOKUP(AI58,Düngemittel,5,FALSE)) -> 0 | AJ206: 0 | AK206: 0 | AL206: 0 | AM206: 0 | AN206: 0 | AO206: 0 | AP206: 0 | AQ206: 0 | AR206: 0 | AS206: 0 | AT206: 0 | AU206: 0 | AV206: 0 | AW206: 0 | AX206: 0 | AY206: 0 | AZ206: 0 | BA206: 0 | BB206: 0 | BC206: 0 | BD206: 0 | BE206: 0 | BF206: 0 | BG206: 0 | BH206: 0 | BI206: 0 | BJ206: 0
A207: 1 | C207: =C206*C60 -> 0 | D207: 0 | E207: 0 | F207: 0 | G207: 0 | H207: 0 | I207: 0 | J207: 0 | K207: 0 | L207: 0 | M207: 0 | N207: 0 | O207: 0 | P207: 0 | Q207: 0 | R207: 0 | S207: 0 | T207: 0 | U207: 0 | V207: 0 | W207: 0 | X207: 0 | Y207: 0 | Z207: 0 | AA207: 0 | AB207: 0 | AC207: 0 | AD207: 0 | AE207: 0 | AF207: 0 | AG207: 0 | AH207: 0 | AI207: =AI206*AI60 -> 0 | AJ207: 0 | AK207: 0 | AL207: 0 | AM207: 0 | AN207: 0 | AO207: 0 | AP207: 0 | AQ207: 0 | AR207: 0 | AS207: 0 | AT207: 0 | AU207: 0 | AV207: 0 | AW207: 0 | AX207: 0 | AY207: 0 | AZ207: 0 | BA207: 0 | BB207: 0 | BC207: 0 | BD207: 0 | BE207: 0 | BF207: 0 | BG207: 0 | BH207: 0 | BI207: 0 | BJ207: 0
B208: N12 | C208: =IF(C63="",0,VLOOKUP(C63,Düngemittel,5,FALSE)) -> 0 | D208: 0 | E208: 0 | F208: 0 | G208: 0 | H208: 0 | I208: 0 | J208: 0 | K208: 0 | L208: 0 | M208: 0 | N208: 0 | O208: 0 | P208: 0 | Q208: 0 | R208: 0 | S208: 0 | T208: 0 | U208: 0 | V208: 0 | W208: 0 | X208: 0 | Y208: 0 | Z208: 0 | AA208: 0 | AB208: 0 | AC208: 0 | AD208: 0 | AE208: 0 | AF208: 0 | AG208: 0 | AH208: 0 | AI208: =IF(AI63="",0,VLOOKUP(AI63,Düngemittel,5,FALSE)) -> 0 | AJ208: 0 | AK208: 0 | AL208: 0 | AM208: 0 | AN208: 0 | AO208: 0 | AP208: 0 | AQ208: 0 | AR208: 0 | AS208: 0 | AT208: 0 | AU208: 0 | AV208: 0 | AW208: 0 | AX208: 0 | AY208: 0 | AZ208: 0 | BA208: 0 | BB208: 0 | BC208: 0 | BD208: 0 | BE208: 0 | BF208: 0 | BG208: 0 | BH208: 0 | BI208: 0 | BJ208: 0
A209: 1 | C209: =C208*C65 -> 0 | D209: 0 | E209: 0 | F209: 0 | G209: 0 | H209: 0 | I209: 0 | J209: 0 | K209: 0 | L209: 0 | M209: 0 | N209: 0 | O209: 0 | P209: 0 | Q209: 0 | R209: 0 | S209: 0 | T209: 0 | U209: 0 | V209: 0 | W209: 0 | X209: 0 | Y209: 0 | Z209: 0 | AA209: 0 | AB209: 0 | AC209: 0 | AD209: 0 | AE209: 0 | AF209: 0 | AG209: 0 | AH209: 0 | AI209: =AI208*AI65 -> 0 | AJ209: 0 | AK209: 0 | AL209: 0 | AM209: 0 | AN209: 0 | AO209: 0 | AP209: 0 | AQ209: 0 | AR209: 0 | AS209: 0 | AT209: 0 | AU209: 0 | AV209: 0 | AW209: 0 | AX209: 0 | AY209: 0 | AZ209: 0 | BA209: 0 | BB209: 0 | BC209: 0 | BD209: 0 | BE209: 0 | BF209: 0 | BG209: 0 | BH209: 0 | BI209: 0 | BJ209: 0
B210: N13 | C210: =IF(C68="",0,VLOOKUP(C68,Düngemittel,5,FALSE)) -> 0 | D210: 0 | E210: 0 | F210: 0 | G210: 0 | H210: 0 | I210: 0 | J210: 0 | K210: 0 | L210: 0 | M210: 0 | N210: 0 | O210: 0 | P210: 0 | Q210: 0 | R210: 0 | S210: 0 | T210: 0 | U210: 0 | V210: 0 | W210: 0 | X210: 0 | Y210: 0 | Z210: 0 | AA210: 0 | AB210: 0 | AC210: 0 | AD210: 0 | AE210: 0 | AF210: 0 | AG210: 0 | AH210: 0 | AI210: =IF(AI68="",0,VLOOKUP(AI68,Düngemittel,5,FALSE)) -> 0 | AJ210: 0 | AK210: 0 | AL210: 0 | AM210: 0 | AN210: 0 | AO210: 0 | AP210: 0 | AQ210: 0 | AR210: 0 | AS210: 0 | AT210: 0 | AU210: 0 | AV210: 0 | AW210: 0 | AX210: 0 | AY210: 0 | AZ210: 0 | BA210: 0 | BB210: 0 | BC210: 0 | BD210: 0 | BE210: 0 | BF210: 0 | BG210: 0 | BH210: 0 | BI210: 0 | BJ210: 0
A211: 1 | C211: =C210*C70 -> 0 | D211: 0 | E211: 0 | F211: 0 | G211: 0 | H211: 0 | I211: 0 | J211: 0 | K211: 0 | L211: 0 | M211: 0 | N211: 0 | O211: 0 | P211: 0 | Q211: 0 | R211: 0 | S211: 0 | T211: 0 | U211: 0 | V211: 0 | W211: 0 | X211: 0 | Y211: 0 | Z211: 0 | AA211: 0 | AB211: 0 | AC211: 0 | AD211: 0 | AE211: 0 | AF211: 0 | AG211: 0 | AH211: 0 | AI211: =AI210*AI70 -> 0 | AJ211: 0 | AK211: 0 | AL211: 0 | AM211: 0 | AN211: 0 | AO211: 0 | AP211: 0 | AQ211: 0 | AR211: 0 | AS211: 0 | AT211: 0 | AU211: 0 | AV211: 0 | AW211: 0 | AX211: 0 | AY211: 0 | AZ211: 0 | BA211: 0 | BB211: 0 | BC211: 0 | BD211: 0 | BE211: 0 | BF211: 0 | BG211: 0 | BH211: 0 | BI211: 0 | BJ211: 0
... 160 more rows

Sheet Saatgut
D1: Saatgut/Pflanzgut
B3: Schlag | C3: =Betriebsdaten!C11 -> Bester Feld | D3: =Betriebsdaten!D11 -> 0 | E3: =Betriebsdaten!E11 -> 0 | F3: =Betriebsdaten!F11 -> 0 | G3: =Betriebsdaten!G11 -> 0 | H3: =Betriebsdaten!H11 -> 0 | I3: =Betriebsdaten!I11 -> 0 | J3: =Betriebsdaten!J11 -> 0 | K3: =Betriebsdaten!K11 -> 0 | L3: =Betriebsdaten!L11 -> 0 | M3: =Betriebsdaten!M11 -> 0 | N3: =Betriebsdaten!N11 -> 0 | O3: =Betriebsdaten!O11 -> 0 | P3: =Betriebsdaten!P11 -> 0 | Q3: =Betriebsdaten!Q11 -> 0 | R3: =Betriebsdaten!R11 -> 0 | S3: =Betriebsdaten!S11 -> 0 | T3: =Betriebsdaten!T11 -> 0 | U3: =Betriebsdaten!U11 -> 0 | V3: =Betriebsdaten!V11 -> 0 | W3: =Betriebsdaten!W11 -> 0 | X3: =Betriebsdaten!X11 -> 0 | Y3: =Betriebsdaten!Y11 -> 0 | Z3: =Betriebsdaten!Z11 -> 0 | AA3: =Betriebsdaten!AA11 -> 25 | AB3: =Betriebsdaten!AB11 -> 26 | AC3: =Betriebsdaten!AC11 -> 27 | AD3: =Betriebsdaten!AD11 -> 28 | AE3: =Betriebsdaten!AE11 -> 29 | AF3: =Betriebsdaten!AF11 -> 30 | AG3: =Betriebsdaten!AG11 -> 31 | AH3: =Betriebsdaten!AH11 -> 32 | AI3: =Betriebsdaten!AI11 -> 33 | AJ3: =Betriebsdaten!AJ11 -> 34 | AK3: =Betriebsdaten!AK11 -> 35 | AL3: =Betriebsdaten!AL11 -> 36 | AM3: =Betriebsdaten!AM11 -> 37 | AN3: =Betriebsdaten!AN11 -> 38 | AO3: =Betriebsdaten!AO11 -> 39 | AP3: =Betriebsdaten!AP11 -> 40 | AQ3: =Betriebsdaten!AQ11 -> 41 | AR3: =Betriebsdaten!AR11 -> 42 | AS3: =Betriebsdaten!AS11 -> 43 | AT3: =Betriebsdaten!AT11 -> 44 | AU3: =Betriebsdaten!AU11 -> 45 | AV3: =Betriebsdaten!AV11 -> 46 | AW3: =Betriebsdaten!AW11 -> 47 | AX3: =Betriebsdaten!AX11 -> 48 | AY3: =Betriebsdaten!AY11 -> 49 | AZ3: =Betriebsdaten!AZ11 -> 50 | BA3: =Betriebsdaten!BA11 -> 51 | BB3: =Betriebsdaten!BB11 -> 52 | BC3: =Betriebsdaten!BC11 -> 53 | BD3: =Betriebsdaten!BD11 -> 54 | BE3: =Betriebsdaten!BE11 -> 55 | BF3: =Betriebsdaten!BF11 -> 56 | BG3: =Betriebsdaten!BG11 -> 57 | BH3: =Betriebsdaten!BH11 -> 58 | BI3: =Betriebsdaten!BI11 -> 59 | BJ3: =Betriebsdaten!BJ11 -> 60
B4: Frucht | C4: =Betriebsdaten!C15 -> Spargel | D4: =Betriebsdaten!D15 -> 0 | E4: =Betriebsdaten!E15 -> 0 | F4: =Betriebsdaten!F15 -> 0 | G4: =Betriebsdaten!G15 -> 0 | H4: =Betriebsdaten!H15 -> 0 | I4: =Betriebsdaten!I15 -> 0 | J4: =Betriebsdaten!J15 -> 0 | K4: =Betriebsdaten!K15 -> 0 | L4: =Betriebsdaten!L15 -> 0 | M4: =Betriebsdaten!M15 -> 0 | N4: =Betriebsdaten!N15 -> 0 | O4: =Betriebsdaten!O15 -> 0 | P4: =Betriebsdaten!P15 -> 0 | Q4: =Betriebsdaten!Q15 -> 0 | R4: =Betriebsdaten!R15 -> 0 | S4: =Betriebsdaten!S15 -> 0 | T4: =Betriebsdaten!T15 -> 0 | U4: =Betriebsdaten!U15 -> 0 | V4: =Betriebsdaten!V15 -> 0 | W4: =Betriebsdaten!W15 -> 0 | X4: =Betriebsdaten!X15 -> 0 | Y4: =Betriebsdaten!Y15 -> 0 | Z4: =Betriebsdaten!Z15 -> 0 | AA4: =Betriebsdaten!AA15 -> 0 | AB4: =Betriebsdaten!AB15 -> 0 | AC4: =Betriebsdaten!AC15 -> 0 | AD4: =Betriebsdaten!AD15 -> 0 | AE4: =Betriebsdaten!AE15 -> 0 | AF4: =Betriebsdaten!AF15 -> 0 | AG4: =Betriebsdaten!AG15 -> 0 | AH4: =Betriebsdaten!AH15 -> 0 | AI4: =Betriebsdaten!AI15 -> 0 | AJ4: =Betriebsdaten!AJ15 -> 0 | AK4: =Betriebsdaten!AK15 -> 0 | AL4: =Betriebsdaten!AL15 -> 0 | AM4: =Betriebsdaten!AM15 -> 0 | AN4: =Betriebsdaten!AN15 -> 0 | AO4: =Betriebsdaten!AO15 -> 0 | AP4: =Betriebsdaten!AP15 -> 0 | AQ4: =Betriebsdaten!AQ15 -> 0 | AR4: =Betriebsdaten!AR15 -> 0 | AS4: =Betriebsdaten!AS15 -> 0 | AT4: =Betriebsdaten!AT15 -> 0 | AU4: =Betriebsdaten!AU15 -> 0 | AV4: =Betriebsdaten!AV15 -> 0 | AW4: =Betriebsdaten!AW15 -> 0 | AX4: =Betriebsdaten!AX15 -> 0 | AY4: =Betriebsdaten!AY15 -> 0 | AZ4: =Betriebsdaten!AZ15 -> 0 | BA4: =Betriebsdaten!BA15 -> 0 | BB4: =Betriebsdaten!BB15 -> 0 | BC4: =Betriebsdaten!BC15 -> 0 | BD4: =Betriebsdaten!BD15 -> 0 | BE4: =Betriebsdaten!BE15 -> 0 | BF4: =Betriebsdaten!BF15 -> 0 | BG4: =Betriebsdaten!BG15 -> 0 | BH4: =Betriebsdaten!BH15 -> 0 | BI4: =Betriebsdaten!BI15 -> 0 | BJ4: =Betriebsdaten!BJ15 -> 0
B5: Sorte | C5: =Betriebsdaten!C16 -> Gijnlim | D5: =Betriebsdaten!D16 -> 0 | E5: =Betriebsdaten!E16 -> 0 | F5: =Betriebsdaten!F16 -> 0 | G5: =Betriebsdaten!G16 -> 0 | H5: =Betriebsdaten!H16 -> 0 | I5: =Betriebsdaten!I16 -> 0 | J5: =Betriebsdaten!J16 -> 0 | K5: =Betriebsdaten!K16 -> 0 | L5: =Betriebsdaten!L16 -> 0 | M5: =Betriebsdaten!M16 -> 0 | N5: =Betriebsdaten!N16 -> 0 | O5: =Betriebsdaten!O16 -> 0 | P5: =Betriebsdaten!P16 -> 0 | Q5: =Betriebsdaten!Q16 -> 0 | R5: =Betriebsdaten!R16 -> 0 | S5: =Betriebsdaten!S16 -> 0 | T5: =Betriebsdaten!T16 -> 0 | U5: =Betriebsdaten!U16 -> 0 | V5: =Betriebsdaten!V16 -> 0 | W5: =Betriebsdaten!W16 -> 0 | X5: =Betriebsdaten!X16 -> 0 | Y5: =Betriebsdaten!Y16 -> 0 | Z5: =Betriebsdaten!Z16 -> 0 | AA5: =Betriebsdaten!AA16 -> 0 | AB5: =Betriebsdaten!AB16 -> 0 | AC5: =Betriebsdaten!AC16 -> 0 | AD5: =Betriebsdaten!AD16 -> 0 | AE5: =Betriebsdaten!AE16 -> 0 | AF5: =Betriebsdaten!AF16 -> 0 | AG5: =Betriebsdaten!AG16 -> 0 | AH5: =Betriebsdaten!AH16 -> 0 | AI5: =Betriebsdaten!AI16 -> 0 | AJ5: =Betriebsdaten!AJ16 -> 0 | AK5: =Betriebsdaten!AK16 -> 0 | AL5: =Betriebsdaten!AL16 -> 0 | AM5: =Betriebsdaten!AM16 -> 0 | AN5: =Betriebsdaten!AN16 -> 0 | AO5: =Betriebsdaten!AO16 -> 0 | AP5: =Betriebsdaten!AP16 -> 0 | AQ5: =Betriebsdaten!AQ16 -> 0 | AR5: =Betriebsdaten!AR16 -> 0 | AS5: =Betriebsdaten!AS16 -> 0 | AT5: =Betriebsdaten!AT16 -> 0 | AU5: =Betriebsdaten!AU16 -> 0 | AV5: =Betriebsdaten!AV16 -> 0 | AW5: =Betriebsdaten!AW16 -> 0 | AX5: =Betriebsdaten!AX16 -> 0 | AY5: =Betriebsdaten!AY16 -> 0 | AZ5: =Betriebsdaten!AZ16 -> 0 | BA5: =Betriebsdaten!BA16 -> 0 | BB5: =Betriebsdaten!BB16 -> 0 | BC5: =Betriebsdaten!BC16 -> 0 | BD5: =Betriebsdaten!BD16 -> 0 | BE5: =Betriebsdaten!BE16 -> 0 | BF5: =Betriebsdaten!BF16 -> 0 | BG5: =Betriebsdaten!BG16 -> 0 | BH5: =Betriebsdaten!BH16 -> 0 | BI5: =Betriebsdaten!BI16 -> 0 | BJ5: =Betriebsdaten!BJ16 -> 0
B6: ha | C6: =Betriebsdaten!C17 -> 3.8 | D6: =Betriebsdaten!D17 -> 0 | E6: =Betriebsdaten!E17 -> 0 | F6: =Betriebsdaten!F17 -> 0 | G6: =Betriebsdaten!G17 -> 0 | H6: =Betriebsdaten!H17 -> 0 | I6: =Betriebsdaten!I17 -> 0 | J6: =Betriebsdaten!J17 -> 0 | K6: =Betriebsdaten!K17 -> 0 | L6: =Betriebsdaten!L17 -> 0 | M6: =Betriebsdaten!M17 -> 0 | N6: =Betriebsdaten!N17 -> 0 | O6: =Betriebsdaten!O17 -> 0 | P6: =Betriebsdaten!P17 -> 0 | Q6: =Betriebsdaten!Q17 -> 0 | R6: =Betriebsdaten!R17 -> 0 | S6: =Betriebsdaten!S17 -> 0 | T6: =Betriebsdaten!T17 -> 0 | U6: =Betriebsdaten!U17 -> 0 | V6: =Betriebsdaten!V17 -> 0 | W6: =Betriebsdaten!W17 -> 0 | X6: =Betriebsdaten!X17 -> 0 | Y6: =Betriebsdaten!Y17 -> 0 | Z6: =Betriebsdaten!Z17 -> 0 | AA6: =Betriebsdaten!AA17 -> 0 | AB6: =Betriebsdaten!AB17 -> 0 | AC6: =Betriebsdaten!AC17 -> 0 | AD6: =Betriebsdaten!AD17 -> 0 | AE6: =Betriebsdaten!AE17 -> 0 | AF6: =Betriebsdaten!AF17 -> 0 | AG6: =Betriebsdaten!AG17 -> 0 | AH6: =Betriebsdaten!AH17 -> 0 | AI6: =Betriebsdaten!AI17 -> 0 | AJ6: =Betriebsdaten!AJ17 -> 0 | AK6: =Betriebsdaten!AK17 -> 0 | AL6: =Betriebsdaten!AL17 -> 0 | AM6: =Betriebsdaten!AM17 -> 0 | AN6: =Betriebsdaten!AN17 -> 0 | AO6: =Betriebsdaten!AO17 -> 0 | AP6: =Betriebsdaten!AP17 -> 0 | AQ6: =Betriebsdaten!AQ17 -> 0 | AR6: =Betriebsdaten!AR17 -> 0 | AS6: =Betriebsdaten!AS17 -> 0 | AT6: =Betriebsdaten!AT17 -> 0 | AU6: =Betriebsdaten!AU17 -> 0 | AV6: =Betriebsdaten!AV17 -> 0 | AW6: =Betriebsdaten!AW17 -> 0 | AX6: =Betriebsdaten!AX17 -> 0 | AY6: =Betriebsdaten!AY17 -> 0 | AZ6: =Betriebsdaten!AZ17 -> 0 | BA6: =Betriebsdaten!BA17 -> 0 | BB6: =Betriebsdaten!BB17 -> 0 | BC6: =Betriebsdaten!BC17 -> 0 | BD6: =Betriebsdaten!BD17 -> 0 | BE6: =Betriebsdaten!BE17 -> 0 | BF6: =Betriebsdaten!BF17 -> 0 | BG6: =Betriebsdaten!BG17 -> 0 | BH6: =Betriebsdaten!BH17 -> 0 | BI6: =Betriebsdaten!BI17 -> 0 | BJ6: =Betriebsdaten!BJ17 -> 0
B7: Datum Saat/Pflanzung | C7: 2014-04-13
B8: Saatmenge/ha (dt, kg, Pflanzen ) | C8: 16000
B9: Beizmittel
B10: ml/dt ml/100l
B11: Preis | C11: 0.31
B12: Ertragsjahre | C12: 6
B13: €/ha/Jahr | C13: =IF(C12="",0,(C15/C12)) -> 826.6666667 | D13: 0 | E13: 0 | F13: 0 | G13: 0 | H13: 0 | I13: 0 | J13: 0 | K13: 0 | L13: 0 | M13: 0 | N13: 0 | O13: 0 | P13: 0 | Q13: 0 | R13: 0 | S13: 0 | T13: 0 | U13: 0 | V13: 0 | W13: =IF(W12="",0,(W15/W12)) -> 0 | X13: 0 | Y13: 0 | Z13: 0 | AA13: 0 | AB13: 0 | AC13: 0 | AD13: 0 | AE13: 0 | AF13: 0 | AG13: =IF(AG12="",0,(AG15/AG12)) -> 0 | AH13: 0 | AI13: 0 | AJ13: 0 | AK13: 0 | AL13: 0 | AM13: 0 | AN13: 0 | AO13: 0 | AP13: 0 | AQ13: 0 | AR13: 0 | AS13: 0 | AT13: 0 | AU13: 0 | AV13: 0 | AW13: 0 | AX13: 0 | AY13: 0 | AZ13: 0 | BA13: 0 | BB13: 0 | BC13: 0 | BD13: 0 | BE13: 0 | BF13: 0 | BG13: 0 | BH13: 0 | BI13: 0 | BJ13: 0
B14: gekauft bei
B15: Kosten/ha | C15: =C11*C8 -> 4960 | D15: =D11*D8 -> 0 | E15: =E11*E8 -> 0 | F15: 0 | G15: 0 | H15: 0 | I15: 0 | J15: 0 | K15: 0 | L15: 0 | M15: 0 | N15: 0 | O15: 0 | P15: 0 | Q15: 0 | R15: 0 | S15: 0 | T15: 0 | U15: 0 | V15: 0 | W15: =W11*W8 -> 0 | X15: 0 | Y15: 0 | Z15: 0 | AA15: 0 | AB15: 0 | AC15: 0 | AD15: 0 | AE15: 0 | AF15: 0 | AG15: =AG11*AG8 -> 0 | AH15: 0 | AI15: 0 | AJ15: 0 | AK15: 0 | AL15: 0 | AM15: 0 | AN15: 0 | AO15: 0 | AP15: 0 | AQ15: 0 | AR15: 0 | AS15: 0 | AT15: 0 | AU15: 0 | AV15: 0 | AW15: 0 | AX15: 0 | AY15: 0 | AZ15: 0 | BA15: 0 | BB15: 0 | BC15: 0 | BD15: 0 | BE15: 0 | BF15: 0 | BG15: 0 | BH15: 0 | BI15: 0 | BJ15: 0
B16: Kosten gesamt | C16: =C6*C15 -> 18848 | D16: 0 | E16: 0 | F16: 0 | G16: 0 | H16: 0 | I16: 0 | J16: 0 | K16: 0 | L16: 0 | M16: 0 | N16: 0 | O16: 0 | P16: 0 | Q16: 0 | R16: 0 | S16: 0 | T16: 0 | U16: 0 | V16: 0 | W16: =W6*W15 -> 0 | X16: 0 | Y16: 0 | Z16: 0 | AA16: 0 | AB16: 0 | AC16: 0 | AD16: 0 | AE16: 0 | AF16: 0 | AG16: =AG6*AG15 -> 0 | AH16: 0 | AI16: 0 | AJ16: 0 | AK16: 0 | AL16: 0 | AM16: 0 | AN16: 0 | AO16: 0 | AP16: 0 | AQ16: 0 | AR16: 0 | AS16: 0 | AT16: 0 | AU16: 0 | AV16: 0 | AW16: 0 | AX16: 0 | AY16: 0 | AZ16: 0 | BA16: 0 | BB16: 0 | BC16: 0 | BD16: 0 | BE16: 0 | BF16: 0 | BG16: 0 | BH16: 0 | BI16: 0 | BJ16: 0 | BK16: =SUM(C16:BJ16) -> 18848

Sheet Kosten
F2: Hilfe
C4: Art | D4: Kosten pro | E4: Anzahl | F4: Kosten/ha
D5: Maßnahme/ha | E5: Maßnahmen | F5: gesamt
B7: Saatbeetbereitung
B8: 1. | C8: Grubbern | D8: 25 | E8: 2 | F8: =IF(D8="","",(E8*D8)) -> 50
B9: 2. | C9: Pflügen | D9: 28 | E9: 1 | F9: =IF(D9="","",(E9*D9)) -> 28
B10: 3. | C10: Eggen | D10: 16 | E10: 3 | F10: 48
B11: 4.
B12: 5.
B13: 6.
B14: 7.
B15: 8.
B16: 9.
B17: 10.
B19: Bestellung,Düngung
B20: 1. | C20: Getreide säen | D20: 45 | E20: 1 | F20: =IF(D20="","",(E20*D20)) -> 45
B21: 2. | C21: Mais legen | D21: 30 | E21: 1 | F21: =IF(D21="","",(E21*D21)) -> 30
B22: 3. | C22: Kartoffeln pflanzen | D22: 90 | E22: 1 | F22: 90
B23: 4. | C23: Kalk düngen
B24: 5. | C24: mineralisch düngen
B25: 6.
B26: 7.
B27: 8.
B28: 9. | F28: =IF(D28="","",(E28*D28)) -> 
B29: 10. | F29: =IF(D29="","",(E29*D29)) -> 
B31: Pflegemaßnahmen
B32: 1. | C32: Spargel spritzen | D32: 63 | E32: 2 | F32: =IF(D32="","",(E32*D32)) -> 126
B33: 2. | C33: Spargel spritzen | D33: 63 | E33: 3 | F33: 189
B34: 3. | C34: Spargel spritzen | D34: 63 | E34: 4 | F34: 252
B35: 4. | C35: Spargel spritzen | D35: 63 | E35: 5 | F35: 315
B36: 5. | C36: Spargel spritzen | D36: 63 | E36: 6 | F36: 378
B37: 6. | C37: Spargel spritzen | D37: 64 | E37: 7 | F37: 448
B38: 7. | C38: Spargel spritzen | D38: 65 | E38: 8 | F38: 520
B39: 8. | C39: Spargel spritzen | D39: 66 | E39: 9 | F39: 594
B40: 9. | C40: Spargel spritzen | D40: 67 | E40: 10 | F40: 670
B41: 10.
B43: Ernte
B44: 1. | C44: Getreide mähen | D44: 100 | E44: 1 | F44: =IF(D44="","",(E44*D44)) -> 100
B45: 2. | C45: Mais abfahren | D45: 15 | E45: 6 | F45: =IF(D45="","",(E45*D45)) -> 90
B46: 3. | E46: 10
B47: 4.
B48: 5.
B49: 6.
B50: 7.
B51: 8.
B52: 9.
B53: 10.
I87: Datum: | J87: =TODAY() -> 2019-11-05
I89: Jahr | J89: =YEAR(J87) -> 2019
C92: Maschinen und Gebäude die für alle Früchte gebraucht werden | I92: Hilfe
C94: Art | D94: Anschaff- | E94: Baujahr | F94: Afa | G94: Zins | H94: Reparatur | I94: sonst.Kosten | J94: Summe | K94: Kosten/ha
D95: ungskosten | F95: % | G95: % | H95: % | I95: € | J95: € | K95: €
B96: 1. | C96: John Deere 6530 | D96: 80000 | E96: 2015 | F96: 10 | G96: 5 | H96: 5 | J96: =IF(C96="","",IF(E96="",I96,(IF((N96<=(100/F96)),((D96/2*(G96/100)+D96*(F96/100)+D96*(H96/100)+I96)),D96*H96/100)))) -> 14000 | K96: =IF(C96="","",(IF(J96="abgeschrieben","",J96/Betriebsdaten!$I$4))) -> 560 | N96: =IF(E96="","",($J$89-E96)) -> 4
B97: 2. | C97: John Deere 6320 | D97: 38000 | E97: 2013 | F97: 10 | G97: 5 | H97: 3 | J97: 5890 | K97: =IF(C97="","",(IF(J97="abgeschrieben","",J97/Betriebsdaten!$I$4))) -> 235.6 | N97: 6
B98: 3. | C98: Fendt 610 | D98: 18000 | E98: 2014 | F98: 10 | G98: 5 | H98: 5 | J98: 3150 | K98: =IF(C98="","",(IF(J98="abgeschrieben","",J98/Betriebsdaten!$I$4))) -> 126 | N98: 5
B99: 4. | C99: Deutz | J99: 0 | K99: =IF(C99="","",(IF(J99="abgeschrieben","",J99/Betriebsdaten!$I$4))) -> 0
B100: 5. | C100: Futtermischwagen | D100: 20000 | J100: 0 | K100: =IF(C100="","",(IF(J100="abgeschrieben","",J100/Betriebsdaten!$I$4))) -> 0
B101: 6. | C101: Pflug | D101: 6000 | J101: 0 | K101: =IF(C101="","",(IF(J101="abgeschrieben","",J101/Betriebsdaten!$I$4))) -> 0
B102: 7. | C102: Rüttelegge/Drillmaschine | D102: 5500 | J102: 0 | K102: =IF(C102="","",(IF(J102="abgeschrieben","",J102/Betriebsdaten!$I$4))) -> 0
B103: 8. | C103: Spritze | D103: 8000 | J103: 0 | K103: =IF(C103="","",(IF(J103="abgeschrieben","",J103/Betriebsdaten!$I$4))) -> 0
B104: 9. | C104: Düngerstreuer | D104: 2000 | E104: 2004 | F104: 10 | J104: 0 | K104: =IF(C104="","",(IF(J104="abgeschrieben","",J104/Betriebsdaten!$I$4))) -> 0 | N104: 15
B105: 10. | C105: Güllefass | D105: 6000 | E105: 1999 | F105: 16 | G105: 2 | H105: 5 | J105: 300 | K105: =IF(C105="","",(IF(J105="abgeschrieben","",J105/Betriebsdaten!$I$4))) -> 12 | N105: 20
B106: 11. | K106: =IF(C106="","",(IF(J106="abgeschrieben","",J106/Betriebsdaten!$I$4))) -> 
B107: 12. | K107: =IF(C107="","",(IF(J107="abgeschrieben","",J107/Betriebsdaten!$I$4))) -> 
B108: 13. | K108: =IF(C108="","",(IF(J108="abgeschrieben","",J108/Betriebsdaten!$I$4))) -> 
B109: 14. | K109: =IF(C109="","",(IF(J109="abgeschrieben","",J109/Betriebsdaten!$I$4))) -> 
B110: 15. | K110: =IF(C110="","",(IF(J110="abgeschrieben","",J110/Betriebsdaten!$I$4))) -> 
B111: 16. | K111: =IF(C111="","",(IF(J111="abgeschrieben","",J111/Betriebsdaten!$I$4))) -> 
B112: 17. | K112: =IF(C112="","",(IF(J112="abgeschrieben","",J112/Betriebsdaten!$I$4))) -> 
B113: 18. | K113: =IF(C113="","",(IF(J113="abgeschrieben","",J113/Betriebsdaten!$I$4))) -> 
B114: 19. | K114: =IF(C114="","",(IF(J114="abgeschrieben","",J114/Betriebsdaten!$I$4))) -> 
B115: 20. | K115: =IF(C115="","",(IF(J115="abgeschrieben","",J115/Betriebsdaten!$I$4))) -> 
B116: 21. | K116: =IF(C116="","",(IF(J116="abgeschrieben","",J116/Betriebsdaten!$I$4))) -> 
B117: 22. | K117: =IF(C117="","",(IF(J117="abgeschrieben","",J117/Betriebsdaten!$I$4))) -> 
B118: 23. | K118: =IF(C118="","",(IF(J118="abgeschrieben","",J118/Betriebsdaten!$I$4))) -> 
B119: 24. | K119: =IF(C119="","",(IF(J119="abgeschrieben","",J119/Betriebsdaten!$I$4))) -> 
B120: 25. | K120: =IF(C120="","",(IF(J120="abgeschrieben","",J120/Betriebsdaten!$I$4))) -> 
B121: 26. | K121: =IF(C121="","",(IF(J121="abgeschrieben","",J121/Betriebsdaten!$I$4))) -> 
B122: 27. | C122: Maschinenhalle | D122: 42000 | E122: 2016 | F122: 10 | G122: 5 | H122: 1 | J122: 5670 | K122: =IF(C122="","",(IF(J122="abgeschrieben","",J122/Betriebsdaten!$I$4))) -> 226.8 | N122: 3
B123: 28. | C123: Werkstatt | D123: 15600 | E123: 2004 | F123: 10 | G123: 5 | H123: 2 | J123: 312 | K123: =IF(C123="","",(IF(J123="abgeschrieben","",J123/Betriebsdaten!$I$4))) -> 12.48 | N123: 15
B124: 29. | K124: =IF(C124="","",(IF(J124="abgeschrieben","",J124/Betriebsdaten!$I$4))) -> 
B125: 30. | K125: =IF(C125="","",(IF(J125="abgeschrieben","",J125/Betriebsdaten!$I$4))) -> 
D126: =SUM(D96:D125) -> 241100 | J126: =SUM(J96:J125) -> 29322 | K126: =SUM(K96:K125) -> 1172.88
C127: Feste Kosten pro ha | D127: =K126 -> 1172.88
C129: Maschinen und Gebäude die nur für bestimmte Früchte benötigt werden
C132: Art | D132: Anschaff- | E132: Baujahr | F132: Afa | G132: Zins | H132: Reparatur | I132: sonst.Kosten | J132: Summe | K132: Einsatzfläche | L132: Kosten
D133: ungskosten | F133: % | G133: % | H133: % | I133: € | J133: € | K133: ha | L133: ha
B134: 31. | C134: Kartoffelroder | D134: 28000 | E134: 2012 | F134: 10 | G134: 5 | H134: 6 | J134: =IF(C134="","",IF(E134="",I134,(IF((N134<=(100/F134)),((D134/2*(G134/100)+D134*(F134/100)+D134*(H134/100)+I134)),D134*H134/100)))) -> 5180 | K134: 11 | L134: =IF(K134="","",(J134/K134)) -> 470.9090909 | N134: =IF(E134="","",($J$89-E134)) -> 7
B135: 32. | C135: Kartoffelpflanzm. | D135: 21000 | E135: 2016 | F135: 10 | G135: 5 | H135: 5 | J135: =IF(C135="","",IF(E135="",I135,(IF((N135<=(100/F135)),((D135/2*(G135/100)+D135*(F135/100)+D135*(H135/100)+I135)),D135*H135/100)))) -> 3675 | K135: 11 | L135: =IF(K135="","",(J135/K135)) -> 334.0909091 | N135: 3
B136: 33. | C136: Sortierband | D136: 4200 | E136: 2007 | F136: 10 | G136: 5 | H136: 5 | J136: 210 | K136: 11 | L136: =IF(K136="","",(J136/K136)) -> 19.09090909 | N136: 12
B137: 34. | C137: Boxenfüller | D137: 6900 | E137: 2013 | F137: 10 | G137: 5 | H137: 5 | J137: 1207.5 | K137: 11 | L137: 109.7727273 | N137: 6
B138: 35.
B139: 36.
B140: 37.
B141: 38.
B142: 39.
B143: 40.
B144: 41.
B145: 42.
B146: 43.
B147: 44.
B148: 45.
B149: 46.
B150: 47.
B151: 48.
B152: 49.
B153: 50.
B154: 51.
B155: 52.
B156: 53.
B157: 54.
B158: 55.
B159: 56.
B160: 57. | C160: Kühlraum Kartoffeln | D160: 35000 | E160: 2013 | F160: 10 | G160: 5 | H160: 2 | J160: 5075 | K160: 11 | L160: 461.3636364 | N160: 6
B161: 58. | C161: Kistenlager | D161: 18500 | E161: 2008 | F161: 10 | G161: 5 | H161: 2 | J161: 370 | K161: 11 | L161: 33.63636364 | N161: 11
B162: 59.
B163: 60. | L163: =IF(K163="","",(J163/K163)) -> 
D164: =SUM(D134:D163) -> 113600 | J164: =SUM(J134:J163) -> 15717.5 | L164: =SUM(L134:L163) -> 1428.863636
C170: Maschinen und Gebäude die nur für den Spargel benötigt werden
C173: Art | D173: Anschaff- | E173: Anzahl | F173: Baujahr | G173: Afa | H173: Zins | I173: Reparatur | J173: sonst.Kosten | K173: Summe | L173: Einsatzfläche | M173: Kosten
D174: ungskosten | E174: Stk. | G174: % | H174: % | I174: % | J174: € | K174: € | L174: ha | M174: ha
B175: 61. | C175: Abschneideband grün | D175: 6500 | E175: 1 | F175: 2011 | G175: 10 | H175: 5 | I175: 2 | K175: =IF(C175="","",IF(F175="",J175,(IF((N175<=(100/G175)),(((D175*E175)/2*(H175/100)+(D175*E175)*(G175/100)+(D175*E175)*(I175/100)+J175)),(D175*E175)*I175/100)))) -> 942.5 | L175: 2 | M175: =IF(L175="","",(K175/L175)) -> 471.25 | N175: =IF(F175="","",($J$89-F175)) -> 8
B176: 62. | C176: Sortiermaschine | D176: 76000 | E176: 1 | F176: 2017 | G176: 10 | H176: 5 | I176: 5 | K176: =IF(C176="","",IF(F176="",J176,(IF((N176<=(100/G176)),(((D176*E176)/2*(H176/100)+(D176*E176)*(G176/100)+(D176*E176)*(I176/100)+J176)),(D176*E176)*I176/100)))) -> 13300 | L176: 22 | M176: 604.5454545 | N176: =IF(F176="","",($J$89-F176)) -> 2
B177: 63. | C177: Schockschrank | D177: 28000 | E177: 1 | F177: 2018 | G177: 10 | H177: 5 | I177: 5 | K177: =IF(C177="","",IF(F177="",J177,(IF((N177<=(100/G177)),(((D177*E177)/2*(H177/100)+(D177*E177)*(G177/100)+(D177*E177)*(I177/100)+J177)),(D177*E177)*I177/100)))) -> 4900 | L177: 22 | M177: 222.7272727 | N177: 1
B178: 64. | C178: Schälmaschine | D178: 29000 | E178: 1 | F178: 2017 | G178: 10 | H178: 5 | I178: 5 | J178: 180 | K178: 5255 | L178: 22 | M178: 238.8636364 | N178: 2
B179: 65. | C179: Holder | D179: 10800 | E179: 1 | F179: 2016 | G179: 10 | H179: 5 | I179: 5 | K179: 1890 | L179: 22 | M179: 85.90909091 | N179: 3
B180: 66. | C180: Dammfräse (1/2) | D180: 5000 | E180: 1 | F180: 2017 | G180: 10 | H180: 5 | I180: 5 | K180: 875 | L180: 22 | M180: 39.77272727 | N180: 2
B181: 67. | C181: Tiefenhacken | D181: 1800 | E181: 1 | F181: 2015 | G181: 10 | H181: 5 | I181: 2 | K181: 261 | L181: 22 | M181: 11.86363636 | N181: 4
B182: 68. | C182: Folienwickler (1/2) | D182: 2500 | E182: 1 | F182: 2018 | G182: 10 | H182: 5 | I182: 2 | K182: 362.5 | L182: 22 | M182: 16.47727273 | N182: 1
B183: 69. | C183: Folienleger (1/2) | D183: 1500 | E183: 1 | F183: 1990 | G183: 10 | H183: 5 | I183: 3 | K183: 45 | L183: 22 | M183: 2.045454545 | N183: 29
B184: 70. | C184: Häcksler | D184: 3200 | E184: 1 | F184: 1990 | G184: 10 | H184: 5 | I184: 5 | K184: 160 | L184: 22 | M184: 7.272727273 | N184: 29
B185: 71. | M185: =IF(L185="","",(K185/L185)) -> 
B186: 72.
B187: 73.
B188: 74.
B189: 75.
B190: 76.
B191: 77.
B192: 78.
B193: 79.
B194: 80.
B195: 81.
B196: 82.
B197: 83.
B198: 84.
B199: 85.
B200: 86.
B201: 87.
B202: 88.
B203: 89.
B204: 90.
B205: 91.
B206: 92.
B207: 93.
B208: 94.
B209: 95.
B210: 96. | C210: Kühlhaus | K210: 0
B211: 97. | C211: Sortierhalle | K211: 0
B212: 98. | C212: Verkaufsraum | K212: 0
B213: 99.
B214: 100. | M214: =IF(L214="","",(K214/L214)) -> 
D215: =SUM(D175:D214) -> 164300 | K215: =SUM(K175:K214) -> 27991 | M215: =SUM(M175:M214) -> 1700.727273
C217: Feste Kosten Spargel | D217: =M215 -> 1700.727273
C218: pro ha
C220: Feste Kosten allgemein
C221: + feste Kosten Spargel | D221: =D217+D127 -> 2873.607273
C222: je ha

Sheet Arbeitskräfte
D1: Lohn- und Materialkosten/ha/Jahr
B3: Schlag | C3: =Betriebsdaten!C11 -> Bester Feld | D3: =Betriebsdaten!D11 -> 0 | E3: =Betriebsdaten!E11 -> 0 | F3: =Betriebsdaten!F11 -> 0 | G3: =Betriebsdaten!G11 -> 0 | H3: =Betriebsdaten!H11 -> 0 | I3: =Betriebsdaten!I11 -> 0 | J3: =Betriebsdaten!J11 -> 0 | K3: =Betriebsdaten!K11 -> 0 | L3: =Betriebsdaten!L11 -> 0 | M3: =Betriebsdaten!M11 -> 0 | N3: =Betriebsdaten!N11 -> 0 | O3: =Betriebsdaten!O11 -> 0 | P3: =Betriebsdaten!P11 -> 0 | Q3: =Betriebsdaten!Q11 -> 0 | R3: =Betriebsdaten!R11 -> 0 | S3: =Betriebsdaten!S11 -> 0 | T3: =Betriebsdaten!T11 -> 0 | U3: =Betriebsdaten!U11 -> 0 | V3: =Betriebsdaten!V11 -> 0 | W3: =Betriebsdaten!W11 -> 0 | X3: =Betriebsdaten!X11 -> 0 | Y3: =Betriebsdaten!Y11 -> 0 | Z3: =Betriebsdaten!Z11 -> 0 | AA3: =Betriebsdaten!AA11 -> 25 | AB3: =Betriebsdaten!AB11 -> 26 | AC3: =Betriebsdaten!AC11 -> 27 | AD3: =Betriebsdaten!AD11 -> 28 | AE3: =Betriebsdaten!AE11 -> 29 | AF3: =Betriebsdaten!AF11 -> 30 | AG3: =Betriebsdaten!AG11 -> 31 | AH3: =Betriebsdaten!AH11 -> 32 | AI3: =Betriebsdaten!AI11 -> 33 | AJ3: =Betriebsdaten!AJ11 -> 34 | AK3: =Betriebsdaten!AK11 -> 35 | AL3: =Betriebsdaten!AL11 -> 36 | AM3: =Betriebsdaten!AM11 -> 37 | AN3: =Betriebsdaten!AN11 -> 38 | AO3: =Betriebsdaten!AO11 -> 39 | AP3: =Betriebsdaten!AP11 -> 40 | AQ3: =Betriebsdaten!AQ11 -> 41 | AR3: =Betriebsdaten!AR11 -> 42 | AS3: =Betriebsdaten!AS11 -> 43 | AT3: =Betriebsdaten!AT11 -> 44 | AU3: =Betriebsdaten!AU11 -> 45 | AV3: =Betriebsdaten!AV11 -> 46 | AW3: =Betriebsdaten!AW11 -> 47 | AX3: =Betriebsdaten!AX11 -> 48 | AY3: =Betriebsdaten!AY11 -> 49 | AZ3: =Betriebsdaten!AZ11 -> 50 | BA3: =Betriebsdaten!BA11 -> 51 | BB3: =Betriebsdaten!BB11 -> 52 | BC3: =Betriebsdaten!BC11 -> 53 | BD3: =Betriebsdaten!BD11 -> 54 | BE3: =Betriebsdaten!BE11 -> 55 | BF3: =Betriebsdaten!BF11 -> 56 | BG3: =Betriebsdaten!BG11 -> 57 | BH3: =Betriebsdaten!BH11 -> 58 | BI3: =Betriebsdaten!BI11 -> 59 | BJ3: =Betriebsdaten!BJ11 -> 60 | BK3: Summe
B4: Frucht | C4: =Betriebsdaten!C15 -> Spargel | D4: =Betriebsdaten!D15 -> 0 | E4: =Betriebsdaten!E15 -> 0 | F4: =Betriebsdaten!F15 -> 0 | G4: =Betriebsdaten!G15 -> 0 | H4: =Betriebsdaten!H15 -> 0 | I4: =Betriebsdaten!I15 -> 0 | J4: =Betriebsdaten!J15 -> 0 | K4: =Betriebsdaten!K15 -> 0 | L4: =Betriebsdaten!L15 -> 0 | M4: =Betriebsdaten!M15 -> 0 | N4: =Betriebsdaten!N15 -> 0 | O4: =Betriebsdaten!O15 -> 0 | P4: =Betriebsdaten!P15 -> 0 | Q4: =Betriebsdaten!Q15 -> 0 | R4: =Betriebsdaten!R15 -> 0 | S4: =Betriebsdaten!S15 -> 0 | T4: =Betriebsdaten!T15 -> 0 | U4: =Betriebsdaten!U15 -> 0 | V4: =Betriebsdaten!V15 -> 0 | W4: =Betriebsdaten!W15 -> 0 | X4: =Betriebsdaten!X15 -> 0 | Y4: =Betriebsdaten!Y15 -> 0 | Z4: =Betriebsdaten!Z15 -> 0 | AA4: =Betriebsdaten!AA15 -> 0 | AB4: =Betriebsdaten!AB15 -> 0 | AC4: =Betriebsdaten!AC15 -> 0 | AD4: =Betriebsdaten!AD15 -> 0 | AE4: =Betriebsdaten!AE15 -> 0 | AF4: =Betriebsdaten!AF15 -> 0 | AG4: =Betriebsdaten!AG15 -> 0 | AH4: =Betriebsdaten!AH15 -> 0 | AI4: =Betriebsdaten!AI15 -> 0 | AJ4: =Betriebsdaten!AJ15 -> 0 | AK4: =Betriebsdaten!AK15 -> 0 | AL4: =Betriebsdaten!AL15 -> 0 | AM4: =Betriebsdaten!AM15 -> 0 | AN4: =Betriebsdaten!AN15 -> 0 | AO4: =Betriebsdaten!AO15 -> 0 | AP4: =Betriebsdaten!AP15 -> 0 | AQ4: =Betriebsdaten!AQ15 -> 0 | AR4: =Betriebsdaten!AR15 -> 0 | AS4: =Betriebsdaten!AS15 -> 0 | AT4: =Betriebsdaten!AT15 -> 0 | AU4: =Betriebsdaten!AU15 -> 0 | AV4: =Betriebsdaten!AV15 -> 0 | AW4: =Betriebsdaten!AW15 -> 0 | AX4: =Betriebsdaten!AX15 -> 0 | AY4: =Betriebsdaten!AY15 -> 0 | AZ4: =Betriebsdaten!AZ15 -> 0 | BA4: =Betriebsdaten!BA15 -> 0 | BB4: =Betriebsdaten!BB15 -> 0 | BC4: =Betriebsdaten!BC15 -> 0 | BD4: =Betriebsdaten!BD15 -> 0 | BE4: =Betriebsdaten!BE15 -> 0 | BF4: =Betriebsdaten!BF15 -> 0 | BG4: =Betriebsdaten!BG15 -> 0 | BH4: =Betriebsdaten!BH15 -> 0 | BI4: =Betriebsdaten!BI15 -> 0 | BJ4: =Betriebsdaten!BJ15 -> 0
B5: Sorte | C5: =Betriebsdaten!C16 -> Gijnlim | D5: =Betriebsdaten!D16 -> 0 | E5: =Betriebsdaten!E16 -> 0 | F5: =Betriebsdaten!F16 -> 0 | G5: =Betriebsdaten!G16 -> 0 | H5: =Betriebsdaten!H16 -> 0 | I5: =Betriebsdaten!I16 -> 0 | J5: =Betriebsdaten!J16 -> 0 | K5: =Betriebsdaten!K16 -> 0 | L5: =Betriebsdaten!L16 -> 0 | M5: =Betriebsdaten!M16 -> 0 | N5: =Betriebsdaten!N16 -> 0 | O5: =Betriebsdaten!O16 -> 0 | P5: =Betriebsdaten!P16 -> 0 | Q5: =Betriebsdaten!Q16 -> 0 | R5: =Betriebsdaten!R16 -> 0 | S5: =Betriebsdaten!S16 -> 0 | T5: =Betriebsdaten!T16 -> 0 | U5: =Betriebsdaten!U16 -> 0 | V5: =Betriebsdaten!V16 -> 0 | W5: =Betriebsdaten!W16 -> 0 | X5: =Betriebsdaten!X16 -> 0 | Y5: =Betriebsdaten!Y16 -> 0 | Z5: =Betriebsdaten!Z16 -> 0 | AA5: =Betriebsdaten!AA16 -> 0 | AB5: =Betriebsdaten!AB16 -> 0 | AC5: =Betriebsdaten!AC16 -> 0 | AD5: =Betriebsdaten!AD16 -> 0 | AE5: =Betriebsdaten!AE16 -> 0 | AF5: =Betriebsdaten!AF16 -> 0 | AG5: =Betriebsdaten!AG16 -> 0 | AH5: =Betriebsdaten!AH16 -> 0 | AI5: =Betriebsdaten!AI16 -> 0 | AJ5: =Betriebsdaten!AJ16 -> 0 | AK5: =Betriebsdaten!AK16 -> 0 | AL5: =Betriebsdaten!AL16 -> 0 | AM5: =Betriebsdaten!AM16 -> 0 | AN5: =Betriebsdaten!AN16 -> 0 | AO5: =Betriebsdaten!AO16 -> 0 | AP5: =Betriebsdaten!AP16 -> 0 | AQ5: =Betriebsdaten!AQ16 -> 0 | AR5: =Betriebsdaten!AR16 -> 0 | AS5: =Betriebsdaten!AS16 -> 0 | AT5: =Betriebsdaten!AT16 -> 0 | AU5: =Betriebsdaten!AU16 -> 0 | AV5: =Betriebsdaten!AV16 -> 0 | AW5: =Betriebsdaten!AW16 -> 0 | AX5: =Betriebsdaten!AX16 -> 0 | AY5: =Betriebsdaten!AY16 -> 0 | AZ5: =Betriebsdaten!AZ16 -> 0 | BA5: =Betriebsdaten!BA16 -> 0 | BB5: =Betriebsdaten!BB16 -> 0 | BC5: =Betriebsdaten!BC16 -> 0 | BD5: =Betriebsdaten!BD16 -> 0 | BE5: =Betriebsdaten!BE16 -> 0 | BF5: =Betriebsdaten!BF16 -> 0 | BG5: =Betriebsdaten!BG16 -> 0 | BH5: =Betriebsdaten!BH16 -> 0 | BI5: =Betriebsdaten!BI16 -> 0 | BJ5: =Betriebsdaten!BJ16 -> 0
B6: ha | C6: =Betriebsdaten!C17 -> 3.8 | D6: =Betriebsdaten!D17 -> 0 | E6: =Betriebsdaten!E17 -> 0 | F6: =Betriebsdaten!F17 -> 0 | G6: =Betriebsdaten!G17 -> 0 | H6: =Betriebsdaten!H17 -> 0 | I6: =Betriebsdaten!I17 -> 0 | J6: =Betriebsdaten!J17 -> 0 | K6: =Betriebsdaten!K17 -> 0 | L6: =Betriebsdaten!L17 -> 0 | M6: =Betriebsdaten!M17 -> 0 | N6: =Betriebsdaten!N17 -> 0 | O6: =Betriebsdaten!O17 -> 0 | P6: =Betriebsdaten!P17 -> 0 | Q6: =Betriebsdaten!Q17 -> 0 | R6: =Betriebsdaten!R17 -> 0 | S6: =Betriebsdaten!S17 -> 0 | T6: =Betriebsdaten!T17 -> 0 | U6: =Betriebsdaten!U17 -> 0 | V6: =Betriebsdaten!V17 -> 0 | W6: =Betriebsdaten!W17 -> 0 | X6: =Betriebsdaten!X17 -> 0 | Y6: =Betriebsdaten!Y17 -> 0 | Z6: =Betriebsdaten!Z17 -> 0 | AA6: =Betriebsdaten!AA17 -> 0 | AB6: =Betriebsdaten!AB17 -> 0 | AC6: =Betriebsdaten!AC17 -> 0 | AD6: =Betriebsdaten!AD17 -> 0 | AE6: =Betriebsdaten!AE17 -> 0 | AF6: =Betriebsdaten!AF17 -> 0 | AG6: =Betriebsdaten!AG17 -> 0 | AH6: =Betriebsdaten!AH17 -> 0 | AI6: =Betriebsdaten!AI17 -> 0 | AJ6: =Betriebsdaten!AJ17 -> 0 | AK6: =Betriebsdaten!AK17 -> 0 | AL6: =Betriebsdaten!AL17 -> 0 | AM6: =Betriebsdaten!AM17 -> 0 | AN6: =Betriebsdaten!AN17 -> 0 | AO6: =Betriebsdaten!AO17 -> 0 | AP6: =Betriebsdaten!AP17 -> 0 | AQ6: =Betriebsdaten!AQ17 -> 0 | AR6: =Betriebsdaten!AR17 -> 0 | AS6: =Betriebsdaten!AS17 -> 0 | AT6: =Betriebsdaten!AT17 -> 0 | AU6: =Betriebsdaten!AU17 -> 0 | AV6: =Betriebsdaten!AV17 -> 0 | AW6: =Betriebsdaten!AW17 -> 0 | AX6: =Betriebsdaten!AX17 -> 0 | AY6: =Betriebsdaten!AY17 -> 0 | AZ6: =Betriebsdaten!AZ17 -> 0 | BA6: =Betriebsdaten!BA17 -> 0 | BB6: =Betriebsdaten!BB17 -> 0 | BC6: =Betriebsdaten!BC17 -> 0 | BD6: =Betriebsdaten!BD17 -> 0 | BE6: =Betriebsdaten!BE17 -> 0 | BF6: =Betriebsdaten!BF17 -> 0 | BG6: =Betriebsdaten!BG17 -> 0 | BH6: =Betriebsdaten!BH17 -> 0 | BI6: =Betriebsdaten!BI17 -> 0 | BJ6: =Betriebsdaten!BJ17 -> 0 | BK6: =SUM(C6:BJ6) -> 3.8
D7: Lohnkosten / ha
B8: Lohn Ernte | C8: 6890 | BK8: =(C8*$C$6)+(D8*$D$6)+(E8*$E$6)+(F8*$F$6)+(G8*$G$6)+(H8*$H$6)+(I8*$I$6)+(J8*$J$6)+(K8*$K$6)+(L8*$L$6)+(M8*$M$6)+(N8*$N$6)+(O8*$O$6)+(P8*$P$6)+(Q8*$Q$6)+(R8*$R$6)+(S8*$S$6)+(T8*$T$6)+(U8*$U$6)+(V8*$V$6)+(W8*$W$6)+(X8*$X$6)+(Y8*$Y$6)+(Z8*$Z$6)+(AA8*$AA$6)+(AB8*$AB$6)+(AC8*$AC$6)+(AD8*$AD$6)+(AE8*$AE$6)+(AF8*$AF$6)+(AG8*$AG$6)+(AH8*$AH$6)+(AI8*$AI$6)+(AJ8*$AJ$6)+(AK8*$AK$6)+(AL8*$AL$6)+(AM8*$AM$6)+(AN8*$AN$6)+(AO8*$AO$6)+(AP8*$AP$6)+(AQ8*$AQ$6)+(AR8*$AR$6)+(AS8*$AS$6)+(AT8*$AT$6)+(AU8*$AU$6)+(AV8*$AV$6)+(AW8*$AW$6)+(AX8*$AX$6)+(AY8*$AY$6)+(AZ8*$AZ$6)+(BA8*$BA$6)+(BB8*$BB$6)+(BC8*$BC$6)+(BD8*$BD$6)+(BE8*$BE$6)+(BF8*$BF$6)*(BG8*$BG$6)+(BH8*$BH$6)+(BI8*$BI$6)+(BJ8*$BJ$6) -> 26182
B9: Lohn Aufbereitung | C9: 2022 | BK9: =(C9*$C$6)+(D9*$D$6)+(E9*$E$6)+(F9*$F$6)+(G9*$G$6)+(H9*$H$6)+(I9*$I$6)+(J9*$J$6)+(K9*$K$6)+(L9*$L$6)+(M9*$M$6)+(N9*$N$6)+(O9*$O$6)+(P9*$P$6)+(Q9*$Q$6)+(R9*$R$6)+(S9*$S$6)+(T9*$T$6)+(U9*$U$6)+(V9*$V$6)+(W9*$W$6)+(X9*$X$6)+(Y9*$Y$6)+(Z9*$Z$6)+(AA9*$AA$6)+(AB9*$AB$6)+(AC9*$AC$6)+(AD9*$AD$6)+(AE9*$AE$6)+(AF9*$AF$6)+(AG9*$AG$6)+(AH9*$AH$6)+(AI9*$AI$6)+(AJ9*$AJ$6)+(AK9*$AK$6)+(AL9*$AL$6)+(AM9*$AM$6)+(AN9*$AN$6)+(AO9*$AO$6)+(AP9*$AP$6)+(AQ9*$AQ$6)+(AR9*$AR$6)+(AS9*$AS$6)+(AT9*$AT$6)+(AU9*$AU$6)+(AV9*$AV$6)+(AW9*$AW$6)+(AX9*$AX$6)+(AY9*$AY$6)+(AZ9*$AZ$6)+(BA9*$BA$6)+(BB9*$BB$6)+(BC9*$BC$6)+(BD9*$BD$6)+(BE9*$BE$6)+(BF9*$BF$6)*(BG9*$BG$6)+(BH9*$BH$6)+(BI9*$BI$6)+(BJ9*$BJ$6) -> 7683.6
B10: Lohn Feldarbeiten | C10: 890 | BK10: 3382
B11: Lohn Handhacke | C11: 240 | BK11: 912
B12: Lohn Bewässerung | C12: 120 | BK12: 456
B13: Lohn Vorarbeiter | C13: 400 | BK13: 1520
B14: Lohn Transport | C14: 130 | BK14: 494
B15: Sturmschaden | C15: 210 | BK15: 798
B16: Sozialver. Abgaben | C16: 1948 | BK16: 7402.4
B17: Lohn Büro | C17: 930 | BK17: 3534
BK18: 0
BK19: 0
BK20: 0
BK21: 0
BK22: 0
BK23: 0
BK24: 0
BK25: 0
BK26: 0
BK27: 0
B28: Lohnkosten /ha | C28: =SUM(C8:C27) -> 13780 | D28: 0 | E28: 0 | F28: 0 | G28: 0 | H28: 0 | I28: 0 | J28: 0 | K28: 0 | L28: 0 | M28: 0 | N28: 0 | O28: 0 | P28: 0 | Q28: 0 | R28: 0 | S28: 0 | T28: 0 | U28: 0 | V28: 0 | W28: =SUM(W8:W27) -> 0 | X28: 0 | Y28: 0 | Z28: 0 | AA28: 0 | AB28: 0 | AC28: 0 | AD28: 0 | AE28: 0 | AF28: 0 | AG28: =SUM(AG8:AG27) -> 0 | AH28: 0 | AI28: 0 | AJ28: 0 | AK28: 0 | AL28: 0 | AM28: 0 | AN28: 0 | AO28: 0 | AP28: 0 | AQ28: 0 | AR28: 0 | AS28: 0 | AT28: 0 | AU28: 0 | AV28: 0 | AW28: 0 | AX28: 0 | AY28: 0 | AZ28: 0 | BA28: 0 | BB28: 0 | BC28: 0 | BD28: 0 | BE28: 0 | BF28: 0 | BG28: 0 | BH28: 0 | BI28: 0 | BJ28: 0
B29: L-kosten gesamt | C29: =C28*C6 -> 52364 | D29: 0 | E29: 0 | F29: 0 | G29: 0 | H29: 0 | I29: 0 | J29: 0 | K29: 0 | L29: 0 | M29: 0 | N29: 0 | O29: 0 | P29: 0 | Q29: 0 | R29: 0 | S29: 0 | T29: 0 | U29: 0 | V29: 0 | W29: =W28*W6 -> 0 | X29: 0 | Y29: 0 | Z29: 0 | AA29: 0 | AB29: 0 | AC29: 0 | AD29: 0 | AE29: 0 | AF29: 0 | AG29: =AG28*AG6 -> 0 | AH29: 0 | AI29: 0 | AJ29: 0 | AK29: 0 | AL29: 0 | AM29: 0 | AN29: 0 | AO29: 0 | AP29: 0 | AQ29: 0 | AR29: 0 | AS29: 0 | AT29: 0 | AU29: 0 | AV29: 0 | AW29: 0 | AX29: 0 | AY29: 0 | AZ29: 0 | BA29: 0 | BB29: 0 | BC29: 0 | BD29: 0 | BE29: 0 | BF29: 0 | BG29: 0 | BH29: 0 | BI29: 0 | BJ29: 0 | BK29: =SUM(C29:BJ29) -> 52364
D30: Materialkosten / ha
B31: Zaun anteilig | C31: 150 | BK31: =(C31*$C$6)+(D31*$D$6)+(E31*$E$6)+(F31*$F$6)+(G31*$G$6)+(H31*$H$6)+(I31*$I$6)+(J31*$J$6)+(K31*$K$6)+(L31*$L$6)+(M31*$M$6)+(N31*$N$6)+(O31*$O$6)+(P31*$P$6)+(Q31*$Q$6)+(R31*$R$6)+(S31*$S$6)+(T31*$T$6)+(U31*$U$6)+(V31*$V$6)+(W31*$W$6)+(X31*$X$6)+(Y31*$Y$6)+(Z31*$Z$6)+(AA31*$AA$6)+(AB31*$AB$6)+(AC31*$AC$6)+(AD31*$AD$6)+(AE31*$AE$6)+(AF31*$AF$6)+(AG31*$AG$6)+(AH31*$AH$6)+(AI31*$AI$6)+(AJ31*$AJ$6)+(AK31*$AK$6)+(AL31*$AL$6)+(AM31*$AM$6)+(AN31*$AN$6)+(AO31*$AO$6)+(AP31*$AP$6)+(AQ31*$AQ$6)+(AR31*$AR$6)+(AS31*$AS$6)+(AT31*$AT$6)+(AU31*$AU$6)+(AV31*$AV$6)+(AW31*$AW$6)+(AX31*$AX$6)+(AY31*$AY$6)+(AZ31*$AZ$6)+(BA31*$BA$6)+(BB31*$BB$6)+(BC31*$BC$6)+(BD31*$BD$6)+(BE31*$BE$6)+(BF31*$BF$6)*(BG31*$BG$6)+(BH31*$BH$6)+(BI31*$BI$6)+(BJ31*$BJ$6) -> 570
B32: Folie s/w | C32: 411 | BK32: 1561.8
B33: Folie T+ | C33: 650.01 | BK33: 2470.038
B34: Folie 3fach | BK34: 0
B35: Stechmesser | C35: 80 | BK35: 304
B36: Körbe | C36: 20 | BK36: 76
B37: Bewässerung | C37: 320 | BK37: 1216
B38: Stirnpfähle | C38: 55 | BK38: 209
BK39: 0
BK40: 0
BK41: 0
BK42: 0
BK43: 0
BK44: 0
BK45: 0
BK46: 0
BK47: 0
BK48: 0
BK49: 0
BK50: 0
BK51: 0
BK52: 0
BK53: 0
BK54: 0
B55: Kosten Material / ha | C55: =SUM(C31:C54) -> 1686.01 | D55: 0 | E55: 0 | F55: 0 | G55: 0 | H55: 0 | I55: 0 | J55: 0 | K55: 0 | L55: 0 | M55: 0 | N55: 0 | O55: 0 | P55: 0 | Q55: 0 | R55: 0 | S55: 0 | T55: 0 | U55: 0 | V55: 0 | W55: =SUM(W31:W54) -> 0 | X55: 0 | Y55: 0 | Z55: 0 | AA55: 0 | AB55: 0 | AC55: 0 | AD55: 0 | AE55: 0 | AF55: 0 | AG55: =SUM(AG31:AG54) -> 0 | AH55: 0 | AI55: 0 | AJ55: 0 | AK55: 0 | AL55: 0 | AM55: 0 | AN55: 0 | AO55: 0 | AP55: 0 | AQ55: 0 | AR55: 0 | AS55: 0 | AT55: 0 | AU55: 0 | AV55: 0 | AW55: 0 | AX55: 0 | AY55: 0 | AZ55: 0 | BA55: 0 | BB55: 0 | BC55: 0 | BD55: 0 | BE55: 0 | BF55: 0 | BG55: 0 | BH55: 0 | BI55: 0 | BJ55: 0
B56: Kosten Material gesamt | C56: =C55*C6 -> 6406.838 | D56: 0 | E56: 0 | F56: 0 | G56: 0 | H56: 0 | I56: 0 | J56: 0 | K56: 0 | L56: 0 | M56: 0 | N56: 0 | O56: 0 | P56: 0 | Q56: 0 | R56: 0 | S56: 0 | T56: 0 | U56: 0 | V56: 0 | W56: =W55*W6 -> 0 | X56: 0 | Y56: 0 | Z56: 0 | AA56: 0 | AB56: 0 | AC56: 0 | AD56: 0 | AE56: 0 | AF56: 0 | AG56: =AG55*AG6 -> 0 | AH56: 0 | AI56: 0 | AJ56: 0 | AK56: 0 | AL56: 0 | AM56: 0 | AN56: 0 | AO56: 0 | AP56: 0 | AQ56: 0 | AR56: 0 | AS56: 0 | AT56: 0 | AU56: 0 | AV56: 0 | AW56: 0 | AX56: 0 | AY56: 0 | AZ56: 0 | BA56: 0 | BB56: 0 | BC56: 0 | BD56: 0 | BE56: 0 | BF56: 0 | BG56: 0 | BH56: 0 | BI56: 0 | BJ56: 0 | BK56: =SUM(C56:BJ56) -> 6406.838
D58: sonstige Kosten / ha
B59: Pacht | C59: 1350 | BK59: =(C59*$C$6)+(D59*$D$6)+(E59*$E$6)+(F59*$F$6)+(G59*$G$6)+(H59*$H$6)+(I59*$I$6)+(J59*$J$6)+(K59*$K$6)+(L59*$L$6)+(M59*$M$6)+(N59*$N$6)+(O59*$O$6)+(P59*$P$6)+(Q59*$Q$6)+(R59*$R$6)+(S59*$S$6)+(T59*$T$6)+(U59*$U$6)+(V59*$V$6)+(W59*$W$6)+(X59*$X$6)+(Y59*$Y$6)+(Z59*$Z$6)+(AA59*$AA$6)+(AB59*$AB$6)+(AC59*$AC$6)+(AD59*$AD$6)+(AE59*$AE$6)+(AF59*$AF$6)+(AG59*$AG$6)+(AH59*$AH$6)+(AI59*$AI$6)+(AJ59*$AJ$6)+(AK59*$AK$6)+(AL59*$AL$6)+(AM59*$AM$6)+(AN59*$AN$6)+(AO59*$AO$6)+(AP59*$AP$6)+(AQ59*$AQ$6)+(AR59*$AR$6)+(AS59*$AS$6)+(AT59*$AT$6)+(AU59*$AU$6)+(AV59*$AV$6)+(AW59*$AW$6)+(AX59*$AX$6)+(AY59*$AY$6)+(AZ59*$AZ$6)+(BA59*$BA$6)+(BB59*$BB$6)+(BC59*$BC$6)+(BD59*$BD$6)+(BE59*$BE$6)+(BF59*$BF$6)*(BG59*$BG$6)+(BH59*$BH$6)+(BI59*$BI$6)+(BJ59*$BJ$6) -> 5130
B60: Berufsgenossen. | C60: 108 | BK60: 410.4
B61: Vermarktungsgeb. | BK61: 0
B62: Hagelversicherung | C62: 220 | BK62: 836
B63: Vermittlungsgeb. | BK63: 0
B64: Vorbereitungsjahr | C64: 220 | BK64: 836
B65: Wasserentnahme | C65: 80 | BK65: 304
B66: Bürokosten | C66: 860 | BK66: 3268
B67: Werbung | C67: 350 | BK67: 1330
B68: Strom | C68: 180 | BK68: 684
B69: Beratung | C69: 100 | BK69: 380
BK70: =(C70*$C$6)+(D70*$D$6)+(E70*$E$6)+(F70*$F$6)+(G70*$G$6)+(H70*$H$6)+(I70*$I$6)+(J70*$J$6)+(K70*$K$6)+(L70*$L$6)+(M70*$M$6)+(N70*$N$6)+(O70*$O$6)+(P70*$P$6)+(Q70*$Q$6)+(R70*$R$6)+(S70*$S$6)+(T70*$T$6)+(U70*$U$6)+(V70*$V$6)+(W70*$W$6)+(X70*$X$6)+(Y70*$Y$6)+(Z70*$Z$6)+(AA70*$AA$6)+(AB70*$AB$6)+(AC70*$AC$6)+(AD70*$AD$6)+(AE70*$AE$6)+(AF70*$AF$6)+(AG70*$AG$6)+(AH70*$AH$6)+(AI70*$AI$6)+(AJ70*$AJ$6)+(AK70*$AK$6)+(AL70*$AL$6)+(AM70*$AM$6)+(AN70*$AN$6)+(AO70*$AO$6)+(AP70*$AP$6)+(AQ70*$AQ$6)+(AR70*$AR$6)+(AS70*$AS$6)+(AT70*$AT$6)+(AU70*$AU$6)+(AV70*$AV$6)+(AW70*$AW$6)+(AX70*$AX$6)+(AY70*$AY$6)+(AZ70*$AZ$6)+(BA70*$BA$6)+(BB70*$BB$6)+(BC70*$BC$6)+(BD70*$BD$6)+(BE70*$BE$6)+(BF70*$BF$6)*(BG70*$BG$6)+(BH70*$BH$6)+(BI70*$BI$6)+(BJ70*$BJ$6) -> 0
BK71: 0
BK72: 0
BK73: 0
BK74: 0
BK75: 0
B76: sonstige Kosten ha | C76: =SUM(C59:C75) -> 3468 | D76: =SUM(D59:D75) -> 0 | E76: 0 | F76: 0 | G76: 0 | H76: 0 | I76: 0 | J76: 0 | K76: 0 | L76: 0 | M76: 0 | N76: 0 | O76: 0 | P76: 0 | Q76: 0 | R76: 0 | S76: 0 | T76: 0 | U76: 0 | V76: 0 | W76: 0 | X76: 0 | Y76: 0 | Z76: 0 | AA76: 0 | AB76: 0 | AC76: 0 | AD76: 0 | AE76: 0 | AF76: 0 | AG76: =SUM(AG59:AG75) -> 0 | AH76: 0 | AI76: 0 | AJ76: 0 | AK76: 0 | AL76: 0 | AM76: 0 | AN76: 0 | AO76: 0 | AP76: 0 | AQ76: 0 | AR76: 0 | AS76: 0 | AT76: 0 | AU76: 0 | AV76: 0 | AW76: 0 | AX76: 0 | AY76: 0 | AZ76: 0 | BA76: 0 | BB76: 0 | BC76: 0 | BD76: 0 | BE76: 0 | BF76: 0 | BG76: 0 | BH76: 0 | BI76: 0 | BJ76: 0
B77: sonstige Kosten gesamt | C77: =C76*C6 -> 13178.4 | D77: 0 | E77: 0 | F77: 0 | G77: 0 | H77: 0 | I77: 0 | J77: 0 | K77: 0 | L77: 0 | M77: 0 | N77: 0 | O77: 0 | P77: 0 | Q77: 0 | R77: 0 | S77: 0 | T77: 0 | U77: 0 | V77: 0 | W77: 0 | X77: 0 | Y77: 0 | Z77: 0 | AA77: 0 | AB77: 0 | AC77: 0 | AD77: 0 | AE77: 0 | AF77: =AF76*AF6 -> 0 | AG77: =AG76*AG6 -> 0 | AH77: 0 | AI77: 0 | AJ77: 0 | AK77: 0 | AL77: 0 | AM77: 0 | AN77: 0 | AO77: 0 | AP77: 0 | AQ77: 0 | AR77: 0 | AS77: 0 | AT77: 0 | AU77: 0 | AV77: 0 | AW77: 0 | AX77: 0 | AY77: 0 | AZ77: 0 | BA77: 0 | BB77: 0 | BC77: 0 | BD77: 0 | BE77: 0 | BF77: 0 | BG77: 0 | BH77: 0 | BI77: 0 | BJ77: 0 | BK77: =SUM(C77:BJ77) -> 13178.4
B80: Kosten Lohn und Material / ha | C80: =C28+C55 -> 15466.01 | D80: 0 | E80: 0 | F80: 0 | G80: 0 | H80: 0 | I80: 0 | J80: 0 | K80: 0 | L80: 0 | M80: 0 | N80: 0 | O80: 0 | P80: 0 | Q80: 0 | R80: 0 | S80: 0 | T80: 0 | U80: 0 | V80: 0 | W80: =W28+W55 -> 0 | X80: 0 | Y80: 0 | Z80: 0 | AA80: 0 | AB80: 0 | AC80: 0 | AD80: 0 | AE80: 0 | AF80: 0 | AG80: =AG28+AG55 -> 0 | AH80: 0 | AI80: 0 | AJ80: 0 | AK80: 0 | AL80: 0 | AM80: 0 | AN80: 0 | AO80: 0 | AP80: 0 | AQ80: 0 | AR80: 0 | AS80: 0 | AT80: 0 | AU80: 0 | AV80: 0 | AW80: 0 | AX80: 0 | AY80: 0 | AZ80: 0 | BA80: 0 | BB80: 0 | BC80: 0 | BD80: 0 | BE80: 0 | BF80: 0 | BG80: 0 | BH80: 0 | BI80: 0 | BJ80: 0
B81: Kosten Lohn und Material gesamt | C81: =C29+C56 -> 58770.838 | D81: 0 | E81: 0 | F81: 0 | G81: 0 | H81: 0 | I81: 0 | J81: 0 | K81: 0 | L81: 0 | M81: 0 | N81: 0 | O81: 0 | P81: 0 | Q81: 0 | R81: 0 | S81: 0 | T81: 0 | U81: 0 | V81: 0 | W81: =W29+W56 -> 0 | X81: 0 | Y81: 0 | Z81: 0 | AA81: 0 | AB81: 0 | AC81: 0 | AD81: 0 | AE81: 0 | AF81: 0 | AG81: =AG29+AG56 -> 0 | AH81: 0 | AI81: 0 | AJ81: 0 | AK81: 0 | AL81: 0 | AM81: 0 | AN81: 0 | AO81: 0 | AP81: 0 | AQ81: 0 | AR81: 0 | AS81: 0 | AT81: 0 | AU81: 0 | AV81: 0 | AW81: 0 | AX81: 0 | AY81: 0 | AZ81: 0 | BA81: 0 | BB81: 0 | BC81: 0 | BD81: 0 | BE81: 0 | BF81: 0 | BG81: 0 | BH81: 0 | BI81: 0 | BJ81: 0 | BK81: =SUM(C81:BJ81) -> 58770.838

Sheet Berechnungen
G2: Verkaufstage | H2: =H9+H23+H37+H51+H65+H79 -> 68
B3: Hofladen | D3: berechneter Durchschnittspreis | H3: =I3/H2 -> 4.914159314 | I3: =SUM(I9:I91) -> 334.1628333
D5: ="Verkaufsmenge " &B3 & " gesamt" -> Verkaufsmenge Hofladen gesamt | H5: =B21+B35+B49+B63+B77+B91 -> 18558
D7: =" Verkaufsmenge "&B3&" täglich" -> Verkaufsmenge Hofladen täglich | H7: =H5/H2 -> 272.9117647 | P7: Pflanzgutkosten | AA7: Berechnung Nettoertrag | BC7: Berechnung Materialkosten/Jahr
D9: Datum vom | E9: 2009-04-15 | F9: bis | G9: 2009-04-22 | H9: =G9-E9 -> 7 | I9: =IF(G21<>"",(G21*H9),0) -> 51.83649289 | AA9: Abfall in % | AB9: 22 | AC9: 23 | AD9: 24 | AE9: 25 | AF9: 26 | AG9: 27 | AH9: 28 | AI9: 29 | AJ9: 30 | AK9: 31 | AL9: 32 | AM9: 33 | AN9: 34 | AO9: 35
B10: kg | C10: % errechnet | D10: ca. % | E10: Klassen | F10: Preis 1 | G10: €/kg | R10: 5 | S10: 6 | T10: 7 | U10: 8 | V10: 9 | AA10: Ertrag | AB10: Abfall in kg | BD10: Art | BE10: Investitions- | BF10: Alter | BG10: Afa | BH10: Zins | BI10: Reparatur | BJ10: var.Kosten | BK10: Summe
B11: 325 | C11: =IF(B11>1,(B11/$B$21*100),"") -> 30.8056872 | E11: Klasse 1 | F11: 9 | G11: =IF(C11<>"",(F11*(C11/100)),F11*(D11/100)) -> 2.772511848 | P11: Pflanzen/ha | Q11: 18000 | AA11: 12000 | AB11: =$AA$11-($AA$11*AB9/100) -> 9360 | AC11: 9240 | AD11: 9120 | AE11: 9000 | AF11: 8880 | AG11: 8760 | AH11: 8640 | AI11: 8520 | AJ11: 8400 | AK11: 8280 | AL11: 8160 | AM11: 8040 | AN11: 7920 | AO11: 7800 | BE11: kosten | BG11: % | BH11: % | BI11: % | BJ11: €/Jahr | BK11: €
B12: 280 | C12: =IF(B12>1,(B12/$B$21*100),"") -> 26.54028436 | E12: Klasse 1 vio | F12: 7.5 | G12: =IF(C12<>"",(F12*(C12/100)),F12*(D12/100)) -> 1.990521327 | P12: €/Pflanze | Q12: =S12/100 -> 0.37 | S12: 37 | AA12: 11000 | AB12: =$AA12-($AA12*AB$9/100) -> 8580 | AC12: 8470 | AD12: 8360 | AE12: 8250 | AF12: 8140 | AG12: 8030 | AH12: 7920 | AI12: 7810 | AJ12: 7700 | AK12: 7590 | AL12: 7480 | AM12: 7370 | AN12: 7260 | AO12: 7150 | BC12: 1. | BD12: S/W Folie | BE12: 1600 | BF12: 1 | BG12: 25 | BH12: 5 | BK12: =IF(BD12="","",IF(BF12="",BJ12,(IF((BF12<=(100/BG12)),((BE12/2*(BH12/100)+BE12*(BG12/100)+BE12*(BI12/100)+BJ12)),BE12*BI12/100)))) -> 440
B13: 240 | C13: 22.74881517 | E13: Klasse 2 | F13: 7 | G13: 1.592417062 | P13: Pflanzgutkosten/ha | Q13: =Q11*Q12 -> 6660 | R13: =$Q$13/R10 -> 1332 | S13: =$Q$13/S10 -> 1110 | T13: =$Q$13/T10 -> 951.4285714 | U13: =$Q$13/U10 -> 832.5 | V13: =$Q$13/V10 -> 740 | AA13: 10000 | AB13: 7800 | AC13: 7700 | AD13: 7600 | AE13: 7500 | AF13: 7400 | AG13: 7300 | AH13: 7200 | AI13: 7100 | AJ13: 7000 | AK13: 6900 | AL13: 6800 | AM13: 6700 | AN13: 6600 | AO13: 6500 | BC13: 2. | BD13: Thermo Extrabreit | BE13: 1260 | BF13: 1 | BG13: 25 | BH13: 5 | BK13: 346.5
B14: 120 | C14: 11.37440758 | E14: Klasse 2 vio | F14: 6.5 | G14: 0.7393364929 | AA14: 9000 | AB14: 7020 | AC14: 6930 | AD14: 6840 | AE14: 6750 | AF14: 6660 | AG14: 6570 | AH14: 6480 | AI14: 6390 | AJ14: 6300 | AK14: 6210 | AL14: 6120 | AM14: 6030 | AN14: 5940 | AO14: 5850 | BC14: 3. | BD14: Erbeerfolie | BE14: 1200 | BF14: 1 | BG14: 25 | BH14: 5 | BK14: 330
B15: 25 | C15: 2.369668246 | E15: Suppe | F15: 3 | G15: 0.07109004739 | P15: Pflanzen/ha | Q15: 20000 | AA15: 8000 | AB15: 6240 | AC15: 6160 | AD15: 6080 | AE15: 6000 | AF15: 5920 | AG15: 5840 | AH15: 5760 | AI15: 5680 | AJ15: 5600 | AK15: 5520 | AL15: 5440 | AM15: 5360 | AN15: 5280 | AO15: 5200 | BC15: 4. | BD15: Tunnelstäbe | BE15: 1400 | BF15: 1 | BG15: 10 | BH15: 5 | BK15: 175
B16: 45 | C16: 4.265402844 | E16: Bruch | F16: 2.5 | G16: 0.1066350711 | P16: €/Pflanze | Q16: 0.25 | AA16: 7500 | AB16: 5850 | AC16: 5775 | AD16: 5700 | AE16: 5625 | AF16: 5550 | AG16: 5475 | AH16: 5400 | AI16: 5325 | AJ16: 5250 | AK16: 5175 | AL16: 5100 | AM16: 5025 | AN16: 4950 | AO16: 4875 | BC16: 5. | BD16: Messer | BE16: 45 | BF16: 1 | BG16: 100 | BH16: 5 | BK16: 46.125
B17: 20 | C17: 1.895734597 | E17: Spitzen | F17: 7 | G17: 0.1327014218 | P17: Pflanzgutkosten/ha | Q17: =Q15*Q16 -> 5000 | R17: =$Q$17/R10 -> 1000 | S17: =$Q$17/S10 -> 833.3333333 | T17: =$Q$17/T10 -> 714.2857143 | U17: =$Q$17/U10 -> 625 | V17: =$Q$17/V10 -> 555.5555556 | AA17: 7000 | AB17: 5460 | AC17: 5390 | AD17: 5320 | AE17: 5250 | AF17: 5180 | AG17: 5110 | AH17: 5040 | AI17: 4970 | AJ17: 4900 | AK17: 4830 | AL17: 4760 | AM17: 4690 | AN17: 4620 | AO17: 4550 | BC17: 6. | BD17: Erntehilfe | BE17: 3000 | BF17: 1 | BG17: 20 | BH17: 5 | BI17: 3 | BJ17: 80 | BK17: 845
G18: 0 | AA18: 6500 | AB18: 5070 | AC18: 5005 | AD18: 4940 | AE18: 4875 | AF18: 4810 | AG18: 4745 | AH18: 4680 | AI18: 4615 | AJ18: 4550 | AK18: 4485 | AL18: 4420 | AM18: 4355 | AN18: 4290 | AO18: 4225 | BC18: 7. | BF18: 1 | BG18: 10 | BH18: 5
G19: 0 | P19: Pflanzen/ha | Q19: 22000 | AA19: 6000 | AB19: 4680 | AC19: 4620 | AD19: 4560 | AE19: 4500 | AF19: 4440 | AG19: 4380 | AH19: 4320 | AI19: 4260 | AJ19: 4200 | AK19: 4140 | AL19: 4080 | AM19: 4020 | AN19: 3960 | AO19: 3900 | BC19: 8.
G20: 0 | P20: €/Pflanze | Q20: 0.25 | AA20: 5500 | AB20: 4290 | AC20: 4235 | AD20: 4180 | AE20: 4125 | AF20: 4070 | AG20: 4015 | AH20: 3960 | AI20: 3905 | AJ20: 3850 | AK20: 3795 | AL20: 3740 | AM20: 3685 | AN20: 3630 | AO20: 3575 | BC20: 9.
B21: =SUM(B11:B20) -> 1055 | D21: =SUM(D11:D20) -> 0 | G21: =IF(SUM(G11:G20)=0,"",(SUM(G11:G20))) -> 7.40521327 | P21: Pflanzgutkosten/ha | Q21: =Q19*Q20 -> 5500 | R21: =$Q$21/R10 -> 1100 | S21: =$Q$21/S10 -> 916.6666667 | T21: =$Q$21/T10 -> 785.7142857 | U21: =$Q$21/U10 -> 687.5 | V21: =$Q$21/V10 -> 611.1111111 | AA21: 5000 | AB21: 3900 | AC21: 3850 | AD21: 3800 | AE21: 3750 | AF21: 3700 | AG21: 3650 | AH21: 3600 | AI21: 3550 | AJ21: 3500 | AK21: 3450 | AL21: 3400 | AM21: 3350 | AN21: 3300 | AO21: 3250 | BC21: 10.
B22: =B21/H9 -> 150.7142857 | AA22: 4500 | AB22: =$AA22-($AA22*AB$9/100) -> 3510 | AC22: 3465 | AD22: 3420 | AE22: 3375 | AF22: 3330 | AG22: 3285 | AH22: 3240 | AI22: 3195 | AJ22: 3150 | AK22: 3105 | AL22: 3060 | AM22: 3015 | AN22: 2970 | AO22: 2925 | BC22: 11.
D23: Datum vom | E23: =G9+1 -> 2009-04-23 | F23: bis | G23: 2009-05-07 | H23: =G23-E23 -> 14 | I23: =IF(G35<>"",(G35*H23),0) -> 88.25568182 | P23: Pflanzen/ha | Q23: 20000 | AA23: 4000 | AB23: 3120 | AC23: 3080 | AD23: 3040 | AE23: 3000 | AF23: 2960 | AG23: 2920 | AH23: 2880 | AI23: 2840 | AJ23: 2800 | AK23: 2760 | AL23: 2720 | AM23: 2680 | AN23: 2640 | AO23: 2600 | BC23: 12.
B24: kg | C24: % errechnet | D24: ca. % | E24: Klassen | F24: Preis 1 | G24: €/kg | P24: €/Pflanze | Q24: 0.51 | AA24: 3500 | AB24: 2730 | AC24: 2695 | AD24: 2660 | AE24: 2625 | AF24: 2590 | AG24: 2555 | AH24: 2520 | AI24: 2485 | AJ24: 2450 | AK24: 2415 | AL24: 2380 | AM24: 2345 | AN24: 2310 | AO24: 2275 | BC24: 13.
B25: 1100 | C25: =IF(B25>1,(B25/$B$35*100),"") -> 41.66666667 | E25: Klasse 1 | F25: 7 | G25: =IF(C25<>"",(F25*(C25/100)),F25*(D25/100)) -> 2.916666667 | P25: Pflanzgutkosten/ha | Q25: =Q23*Q24 -> 10200 | R25: =$Q$25/R10 -> 2040 | S25: =$Q$25/S10 -> 1700 | T25: =$Q$25/T10 -> 1457.142857 | U25: =$Q$25/U10 -> 1275 | V25: =$Q$25/V10 -> 1133.333333 | AA25: 3000 | AB25: 2340 | AC25: 2310 | AD25: 2280 | AE25: 2250 | AF25: 2220 | AG25: 2190 | AH25: 2160 | AI25: 2130 | AJ25: 2100 | AK25: 2070 | AL25: 2040 | AM25: 2010 | AN25: 1980 | AO25: 1950 | BC25: 14.
B26: 680 | C26: =IF(B26>1,(B26/$B$35*100),"") -> 25.75757576 | E26: Klasse 1 vio | F26: 6.5 | G26: =IF(C26<>"",(F26*(C26/100)),F26*(D26/100)) -> 1.674242424 | AA26: 2500 | AB26: 1950 | AC26: 1925 | AD26: 1900 | AE26: 1875 | AF26: 1850 | AG26: 1825 | AH26: 1800 | AI26: 1775 | AJ26: 1750 | AK26: 1725 | AL26: 1700 | AM26: 1675 | AN26: 1650 | AO26: 1625 | BK26: =SUM(BK12:BK25) -> 2182.625
B27: 600 | C27: 22.72727273 | E27: Klasse 2 | F27: 6 | G27: 1.363636364 | AA27: 2000 | AB27: 1560 | AC27: 1540 | AD27: 1520 | AE27: 1500 | AF27: 1480 | AG27: 1460 | AH27: 1440 | AI27: 1420 | AJ27: 1400 | AK27: 1380 | AL27: 1360 | AM27: 1340 | AN27: 1320 | AO27: 1300
B28: 110 | C28: 4.166666667 | E28: Klasse 2 vio | F28: 4 | G28: 0.1666666667 | AA28: 1500 | AB28: 1170 | AC28: 1155 | AD28: 1140 | AE28: 1125 | AF28: 1110 | AG28: 1095 | AH28: 1080 | AI28: 1065 | AJ28: 1050 | AK28: 1035 | AL28: 1020 | AM28: 1005 | AN28: 990 | AO28: 975
B29: 65 | C29: 2.462121212 | E29: Suppe | F29: 3 | G29: 0.07386363636 | AA29: 1000 | AB29: 780 | AC29: 770 | AD29: 760 | AE29: 750 | AF29: 740 | AG29: 730 | AH29: 720 | AI29: 710 | AJ29: 700 | AK29: 690 | AL29: 680 | AM29: 670 | AN29: 660 | AO29: 650
B30: 55 | C30: 2.083333333 | E30: Bruch | F30: 2.5 | G30: 0.05208333333 | AA30: individuell
B31: 30 | C31: 1.136363636 | E31: Spitzen | F31: 5 | G31: 0.05681818182 | AA31: 4850 | AB31: =$AA31-($AA31*AB$9/100) -> 3783 | AC31: 3734.5 | AD31: 3686 | AE31: 3637.5 | AF31: 3589 | AG31: 3540.5 | AH31: 3492 | AI31: 3443.5 | AJ31: 3395 | AK31: 3346.5 | AL31: 3298 | AM31: 3249.5 | AN31: 3201 | AO31: 3152.5
G32: 0 | AA32: 6980 | AB32: 5444.4 | AC32: 5374.6 | AD32: 5304.8 | AE32: 5235 | AF32: 5165.2 | AG32: 5095.4 | AH32: 5025.6 | AI32: 4955.8 | AJ32: 4886 | AK32: 4816.2 | AL32: 4746.4 | AM32: 4676.6 | AN32: 4606.8 | AO32: 4537
G33: 0 | AA33: 10140 | AB33: 7909.2 | AC33: 7807.8 | AD33: 7706.4 | AE33: 7605 | AF33: 7503.6 | AG33: 7402.2 | AH33: 7300.8 | AI33: 7199.4 | AJ33: 7098 | AK33: 6996.6 | AL33: 6895.2 | AM33: 6793.8 | AN33: 6692.4 | AO33: 6591
G34: 0
B35: =SUM(B25:B34) -> 2640 | D35: =SUM(D25:D34) -> 0 | G35: =IF(SUM(G25:G34)=0,"",(SUM(G25:G34))) -> 6.303977273 | AA35: individuell | AB35: 40 | AC35: 41 | AD35: 42 | AE35: 51.5 | AF35: 18
B36: =B35/H23 -> 188.5714286 | AA36: 9800 | AB36: =$AA36-($AA36*AB$35/100) -> 5880 | AC36: =$AA36-($AA36*AC$35/100) -> 5782 | AD36: 5684 | AE36: 4753 | AF36: 8036 | AG36: 9800 | AH36: 9800 | AI36: 9800 | AJ36: 9800 | AK36: 9800 | AL36: 9800 | AM36: 9800 | AN36: 9800 | AO36: 9800
D37: Datum vom | E37: =G23+1 -> 2009-05-08 | F37: bis | G37: 2009-05-15 | H37: =G37-E37 -> 7 | I37: =IF(G49<>"",(G49*H37),0) -> 33.13924051 | AA37: 9650 | AB37: =$AA37-($AA37*AB$35/100) -> 5790 | AC37: 5693.5 | AD37: 5597 | AE37: 4680.25 | AF37: 7913 | AG37: 9650 | AH37: 9650 | AI37: 9650 | AJ37: 9650 | AK37: 9650 | AL37: 9650 | AM37: 9650 | AN37: 9650 | AO37: 9650
B38: kg | C38: % errechnet | D38: ca. % | E38: Klassen | F38: Preis 1 | G38: €/kg | AA38: 4622 | AB38: =$AA38-($AA38*AB$35/100) -> 2773.2 | AC38: 2726.98 | AD38: 2680.76 | AE38: 2241.67 | AF38: 3790.04 | AG38: 4622 | AH38: 4622 | AI38: 4622 | AJ38: 4622 | AK38: 4622 | AL38: 4622 | AM38: 4622 | AN38: 4622 | AO38: 4622
B39: 1480 | C39: =IF(B39>1,(B39/$B$49*100),"") -> 46.83544304 | E39: Klasse 1 | F39: 5.5 | G39: =IF(C39<>"",(F39*(C39/100)),F39*(D39/100)) -> 2.575949367
B40: 490 | C40: =IF(B40>1,(B40/$B$49*100),"") -> 15.50632911 | E40: Klasse 1 vio | F40: 4.5 | G40: =IF(C40<>"",(F40*(C40/100)),F40*(D40/100)) -> 0.6977848101
B41: 900 | C41: 28.48101266 | E41: Klasse 2 | F41: 4 | G41: 1.139240506
B42: 100 | C42: 3.164556962 | E42: Klasse 2 vio | F42: 4 | G42: 0.1265822785
B43: 80 | C43: 2.53164557 | E43: Suppe | F43: 3 | G43: 0.07594936709
B44: 70 | C44: 2.215189873 | E44: Bruch | F44: 2.5 | G44: 0.05537974684
B45: 40 | C45: 1.265822785 | E45: Spitzen | F45: 5 | G45: 0.06329113924
G46: 0
G47: 0
G48: 0
B49: =SUM(B39:B48) -> 3160 | D49: =SUM(D39:D48) -> 0 | G49: =IF(SUM(G39:G48)=0,"",(SUM(G39:G48))) -> 4.734177215
B50: =B49/H37 -> 451.4285714
D51: Datum vom | E51: =G37+1 -> 2009-05-16 | F51: bis | G51: 2009-06-05 | H51: =G51-E51 -> 20 | I51: =IF(G63<>"",(G63*H51),0) -> 82.9047619
B52: kg | C52: % errechnet | D52: ca. % | E52: Klassen | F52: Preis 1 | G52: €/kg
B53: 2400 | C53: =IF(B53>1,(B53/$B$63*100),"") -> 38.0952381 | E53: Klasse 1 | F53: 5 | G53: =IF(C53<>"",(F53*(C53/100)),F53*(D53/100)) -> 1.904761905
B54: 1600 | C54: =IF(B54>1,(B54/$B$63*100),"") -> 25.3968254 | E54: Klasse 1 vio | F54: 4.5 | G54: =IF(C54<>"",(F54*(C54/100)),F54*(D54/100)) -> 1.142857143
B55: 1300 | C55: 20.63492063 | E55: Klasse 2 | F55: 3.5 | G55: 0.7222222222
B56: 400 | C56: 6.349206349 | E56: Klasse 2 vio | F56: 3 | G56: 0.1904761905
B57: 350 | C57: 5.555555556 | E57: Suppe | F57: 2 | G57: 0.1111111111
B58: 190 | C58: 3.015873016 | E58: Bruch | F58: 1.5 | G58: 0.04523809524
B59: 60 | C59: 0.9523809524 | E59: Spitzen | F59: 3 | G59: 0.02857142857
G60: 0
G61: 0
G62: 0
B63: =SUM(B53:B62) -> 6300 | D63: =SUM(D53:D62) -> 0 | G63: =IF(SUM(G53:G62)=0,"",(SUM(G53:G62))) -> 4.145238095
B64: =B63/H51 -> 315
D65: Datum vom | E65: =G51+1 -> 2009-06-06 | F65: bis | G65: 2009-06-25 | H65: =G65-E65 -> 19 | I65: =IF(G77<>"",(G77*H65),0) -> 73.32211075
B66: kg | C66: % errechnet | D66: ca. % | E66: Klassen | F66: Preis 1 | G66: €/kg
B67: 2200 | C67: =IF(B67>1,(B67/$B$77*100),"") -> 42.44645958 | E67: Klasse 1 | F67: 4.9 | G67: =IF(C67<>"",(F67*(C67/100)),F67*(D67/100)) -> 2.079876519
B68: 800 | C68: =IF(B68>1,(B68/$B$77*100),"") -> 15.43507621 | E68: Klasse 1 vio | F68: 4 | G68: =IF(C68<>"",(F68*(C68/100)),F68*(D68/100)) -> 0.6174030484
B69: 1500 | C69: 28.9407679 | E69: Klasse 2 | F69: 3 | G69: 0.8682230369
B70: 400 | C70: 7.717538105 | E70: Klasse 2 vio | F70: 2.5 | G70: 0.1929384526
B71: 125 | C71: 2.411730658 | E71: Suppe | F71: 1.5 | G71: 0.03617595987
B72: 70 | C72: 1.350569168 | E72: Bruch | F72: 1 | G72: 0.01350569168
B73: 88 | C73: 1.697858383 | E73: Spitzen | F73: 3 | G73: 0.0509357515
G74: 0
G75: 0
G76: 0
B77: =SUM(B67:B76) -> 5183 | D77: =SUM(D67:D76) -> 0 | G77: =IF(SUM(G67:G76)=0,"",(SUM(G67:G76))) -> 3.85905846
B78: =B77/H65 -> 272.7894737
D79: Datum vom | E79: =G65+1 -> 2009-06-26 | F79: bis | G79: 2009-06-27 | H79: =G79-E79 -> 1 | I79: =IF(G91<>"",(G91*H79),0) -> 4.704545455
B80: kg | C80: % errechnet | D80: ca. % | E80: Klassen | F80: Preis 1 | G80: €/kg
B81: 95 | C81: =IF(B81>1,(B81/$B$91*100),"") -> 43.18181818 | E81: Klasse 1 | F81: 6 | G81: =IF(C81<>"",(F81*(C81/100)),F81*(D81/100)) -> 2.590909091
B82: 40 | C82: =IF(B82>1,(B82/$B$91*100),"") -> 18.18181818 | E82: Klasse 1 vio | F82: 5 | G82: =IF(C82<>"",(F82*(C82/100)),F82*(D82/100)) -> 0.9090909091
B83: 35 | C83: 15.90909091 | E83: Klasse 2 | F83: 4 | G83: 0.6363636364
B84: 10 | C84: 4.545454545 | E84: Klasse 2 vio | F84: 3 | G84: 0.1363636364
B85: 25 | C85: 11.36363636 | E85: Suppe | F85: 2 | G85: 0.2272727273
B86: 5 | C86: 2.272727273 | E86: Bruch | F86: 1 | G86: 0.02272727273
B87: 10 | C87: 4.545454545 | E87: Spitzen | F87: 4 | G87: 0.1818181818
G88: 0
G89: 0
G90: 0
B91: =SUM(B81:B90) -> 220 | D91: =SUM(D81:D90) -> 0 | G91: =IF(SUM(G81:G90)=0,"",(SUM(G81:G90))) -> 4.704545455
B92: =B91/H79 -> 220

Sheet Maschinen
D1: Maschinenkosten
B3: Schlag | C3: =Betriebsdaten!C11 -> Bester Feld | D3: =Betriebsdaten!D11 -> 0 | E3: =Betriebsdaten!E11 -> 0 | F3: =Betriebsdaten!F11 -> 0 | G3: =Betriebsdaten!G11 -> 0 | H3: =Betriebsdaten!H11 -> 0 | I3: =Betriebsdaten!I11 -> 0 | J3: =Betriebsdaten!J11 -> 0 | K3: =Betriebsdaten!K11 -> 0 | L3: =Betriebsdaten!L11 -> 0 | M3: =Betriebsdaten!M11 -> 0 | N3: =Betriebsdaten!N11 -> 0 | O3: =Betriebsdaten!O11 -> 0 | P3: =Betriebsdaten!P11 -> 0 | Q3: =Betriebsdaten!Q11 -> 0 | R3: =Betriebsdaten!R11 -> 0 | S3: =Betriebsdaten!S11 -> 0 | T3: =Betriebsdaten!T11 -> 0 | U3: =Betriebsdaten!U11 -> 0 | V3: =Betriebsdaten!V11 -> 0 | W3: =Betriebsdaten!W11 -> 0 | X3: =Betriebsdaten!X11 -> 0 | Y3: =Betriebsdaten!Y11 -> 0 | Z3: =Betriebsdaten!Z11 -> 0 | AA3: =Betriebsdaten!AA11 -> 25 | AB3: =Betriebsdaten!AB11 -> 26 | AC3: =Betriebsdaten!AC11 -> 27 | AD3: =Betriebsdaten!AD11 -> 28 | AE3: =Betriebsdaten!AE11 -> 29 | AF3: =Betriebsdaten!AF11 -> 30 | AG3: =Betriebsdaten!AG11 -> 31 | AH3: =Betriebsdaten!AH11 -> 32 | AI3: =Betriebsdaten!AI11 -> 33 | AJ3: =Betriebsdaten!AJ11 -> 34 | AK3: =Betriebsdaten!AK11 -> 35 | AL3: =Betriebsdaten!AL11 -> 36 | AM3: =Betriebsdaten!AM11 -> 37 | AN3: =Betriebsdaten!AN11 -> 38 | AO3: =Betriebsdaten!AO11 -> 39 | AP3: =Betriebsdaten!AP11 -> 40 | AQ3: =Betriebsdaten!AQ11 -> 41 | AR3: =Betriebsdaten!AR11 -> 42 | AS3: =Betriebsdaten!AS11 -> 43 | AT3: =Betriebsdaten!AT11 -> 44 | AU3: =Betriebsdaten!AU11 -> 45 | AV3: =Betriebsdaten!AV11 -> 46 | AW3: =Betriebsdaten!AW11 -> 47 | AX3: =Betriebsdaten!AX11 -> 48 | AY3: =Betriebsdaten!AY11 -> 49 | AZ3: =Betriebsdaten!AZ11 -> 50 | BA3: =Betriebsdaten!BA11 -> 51 | BB3: =Betriebsdaten!BB11 -> 52 | BC3: =Betriebsdaten!BC11 -> 53 | BD3: =Betriebsdaten!BD11 -> 54 | BE3: =Betriebsdaten!BE11 -> 55 | BF3: =Betriebsdaten!BF11 -> 56 | BG3: =Betriebsdaten!BG11 -> 57 | BH3: =Betriebsdaten!BH11 -> 58 | BI3: =Betriebsdaten!BI11 -> 59 | BJ3: =Betriebsdaten!BJ11 -> 60 | BK3: Summe
B4: Frucht | C4: =Betriebsdaten!C15 -> Spargel | D4: =Betriebsdaten!D15 -> 0 | E4: =Betriebsdaten!E15 -> 0 | F4: =Betriebsdaten!F15 -> 0 | G4: =Betriebsdaten!G15 -> 0 | H4: =Betriebsdaten!H15 -> 0 | I4: =Betriebsdaten!I15 -> 0 | J4: =Betriebsdaten!J15 -> 0 | K4: =Betriebsdaten!K15 -> 0 | L4: =Betriebsdaten!L15 -> 0 | M4: =Betriebsdaten!M15 -> 0 | N4: =Betriebsdaten!N15 -> 0 | O4: =Betriebsdaten!O15 -> 0 | P4: =Betriebsdaten!P15 -> 0 | Q4: =Betriebsdaten!Q15 -> 0 | R4: =Betriebsdaten!R15 -> 0 | S4: =Betriebsdaten!S15 -> 0 | T4: =Betriebsdaten!T15 -> 0 | U4: =Betriebsdaten!U15 -> 0 | V4: =Betriebsdaten!V15 -> 0 | W4: =Betriebsdaten!W15 -> 0 | X4: =Betriebsdaten!X15 -> 0 | Y4: =Betriebsdaten!Y15 -> 0 | Z4: =Betriebsdaten!Z15 -> 0 | AA4: =Betriebsdaten!AA15 -> 0 | AB4: =Betriebsdaten!AB15 -> 0 | AC4: =Betriebsdaten!AC15 -> 0 | AD4: =Betriebsdaten!AD15 -> 0 | AE4: =Betriebsdaten!AE15 -> 0 | AF4: =Betriebsdaten!AF15 -> 0 | AG4: =Betriebsdaten!AG15 -> 0 | AH4: =Betriebsdaten!AH15 -> 0 | AI4: =Betriebsdaten!AI15 -> 0 | AJ4: =Betriebsdaten!AJ15 -> 0 | AK4: =Betriebsdaten!AK15 -> 0 | AL4: =Betriebsdaten!AL15 -> 0 | AM4: =Betriebsdaten!AM15 -> 0 | AN4: =Betriebsdaten!AN15 -> 0 | AO4: =Betriebsdaten!AO15 -> 0 | AP4: =Betriebsdaten!AP15 -> 0 | AQ4: =Betriebsdaten!AQ15 -> 0 | AR4: =Betriebsdaten!AR15 -> 0 | AS4: =Betriebsdaten!AS15 -> 0 | AT4: =Betriebsdaten!AT15 -> 0 | AU4: =Betriebsdaten!AU15 -> 0 | AV4: =Betriebsdaten!AV15 -> 0 | AW4: =Betriebsdaten!AW15 -> 0 | AX4: =Betriebsdaten!AX15 -> 0 | AY4: =Betriebsdaten!AY15 -> 0 | AZ4: =Betriebsdaten!AZ15 -> 0 | BA4: =Betriebsdaten!BA15 -> 0 | BB4: =Betriebsdaten!BB15 -> 0 | BC4: =Betriebsdaten!BC15 -> 0 | BD4: =Betriebsdaten!BD15 -> 0 | BE4: =Betriebsdaten!BE15 -> 0 | BF4: =Betriebsdaten!BF15 -> 0 | BG4: =Betriebsdaten!BG15 -> 0 | BH4: =Betriebsdaten!BH15 -> 0 | BI4: =Betriebsdaten!BI15 -> 0 | BJ4: =Betriebsdaten!BJ15 -> 0
B5: Sorte | C5: =Betriebsdaten!C16 -> Gijnlim | D5: =Betriebsdaten!D16 -> 0 | E5: =Betriebsdaten!E16 -> 0 | F5: =Betriebsdaten!F16 -> 0 | G5: =Betriebsdaten!G16 -> 0 | H5: =Betriebsdaten!H16 -> 0 | I5: =Betriebsdaten!I16 -> 0 | J5: =Betriebsdaten!J16 -> 0 | K5: =Betriebsdaten!K16 -> 0 | L5: =Betriebsdaten!L16 -> 0 | M5: =Betriebsdaten!M16 -> 0 | N5: =Betriebsdaten!N16 -> 0 | O5: =Betriebsdaten!O16 -> 0 | P5: =Betriebsdaten!P16 -> 0 | Q5: =Betriebsdaten!Q16 -> 0 | R5: =Betriebsdaten!R16 -> 0 | S5: =Betriebsdaten!S16 -> 0 | T5: =Betriebsdaten!T16 -> 0 | U5: =Betriebsdaten!U16 -> 0 | V5: =Betriebsdaten!V16 -> 0 | W5: =Betriebsdaten!W16 -> 0 | X5: =Betriebsdaten!X16 -> 0 | Y5: =Betriebsdaten!Y16 -> 0 | Z5: =Betriebsdaten!Z16 -> 0 | AA5: =Betriebsdaten!AA16 -> 0 | AB5: =Betriebsdaten!AB16 -> 0 | AC5: =Betriebsdaten!AC16 -> 0 | AD5: =Betriebsdaten!AD16 -> 0 | AE5: =Betriebsdaten!AE16 -> 0 | AF5: =Betriebsdaten!AF16 -> 0 | AG5: =Betriebsdaten!AG16 -> 0 | AH5: =Betriebsdaten!AH16 -> 0 | AI5: =Betriebsdaten!AI16 -> 0 | AJ5: =Betriebsdaten!AJ16 -> 0 | AK5: =Betriebsdaten!AK16 -> 0 | AL5: =Betriebsdaten!AL16 -> 0 | AM5: =Betriebsdaten!AM16 -> 0 | AN5: =Betriebsdaten!AN16 -> 0 | AO5: =Betriebsdaten!AO16 -> 0 | AP5: =Betriebsdaten!AP16 -> 0 | AQ5: =Betriebsdaten!AQ16 -> 0 | AR5: =Betriebsdaten!AR16 -> 0 | AS5: =Betriebsdaten!AS16 -> 0 | AT5: =Betriebsdaten!AT16 -> 0 | AU5: =Betriebsdaten!AU16 -> 0 | AV5: =Betriebsdaten!AV16 -> 0 | AW5: =Betriebsdaten!AW16 -> 0 | AX5: =Betriebsdaten!AX16 -> 0 | AY5: =Betriebsdaten!AY16 -> 0 | AZ5: =Betriebsdaten!AZ16 -> 0 | BA5: =Betriebsdaten!BA16 -> 0 | BB5: =Betriebsdaten!BB16 -> 0 | BC5: =Betriebsdaten!BC16 -> 0 | BD5: =Betriebsdaten!BD16 -> 0 | BE5: =Betriebsdaten!BE16 -> 0 | BF5: =Betriebsdaten!BF16 -> 0 | BG5: =Betriebsdaten!BG16 -> 0 | BH5: =Betriebsdaten!BH16 -> 0 | BI5: =Betriebsdaten!BI16 -> 0 | BJ5: =Betriebsdaten!BJ16 -> 0
B6: ha | C6: =Betriebsdaten!C17 -> 3.8 | D6: =Betriebsdaten!D17 -> 0 | E6: =Betriebsdaten!E17 -> 0 | F6: =Betriebsdaten!F17 -> 0 | G6: =Betriebsdaten!G17 -> 0 | H6: =Betriebsdaten!H17 -> 0 | I6: =Betriebsdaten!I17 -> 0 | J6: =Betriebsdaten!J17 -> 0 | K6: =Betriebsdaten!K17 -> 0 | L6: =Betriebsdaten!L17 -> 0 | M6: =Betriebsdaten!M17 -> 0 | N6: =Betriebsdaten!N17 -> 0 | O6: =Betriebsdaten!O17 -> 0 | P6: =Betriebsdaten!P17 -> 0 | Q6: =Betriebsdaten!Q17 -> 0 | R6: =Betriebsdaten!R17 -> 0 | S6: =Betriebsdaten!S17 -> 0 | T6: =Betriebsdaten!T17 -> 0 | U6: =Betriebsdaten!U17 -> 0 | V6: =Betriebsdaten!V17 -> 0 | W6: =Betriebsdaten!W17 -> 0 | X6: =Betriebsdaten!X17 -> 0 | Y6: =Betriebsdaten!Y17 -> 0 | Z6: =Betriebsdaten!Z17 -> 0 | AA6: =Betriebsdaten!AA17 -> 0 | AB6: =Betriebsdaten!AB17 -> 0 | AC6: =Betriebsdaten!AC17 -> 0 | AD6: =Betriebsdaten!AD17 -> 0 | AE6: =Betriebsdaten!AE17 -> 0 | AF6: =Betriebsdaten!AF17 -> 0 | AG6: =Betriebsdaten!AG17 -> 0 | AH6: =Betriebsdaten!AH17 -> 0 | AI6: =Betriebsdaten!AI17 -> 0 | AJ6: =Betriebsdaten!AJ17 -> 0 | AK6: =Betriebsdaten!AK17 -> 0 | AL6: =Betriebsdaten!AL17 -> 0 | AM6: =Betriebsdaten!AM17 -> 0 | AN6: =Betriebsdaten!AN17 -> 0 | AO6: =Betriebsdaten!AO17 -> 0 | AP6: =Betriebsdaten!AP17 -> 0 | AQ6: =Betriebsdaten!AQ17 -> 0 | AR6: =Betriebsdaten!AR17 -> 0 | AS6: =Betriebsdaten!AS17 -> 0 | AT6: =Betriebsdaten!AT17 -> 0 | AU6: =Betriebsdaten!AU17 -> 0 | AV6: =Betriebsdaten!AV17 -> 0 | AW6: =Betriebsdaten!AW17 -> 0 | AX6: =Betriebsdaten!AX17 -> 0 | AY6: =Betriebsdaten!AY17 -> 0 | AZ6: =Betriebsdaten!AZ17 -> 0 | BA6: =Betriebsdaten!BA17 -> 0 | BB6: =Betriebsdaten!BB17 -> 0 | BC6: =Betriebsdaten!BC17 -> 0 | BD6: =Betriebsdaten!BD17 -> 0 | BE6: =Betriebsdaten!BE17 -> 0 | BF6: =Betriebsdaten!BF17 -> 0 | BG6: =Betriebsdaten!BG17 -> 0 | BH6: =Betriebsdaten!BH17 -> 0 | BI6: =Betriebsdaten!BI17 -> 0 | BJ6: =Betriebsdaten!BJ17 -> 0 | BK6: =SUM(C6:BJ6) -> 3.8
D7: Kosten/ha/Jahr
B8: Grubbern | C8: 22.5 | BK8: =(C8*$C$6)+(D8*$D$6)+(E8*$E$6)+(F8*$F$6)+(G8*$G$6)+(H8*$H$6)+(I8*$I$6)+(J8*$J$6)+(K8*$K$6)+(L8*$L$6)+(M8*$M$6)+(N8*$N$6)+(O8*$O$6)+(P8*$P$6)+(Q8*$Q$6)+(R8*$R$6)+(S8*$S$6)+(T8*$T$6)+(U8*$U$6)+(V8*$V$6)+(W8*$W$6)+(X8*$X$6)+(Y8*$Y$6)+(Z8*$Z$6)+(AA8*$AA$6)+(AB8*$AB$6)+(AC8*$AC$6)+(AD8*$AD$6)+(AE8*$AE$6)+(AF8*$AF$6)+(AG8*$AG$6)+(AH8*$AH$6)+(AI8*$AI$6)+(AJ8*$AJ$6)+(AK8*$AK$6)+(AL8*$AL$6)+(AM8*$AM$6)+(AN8*$AN$6)+(AO8*$AO$6)+(AP8*$AP$6)+(AQ8*$AQ$6)+(AR8*$AR$6)+(AS8*$AS$6)+(AT8*$AT$6)+(AU8*$AU$6)+(AV8*$AV$6)+(AW8*$AW$6)+(AX8*$AX$6)+(AY8*$AY$6)+(AZ8*$AZ$6)+(BA8*$BA$6)+(BB8*$BB$6)+(BC8*$BC$6)+(BD8*$BD$6)+(BE8*$BE$6)+(BF8*$BF$6)*(BG8*$BG$6)+(BH8*$BH$6)+(BI8*$BI$6)+(BJ8*$BJ$6) -> 85.5
B9: Damm fräsen | C9: 185 | BK9: =(C9*$C$6)+(D9*$D$6)+(E9*$E$6)+(F9*$F$6)+(G9*$G$6)+(H9*$H$6)+(I9*$I$6)+(J9*$J$6)+(K9*$K$6)+(L9*$L$6)+(M9*$M$6)+(N9*$N$6)+(O9*$O$6)+(P9*$P$6)+(Q9*$Q$6)+(R9*$R$6)+(S9*$S$6)+(T9*$T$6)+(U9*$U$6)+(V9*$V$6)+(W9*$W$6)+(X9*$X$6)+(Y9*$Y$6)+(Z9*$Z$6)+(AA9*$AA$6)+(AB9*$AB$6)+(AC9*$AC$6)+(AD9*$AD$6)+(AE9*$AE$6)+(AF9*$AF$6)+(AG9*$AG$6)+(AH9*$AH$6)+(AI9*$AI$6)+(AJ9*$AJ$6)+(AK9*$AK$6)+(AL9*$AL$6)+(AM9*$AM$6)+(AN9*$AN$6)+(AO9*$AO$6)+(AP9*$AP$6)+(AQ9*$AQ$6)+(AR9*$AR$6)+(AS9*$AS$6)+(AT9*$AT$6)+(AU9*$AU$6)+(AV9*$AV$6)+(AW9*$AW$6)+(AX9*$AX$6)+(AY9*$AY$6)+(AZ9*$AZ$6)+(BA9*$BA$6)+(BB9*$BB$6)+(BC9*$BC$6)+(BD9*$BD$6)+(BE9*$BE$6)+(BF9*$BF$6)*(BG9*$BG$6)+(BH9*$BH$6)+(BI9*$BI$6)+(BJ9*$BJ$6) -> 703
B10: Folie legen 2x | C10: 170 | BK10: 646
B11: Folie wickeln 2x | C11: 190 | BK11: 722
B12: abdämmen | C12: 22 | BK12: 83.6
B13: düngen | C13: 13.5 | BK13: 51.3
B14: Reihen lockern | C14: 18 | BK14: 68.4
B15: Begrünung säen | C15: 53 | BK15: 201.4
BK16: 0
BK17: 0
B18: schlegeln | C18: 42.5 | BK18: 161.5
B19: Scheibenegge | C19: 24.5 | BK19: 93.1
B20: Scheibenegge | C20: 24.5 | BK20: 93.1
B21: Winterdamm anpflü. | C21: 53 | BK21: 201.4
BK22: 0
B23: Erntehilfe | C23: 110 | BK23: 418
BK24: 0
BK25: 0
BK26: 0
BK27: 0
BK28: 0
BK29: 0
BK30: 0
BK31: 0
BK32: 0
BK33: 0
BK34: 0
BK35: 0
BK36: 0
BK37: 0
BK38: 0
BK39: 0
BK40: 0
BK41: 0
BK42: 0
BK43: 0
BK44: 0
BK45: 0
BK46: 0
BK47: 0
BK48: 0
BK49: 0
BK50: 0
B51: Kosten /ha | C51: =SUM(C8:C50) -> 928.5 | D51: 0 | E51: 0 | F51: 0 | G51: 0 | H51: 0 | I51: 0 | J51: 0 | K51: 0 | L51: =SUM(L8:L50) -> 0 | M51: 0 | N51: 0 | O51: 0 | P51: 0 | Q51: 0 | R51: 0 | S51: 0 | T51: 0 | U51: 0 | V51: =SUM(V8:V50) -> 0 | W51: =SUM(W8:W50) -> 0 | X51: 0 | Y51: 0 | Z51: 0 | AA51: 0 | AB51: 0 | AC51: 0 | AD51: 0 | AE51: 0 | AF51: 0 | AG51: =SUM(AG8:AG50) -> 0 | AH51: 0 | AI51: 0 | AJ51: 0 | AK51: 0 | AL51: 0 | AM51: 0 | AN51: 0 | AO51: 0 | AP51: 0 | AQ51: 0 | AR51: 0 | AS51: 0 | AT51: 0 | AU51: 0 | AV51: 0 | AW51: 0 | AX51: 0 | AY51: 0 | AZ51: 0 | BA51: 0 | BB51: 0 | BC51: 0 | BD51: 0 | BE51: 0 | BF51: 0 | BG51: 0 | BH51: 0 | BI51: 0 | BJ51: 0
B52: Kosten gesamt | C52: =C51*C6 -> 3528.3 | D52: =D51*D6 -> 0 | E52: 0 | F52: 0 | G52: 0 | H52: 0 | I52: 0 | J52: 0 | K52: 0 | L52: 0 | M52: 0 | N52: 0 | O52: 0 | P52: 0 | Q52: 0 | R52: 0 | S52: 0 | T52: 0 | U52: 0 | V52: =V51*V6 -> 0 | W52: =W51*W6 -> 0 | X52: 0 | Y52: 0 | Z52: 0 | AA52: 0 | AB52: 0 | AC52: 0 | AD52: 0 | AE52: 0 | AF52: 0 | AG52: =AG51*AG6 -> 0 | AH52: 0 | AI52: 0 | AJ52: 0 | AK52: 0 | AL52: 0 | AM52: 0 | AN52: 0 | AO52: 0 | AP52: 0 | AQ52: 0 | AR52: 0 | AS52: 0 | AT52: 0 | AU52: 0 | AV52: 0 | AW52: 0 | AX52: 0 | AY52: 0 | AZ52: 0 | BA52: 0 | BB52: 0 | BC52: 0 | BD52: 0 | BE52: 0 | BF52: 0 | BG52: 0 | BH52: 0 | BI52: 0 | BJ52: 0 | BK52: =SUM(C52:BJ52) -> 3528.3
D53: Lohnunternehmerkosten/ha/Jahr
B54: LU-Kosten Gülle | BK54: =(C54*$C$6)+(D54*$D$6)+(E54*$E$6)+(F54*$F$6)+(G54*$G$6)+(H54*$H$6)+(I54*$I$6)+(J54*$J$6)+(K54*$K$6)+(L54*$L$6)+(M54*$M$6)+(N54*$N$6)+(O54*$O$6)+(P54*$P$6)+(Q54*$Q$6)+(R54*$R$6)+(S54*$S$6)+(T54*$T$6)+(U54*$U$6)+(V54*$V$6)+(W54*$W$6)+(X54*$X$6)+(Y54*$Y$6)+(Z54*$Z$6)+(AA54*$AA$6)+(AB54*$AB$6)+(AC54*$AC$6)+(AD54*$AD$6)+(AE54*$AE$6)+(AF54*$AF$6)+(AG54*$AG$6)+(AH54*$AH$6)+(AI54*$AI$6)+(AJ54*$AJ$6)+(AK54*$AK$6)+(AL54*$AL$6)+(AM54*$AM$6)+(AN54*$AN$6)+(AO54*$AO$6)+(AP54*$AP$6)+(AQ54*$AQ$6)+(AR54*$AR$6)+(AS54*$AS$6)+(AT54*$AT$6)+(AU54*$AU$6)+(AV54*$AV$6)+(AW54*$AW$6)+(AX54*$AX$6)+(AY54*$AY$6)+(AZ54*$AZ$6)+(BA54*$BA$6)+(BB54*$BB$6)+(BC54*$BC$6)+(BD54*$BD$6)+(BE54*$BE$6)+(BF54*$BF$6)*(BG54*$BG$6)+(BH54*$BH$6)+(BI54*$BI$6)+(BJ54*$BJ$6) -> 0
B55: LU-Kosten Ernte | BK55: 0
B56: LU-Kosten PSM | C56: 520 | BK56: 1976
B57: LU-Kosten Düngung | BK57: 0
BK58: 0
BK59: 0
BK63: 0
BK64: 0
BK65: 0
BK66: 0
BK67: 0
B68: Kosten LU /ha | C68: =SUM(C54:C67) -> 520 | D68: =SUM(D54:D67) -> 0 | E68: 0 | F68: 0 | G68: 0 | H68: 0 | I68: 0 | J68: 0 | K68: 0 | L68: 0 | M68: 0 | N68: 0 | O68: 0 | P68: 0 | Q68: 0 | R68: 0 | S68: 0 | T68: 0 | U68: 0 | V68: =SUM(V54:V67) -> 0 | W68: =SUM(W54:W67) -> 0 | X68: 0 | Y68: 0 | Z68: 0 | AA68: 0 | AB68: 0 | AC68: 0 | AD68: 0 | AE68: 0 | AF68: 0 | AG68: =SUM(AG54:AG67) -> 0 | AH68: 0 | AI68: 0 | AJ68: 0 | AK68: 0 | AL68: 0 | AM68: 0 | AN68: 0 | AO68: 0 | AP68: 0 | AQ68: 0 | AR68: 0 | AS68: 0 | AT68: 0 | AU68: 0 | AV68: 0 | AW68: 0 | AX68: 0 | AY68: 0 | AZ68: 0 | BA68: 0 | BB68: 0 | BC68: 0 | BD68: 0 | BE68: 0 | BF68: 0 | BG68: 0 | BH68: 0 | BI68: 0 | BJ68: 0
B69: Kosten LU gesamt | C69: =C68*C6 -> 1976 | D69: =D68*D6 -> 0 | E69: 0 | F69: 0 | G69: 0 | H69: 0 | I69: 0 | J69: 0 | K69: 0 | L69: 0 | M69: 0 | N69: 0 | O69: 0 | P69: 0 | Q69: 0 | R69: 0 | S69: 0 | T69: 0 | U69: 0 | V69: =V68*V6 -> 0 | W69: =W68*W6 -> 0 | X69: 0 | Y69: 0 | Z69: 0 | AA69: 0 | AB69: 0 | AC69: 0 | AD69: 0 | AE69: 0 | AF69: 0 | AG69: =AG68*AG6 -> 0 | AH69: 0 | AI69: 0 | AJ69: 0 | AK69: 0 | AL69: 0 | AM69: 0 | AN69: 0 | AO69: 0 | AP69: 0 | AQ69: 0 | AR69: 0 | AS69: 0 | AT69: 0 | AU69: 0 | AV69: 0 | AW69: 0 | AX69: 0 | AY69: 0 | AZ69: 0 | BA69: 0 | BB69: 0 | BC69: 0 | BD69: 0 | BE69: 0 | BF69: 0 | BG69: 0 | BH69: 0 | BI69: 0 | BJ69: 0 | BK69: =SUM(C69:BJ69) -> 1976
B71: Kosten/ha | C71: =C51+C68 -> 1448.5 | D71: =D51+D68 -> 0 | E71: 0 | F71: 0 | G71: 0 | H71: 0 | I71: 0 | J71: 0 | K71: 0 | L71: 0 | M71: 0 | N71: 0 | O71: 0 | P71: 0 | Q71: 0 | R71: 0 | S71: 0 | T71: 0 | U71: =U51+U68 -> 0 | V71: =V51+V68 -> 0 | W71: =W51+W68 -> 0 | X71: 0 | Y71: 0 | Z71: 0 | AA71: 0 | AB71: 0 | AC71: 0 | AD71: 0 | AE71: 0 | AF71: 0 | AG71: =AG51+AG68 -> 0 | AH71: 0 | AI71: 0 | AJ71: 0 | AK71: 0 | AL71: 0 | AM71: 0 | AN71: 0 | AO71: 0 | AP71: 0 | AQ71: 0 | AR71: 0 | AS71: 0 | AT71: 0 | AU71: 0 | AV71: 0 | AW71: 0 | AX71: 0 | AY71: 0 | AZ71: 0 | BA71: 0 | BB71: 0 | BC71: 0 | BD71: 0 | BE71: 0 | BF71: 0 | BG71: 0 | BH71: 0 | BI71: 0 | BJ71: 0
B72: Kosten gesamt | C72: =C52+C69 -> 5504.3 | D72: =D52+D69 -> 0 | E72: 0 | F72: 0 | G72: 0 | H72: 0 | I72: 0 | J72: 0 | K72: 0 | L72: 0 | M72: 0 | N72: 0 | O72: 0 | P72: 0 | Q72: 0 | R72: 0 | S72: 0 | T72: 0 | U72: =U52+U69 -> 0 | V72: =V52+V69 -> 0 | W72: =W52+W69 -> 0 | X72: 0 | Y72: 0 | Z72: 0 | AA72: 0 | AB72: 0 | AC72: 0 | AD72: 0 | AE72: 0 | AF72: 0 | AG72: =AG52+AG69 -> 0 | AH72: 0 | AI72: 0 | AJ72: 0 | AK72: 0 | AL72: 0 | AM72: 0 | AN72: 0 | AO72: 0 | AP72: 0 | AQ72: 0 | AR72: 0 | AS72: 0 | AT72: 0 | AU72: 0 | AV72: 0 | AW72: 0 | AX72: 0 | AY72: 0 | AZ72: 0 | BA72: 0 | BB72: 0 | BC72: 0 | BD72: 0 | BE72: 0 | BF72: 0 | BG72: 0 | BH72: 0 | BI72: 0 | BJ72: 0 | BK72: =SUM(C72:BJ72) -> 5504.3

Sheet Auswertung
C2: Betriebszweigauswertung | G2: Betrieb: | H2: =Betriebsdaten!D4 -> Große Dankbar
B3: Schlag | C3: =Betriebsdaten!C11 -> Bester Feld | D3: =Betriebsdaten!D11 -> 0 | E3: =Betriebsdaten!E11 -> 0 | F3: =Betriebsdaten!F11 -> 0 | G3: =Betriebsdaten!G11 -> 0 | H3: =Betriebsdaten!H11 -> 0 | I3: =Betriebsdaten!I11 -> 0 | J3: =Betriebsdaten!J11 -> 0 | K3: =Betriebsdaten!K11 -> 0 | L3: =Betriebsdaten!L11 -> 0 | M3: =Betriebsdaten!M11 -> 0 | N3: =Betriebsdaten!N11 -> 0 | O3: =Betriebsdaten!O11 -> 0 | P3: =Betriebsdaten!P11 -> 0 | Q3: =Betriebsdaten!Q11 -> 0 | R3: =Betriebsdaten!R11 -> 0 | S3: =Betriebsdaten!S11 -> 0 | T3: =Betriebsdaten!T11 -> 0 | U3: =Betriebsdaten!U11 -> 0 | V3: =Betriebsdaten!V11 -> 0 | W3: =Betriebsdaten!W11 -> 0 | X3: =Betriebsdaten!X11 -> 0 | Y3: =Betriebsdaten!Y11 -> 0 | Z3: =Betriebsdaten!Z11 -> 0 | AA3: =Betriebsdaten!AA11 -> 25 | AB3: =Betriebsdaten!AB11 -> 26 | AC3: =Betriebsdaten!AC11 -> 27 | AD3: =Betriebsdaten!AD11 -> 28 | AE3: =Betriebsdaten!AE11 -> 29 | AF3: =Betriebsdaten!AF11 -> 30 | AG3: =Betriebsdaten!AG11 -> 31 | AH3: =Betriebsdaten!AH11 -> 32 | AI3: =Betriebsdaten!AI11 -> 33 | AJ3: =Betriebsdaten!AJ11 -> 34 | AK3: =Betriebsdaten!AK11 -> 35 | AL3: =Betriebsdaten!AL11 -> 36 | AM3: =Betriebsdaten!AM11 -> 37 | AN3: =Betriebsdaten!AN11 -> 38 | AO3: =Betriebsdaten!AO11 -> 39 | AP3: =Betriebsdaten!AP11 -> 40 | AQ3: =Betriebsdaten!AQ11 -> 41 | AR3: =Betriebsdaten!AR11 -> 42 | AS3: =Betriebsdaten!AS11 -> 43 | AT3: =Betriebsdaten!AT11 -> 44 | AU3: =Betriebsdaten!AU11 -> 45 | AV3: =Betriebsdaten!AV11 -> 46 | AW3: =Betriebsdaten!AW11 -> 47 | AX3: =Betriebsdaten!AX11 -> 48 | AY3: =Betriebsdaten!AY11 -> 49 | AZ3: =Betriebsdaten!AZ11 -> 50 | BA3: =Betriebsdaten!BA11 -> 51 | BB3: =Betriebsdaten!BB11 -> 52 | BC3: =Betriebsdaten!BC11 -> 53 | BD3: =Betriebsdaten!BD11 -> 54 | BE3: =Betriebsdaten!BE11 -> 55 | BF3: =Betriebsdaten!BF11 -> 56 | BG3: =Betriebsdaten!BG11 -> 57 | BH3: =Betriebsdaten!BH11 -> 58 | BI3: =Betriebsdaten!BI11 -> 59 | BJ3: =Betriebsdaten!BJ11 -> 60 | BK3: €/gesamt
B4: Frucht | C4: =Betriebsdaten!C15 -> Spargel | D4: =Betriebsdaten!D15 -> 0 | E4: =Betriebsdaten!E15 -> 0 | F4: =Betriebsdaten!F15 -> 0 | G4: =Betriebsdaten!G15 -> 0 | H4: =Betriebsdaten!H15 -> 0 | I4: =Betriebsdaten!I15 -> 0 | J4: =Betriebsdaten!J15 -> 0 | K4: =Betriebsdaten!K15 -> 0 | L4: =Betriebsdaten!L15 -> 0 | M4: =Betriebsdaten!M15 -> 0 | N4: =Betriebsdaten!N15 -> 0 | O4: =Betriebsdaten!O15 -> 0 | P4: =Betriebsdaten!P15 -> 0 | Q4: =Betriebsdaten!Q15 -> 0 | R4: =Betriebsdaten!R15 -> 0 | S4: =Betriebsdaten!S15 -> 0 | T4: =Betriebsdaten!T15 -> 0 | U4: =Betriebsdaten!U15 -> 0 | V4: =Betriebsdaten!V15 -> 0 | W4: =Betriebsdaten!W15 -> 0 | X4: =Betriebsdaten!X15 -> 0 | Y4: =Betriebsdaten!Y15 -> 0 | Z4: =Betriebsdaten!Z15 -> 0 | AA4: =Betriebsdaten!AA15 -> 0 | AB4: =Betriebsdaten!AB15 -> 0 | AC4: =Betriebsdaten!AC15 -> 0 | AD4: =Betriebsdaten!AD15 -> 0 | AE4: =Betriebsdaten!AE15 -> 0 | AF4: =Betriebsdaten!AF15 -> 0 | AG4: =Betriebsdaten!AG15 -> 0 | AH4: =Betriebsdaten!AH15 -> 0 | AI4: =Betriebsdaten!AI15 -> 0 | AJ4: =Betriebsdaten!AJ15 -> 0 | AK4: =Betriebsdaten!AK15 -> 0 | AL4: =Betriebsdaten!AL15 -> 0 | AM4: =Betriebsdaten!AM15 -> 0 | AN4: =Betriebsdaten!AN15 -> 0 | AO4: =Betriebsdaten!AO15 -> 0 | AP4: =Betriebsdaten!AP15 -> 0 | AQ4: =Betriebsdaten!AQ15 -> 0 | AR4: =Betriebsdaten!AR15 -> 0 | AS4: =Betriebsdaten!AS15 -> 0 | AT4: =Betriebsdaten!AT15 -> 0 | AU4: =Betriebsdaten!AU15 -> 0 | AV4: =Betriebsdaten!AV15 -> 0 | AW4: =Betriebsdaten!AW15 -> 0 | AX4: =Betriebsdaten!AX15 -> 0 | AY4: =Betriebsdaten!AY15 -> 0 | AZ4: =Betriebsdaten!AZ15 -> 0 | BA4: =Betriebsdaten!BA15 -> 0 | BB4: =Betriebsdaten!BB15 -> 0 | BC4: =Betriebsdaten!BC15 -> 0 | BD4: =Betriebsdaten!BD15 -> 0 | BE4: =Betriebsdaten!BE15 -> 0 | BF4: =Betriebsdaten!BF15 -> 0 | BG4: =Betriebsdaten!BG15 -> 0 | BH4: =Betriebsdaten!BH15 -> 0 | BI4: =Betriebsdaten!BI15 -> 0 | BJ4: =Betriebsdaten!BJ15 -> 0
B5: Sorte | C5: =Betriebsdaten!C16 -> Gijnlim | D5: =Betriebsdaten!D16 -> 0 | E5: =Betriebsdaten!E16 -> 0 | F5: =Betriebsdaten!F16 -> 0 | G5: =Betriebsdaten!G16 -> 0 | H5: =Betriebsdaten!H16 -> 0 | I5: =Betriebsdaten!I16 -> 0 | J5: =Betriebsdaten!J16 -> 0 | K5: =Betriebsdaten!K16 -> 0 | L5: =Betriebsdaten!L16 -> 0 | M5: =Betriebsdaten!M16 -> 0 | N5: =Betriebsdaten!N16 -> 0 | O5: =Betriebsdaten!O16 -> 0 | P5: =Betriebsdaten!P16 -> 0 | Q5: =Betriebsdaten!Q16 -> 0 | R5: =Betriebsdaten!R16 -> 0 | S5: =Betriebsdaten!S16 -> 0 | T5: =Betriebsdaten!T16 -> 0 | U5: =Betriebsdaten!U16 -> 0 | V5: =Betriebsdaten!V16 -> 0 | W5: =Betriebsdaten!W16 -> 0 | X5: =Betriebsdaten!X16 -> 0 | Y5: =Betriebsdaten!Y16 -> 0 | Z5: =Betriebsdaten!Z16 -> 0 | AA5: =Betriebsdaten!AA16 -> 0 | AB5: =Betriebsdaten!AB16 -> 0 | AC5: =Betriebsdaten!AC16 -> 0 | AD5: =Betriebsdaten!AD16 -> 0 | AE5: =Betriebsdaten!AE16 -> 0 | AF5: =Betriebsdaten!AF16 -> 0 | AG5: =Betriebsdaten!AG16 -> 0 | AH5: =Betriebsdaten!AH16 -> 0 | AI5: =Betriebsdaten!AI16 -> 0 | AJ5: =Betriebsdaten!AJ16 -> 0 | AK5: =Betriebsdaten!AK16 -> 0 | AL5: =Betriebsdaten!AL16 -> 0 | AM5: =Betriebsdaten!AM16 -> 0 | AN5: =Betriebsdaten!AN16 -> 0 | AO5: =Betriebsdaten!AO16 -> 0 | AP5: =Betriebsdaten!AP16 -> 0 | AQ5: =Betriebsdaten!AQ16 -> 0 | AR5: =Betriebsdaten!AR16 -> 0 | AS5: =Betriebsdaten!AS16 -> 0 | AT5: =Betriebsdaten!AT16 -> 0 | AU5: =Betriebsdaten!AU16 -> 0 | AV5: =Betriebsdaten!AV16 -> 0 | AW5: =Betriebsdaten!AW16 -> 0 | AX5: =Betriebsdaten!AX16 -> 0 | AY5: =Betriebsdaten!AY16 -> 0 | AZ5: =Betriebsdaten!AZ16 -> 0 | BA5: =Betriebsdaten!BA16 -> 0 | BB5: =Betriebsdaten!BB16 -> 0 | BC5: =Betriebsdaten!BC16 -> 0 | BD5: =Betriebsdaten!BD16 -> 0 | BE5: =Betriebsdaten!BE16 -> 0 | BF5: =Betriebsdaten!BF16 -> 0 | BG5: =Betriebsdaten!BG16 -> 0 | BH5: =Betriebsdaten!BH16 -> 0 | BI5: =Betriebsdaten!BI16 -> 0 | BJ5: =Betriebsdaten!BJ16 -> 0
B6: ha | C6: =Betriebsdaten!C17 -> 3.8 | D6: =Betriebsdaten!D17 -> 0 | E6: =Betriebsdaten!E17 -> 0 | F6: =Betriebsdaten!F17 -> 0 | G6: =Betriebsdaten!G17 -> 0 | H6: =Betriebsdaten!H17 -> 0 | I6: =Betriebsdaten!I17 -> 0 | J6: =Betriebsdaten!J17 -> 0 | K6: =Betriebsdaten!K17 -> 0 | L6: =Betriebsdaten!L17 -> 0 | M6: =Betriebsdaten!M17 -> 0 | N6: =Betriebsdaten!N17 -> 0 | O6: =Betriebsdaten!O17 -> 0 | P6: =Betriebsdaten!P17 -> 0 | Q6: =Betriebsdaten!Q17 -> 0 | R6: =Betriebsdaten!R17 -> 0 | S6: =Betriebsdaten!S17 -> 0 | T6: =Betriebsdaten!T17 -> 0 | U6: =Betriebsdaten!U17 -> 0 | V6: =Betriebsdaten!V17 -> 0 | W6: =Betriebsdaten!W17 -> 0 | X6: =Betriebsdaten!X17 -> 0 | Y6: =Betriebsdaten!Y17 -> 0 | Z6: =Betriebsdaten!Z17 -> 0 | AA6: =Betriebsdaten!AA17 -> 0 | AB6: =Betriebsdaten!AB17 -> 0 | AC6: =Betriebsdaten!AC17 -> 0 | AD6: =Betriebsdaten!AD17 -> 0 | AE6: =Betriebsdaten!AE17 -> 0 | AF6: =Betriebsdaten!AF17 -> 0 | AG6: =Betriebsdaten!AG17 -> 0 | AH6: =Betriebsdaten!AH17 -> 0 | AI6: =Betriebsdaten!AI17 -> 0 | AJ6: =Betriebsdaten!AJ17 -> 0 | AK6: =Betriebsdaten!AK17 -> 0 | AL6: =Betriebsdaten!AL17 -> 0 | AM6: =Betriebsdaten!AM17 -> 0 | AN6: =Betriebsdaten!AN17 -> 0 | AO6: =Betriebsdaten!AO17 -> 0 | AP6: =Betriebsdaten!AP17 -> 0 | AQ6: =Betriebsdaten!AQ17 -> 0 | AR6: =Betriebsdaten!AR17 -> 0 | AS6: =Betriebsdaten!AS17 -> 0 | AT6: =Betriebsdaten!AT17 -> 0 | AU6: =Betriebsdaten!AU17 -> 0 | AV6: =Betriebsdaten!AV17 -> 0 | AW6: =Betriebsdaten!AW17 -> 0 | AX6: =Betriebsdaten!AX17 -> 0 | AY6: =Betriebsdaten!AY17 -> 0 | AZ6: =Betriebsdaten!AZ17 -> 0 | BA6: =Betriebsdaten!BA17 -> 0 | BB6: =Betriebsdaten!BB17 -> 0 | BC6: =Betriebsdaten!BC17 -> 0 | BD6: =Betriebsdaten!BD17 -> 0 | BE6: =Betriebsdaten!BE17 -> 0 | BF6: =Betriebsdaten!BF17 -> 0 | BG6: =Betriebsdaten!BG17 -> 0 | BH6: =Betriebsdaten!BH17 -> 0 | BI6: =Betriebsdaten!BI17 -> 0 | BJ6: =Betriebsdaten!BJ17 -> 0 | BK6: =SUM(C6:AF6) -> 3.8
B7: =IF(H2<>"Große Dankbar","Sie haben keine Lizenz für dieses Programm, bitte bestellen Sie eine Lizenz bei Herrn Große Dankbar","") -> 
B8: Gesamtertrag (Netto) | C8: 240 | BK8: =SUM(C8:BJ8) -> 240
B9: Ertrag dt/ha (Netto) | C9: =IF(C8<0.1,0,(C8/C6)) -> 63.15789474 | D9: =IF(D8<0.1,0,(D8/D6)) -> 0 | E9: 0 | F9: 0 | G9: 0 | H9: 0 | I9: 0 | J9: 0 | K9: 0 | L9: 0 | M9: 0 | N9: 0 | O9: 0 | P9: 0 | Q9: 0 | R9: 0 | S9: 0 | T9: 0 | U9: 0 | V9: 0 | W9: 0 | X9: 0 | Y9: 0 | Z9: 0 | AA9: 0 | AB9: 0 | AC9: 0 | AD9: 0 | AE9: 0 | AF9: 0 | AG9: =IF(AG8<0.1,0,(AG8/AG6)) -> 0 | AH9: 0 | AI9: 0 | AJ9: 0 | AK9: 0 | AL9: 0 | AM9: 0 | AN9: 0 | AO9: 0 | AP9: 0 | AQ9: 0 | AR9: 0 | AS9: 0 | AT9: 0 | AU9: 0 | AV9: 0 | AW9: 0 | AX9: 0 | AY9: 0 | AZ9: 0 | BA9: 0 | BB9: 0 | BC9: 0 | BD9: 0 | BE9: 0 | BF9: 0 | BG9: 0 | BH9: 0 | BI9: 0 | BJ9: 0
A10: x | B10: Preis €/dt | C10: 445
A11: + | B11: Prämie €/ha | C11: 350 | BK11: =(C11*$C$6)+(D11*$D$6)+(E11*$E$6)+(F11*$F$6)+(G11*$G$6)+(H11*$H$6)+(I11*$I$6)+(J11*$J$6)+(K11*$K$6)+(L11*$L$6)+(M11*$M$6)+(N11*$N$6)+(O11*$O$6)+(P11*$P$6)+(Q11*$Q$6)+(R11*$R$6)+(S11*$S$6)+(T11*$T$6)+(U11*$U$6)+(V11*$V$6)+(W11*$W$6)+(X11*$X$6)+(Y11*$Y$6)+(Z11*$Z$6)+(AA11*$AA$6)+(AB11*$AB$6)+(AC11*$AC$6)+(AD11*$AD$6)+(AE11*$AE$6)+(AF11*$AF$6)+(AG11*$AG$6)+(AH11*$AH$6)+(AI11*$AI$6)+(AJ11*$AJ$6)+(AK11*$AK$6)+(AL11*$AL$6)+(AM11*$AM$6)+(AN11*$AN$6)+(AO11*$AO$6)+(AP11*$AP$6)+(AQ11*$AQ$6)+(AR11*$AR$6)+(AS11*$AS$6)+(AT11*$AT$6)+(AU11*$AU$6)+(AV11*$AV$6)+(AW11*$AW$6)+(AX11*$AX$6)+(AY11*$AY$6)+(AZ11*$AZ$6)+(BA11*$BA$6)+(BB11*$BB$6)+(BC11*$BC$6)+(BD11*$BD$6)+(BE11*$BE$6)+(BF11*$BF$6)*(BG11*$BG$6)+(BH11*$BH$6)+(BI11*$BI$6)+(BJ11*$BJ$6) -> 1330
A12: + | B12: sonstige Einnahmen/ha | BK12: =(C12*$C$6)+(D12*$D$6)+(E12*$E$6)+(F12*$F$6)+(G12*$G$6)+(H12*$H$6)+(I12*$I$6)+(J12*$J$6)+(K12*$K$6)+(L12*$L$6)+(M12*$M$6)+(N12*$N$6)+(O12*$O$6)+(P12*$P$6)+(Q12*$Q$6)+(R12*$R$6)+(S12*$S$6)+(T12*$T$6)+(U12*$U$6)+(V12*$V$6)+(W12*$W$6)+(X12*$X$6)+(Y12*$Y$6)+(Z12*$Z$6)+(AA12*$AA$6)+(AB12*$AB$6)+(AC12*$AC$6)+(AD12*$AD$6)+(AE12*$AE$6)+(AF12*$AF$6)+(AG12*$AG$6)+(AH12*$AH$6)+(AI12*$AI$6)+(AJ12*$AJ$6)+(AK12*$AK$6)+(AL12*$AL$6)+(AM12*$AM$6)+(AN12*$AN$6)+(AO12*$AO$6)+(AP12*$AP$6)+(AQ12*$AQ$6)+(AR12*$AR$6)+(AS12*$AS$6)+(AT12*$AT$6)+(AU12*$AU$6)+(AV12*$AV$6)+(AW12*$AW$6)+(AX12*$AX$6)+(AY12*$AY$6)+(AZ12*$AZ$6)+(BA12*$BA$6)+(BB12*$BB$6)+(BC12*$BC$6)+(BD12*$BD$6)+(BE12*$BE$6)+(BF12*$BF$6)*(BG12*$BG$6)+(BH12*$BH$6)+(BI12*$BI$6)+(BJ12*$BJ$6) -> 0
A13: = | B13: Marktleistung €/ha | C13: =IF($H$2<>"Große Dankbar",(C6*C10+C9+C15),(C9*C10)+C11+C12) -> 28455.26316 | D13: 0 | E13: 0 | F13: 0 | G13: 0 | H13: 0 | I13: 0 | J13: 0 | K13: 0 | L13: 0 | M13: 0 | N13: 0 | O13: 0 | P13: 0 | Q13: 0 | R13: 0 | S13: 0 | T13: 0 | U13: 0 | V13: 0 | W13: 0 | X13: 0 | Y13: 0 | Z13: 0 | AA13: 0 | AB13: 0 | AC13: 0 | AD13: 0 | AE13: 0 | AF13: 0 | AG13: 0 | AH13: 0 | AI13: =IF($H$2<>"Große Dankbar",(AI6*AI10+AI9+AI15),(AI9*AI10)+AI11+AI12) -> 0 | AJ13: 0 | AK13: 0 | AL13: 0 | AM13: 0 | AN13: 0 | AO13: 0 | AP13: 0 | AQ13: 0 | AR13: 0 | AS13: 0 | AT13: 0 | AU13: 0 | AV13: 0 | AW13: 0 | AX13: 0 | AY13: 0 | AZ13: 0 | BA13: 0 | BB13: 0 | BC13: 0 | BD13: 0 | BE13: 0 | BF13: 0 | BG13: 0 | BH13: 0 | BI13: 0 | BJ13: 0 | BK13: =(C13*$C$6)+(D13*$D$6)+(E13*$E$6)+(F13*$F$6)+(G13*$G$6)+(H13*$H$6)+(I13*$I$6)+(J13*$J$6)+(K13*$K$6)+(L13*$L$6)+(M13*$M$6)+(N13*$N$6)+(O13*$O$6)+(P13*$P$6)+(Q13*$Q$6)+(R13*$R$6)+(S13*$S$6)+(T13*$T$6)+(U13*$U$6)+(V13*$V$6)+(W13*$W$6)+(X13*$X$6)+(Y13*$Y$6)+(Z13*$Z$6)+(AA13*$AA$6)+(AB13*$AB$6)+(AC13*$AC$6)+(AD13*$AD$6)+(AE13*$AE$6)+(AF13*$AF$6) -> 108130
B14: =IF(H2<>"Große Dankbar","Falls Sie das Programm nicht schließen, treten unreperable Rechenfehler in Excel auf!!!","") -> 
A15: - | B15: Saatgut €/ha | C15: =Saatgut!C13 -> 826.6666667 | D15: =Saatgut!D13 -> 0 | E15: =Saatgut!E13 -> 0 | F15: =Saatgut!F13 -> 0 | G15: =Saatgut!G13 -> 0 | H15: =Saatgut!H13 -> 0 | I15: =Saatgut!I13 -> 0 | J15: =Saatgut!J13 -> 0 | K15: =Saatgut!K13 -> 0 | L15: =Saatgut!L13 -> 0 | M15: =Saatgut!M13 -> 0 | N15: =Saatgut!N13 -> 0 | O15: =Saatgut!O13 -> 0 | P15: =Saatgut!P13 -> 0 | Q15: =Saatgut!Q13 -> 0 | R15: =Saatgut!R13 -> 0 | S15: =Saatgut!S13 -> 0 | T15: =Saatgut!T13 -> 0 | U15: =Saatgut!U13 -> 0 | V15: =Saatgut!V13 -> 0 | W15: =Saatgut!W13 -> 0 | X15: =Saatgut!X13 -> 0 | Y15: =Saatgut!Y13 -> 0 | Z15: =Saatgut!Z13 -> 0 | AA15: =Saatgut!AA13 -> 0 | AB15: =Saatgut!AB13 -> 0 | AC15: =Saatgut!AC13 -> 0 | AD15: =Saatgut!AD13 -> 0 | AE15: =Saatgut!AE13 -> 0 | AF15: =Saatgut!AF13 -> 0 | AG15: =Saatgut!AG13 -> 0 | AH15: =Saatgut!AH13 -> 0 | AI15: =Saatgut!AI13 -> 0 | AJ15: =Saatgut!AJ13 -> 0 | AK15: =Saatgut!AK13 -> 0 | AL15: =Saatgut!AL13 -> 0 | AM15: =Saatgut!AM13 -> 0 | AN15: =Saatgut!AN13 -> 0 | AO15: =Saatgut!AO13 -> 0 | AP15: =Saatgut!AP13 -> 0 | AQ15: =Saatgut!AQ13 -> 0 | AR15: =Saatgut!AR13 -> 0 | AS15: =Saatgut!AS13 -> 0 | AT15: =Saatgut!AT13 -> 0 | AU15: =Saatgut!AU13 -> 0 | AV15: =Saatgut!AV13 -> 0 | AW15: =Saatgut!AW13 -> 0 | AX15: =Saatgut!AX13 -> 0 | AY15: =Saatgut!AY13 -> 0 | AZ15: =Saatgut!AZ13 -> 0 | BA15: =Saatgut!BA13 -> 0 | BB15: =Saatgut!BB13 -> 0 | BC15: =Saatgut!BC13 -> 0 | BD15: =Saatgut!BD13 -> 0 | BE15: =Saatgut!BE13 -> 0 | BF15: =Saatgut!BF13 -> 0 | BG15: =Saatgut!BG13 -> 0 | BH15: =Saatgut!BH13 -> 0 | BI15: =Saatgut!BI13 -> 0 | BJ15: =Saatgut!BJ13 -> 0 | BK15: =(C15*$C$6)+(D15*$D$6)+(E15*$E$6)+(F15*$F$6)+(G15*$G$6)+(H15*$H$6)+(I15*$I$6)+(J15*$J$6)+(K15*$K$6)+(L15*$L$6)+(M15*$M$6)+(N15*$N$6)+(O15*$O$6)+(P15*$P$6)+(Q15*$Q$6)+(R15*$R$6)+(S15*$S$6)+(T15*$T$6)+(U15*$U$6)+(V15*$V$6)+(W15*$W$6)+(X15*$X$6)+(Y15*$Y$6)+(Z15*$Z$6)+(AA15*$AA$6)+(AB15*$AB$6)+(AC15*$AC$6)+(AD15*$AD$6)+(AE15*$AE$6)+(AF15*$AF$6)+(AG15*$AG$6)+(AH15*$AH$6)+(AI15*$AI$6)+(AJ15*$AJ$6)+(AK15*$AK$6)+(AL15*$AL$6)+(AM15*$AM$6)+(AN15*$AN$6)+(AO15*$AO$6)+(AP15*$AP$6)+(AQ15*$AQ$6)+(AR15*$AR$6)+(AS15*$AS$6)+(AT15*$AT$6)+(AU15*$AU$6)+(AV15*$AV$6)+(AW15*$AW$6)+(AX15*$AX$6)+(AY15*$AY$6)+(AZ15*$AZ$6)+(BA15*$BA$6)+(BB15*$BB$6)+(BC15*$BC$6)+(BD15*$BD$6)+(BE15*$BE$6)+(BF15*$BF$6)*(BG15*$BG$6)+(BH15*$BH$6)+(BI15*$BI$6)+(BJ15*$BJ$6) -> 3141.333333
A16: - | B16: Dünger €/ha | C16: =Düngung!C162 -> 99.125 | D16: =Düngung!D162 -> 0 | E16: =Düngung!E162 -> 0 | F16: =Düngung!F162 -> 0 | G16: =Düngung!G162 -> 0 | H16: =Düngung!H162 -> 0 | I16: =Düngung!I162 -> 0 | J16: =Düngung!J162 -> 0 | K16: =Düngung!K162 -> 0 | L16: =Düngung!L162 -> 0 | M16: =Düngung!M162 -> 0 | N16: =Düngung!N162 -> 0 | O16: =Düngung!O162 -> 0 | P16: =Düngung!P162 -> 0 | Q16: =Düngung!Q162 -> 0 | R16: =Düngung!R162 -> 0 | S16: =Düngung!S162 -> 0 | T16: =Düngung!T162 -> 0 | U16: =Düngung!U162 -> 0 | V16: =Düngung!V162 -> 0 | W16: =Düngung!W162 -> 0 | X16: =Düngung!X162 -> 0 | Y16: =Düngung!Y162 -> 0 | Z16: =Düngung!Z162 -> 0 | AA16: =Düngung!AA162 -> 0 | AB16: =Düngung!AB162 -> 0 | AC16: =Düngung!AC162 -> 0 | AD16: =Düngung!AD162 -> 0 | AE16: =Düngung!AE162 -> 0 | AF16: =Düngung!AF162 -> 0 | AG16: =Düngung!AG162 -> 0 | AH16: =Düngung!AH162 -> 0 | AI16: =Düngung!AI162 -> 0 | AJ16: =Düngung!AJ162 -> 0 | AK16: =Düngung!AK162 -> 0 | AL16: =Düngung!AL162 -> 0 | AM16: =Düngung!AM162 -> 0 | AN16: =Düngung!AN162 -> 0 | AO16: =Düngung!AO162 -> 0 | AP16: =Düngung!AP162 -> 0 | AQ16: =Düngung!AQ162 -> 0 | AR16: =Düngung!AR162 -> 0 | AS16: =Düngung!AS162 -> 0 | AT16: =Düngung!AT162 -> 0 | AU16: =Düngung!AU162 -> 0 | AV16: =Düngung!AV162 -> 0 | AW16: =Düngung!AW162 -> 0 | AX16: =Düngung!AX162 -> 0 | AY16: =Düngung!AY162 -> 0 | AZ16: =Düngung!AZ162 -> 0 | BA16: =Düngung!BA162 -> 0 | BB16: =Düngung!BB162 -> 0 | BC16: =Düngung!BC162 -> 0 | BD16: =Düngung!BD162 -> 0 | BE16: =Düngung!BE162 -> 0 | BF16: =Düngung!BF162 -> 0 | BG16: =Düngung!BG162 -> 0 | BH16: =Düngung!BH162 -> 0 | BI16: =Düngung!BI162 -> 0 | BJ16: =Düngung!BJ162 -> 0 | BK16: 376.675
A17: - | B17: Pflanzenschutz €/ha | C17: =IF($H$2<>"Große Dankbar",C11+C10,PSM!C157) -> 238.2675 | D17: =IF($H$2<>"Große Dankbar",D11+D10,PSM!D157) -> 0 | E17: =IF($H$2<>"Große Dankbar",E11+E10,PSM!E157) -> 0 | F17: =IF($H$2<>"Große Dankbar",F11+F10,PSM!F157) -> 0 | G17: =IF($H$2<>"Große Dankbar",G11+G10,PSM!G157) -> 0 | H17: =IF($H$2<>"Große Dankbar",H11+H10,PSM!H157) -> 0 | I17: =IF($H$2<>"Große Dankbar",I11+I10,PSM!I157) -> 0 | J17: =IF($H$2<>"Große Dankbar",J11+J10,PSM!J157) -> 0 | K17: =IF($H$2<>"Große Dankbar",K11+K10,PSM!K157) -> 0 | L17: =IF($H$2<>"Große Dankbar",L11+L10,PSM!L157) -> 0 | M17: =IF($H$2<>"Große Dankbar",M11+M10,PSM!M157) -> 0 | N17: =IF($H$2<>"Große Dankbar",N11+N10,PSM!N157) -> 0 | O17: =IF($H$2<>"Große Dankbar",O11+O10,PSM!O157) -> 0 | P17: =IF($H$2<>"Große Dankbar",P11+P10,PSM!P157) -> 0 | Q17: =IF($H$2<>"Große Dankbar",Q11+Q10,PSM!Q157) -> 0 | R17: =IF($H$2<>"Große Dankbar",R11+R10,PSM!R157) -> 0 | S17: =IF($H$2<>"Große Dankbar",S11+S10,PSM!S157) -> 0 | T17: =IF($H$2<>"Große Dankbar",T11+T10,PSM!T157) -> 0 | U17: =IF($H$2<>"Große Dankbar",U11+U10,PSM!U157) -> 0 | V17: =IF($H$2<>"Große Dankbar",V11+V10,PSM!V157) -> 0 | W17: =IF($H$2<>"Große Dankbar",W11+W10,PSM!W157) -> 0 | X17: =IF($H$2<>"Große Dankbar",X11+X10,PSM!X157) -> 0 | Y17: =IF($H$2<>"Große Dankbar",Y11+Y10,PSM!Y157) -> 0 | Z17: =IF($H$2<>"Große Dankbar",Z11+Z10,PSM!Z157) -> 0 | AA17: =IF($H$2<>"Große Dankbar",AA11+AA10,PSM!AA157) -> 0 | AB17: =IF($H$2<>"Große Dankbar",AB11+AB10,PSM!AB157) -> 0 | AC17: =IF($H$2<>"Große Dankbar",AC11+AC10,PSM!AC157) -> 0 | AD17: =IF($H$2<>"Große Dankbar",AD11+AD10,PSM!AD157) -> 0 | AE17: =IF($H$2<>"Große Dankbar",AE11+AE10,PSM!AE157) -> 0 | AF17: =IF($H$2<>"Große Dankbar",AF11+AF10,PSM!AF157) -> 0 | AG17: =IF($H$2<>"Große Dankbar",AG11+AG10,PSM!AG157) -> 0 | AH17: =IF($H$2<>"Große Dankbar",AH11+AH10,PSM!AH157) -> 0 | AI17: =IF($H$2<>"Große Dankbar",AI11+AI10,PSM!AI157) -> 0 | AJ17: =IF($H$2<>"Große Dankbar",AJ11+AJ10,PSM!AJ157) -> 0 | AK17: =IF($H$2<>"Große Dankbar",AK11+AK10,PSM!AK157) -> 0 | AL17: =IF($H$2<>"Große Dankbar",AL11+AL10,PSM!AL157) -> 0 | AM17: =IF($H$2<>"Große Dankbar",AM11+AM10,PSM!AM157) -> 0 | AN17: =IF($H$2<>"Große Dankbar",AN11+AN10,PSM!AN157) -> 0 | AO17: =IF($H$2<>"Große Dankbar",AO11+AO10,PSM!AO157) -> 0 | AP17: =IF($H$2<>"Große Dankbar",AP11+AP10,PSM!AP157) -> 0 | AQ17: =IF($H$2<>"Große Dankbar",AQ11+AQ10,PSM!AQ157) -> 0 | AR17: =IF($H$2<>"Große Dankbar",AR11+AR10,PSM!AR157) -> 0 | AS17: =IF($H$2<>"Große Dankbar",AS11+AS10,PSM!AS157) -> 0 | AT17: =IF($H$2<>"Große Dankbar",AT11+AT10,PSM!AT157) -> 0 | AU17: =IF($H$2<>"Große Dankbar",AU11+AU10,PSM!AU157) -> 0 | AV17: =IF($H$2<>"Große Dankbar",AV11+AV10,PSM!AV157) -> 0 | AW17: =IF($H$2<>"Große Dankbar",AW11+AW10,PSM!AW157) -> 0 | AX17: =IF($H$2<>"Große Dankbar",AX11+AX10,PSM!AX157) -> 0 | AY17: =IF($H$2<>"Große Dankbar",AY11+AY10,PSM!AY157) -> 0 | AZ17: =IF($H$2<>"Große Dankbar",AZ11+AZ10,PSM!AZ157) -> 0 | BA17: =IF($H$2<>"Große Dankbar",BA11+BA10,PSM!BA157) -> 0 | BB17: =IF($H$2<>"Große Dankbar",BB11+BB10,PSM!BB157) -> 0 | BC17: =IF($H$2<>"Große Dankbar",BC11+BC10,PSM!BC157) -> 0 | BD17: =IF($H$2<>"Große Dankbar",BD11+BD10,PSM!BD157) -> 0 | BE17: =IF($H$2<>"Große Dankbar",BE11+BE10,PSM!BE157) -> 0 | BF17: =IF($H$2<>"Große Dankbar",BF11+BF10,PSM!BF157) -> 0 | BG17: =IF($H$2<>"Große Dankbar",BG11+BG10,PSM!BG157) -> 0 | BH17: =IF($H$2<>"Große Dankbar",BH11+BH10,PSM!BH157) -> 0 | BI17: =IF($H$2<>"Große Dankbar",BI11+BI10,PSM!BI157) -> 0 | BJ17: =IF($H$2<>"Große Dankbar",BJ11+BJ10,PSM!BJ157) -> 0 | BK17: 905.4165
A18: - | B18: Kosten Ackerbau €/ha | C18: =Maschinen!C71 -> 1448.5 | D18: =Maschinen!D71 -> 0 | E18: =Maschinen!E71 -> 0 | F18: =Maschinen!F71 -> 0 | G18: =Maschinen!G71 -> 0 | H18: =Maschinen!H71 -> 0 | I18: =Maschinen!I71 -> 0 | J18: =Maschinen!J71 -> 0 | K18: =Maschinen!K71 -> 0 | L18: =Maschinen!L71 -> 0 | M18: =Maschinen!M71 -> 0 | N18: =Maschinen!N71 -> 0 | O18: =Maschinen!O71 -> 0 | P18: =Maschinen!P71 -> 0 | Q18: =Maschinen!Q71 -> 0 | R18: =Maschinen!R71 -> 0 | S18: =Maschinen!S71 -> 0 | T18: =Maschinen!T71 -> 0 | U18: =Maschinen!U71 -> 0 | V18: =Maschinen!V71 -> 0 | W18: =Maschinen!W71 -> 0 | X18: =Maschinen!X71 -> 0 | Y18: =Maschinen!Y71 -> 0 | Z18: =Maschinen!Z71 -> 0 | AA18: =Maschinen!AA71 -> 0 | AB18: =Maschinen!AB71 -> 0 | AC18: =Maschinen!AC71 -> 0 | AD18: =Maschinen!AD71 -> 0 | AE18: =Maschinen!AE71 -> 0 | AF18: =Maschinen!AF71 -> 0 | AG18: =Maschinen!AG71 -> 0 | AH18: =Maschinen!AH71 -> 0 | AI18: =Maschinen!AI71 -> 0 | AJ18: =Maschinen!AJ71 -> 0 | AK18: =Maschinen!AK71 -> 0 | AL18: =Maschinen!AL71 -> 0 | AM18: =Maschinen!AM71 -> 0 | AN18: =Maschinen!AN71 -> 0 | AO18: =Maschinen!AO71 -> 0 | AP18: =Maschinen!AP71 -> 0 | AQ18: =Maschinen!AQ71 -> 0 | AR18: =Maschinen!AR71 -> 0 | AS18: =Maschinen!AS71 -> 0 | AT18: =Maschinen!AT71 -> 0 | AU18: =Maschinen!AU71 -> 0 | AV18: =Maschinen!AV71 -> 0 | AW18: =Maschinen!AW71 -> 0 | AX18: =Maschinen!AX71 -> 0 | AY18: =Maschinen!AY71 -> 0 | AZ18: =Maschinen!AZ71 -> 0 | BA18: =Maschinen!BA71 -> 0 | BB18: =Maschinen!BB71 -> 0 | BC18: =Maschinen!BC71 -> 0 | BD18: =Maschinen!BD71 -> 0 | BE18: =Maschinen!BE71 -> 0 | BF18: =Maschinen!BF71 -> 0 | BG18: =Maschinen!BG71 -> 0 | BH18: =Maschinen!BH71 -> 0 | BI18: =Maschinen!BI71 -> 0 | BJ18: =Maschinen!BJ71 -> 0 | BK18: 5504.3
B19: davon Lohnuntern./ha | C19: =Maschinen!C68 -> 520 | D19: =Maschinen!D68 -> 0 | E19: =Maschinen!E68 -> 0 | F19: =Maschinen!F68 -> 0 | G19: =Maschinen!G68 -> 0 | H19: =Maschinen!H68 -> 0 | I19: =Maschinen!I68 -> 0 | J19: =Maschinen!J68 -> 0 | K19: =Maschinen!K68 -> 0 | L19: =Maschinen!L68 -> 0 | M19: =Maschinen!M68 -> 0 | N19: =Maschinen!N68 -> 0 | O19: =Maschinen!O68 -> 0 | P19: =Maschinen!P68 -> 0 | Q19: =Maschinen!Q68 -> 0 | R19: =Maschinen!R68 -> 0 | S19: =Maschinen!S68 -> 0 | T19: =Maschinen!T68 -> 0 | U19: =Maschinen!U68 -> 0 | V19: =Maschinen!V68 -> 0 | W19: =Maschinen!W68 -> 0 | X19: =Maschinen!X68 -> 0 | Y19: =Maschinen!Y68 -> 0 | Z19: =Maschinen!Z68 -> 0 | AA19: =Maschinen!AA68 -> 0 | AB19: =Maschinen!AB68 -> 0 | AC19: =Maschinen!AC68 -> 0 | AD19: =Maschinen!AD68 -> 0 | AE19: =Maschinen!AE68 -> 0 | AF19: =Maschinen!AF68 -> 0 | AG19: =Maschinen!AG68 -> 0 | AH19: =Maschinen!AH68 -> 0 | AI19: =Maschinen!AI68 -> 0 | AJ19: =Maschinen!AJ68 -> 0 | AK19: =Maschinen!AK68 -> 0 | AL19: =Maschinen!AL68 -> 0 | AM19: =Maschinen!AM68 -> 0 | AN19: =Maschinen!AN68 -> 0 | AO19: =Maschinen!AO68 -> 0 | AP19: =Maschinen!AP68 -> 0 | AQ19: =Maschinen!AQ68 -> 0 | AR19: =Maschinen!AR68 -> 0 | AS19: =Maschinen!AS68 -> 0 | AT19: =Maschinen!AT68 -> 0 | AU19: =Maschinen!AU68 -> 0 | AV19: =Maschinen!AV68 -> 0 | AW19: =Maschinen!AW68 -> 0 | AX19: =Maschinen!AX68 -> 0 | AY19: =Maschinen!AY68 -> 0 | AZ19: =Maschinen!AZ68 -> 0 | BA19: =Maschinen!BA68 -> 0 | BB19: =Maschinen!BB68 -> 0 | BC19: =Maschinen!BC68 -> 0 | BD19: =Maschinen!BD68 -> 0 | BE19: =Maschinen!BE68 -> 0 | BF19: =Maschinen!BF68 -> 0 | BG19: =Maschinen!BG68 -> 0 | BH19: =Maschinen!BH68 -> 0 | BI19: =Maschinen!BI68 -> 0 | BJ19: =Maschinen!BJ68 -> 0 | BK19: 1976
B20: Lohnkosten €/ha | C20: =IF($H$2<>"Große Dankbar",C16+C21/4,Arbeitskräfte!C28) -> 13780 | D20: =IF($H$2<>"Große Dankbar",D16+D21/4,Arbeitskräfte!D28) -> 0 | E20: =IF($H$2<>"Große Dankbar",E16+E21/4,Arbeitskräfte!E28) -> 0 | F20: =IF($H$2<>"Große Dankbar",F16+F21/4,Arbeitskräfte!F28) -> 0 | G20: =IF($H$2<>"Große Dankbar",G16+G21/4,Arbeitskräfte!G28) -> 0 | H20: =IF($H$2<>"Große Dankbar",H16+H21/4,Arbeitskräfte!H28) -> 0 | I20: =IF($H$2<>"Große Dankbar",I16+I21/4,Arbeitskräfte!I28) -> 0 | J20: =IF($H$2<>"Große Dankbar",J16+J21/4,Arbeitskräfte!J28) -> 0 | K20: =IF($H$2<>"Große Dankbar",K16+K21/4,Arbeitskräfte!K28) -> 0 | L20: =IF($H$2<>"Große Dankbar",L16+L21/4,Arbeitskräfte!L28) -> 0 | M20: =IF($H$2<>"Große Dankbar",M16+M21/4,Arbeitskräfte!M28) -> 0 | N20: =IF($H$2<>"Große Dankbar",N16+N21/4,Arbeitskräfte!N28) -> 0 | O20: =IF($H$2<>"Große Dankbar",O16+O21/4,Arbeitskräfte!O28) -> 0 | P20: =IF($H$2<>"Große Dankbar",P16+P21/4,Arbeitskräfte!P28) -> 0 | Q20: =IF($H$2<>"Große Dankbar",Q16+Q21/4,Arbeitskräfte!Q28) -> 0 | R20: =IF($H$2<>"Große Dankbar",R16+R21/4,Arbeitskräfte!R28) -> 0 | S20: =IF($H$2<>"Große Dankbar",S16+S21/4,Arbeitskräfte!S28) -> 0 | T20: =IF($H$2<>"Große Dankbar",T16+T21/4,Arbeitskräfte!T28) -> 0 | U20: =IF($H$2<>"Große Dankbar",U16+U21/4,Arbeitskräfte!U28) -> 0 | V20: =IF($H$2<>"Große Dankbar",V16+V21/4,Arbeitskräfte!V28) -> 0 | W20: =IF($H$2<>"Große Dankbar",W16+W21/4,Arbeitskräfte!W28) -> 0 | X20: =IF($H$2<>"Große Dankbar",X16+X21/4,Arbeitskräfte!X28) -> 0 | Y20: =IF($H$2<>"Große Dankbar",Y16+Y21/4,Arbeitskräfte!Y28) -> 0 | Z20: =IF($H$2<>"Große Dankbar",Z16+Z21/4,Arbeitskräfte!Z28) -> 0 | AA20: =IF($H$2<>"Große Dankbar",AA16+AA21/4,Arbeitskräfte!AA28) -> 0 | AB20: =IF($H$2<>"Große Dankbar",AB16+AB21/4,Arbeitskräfte!AB28) -> 0 | AC20: =IF($H$2<>"Große Dankbar",AC16+AC21/4,Arbeitskräfte!AC28) -> 0 | AD20: =IF($H$2<>"Große Dankbar",AD16+AD21/4,Arbeitskräfte!AD28) -> 0 | AE20: =IF($H$2<>"Große Dankbar",AE16+AE21/4,Arbeitskräfte!AE28) -> 0 | AF20: =IF($H$2<>"Große Dankbar",AF16+AF21/4,Arbeitskräfte!AF28) -> 0 | AG20: =IF($H$2<>"Große Dankbar",AG16+AG21/4,Arbeitskräfte!AG28) -> 0 | AH20: =IF($H$2<>"Große Dankbar",AH16+AH21/4,Arbeitskräfte!AH28) -> 0 | AI20: =IF($H$2<>"Große Dankbar",AI16+AI21/4,Arbeitskräfte!AI28) -> 0 | AJ20: =IF($H$2<>"Große Dankbar",AJ16+AJ21/4,Arbeitskräfte!AJ28) -> 0 | AK20: =IF($H$2<>"Große Dankbar",AK16+AK21/4,Arbeitskräfte!AK28) -> 0 | AL20: =IF($H$2<>"Große Dankbar",AL16+AL21/4,Arbeitskräfte!AL28) -> 0 | AM20: =IF($H$2<>"Große Dankbar",AM16+AM21/4,Arbeitskräfte!AM28) -> 0 | AN20: =IF($H$2<>"Große Dankbar",AN16+AN21/4,Arbeitskräfte!AN28) -> 0 | AO20: =IF($H$2<>"Große Dankbar",AO16+AO21/4,Arbeitskräfte!AO28) -> 0 | AP20: =IF($H$2<>"Große Dankbar",AP16+AP21/4,Arbeitskräfte!AP28) -> 0 | AQ20: =IF($H$2<>"Große Dankbar",AQ16+AQ21/4,Arbeitskräfte!AQ28) -> 0 | AR20: =IF($H$2<>"Große Dankbar",AR16+AR21/4,Arbeitskräfte!AR28) -> 0 | AS20: =IF($H$2<>"Große Dankbar",AS16+AS21/4,Arbeitskräfte!AS28) -> 0 | AT20: =IF($H$2<>"Große Dankbar",AT16+AT21/4,Arbeitskräfte!AT28) -> 0 | AU20: =IF($H$2<>"Große Dankbar",AU16+AU21/4,Arbeitskräfte!AU28) -> 0 | AV20: =IF($H$2<>"Große Dankbar",AV16+AV21/4,Arbeitskräfte!AV28) -> 0 | AW20: =IF($H$2<>"Große Dankbar",AW16+AW21/4,Arbeitskräfte!AW28) -> 0 | AX20: =IF($H$2<>"Große Dankbar",AX16+AX21/4,Arbeitskräfte!AX28) -> 0 | AY20: =IF($H$2<>"Große Dankbar",AY16+AY21/4,Arbeitskräfte!AY28) -> 0 | AZ20: =IF($H$2<>"Große Dankbar",AZ16+AZ21/4,Arbeitskräfte!AZ28) -> 0 | BA20: =IF($H$2<>"Große Dankbar",BA16+BA21/4,Arbeitskräfte!BA28) -> 0 | BB20: =IF($H$2<>"Große Dankbar",BB16+BB21/4,Arbeitskräfte!BB28) -> 0 | BC20: =IF($H$2<>"Große Dankbar",BC16+BC21/4,Arbeitskräfte!BC28) -> 0 | BD20: =IF($H$2<>"Große Dankbar",BD16+BD21/4,Arbeitskräfte!BD28) -> 0 | BE20: =IF($H$2<>"Große Dankbar",BE16+BE21/4,Arbeitskräfte!BE28) -> 0 | BF20: =IF($H$2<>"Große Dankbar",BF16+BF21/4,Arbeitskräfte!BF28) -> 0 | BG20: =IF($H$2<>"Große Dankbar",BG16+BG21/4,Arbeitskräfte!BG28) -> 0 | BH20: =IF($H$2<>"Große Dankbar",BH16+BH21/4,Arbeitskräfte!BH28) -> 0 | BI20: =IF($H$2<>"Große Dankbar",BI16+BI21/4,Arbeitskräfte!BI28) -> 0 | BJ20: =IF($H$2<>"Große Dankbar",BJ16+BJ21/4,Arbeitskräfte!BJ28) -> 0 | BK20: 52364
